Workbook

Sheet ImpressumUndCopyright
B3: BERATUNGSTOOL BATTERIESPEICHER
B4: © 2018 Öko-Institut e.V.
B5: Impressum & Copyright
B8: Impressum
B10: Öko-Institut e.V.
B11: Geschäftsstelle Freiburg
B12: Postfach 17 71
B13: D-79017 Freiburg
B14: Tel. +49 761 45295-0
B15: Fax +49 761 45295-288
B17: UID-Nummer: DE 142 117 254
B63: Ihr Betriebssystem: | F63: =INFO("OSVERSION") -> Windows (32-bit) NT 6.01
B64: Der Name Ihrer Betriebsumgebung: | F64: =INFO("SYSTEM") -> pcdos
B65: Ihre Excel Version: | F65: =INFO("RELEASE") -> 14.0
B66: Excel Berechnungseinstellung: | F66: =INFO("RECALC") -> Automatisch
B67: Version Batteriespeicher Tool: | F67: Version 1.0
B68: Stand Batteriespeicher Tool: | F68: 2018-03-21

Sheet Start
B3: BERATUNGSTOOL BATTERIESPEICHER
B4: © 2018 Öko-Institut e.V.
B5: Inhalt und Bedienungsanleitung
B10: Inhaltsverzeichnis
B13: zur Eingabemaske
B14: zum Stromsparen und den Stromeffizienzklassen
B15: zu den Ergebnissen
B16: zur Wirtschaftlichkeitsberechnung
B18: Bedienungsanleitung
B19: Hinweis zu den Eingabefeldern
B20: Allgemeines
B21: Eingabemaske
B22: Strom-Effizienzklassen-Ansicht
B23: Darstellung der Ergebnisse
B24: Wirtschaftlichkeitsberechnung
B25: Haftungsausschluss
B26: Quellenangaben
A54: TBHinweise
A71: TBAllgemeines
A87: Eingabemaske
A97: TBSEK
A112: TBErgebnisse
A142: TBWB
A144: TBHaftungsausschluss
A155: TBQuellen
B173: Version und Systemeigenschaften
B174: Sollten unerwartet Fehler in den Formeln auftreten, so könnte dies an einer älteren Excel-Version liegen. Bitte schicken Sie uns in diesem Fall eine kurze Beschreibung des Fehlers und die unten angezeigten Informationen über Ihr Betriebssystem und Ihre Excel-Version. Vielen Dank für Ihre Mithilfe !
B175: Ihr Betriebssystem: | C175: =INFO("OSVERSION") -> Windows (32-bit) NT 6.01 | E175: Kontakt:
B176: Der Name Ihrer Betriebsumgebung: | C176: =INFO("SYSTEM") -> pcdos | E176: Büro Ö-quadrat
B177: Ihre Excel Version: | C177: =INFO("RELEASE") -> 14.0 | E177: Sebastian Albert-Seifried
B178: Excel Berechnungseinstellung: | C178: =INFO("RECALC") -> Automatisch | E178: sas@oe2.de
B179: Version Batteriespeicher Tool: | C179: Version 1.0
B180: Stand Batteriespeicher Tool: | C180: 2018-01-22

Sheet Eingabemaske
B3: BERATUNGSTOOL BATTERIESPEICHER
B4: © 2018 Öko-Institut e.V.
B5: Eingabemaske
B9: Wichtige Bedienungshinweise
B18: Verbrauchswerte und Berechnung der Stromeffizienzklasse
B20: Jahresstromverbrauch (kWh/a) | H20: =IF(SEK!$C$9="Klasse A","==>","") -> ==> | I20: Klasse A | K20: Die Skale der Stromeffizienzklassen geht von A (sehr gut) bis G (sehr schlecht). Die Einstufung berechnet sich aus Ihrem Jahresstromverbrauch, der Haushaltsgröße, dem Gebäudetyp und ob sie Ihr Warmwasser elektrisch aufbereiten.
H21: =IF(SEK!$C$9="Klasse B","==>","") ->  | I21: Klasse B
B22: Haushaltsgröße (Personen im Haushalt) | F22: 2 | H22: =IF(SEK!$C$9="Klasse C","==>","") ->  | I22: Klasse C
H23: =IF(SEK!$C$9="Klasse D","==>","") ->  | I23: Klasse D
B24: Gebäudetyp | H24: =IF(SEK!$C$9="Klasse E","==>","") ->  | I24: Klasse E
H25: =IF(SEK!$C$9="Klasse F","==>","") ->  | I25: Klasse F
H26: =IF(SEK!$C$9="Klasse G","==>","") ->  | I26: Klasse G
B27: Elektrisch Warmwasser
B29: Die derzeitige Stromeffizienzklasse Ihres Haushaltes ist: | F29: =SEK!$C$9 -> Klasse A
B31: Dimensionierung und Bestimmung des Solarertrages der PV-Anlage
B33: PV Anlage bereits vorhanden?
B35: PV-Neuanlage
B37: Vorhandene Dachfläche in m2
B38: Nennkapazität der PV-Anlage (kWp) (max. 10 kWp) | E38: =Config!C65 -> 0 | G38: =IF(OR(F38="",F38="überschreiben"),"",1) -> 
B39: Kosten für PV Anlage in Euro | E39: =Config!C73 -> 0 | F39: überschreiben | G39: =IF(OR(F39="",F39="überschreiben"),"",1) -> 
B40: Geplanter Installationszeitpunkt PV-Anlage (Monat und Jahr) | E40: Juli | F40: 2018
B42: PV-Bestandsanlage
B44: PV Anlage zur ausschließlichen Netzeinspeisung? | F44: Nein
B45: Nennkapazität der PV-Anlage (kWp) (max. 10 kWp) | F45: 5
B46: Monat und Jahr der Inbetriebnahme der PV-Anlage | E46: Mai | F46: 2002
B47: Geplanter Installationszeitpunkt Batteriespeicher (Jahr) | F47: 2018
B50: EEG Einspeisevergütung
B52: Einspeisevergütung (Cent / kWh) | E52: =Config!C83 -> 12.2 | F52: überschreiben | G52: =IF(OR(F52="",F52="überschreiben"),"",1) -> 
B53: Auslauf der EEG Einspeisevergütung | E53: =FeedInTariffEndDate -> 2038-12-31
B54: Einspeisevergütung nach Ablauf der EEG-Förderung | E54: 3 | F54: überschreiben
B55: Eigenverbrauchsvergütung bis 30% | E55: =Config!B85 -> 0 | F55: überschreiben
B56: Eigenverbrauchsvergütung ab 30% | E56: =Config!B86 -> 0 | F56: überschreiben
B58: Bestimmung des Solarertrages anhand der Postleitzahl
B59: Region nach Postleitzahl | E59: bitte auswählen
E60: =Config!B90 -> Deutschland
B61: Spezifischer jährlicher Solarertrag (kWh/kWp) | E61: =Config!C91 -> 965 | F61: überschreiben | G61: =IF(OR(F61="",F61="überschreiben"),"",1) -> 
B62: Solarertrag absolut (kWh/Jahr) | E62: =Config!C92 -> 0 | F62: überschreiben | G62: =IF(OR(F62="",F62="überschreiben"),"",1) ->  | H62: =IF(AND(PVAnlage=0,F62<>"überschreiben",F62<>0),"Bei einer Nennkap. von 0 ist der Solarertrag immer 0.","") -> 
B64: Dimensionierung des Batteriespeichers
B65: Kennwerte Batteriespeicher
B66: Batteriespeichergröße (kWh) | E66: =Config!C103 -> 0
B67: ="Info: "&Config!A105 -> 
B68: ="Info: "&Config!A106 -> 
B69: Achtung: Diese Werte unterscheiden sich von der Eigenverbrauchsquote und dem Autarkiegrad.
B70: Kosten für Batteriespeicher | E70: =Config!C116 -> 0 | F70: überschreiben | G70: =IF(OR(F70="",F70="überschreiben"),"",1) -> 

Sheet Stromsparen
B3: BERATUNGSTOOL BATTERIESPEICHER
B4: © 2018 Öko-Institut e.V.
B5: Eingabemaske
B8: Die Verbrauchsdaten Ihres Haushaltes
B11: Jahresstromverbrauch (kWh/a) | F11: =SEK!A9 -> 0
B12: Gebäudetyp | F12: =SEK!$A$5 -> EFH
B13: elektrisch Warmwasser | F13: =SEK!B5 -> Nein
B14: Haushaltsgröße (Personen im Haushalt) | F14: =SEK!$C$5 -> 2
B16: Ihre derzeitige Stromeffizienzklasse:
B18: =SEK!$C$9 -> Klasse A
B20: =SEK!A10 -> Herzlichen Glückwunsch, Sie verbrauchen viel weniger Strom als vergleichbare Haushalte. Weiter so!
B22: Die Tabelle zur Eindordnung Ihrer Stromeffizienzklasse ist unten angezeigt.
B24: Gebäude- typ | C24: Warm- wasser | D24: Personen im Haushalt | F24: Verbrauch in Kilowattstunden (kWh) pro Jahr
F25: Gering | L25: Sehr hoch
F26: A | G26: B | H26: C | I26: D | J26: E | K26: F | L26: G
D27: 1 | E27: =IF(SEK!$E$5=D27,"==>","") ->  | F27: ≤ 1.300 | G27: ≤ 1.700 | H27: ≤ 2.000 | I27: ≤ 2.500 | J27: ≤ 3.000 | K27: ≤ 4.000 | L27: > 4.000
D28: 2 | E28: =IF(SEK!$E$5=D28,"==>","") -> ==> | F28: ≤ 2.100 | G28: ≤ 2.500 | H28: ≤ 3.000 | I28: ≤ 3.200 | J28: ≤ 3.600 | K28: ≤ 4.400 | L28: > 4.400
D29: 3 | E29: =IF(SEK!$E$5=D29,"==>","") ->  | F29: ≤ 2.600 | G29: ≤ 3.000 | H29: ≤ 3.500 | I29: ≤ 3.900 | J29: ≤ 4.300 | K29: ≤ 5.200 | L29: > 5.200
D30: 4 | E30: =IF(SEK!$E$5=D30,"==>","") ->  | F30: ≤ 2.900 | G30: ≤ 3.500 | H30: ≤ 3.800 | I30: ≤ 4.200 | J30: ≤ 4.900 | K30: ≤ 5.900 | L30: > 5.900
D31: 5 | E31: =IF(SEK!$E$5=D31,"==>","") ->  | F31: ≤ 3.500 | G31: ≤ 4.000 | H31: ≤ 4.800 | I31: ≤ 5.400 | J31: ≤ 6.000 | K31: ≤ 7.500 | L31: > 7.500
D32: 6 | E32: =IF(SEK!$E$5=D32,"==>","") ->  | F32: ≤ 1.500 | G32: ≤ 2.000 | H32: ≤ 2.500 | I32: ≤ 3.000 | J32: ≤ 3.600 | K32: ≤ 5.000 | L32: > 5.000
D33: 7 | E33: =IF(SEK!$E$5=D33,"==>","") ->  | F33: ≤ 2.500 | G33: ≤ 3.000 | H33: ≤ 3.500 | I33: ≤ 4.000 | J33: ≤ 4.500 | K33: ≤ 5.800 | L33: > 5.800
D34: 8 | E34: =IF(SEK!$E$5=D34,"==>","") ->  | F34: ≤ 3.000 | G34: ≤ 3.800 | H34: ≤ 4.200 | I34: ≤ 4.900 | J34: ≤ 5.700 | K34: ≤ 7.300 | L34: > 7.300
D35: 9 | E35: =IF(SEK!$E$5=D35,"==>","") ->  | F35: ≤ 3.500 | G35: ≤ 4.000 | H35: ≤ 4.800 | I35: ≤ 5.500 | J35: ≤ 6.300 | K35: ≤ 8.000 | L35: > 8.000
D36: 10 | E36: =IF(SEK!$E$5=D36,"==>","") ->  | F36: ≤ 4.200 | G36: ≤ 5.000 | H36: ≤ 6.000 | I36: ≤ 7.000 | J36: ≤ 8.000 | K36: ≤ 10.900 | L36: > 10.900
D37: 11 | E37: =IF(SEK!$E$5=D37,"==>","") ->  | F37: ≤ 800 | G37: ≤ 1.000 | H37: ≤ 1.200 | I37: ≤ 1.500 | J37: ≤ 1.800 | K37: ≤ 2.200 | L37: > 2.200
D38: 12 | E38: =IF(SEK!$E$5=D38,"==>","") ->  | F38: ≤ 1.300 | G38: ≤ 1.600 | H38: ≤ 2.000 | I38: ≤ 2.200 | J38: ≤ 2.600 | K38: ≤ 3.100 | L38: > 3.100
D39: 13 | E39: =IF(SEK!$E$5=D39,"==>","") ->  | F39: ≤ 1.700 | G39: ≤ 2.000 | H39: ≤ 2.400 | I39: ≤ 2.800 | J39: ≤ 3.200 | K39: ≤ 3.900 | L39: > 3.900
D40: 14 | E40: =IF(SEK!$E$5=D40,"==>","") ->  | F40: ≤ 1.900 | G40: ≤ 2.400 | H40: ≤ 2.800 | I40: ≤ 3.200 | J40: ≤ 3.700 | K40: ≤ 4.500 | L40: > 4.500
D41: 15 | E41: =IF(SEK!$E$5=D41,"==>","") ->  | F41: ≤ 2.200 | G41: ≤ 2.800 | H41: ≤ 3.500 | I41: ≤ 4.000 | J41: ≤ 4.800 | K41: ≤ 5.700 | L41: > 5.700
D42: 16 | E42: =IF(SEK!$E$5=D42,"==>","") ->  | F42: ≤ 1.200 | G42: ≤ 1.500 | H42: ≤ 1.800 | I42: ≤ 2.000 | J42: ≤ 2.400 | K42: ≤ 3.000 | L42: > 3.000
D43: 17 | E43: =IF(SEK!$E$5=D43,"==>","") ->  | F43: ≤ 2.000 | G43: ≤ 2.500 | H43: ≤ 2.900 | I43: ≤ 3.100 | J43: ≤ 3.500 | K43: ≤ 4.200 | L43: > 4.200
D44: 18 | E44: =IF(SEK!$E$5=D44,"==>","") ->  | F44: ≤ 2.600 | G44: ≤ 3.200 | H44: ≤ 3.700 | I44: ≤ 4.100 | J44: ≤ 4.700 | K44: ≤ 5.600 | L44: > 5.600
D45: 19 | E45: =IF(SEK!$E$5=D45,"==>","") ->  | F45: ≤ 2.800 | G45: ≤ 3.500 | H45: ≤ 4.000 | I45: ≤ 4.600 | J45: ≤ 5.400 | K45: ≤ 6.500 | L45: > 6.500
D46: 20 | E46: =IF(SEK!$E$5=D46,"==>","") ->  | F46: ≤ 2300 | G46: ≤ 3000 | H46: ≤ 3500 | I46: ≤ 4200 | J46: ≤ 4600 | K46: ≤ 5300 | L46: > 5.300
C48: Ihre Stromeffizienzklasse: | F48: =IF(SEK!$C$9="Klasse A",SEK!$C$9,"") -> Klasse A | G48: =IF(SEK!$C$9="Klasse B",SEK!$C$9,"") ->  | H48: =IF(SEK!$C$9="Klasse C",SEK!$C$9,"") ->  | I48: =IF(SEK!$C$9="Klasse D",SEK!$C$9,"") ->  | J48: =IF(SEK!$C$9="Klasse E",SEK!$C$9,"") ->  | K48: =IF(SEK!$C$9="Klasse F",SEK!$C$9,"") ->  | L48: =IF(SEK!$C$9="Klasse G",SEK!$C$9,"") -> 
B52: Einsparpotenzial Ihres Haushaltes
B54: Einsparpotenzial nach Energieberatung oder gewünschter Effizienzklasse ermitteln? | G54: bitte wählen
B56: Einsparpotenzial nach Energieberatung
B57: Einsparpotenzial mit geringinvestiven Maßnamen | I57: SEK vor Einsparungen: | L57: =SEK!C9 -> Klasse A
B58: Einsparpotenzial mit investiven Maßnamen | I58: SEK nach Einsparungen: | L58: =SEK!C17 -> Klasse A
B59: Einsparpotenzial gesamt: | G59: =MIN(SUM(G57:G58),Jahresstromverbrauch) -> 0 | H59: =IF(G57+G58>Jahresstromverbrauch,1,0) -> 0 | I59: =IF(G57+G58>Jahresstromverbrauch,"Einsparung höher als JSV","") -> 
B62: Einsparpotenzial nach Effizienzklasse
B63: Welche Effizienzklasse möchten Sie erreichen? | G63: bitte wählen
B65: Benötigte Einsparungen bis zur gewünschten Klasse | G65: =SEK!I16 -> 0
B66: (Wenn keine Auswahl getroffen wird, wird automatisch die nächst bessere Klasse angenommen)
B68: Verbleibender Jahresstromverbrauch | G68: =Config!B57 -> 0
B70: Kosten für Effizienzmaßnahmen | G70: =Config!C55 -> 0 | H70: überschreiben
E91: RGB Codes
E92: 131 | F92: 158 | G92: 194 | H92: 226 | I92: 234 | J92: 234 | K92: 232
E93: 188 | F93: 200 | G93: 218 | H93: 217 | I93: 158 | J93: 115 | K93: 67
E94: 49 | F94: 90 | G94: 146 | H94: 176 | I94: 103 | J94: 59 | K94: 35

Sheet Ergebnis
C3: BERATUNGSTOOL BATTERIESPEICHER
C4: © 2018 Öko-Institut e.V.
C5: Ergebnisse
C11: Jahresstromverbrauch (kWh/Jahr) | G11: =Jahresstromverbrauch -> 0
C12: Speichergröße (kWh) | G12: =Batteriespeicher -> 0
C13: Größe PV-Anlage (kWp) | G13: =PVAnlage -> 0
C15: =WB!$D$101 -> Szenario 1 (PV-Investition (0 kWp) und Batteriespeicher (0 kWh) ohne Stromsparmaßnahmen) | L15: =WB!$D$102 -> Szenario 2 (PV-Investition (0 kWp) und Batteriespeicher (0 kWh) mit Stromsparmaßnahmen (0 kWh))
C17: Jahresstromverbrauch (kWh/Jahr) | G17: ='S1'!$Q$8 -> 0 | L17: Jahresstromverbrauch (kWh/Jahr) | P17: ='S2'!$Q$8 -> 0
C18: PV-Produktion (kWh/Jahr) | G18: ='S1'!$Q$9 -> 0 | L18: PV-Produktion (kWh/Jahr) | P18: ='S2'!$Q$9 -> 0
C19: Eigenverbrauch (kWh/Jahr) | G19: ='S1'!$Q$10 -> 0 | L19: Eigenverbrauch (kWh/Jahr) | P19: ='S2'!$Q$10 -> 0
C20: Bezug (kWh/Jahr) | G20: ='S1'!$Q$11 -> 0 | L20: Bezug (kWh/Jahr) | P20: ='S2'!$Q$11 -> 0
C21: Einspeisung (kWh/Jahr) | G21: ='S1'!$Q$12 -> 0 | L21: Einspeisung (kWh/Jahr) | P21: ='S2'!$Q$12 -> 0
C22: Verluste von Batteriespeicher (kWh/Jahr) | G22: ='S1'!$Q$13 -> 0 | L22: Verluste von Batteriespeicher (kWh/Jahr) | P22: ='S2'!$Q$13 -> 0
C23: Volllastzyklen der Batterie pro Jahr | G23: ='S1'!$Q$14 -> - | L23: Volllastzyklen der Batterie pro Jahr | P23: ='S2'!$Q$14 -> -
C24: Volllastzyklen in 20 Jahren | G24: ='S1'!$S$14 ->  | L24: Volllastzyklen in 20 Jahren | P24: ='S2'!$S$14 -> 
C25: Prozentuale Verteilung: | L25: Prozentuale Verteilung:
C26: Eigenverbrauchsquote | G26: ='S1'!$Q$20 ->  | L26: Eigenverbrauchsquote | P26: ='S2'!$Q$20 -> 
C27: Einspeisequote | G27: ='S1'!$Q$21 ->  | L27: Einspeisequote | P27: ='S2'!$Q$21 -> 
C28: Verluste Batterie | G28: ='S1'!$Q$22 ->  | L28: Verluste Batterie | P28: ='S2'!$Q$22 -> 
C29: Autarkiegrad | G29: ='S1'!$Q$23 ->  | L29: Autarkiegrad | P29: ='S2'!$Q$23 -> 
C44: =WB!$G$103 -> Referenzszenario ohne PV-Anlage und ohne Batteriespeicher | L44: =IF(PVExist="Nein","Bei einer PV-Bestandsanlage werden in nebenstehender Abbildung die Ergebnisse für die Berechnungen der jetzigen Situation angezeigt. Da keine PV-Bestandsanlage ausgewählt wurde, wird keine grafische Auswertung angezeigt.","") -> Bei einer PV-Bestandsanlage werden in nebenstehender Abbildung die Ergebnisse für die Berechnungen der jetzigen Situation angezeigt. Da keine PV-Bestandsanlage ausgewählt wurde, wird keine grafische Auswertung angezeigt.
C46: Jahresstromverbrauch (kWh/Jahr) | G46: =SR!$Q$8 -> 0
C47: PV-Produktion (kWh/Jahr) | G47: =SR!$Q$9 -> 0
C48: Eigenverbrauch (kWh/Jahr) | G48: =SR!$Q$10 -> 0
C49: Bezug (kWh/Jahr) | G49: =SR!$Q$11 -> 0
C50: Einspeisung (kWh/Jahr) | G50: =SR!$Q$12 -> 0
C52: Prozentuale Verteilung:
C53: Eigenverbrauchsquote | G53: =SR!$Q$20 -> -
C54: Einspeisequote | G54: =SR!$Q$21 -> -
C55: Autarkiegrad | G55: =SR!$Q$23 -> 
C70: Detailansicht der Energieflüsse für den Batteriespeicher
C72: Kalenderwoche | E72: 18
D141: Solarproduktion | F141: d
D142: Einspeicherung / Entnahme | F142: K
D143: Einspeisung | F143: F
D144: Stand Solarspeicher | F144: J

Sheet Wirtschaftlichkeitsberechnung
B3: BERATUNGSTOOL BATTERIESPEICHER
B4: © 2018 Öko-Institut e.V.
B5: Wirtschaftlichkeitsberechnung
B9: Ökonomische Rahmenbedingungen
B15: Jetziger Strombezugspreis (Arbeitspreis in Cent/kWh) | D15: 28
B17: Entwicklung Strompreis in % pro Jahr | D17: 2
B19: Inflationsrate in % pro Jahr | C19: =Config!C37 -> 0.01 | D19: 1
B20: Anfangsjahr für Berechnungen | D20: =BasisJahr -> 2018
B22: Wirtschaftlichkeitsrechnung
B24: ="Referenzszenario beschreibt die jetzige Situation "&WB!D92 -> Referenzszenario beschreibt die jetzige Situation ohne PV-Anlage
C25: Kenngröße | D25: Investitionen | E25: Jahr 1 | F25: Jahr 2 | G25: Jahr 3 | H25: … | I25: Jahr 20 | J25: Summe
B26: Strombezugskosten (€) | C26: =WB!A41 -> 0 | E26: =WB!E41 -> 0 | F26: =WB!F41 -> 0 | G26: =WB!G41 -> 0 | I26: =WB!X41 -> 0 | J26: =WB!Y41 -> 0
B27: Eigenverbrauchszuschuss (€) | C27: =WB!A42 -> 0 | E27: =WB!E42 -> 0 | F27: =WB!F42 -> 0 | G27: =WB!G42 -> 0 | I27: =WB!X42 -> 0 | J27: =WB!Y42 -> 0
B28: Einspeisevergütung (€) | C28: =WB!A43 -> 0 | E28: =WB!E43 -> 0 | F28: =WB!F43 -> 0 | G28: =WB!G43 -> 0 | I28: =WB!X43 -> 0 | J28: =WB!Y43 -> 0
I29: Kosten: | J29: =SUM(J26:J28) -> 0
B30: =WB!C122 -> 
B32: =WB!D101 -> Szenario 1 (PV-Investition (0 kWp) und Batteriespeicher (0 kWh) ohne Stromsparmaßnahmen)
C33: Kenngröße | D33: Investitionen | E33: Jahr 1 | F33: Jahr 2 | G33: Jahr 3 | H33: … | I33: Jahr 20 | J33: Summe
B34: Kosten PV (€) | C34: =WB!B48 -> 0 | D34: =WB!D48 -> 0 | E34: =WB!E48 -> 0 | F34: =WB!F48 -> 0 | G34: =WB!G48 -> 0 | I34: =WB!X48 -> 0 | J34: =WB!Y48 -> 0
B35: Kosten Speicher (€) | C35: =WB!B49 -> 0 | D35: =WB!D49 -> 0 | E35: =WB!E49 -> 0 | F35: =WB!F49 -> 0 | G35: =WB!G49 -> 0 | I35: =WB!X49 -> 0 | J35: =WB!Y49 -> 0
B36: Kosten für Einsparungen (€) | C36: =WB!B50 -> 0 | D36: =WB!D50 -> 0 | E36: =WB!E50 -> 0 | F36: =WB!F50 -> 0 | G36: =WB!G50 -> 0 | I36: =WB!X50 -> 0 | J36: =WB!Y50 -> 0
B37: Strombezugskosten (€) | C37: =WB!B51 -> 0 | E37: =WB!E51 -> 0 | F37: =WB!F51 -> 0 | G37: =WB!G51 -> 0 | I37: =WB!X51 -> 0 | J37: =WB!Y51 -> 0
B38: Eigenverbrauchszuschuss (€) | C38: =WB!B52 -> 0 | E38: =WB!E52 -> 0 | F38: =WB!F52 -> 0 | G38: =WB!G52 -> 0 | I38: =WB!X52 -> 0 | J38: =WB!Y52 -> 0
B39: Einspeisevergütung (€) | C39: =WB!B53 -> 0 | E39: =WB!E53 -> 0 | F39: =WB!F53 -> 0 | G39: =WB!G53 -> 0 | I39: =WB!X53 -> 0 | J39: =WB!Y53 -> 0
I40: Kosten: | J40: =SUM(J34:J39) -> 0
C41: Wirtschaftlicher Vorteil / Nachteil gegenüber Referenzszenario (nominal): | J41: =J40-J29 -> 0
B43: =WB!D102 -> Szenario 2 (PV-Investition (0 kWp) und Batteriespeicher (0 kWh) mit Stromsparmaßnahmen (0 kWh))
C44: Kenngröße | D44: Investitionen | E44: Jahr 1 | F44: Jahr 2 | G44: Jahr 3 | H44: … | I44: Jahr 20 | J44: Summe
B45: Kosten PV (€) | C45: =WB!B63 -> 0 | D45: =WB!D63 -> 0 | E45: =WB!E63 -> 0 | F45: =WB!F63 -> 0 | G45: =WB!G63 -> 0 | I45: =WB!X63 -> 0 | J45: =WB!Y63 -> 0
B46: Kosten Speicher (€) | C46: =WB!B64 -> 0 | D46: =WB!D64 -> 0 | E46: =WB!E64 -> 0 | F46: =WB!F64 -> 0 | G46: =WB!G64 -> 0 | I46: =WB!X64 -> 0 | J46: =WB!Y64 -> 0
B47: Kosten für Einsparungen (€) | C47: =WB!B65 -> 0 | D47: =WB!D65 -> 0 | E47: =WB!E65 -> 0 | F47: =WB!F65 -> 0 | G47: =WB!G65 -> 0 | I47: =WB!X65 -> 0 | J47: =WB!Y65 -> 0
B48: Strombezugskosten (€) | C48: =WB!B66 -> 0 | E48: =WB!E66 -> 0 | F48: =WB!F66 -> 0 | G48: =WB!G66 -> 0 | I48: =WB!X66 -> 0 | J48: =WB!Y66 -> 0
B49: Eigenverbrauchszuschuss (€) | C49: =WB!B67 -> 0 | E49: =WB!E67 -> 0 | F49: =WB!F67 -> 0 | G49: =WB!G67 -> 0 | I49: =WB!X67 -> 0 | J49: =WB!Y67 -> 0
B50: Einspeisevergütung (€) | C50: =WB!B68 -> 0 | E50: =WB!E68 -> 0 | F50: =WB!F68 -> 0 | G50: =WB!G68 -> 0 | I50: =WB!X68 -> 0 | J50: =WB!Y68 -> 0
I51: Kosten: | J51: =SUM(J45:J50) -> 0
C52: Wirtschaftlicher Vorteil / Nachteil gegenüber Referenzszenario (nominal): | J52: =J51-J29 -> 0
B55: Analyse der Ergebnisse
B57: =B32 -> Szenario 1 (PV-Investition (0 kWp) und Batteriespeicher (0 kWh) ohne Stromsparmaßnahmen)
B58: Interne Verzinsungsrate (IRR) für Investitionen: | D58: =Szenario1_IRR -> kein IRR | E58: =WB!H109 -> Reale Verzinsung des eingesetzten Kapitals (um Inflationsrate korrigiert).
B59: Ergebnis:
B60: =WB!H110 -> Unter nominaler Betrachtung ergibt sich ein Gewinn von 0 Euro.
B61: =WB!H111 -> Inflationsbereinigt ergibt sich ein Gewinn von 0 Euro.
B62: Anmerkung: Wirtschaftliche Betrachtung über einen Zeitraum von 20 Jahren, ohne Einberechnung der Restwerte. Weitere Details zur Berechnung hier.
B64: =B43 -> Szenario 2 (PV-Investition (0 kWp) und Batteriespeicher (0 kWh) mit Stromsparmaßnahmen (0 kWh))
B65: Interne Verzinsungsrate (IRR) für Investitionen: | D65: =Szenario2_IRR -> kein IRR | E65: =WB!H116 -> Reale Verzinsung des eingesetzten Kapitals (um Inflationsrate korrigiert).
B66: Ergebnis:
B67: =WB!H117 -> Unter nominaler Betrachtung ergibt sich ein Gewinn von 0 Euro.
B68: =WB!H118 -> Inflationsbereinigt ergibt sich ein Gewinn von 0 Euro.
B69: Anmerkung: Wirtschaftliche Betrachtung über einen Zeitraum von 20 Jahren, ohne Einberechnung der Restwerte. Weitere Details zur Berechnung hier.

Sheet Kurzbericht
B2: BERATUNGSTOOL BATTERIESPEICHER - Kurzbericht
B3: © 2018 Öko-Institut e.V.
B6: Freifeld für Kommentare
B14: Verbrauchswerte und Stromeffizienzklasse
B16: Jahresstromverbrauch (kWh/a) | I16: =Jahresstromverbrauch -> 0
B17: Haushaltsgröße (Personen im Haushalt) | I17: =SEK!$C$5 -> 2
B18: Gebäudetyp | I18: =GeTyp -> EFH
B19: Elektrisch Warmwasser | I19: =ElektrischWarmwasser -> Nein
B20: Die derzeitige Stromeffizienzklasse Ihres Haushaltes ist: | I20: =SEK!$C$9 -> Klasse A
B22: Methode zur Ermittlung des Einsparpotentials: | I22: =Stromsparen!G54 -> bitte wählen
B23: Einsparpotenzial mit geringinvestiven Maßnamen | I23: =Config!B48 -> 0
B24: Einsparpotenzial mit investiven Maßnamen | I24: =Config!B49 -> 0
B25: Einsparpotenzial gesamt: | I25: =Config!B47 -> 0
B27: Verbleibender Jahresstromverbrauch | I27: =Config!B57 -> 0
B28: Neue SEK nach Einsparungen: | I28: =SEK!$C$17 -> Klasse A
B29: Kosten für Effizienzmaßnahmen | I29: =KostenEinsparungen -> 0
B31: Einstellungen PV-Anlage und Solarertrag
B33: ="Art der Anlage: "&Config!D10 -> Art der Anlage: Neuanlage
B35: =IF(PVExistB,"PV Anlage zur ausschließlichen Netzeinspeisung?","Vorhandene Dachfläche in m2") -> Vorhandene Dachfläche in m2 | I35: =IF(PVExistB,PVNurNetzeinspeisung,Config!B63) -> 0
B36: Nennkapazität der PV-Anlage (kWp) | I36: =PVAnlage -> 0
B37: Monat und Jahr der Inbetriebnahme der PV-Anlage | I37: =IF(PVExistB,Config!C20&" "&Config!C19,Config!C22&" "&Config!C21) -> Juli 2018
B38: =IF(PVExistB,"","Kosten für PV Anlage in Euro") -> Kosten für PV Anlage in Euro | I38: =IF(PVExistB,"",PVSystemkosten) -> 0
B39: Installationszeitpunkt Batteriespeicher (Jahr) | I39: =BasisJahr -> 2018
B41: EEG Einspeisevergütung
B43: Einspeisevergütung (Cent / kWh) | I43: =Einspeiseverguetung -> 12.2
B44: Auslauf der EEG Einspeisevergütung | I44: =FeedInTariffEndDate -> 2038-12-31
B45: Einspeisevergütung nach Ablauf der EEG-Förderung | I45: =EinspeiseverguetungNachAblaufEEG -> 3
B46: Eigenverbrauchsvergütung bis 30% | I46: =EigenverbrauchszuschussBis30 -> 0
B47: Eigenverbrauchsvergütung ab 30% | I47: =EigenverbrauchszuschussAb30 -> 0
B49: Bestimmung des Solarertrages anhand der Postleitzahl
B50: Region nach Postleitzahl | I50: =Config!B89 -> bitte auswählen
B52: Spezifischer jährlicher Solarertrag (kWh/kWp) | I52: =Config!E91 -> 965
B53: Solarertrag absolut (kWh/Jahr) | I53: =Solarproduktion -> 0
B56: Einstellungen Batteriespeicher
B58: Batteriespeichergröße (kWh) | I58: =Batteriespeicher -> 0
B59: Kosten für Batteriespeicher | I59: =BatterieGesamtkosten -> 0
B61: Vordefinierte Configurationswerte:
B63: Jährliche Wartungskoten PV-Anlage (in % der Anschaffungskosten) | I63: =PVWartung -> 0.02
B64: Jährliche Wartungskoten Batterie (in % der Anschaffungskosten) | I64: =BatterieWartung -> 0.02
B65: Wirkungsgrad des Batteriespeichers | I65: =Wirkungsgrad -> 0.9
B67: Ökonomische Rahmenbedingungen
B69: =IF(cQEBP=1,"Strompreisentwicklung nach Prognose des Öko-Instituts","Benutzerdefinierte Strompreisentwicklung") -> Benutzerdefinierte Strompreisentwicklung
B70: =IF(cQEBP=1,Config!AF31,"Strombezugspreis (Cent/kWh)") -> Strombezugspreis (Cent/kWh) | I70: =IF(cQEBP=1,"",Bezugspreis) -> 28
B71: =IF(cQEBP=1,Config!AF32,"Entwicklung Strompreis in % pro Jahr") -> Entwicklung Strompreis in % pro Jahr | I71: =IF(cQEBP=1,"",Preissteigerungsrate) -> 0.02
B72: =IF(cQEBP=1,Config!AF33,"") -> 
B73: Inflationsrate in % pro Jahr | I73: =Inflationsrate -> 0.01
B76: =WB!$G$103 -> Referenzszenario ohne PV-Anlage und ohne Batteriespeicher
B78: Jahresstromverbrauch (kWh/Jahr) | C78: =SR!$Q$8 -> 0
B79: PV-Produktion (kWh/Jahr) | C79: =SR!$Q$9 -> 0
B80: Eigenverbrauch (kWh/Jahr) | C80: =SR!$Q$10 -> 0
B81: Bezug (kWh/Jahr) | C81: =SR!$Q$11 -> 0
B82: Einspeisung (kWh/Jahr) | C82: =SR!$Q$12 -> 0
B84: Prozentuale Verteilung:
B85: Eigenverbrauchsquote | C85: =SR!$Q$20 -> -
B86: Einspeisequote | C86: =SR!$Q$21 -> -
B87: Autarkiegrad | C87: =SR!$Q$23 -> 
B88: =IF(PVExist="Nein","Hinweis: Bei einer PV-Bestandsanlage werden in nebenstehender Abbildung die Ergebnisse für die Berechnungen der jetzigen Situation angezeigt. Da keine PV-Bestandsanlage ausgewählt wurde, wird keine grafische Auswertung angezeigt.","") -> Hinweis: Bei einer PV-Bestandsanlage werden in nebenstehender Abbildung die Ergebnisse für die Berechnungen der jetzigen Situation angezeigt. Da keine PV-Bestandsanlage ausgewählt wurde, wird keine grafische Auswertung angezeigt.
B93: =WB!$D$101 -> Szenario 1 (PV-Investition (0 kWp) und Batteriespeicher (0 kWh) ohne Stromsparmaßnahmen)
B95: Jahresstromverbrauch (kWh/Jahr) | C95: ='S1'!$Q$8 -> 0
B96: PV-Produktion (kWh/Jahr) | C96: ='S1'!$Q$9 -> 0
B97: Eigenverbrauch (kWh/Jahr) | C97: ='S1'!$Q$10 -> 0
B98: Bezug (kWh/Jahr) | C98: ='S1'!$Q$11 -> 0
B99: Einspeisung (kWh/Jahr) | C99: ='S1'!$Q$12 -> 0
B100: Verluste von Batteriespeicher (kWh/Jahr) | C100: ='S1'!$Q$13 -> 0
B101: Volllastzyklen der Batterie pro Jahr | C101: ='S1'!$Q$14 -> -
B102: Volllastzyklen in 20 Jahren | C102: ='S1'!$S$14 -> 
B103: Prozentuale Verteilung:
B104: Eigenverbrauchsquote | C104: ='S1'!$Q$20 -> 
B105: Einspeisequote | C105: ='S1'!$Q$21 -> 
B106: Verluste Batterie | C106: ='S1'!$Q$22 -> 
B107: Autarkiegrad | C107: ='S1'!$Q$23 -> 
B110: =WB!$D$102 -> Szenario 2 (PV-Investition (0 kWp) und Batteriespeicher (0 kWh) mit Stromsparmaßnahmen (0 kWh))
B112: Jahresstromverbrauch (kWh/Jahr) | C112: ='S2'!$Q$8 -> 0
B113: PV-Produktion (kWh/Jahr) | C113: ='S2'!$Q$9 -> 0
B114: Eigenverbrauch (kWh/Jahr) | C114: ='S2'!$Q$10 -> 0
B115: Bezug (kWh/Jahr) | C115: ='S2'!$Q$11 -> 0
B116: Einspeisung (kWh/Jahr) | C116: ='S2'!$Q$12 -> 0
B117: Verluste von Batteriespeicher (kWh/Jahr) | C117: ='S2'!$Q$13 -> 0
B118: Volllastzyklen der Batterie pro Jahr | C118: ='S2'!$Q$14 -> -
B119: Volllastzyklen in 20 Jahren | C119: ='S2'!$S$14 -> 
B120: Prozentuale Verteilung:
B121: Eigenverbrauchsquote | C121: ='S2'!$Q$20 -> 
B122: Einspeisequote | C122: ='S2'!$Q$21 -> 
B123: Verluste Batterie | C123: ='S2'!$Q$22 -> 
B124: Autarkiegrad | C124: ='S2'!$Q$23 -> 
B127: Wirtschaftlichkeitsrechnung
B129: ="Referenzszenario beschreibt die jetzige Situation "&WB!D92 -> Referenzszenario beschreibt die jetzige Situation ohne PV-Anlage
C130: Kenngröße | D130: Investitionen | E130: Jahr 1 | F130: Jahr 2 | G130: Jahr 3 | H130: … | I130: Jahr 20 | J130: Summe
B131: Strombezugskosten (€) | C131: =WB!A41 -> 0 | E131: =WB!E41 -> 0 | F131: =WB!F41 -> 0 | G131: =WB!G41 -> 0 | I131: =WB!X41 -> 0 | J131: =WB!Y41 -> 0
B132: Eigenverbrauchszuschuss (€) | C132: =WB!A42 -> 0 | E132: =WB!E42 -> 0 | F132: =WB!F42 -> 0 | G132: =WB!G42 -> 0 | I132: =WB!X42 -> 0 | J132: =WB!Y42 -> 0
B133: Einspeisevergütung (€) | C133: =WB!A43 -> 0 | E133: =WB!E43 -> 0 | F133: =WB!F43 -> 0 | G133: =WB!G43 -> 0 | I133: =WB!X43 -> 0 | J133: =WB!Y43 -> 0
I134: Kosten: | J134: =SUM(J131:J133) -> 0
B135: =WB!C122 -> 
B137: =WB!D101 -> Szenario 1 (PV-Investition (0 kWp) und Batteriespeicher (0 kWh) ohne Stromsparmaßnahmen)
C138: Kenngröße | D138: Investitionen | E138: Jahr 1 | F138: Jahr 2 | G138: Jahr 3 | H138: … | I138: Jahr 20 | J138: Summe
B139: Kosten PV (€) | C139: =WB!B48 -> 0 | D139: =WB!D48 -> 0 | E139: =WB!E48 -> 0 | F139: =WB!F48 -> 0 | G139: =WB!G48 -> 0 | I139: =WB!X48 -> 0 | J139: =WB!Y48 -> 0
B140: Kosten Speicher (€) | C140: =WB!B49 -> 0 | D140: =WB!D49 -> 0 | E140: =WB!E49 -> 0 | F140: =WB!F49 -> 0 | G140: =WB!G49 -> 0 | I140: =WB!X49 -> 0 | J140: =WB!Y49 -> 0
B141: Kosten für Einsparungen (€) | C141: =WB!B50 -> 0 | D141: =WB!D50 -> 0 | E141: =WB!E50 -> 0 | F141: =WB!F50 -> 0 | G141: =WB!G50 -> 0 | I141: =WB!X50 -> 0 | J141: =WB!Y50 -> 0
B142: Strombezugskosten (€) | C142: =WB!B51 -> 0 | E142: =WB!E51 -> 0 | F142: =WB!F51 -> 0 | G142: =WB!G51 -> 0 | I142: =WB!X51 -> 0 | J142: =WB!Y51 -> 0
B143: Eigenverbrauchszuschuss (€) | C143: =WB!B52 -> 0 | E143: =WB!E52 -> 0 | F143: =WB!F52 -> 0 | G143: =WB!G52 -> 0 | I143: =WB!X52 -> 0 | J143: =WB!Y52 -> 0
B144: Einspeisevergütung (€) | C144: =WB!B53 -> 0 | E144: =WB!E53 -> 0 | F144: =WB!F53 -> 0 | G144: =WB!G53 -> 0 | I144: =WB!X53 -> 0 | J144: =WB!Y53 -> 0
I145: Kosten: | J145: =SUM(J139:J144) -> 0
C146: Wirtschaftlicher Vorteil / Nachteil gegenüber Referenzszenario (nominal): | J146: =J145-J134 -> 0
B148: =WB!D102 -> Szenario 2 (PV-Investition (0 kWp) und Batteriespeicher (0 kWh) mit Stromsparmaßnahmen (0 kWh))
C149: Kenngröße | D149: Investitionen | E149: Jahr 1 | F149: Jahr 2 | G149: Jahr 3 | H149: … | I149: Jahr 20 | J149: Summe
B150: Kosten PV (€) | C150: =WB!B63 -> 0 | D150: =WB!D63 -> 0 | E150: =WB!E63 -> 0 | F150: =WB!F63 -> 0 | G150: =WB!G63 -> 0 | I150: =WB!X63 -> 0 | J150: =WB!Y63 -> 0
B151: Kosten Speicher (€) | C151: =WB!B64 -> 0 | D151: =WB!D64 -> 0 | E151: =WB!E64 -> 0 | F151: =WB!F64 -> 0 | G151: =WB!G64 -> 0 | I151: =WB!X64 -> 0 | J151: =WB!Y64 -> 0
B152: Kosten für Einsparungen (€) | C152: =WB!B65 -> 0 | D152: =WB!D65 -> 0 | E152: =WB!E65 -> 0 | F152: =WB!F65 -> 0 | G152: =WB!G65 -> 0 | I152: =WB!X65 -> 0 | J152: =WB!Y65 -> 0
B153: Strombezugskosten (€) | C153: =WB!B66 -> 0 | E153: =WB!E66 -> 0 | F153: =WB!F66 -> 0 | G153: =WB!G66 -> 0 | I153: =WB!X66 -> 0 | J153: =WB!Y66 -> 0
B154: Eigenverbrauchszuschuss (€) | C154: =WB!B67 -> 0 | E154: =WB!E67 -> 0 | F154: =WB!F67 -> 0 | G154: =WB!G67 -> 0 | I154: =WB!X67 -> 0 | J154: =WB!Y67 -> 0
B155: Einspeisevergütung (€) | C155: =WB!B68 -> 0 | E155: =WB!E68 -> 0 | F155: =WB!F68 -> 0 | G155: =WB!G68 -> 0 | I155: =WB!X68 -> 0 | J155: =WB!Y68 -> 0
I156: Kosten: | J156: =SUM(J150:J155) -> 0
C157: Wirtschaftlicher Vorteil / Nachteil gegenüber Referenzszenario (nominal): | J157: =J156-J134 -> 0
B159: Analyse der Ergebnisse
B161: =B40 -> 0
B162: Interne Verzinsungsrate (IRR) für Investitionen: | D162: =Szenario1_IRR -> kein IRR | E162: =WB!H109 -> Reale Verzinsung des eingesetzten Kapitals (um Inflationsrate korrigiert).
B163: Ergebnis:
B164: =WB!H110 -> Unter nominaler Betrachtung ergibt sich ein Gewinn von 0 Euro.
B165: =WB!H111 -> Inflationsbereinigt ergibt sich ein Gewinn von 0 Euro.
B166: Anmerkung: Wirtschaftliche Betrachtung über einen Zeitraum von 20 Jahren, ohne Einberechnung der Restwerte. Weitere Details zur Berechnung hier.
B169: =B50 -> Region nach Postleitzahl
B170: Interne Verzinsungsrate (IRR) für Investitionen: | D170: =Szenario2_IRR -> kein IRR | E170: =WB!H116 -> Reale Verzinsung des eingesetzten Kapitals (um Inflationsrate korrigiert).
B171: Ergebnis:
B172: =WB!H117 -> Unter nominaler Betrachtung ergibt sich ein Gewinn von 0 Euro.
B173: =WB!H118 -> Inflationsbereinigt ergibt sich ein Gewinn von 0 Euro.
B174: Anmerkung: Wirtschaftliche Betrachtung über einen Zeitraum von 20 Jahren, ohne Einberechnung der Restwerte. Weitere Details zur Berechnung hier.
B177: Kommentare

Sheet Config (hidden)
A1: Auslesen der Benutzereinstellungen und Eingabeparameter | H1: Dropdown Stadtauswahl | I1: XX_Postleitzahl | J1: Postleitzentrum | K1: Stadt | L1: Jahresertrag (kWh/kWp) | N1: Jahr | O1: Prognose Bezugspreis | P1: Einspeiseerlöse | Q1: Speicher Kostendegression | R1: PV Kostendegression | T1: Monat | U1: Jahr | V1: Inbetriebnahme Monat_Jahr | W1: EEG Einspeisevergütung in Cent /kWh | X1: Auslauf Einspeisevergütung | Y1: Eigenverbrauchsbonus bis 30% | Z1: Eigenverbrauchsbonus ab 30% | AJ1: Lookup | AL1: Monat | AN1: Effizienzklassen | AQ1: Methode zur Bestimmung Einsparpotential | AR1: PV-Anlagentyp
C2: 1 | H2: bitte auswählen | I2: 00 | J2: Deutschland | K2: Deutschland | L2: 965 | N2: 2000 | O2: 19 | P2: 3 | T2: Januar | U2: 1997 | V2: =T2&"_"&U2 -> Januar_1997 | W2: 50.62 | X2: =IF(U2<2000,DATEVALUE("31.12.2020"),DATEVALUE("31.12."&U2+20)) -> 2020-12-31 | AB2: Berechnung Strompreisentwicklung | AJ2: Ja/Nein | AL2: Januar | AN2: bitte wählen | AQ2: bitte wählen | AR2: Ja
A3: Parameter ID | B3: Input Value Title | C3: Einstellung | D3: umgerechneter Wert | E3: Standard Wert | F3: Comment | H3: 01… Dresden | I3: 01 | J3: Dresden, Riesa, Meißen, Bischofswerda | K3: Dresden | L3: 943 | N3: 2001 | O3: 19 | P3: 3 | T3: Februar | U3: =IF(T3="Januar",U2+1,U2) -> 1997 | V3: =T3&"_"&U3 -> Februar_1997 | W3: 50.62 | X3: 2020-12-31 | AB3: =IF(cQEBP=1,"Verwendung der Prognosewerte","Berechnung anhand von Benutzereingabewerten") -> Berechnung anhand von Benutzereingabewerten | AJ3: Nein | AL3: Februar | AN3: Klasse A | AO3: Herzlichen Glückwunsch, Sie verbrauchen viel weniger Strom als vergleichbare Haushalte. Weiter so! | AQ3: Energieberatung | AR3: Nein
A4: ElektrischWarmwasser | B4: Elektrisch Warmwasser | C4: 2 | D4: =IF(C4=1,"Ja",IF(C4=2,"Nein","NA")) -> Nein | F4: 1=Ja; 2=Nein | H4: 02… Görlitz | I4: 02 | J4: Görlitz, Bautzen, Hoyerswerda, Zittau | K4: Görlitz | L4: 961 | N4: 2002 | O4: 19 | P4: 3 | T4: März | U4: =IF(T4="Januar",U3+1,U3) -> 1997 | V4: März_1997 | W4: 50.62 | X4: 2020-12-31 | AC4: Basisjahr | AD4: cQEBP | AJ4: Ja | AL4: März | AN4: Klasse B | AO4: Sie benötigen weniger Strom als vergleichbare Haushalte. Doch auch Sie können noch sparen. Nutzen Sie Ihre Sparmöglichkeiten voll aus! | AQ4: Effizienzklasse
A5: GeTyp | B5: Gebäudetyp | C5: 2 | D5: =IF(C5=1,"MFH",IF(C5=2,"EFH","NA")) -> EFH | F5: 1= MFH; 2=EFH | H5: 03… Cottbus | I5: 03 | J5: Cottbus, Finsterwalde, Forst (Lausitz), Spremberg | K5: Cottbus | L5: 995 | N5: 2003 | O5: 19 | P5: 3 | T5: April | U5: 1997 | V5: April_1997 | W5: 50.62 | X5: 2020-12-31 | AC5: =BasisJahr -> 2018 | AD5: =cQEBP -> 2 | AL5: April | AN5: Klasse C | AO5: Ihr Verbrauch liegt im Schnitt bzw. leicht darunter. Einige Möglichkeiten zum Stromsparen werden offensichtlich bislang nicht ausreichend genutzt. Das sollten Sie ändern.
A6: cQEBP | B6: Quelle Strombezugspreis | C6: 2 | D6: =IF(C6=1,"Quelle Öko",IF(C6=2,"User defined","NA")) -> User defined | F6: 1=Öko; 2=User | H6: 04… Leipzig | I6: 04 | J6: Leipzig, Altenburg, Eilenburg, Torgau | K6: Leipzig | L6: 961 | N6: 2004 | O6: 19 | P6: 3 | T6: Mai | U6: 1997 | V6: Mai_1997 | W6: 50.62 | X6: 2020-12-31 | AC6: Bezugspreis | AD6: Preissteigerung | AL6: Mai | AN6: Klasse D | AO6: Ihr Verbrauch liegt im Schnitt bzw. leicht darunter. Einige Möglichkeiten zum Stromsparen werden offensichtlich bislang nicht ausreichend genutzt. Das sollten Sie ändern.
A7: cBP | B7: Bezugspreis | C7: 2 | D7: =IF(C7=1,"Durchschnittspreis",IF(C7=2,"User defined","NA")) -> User defined | F7: 1=Standart; 2=User | H7: 05… nicht vergeben | I7: 05 | J7: – (Reserve) | K7: nicht vergeben | L7: 0 | N7: 2005 | O7: 19 | P7: 3 | T7: Juni | U7: 1997 | V7: Juni_1997 | W7: 50.62 | X7: 2020-12-31 | AC7: =Bezugspreis -> 28 | AD7: =Preissteigerungsrate -> 0.02 | AL7: Juni | AN7: Klasse E | AO7: Sie verbrauchen mehr Strom als vergleichbare Haushalte. Für Sie lohnt es sich besonders, nach Ursachen für Ihren hohen Verbrauch zu suchen und Strom zu sparen.
A8: PVExist | B8: Bereits PV Anlage vorhanden | C8: 2 | D8: =IF(C8=1,"Ja",IF(C8=2,"Nein","NA")) -> Nein | F8: 1=Ja; 2=Nein | H8: 06… Halle | I8: 06 | J8: Halle (Saale), Dessau-Roßlau, Quedlinburg, Zeitz | K8: Halle | L8: 956 | N8: 2006 | O8: 19 | P8: 3 | T8: Juli | U8: 1997 | V8: Juli_1997 | W8: 50.62 | X8: 2020-12-31 | AB8: # Jahr | AC8: Jahr | AD8: Änderung Bezugspreis | AL8: Juli | AN8: Klasse F | AO8: Sie verbrauchen mehr Strom als vergleichbare Haushalte. Für Sie lohnt es sich besonders, nach Ursachen für Ihren hohen Verbrauch zu suchen und Strom zu sparen.
A9: PVExistB | B9: B | D9: =IF(C8=1,TRUE,FALSE) -> FALSE | H9: 07… Gera | I9: 07 | J9: Gera, Jena, Saalfeld/Saale, Greiz | K9: Gera | L9: 937 | N9: 2007 | O9: 19 | P9: 3 | T9: August | U9: 1997 | V9: August_1997 | W9: 50.62 | X9: 2020-12-31 | AB9: 0 | AC9: =AC5 -> 2018 | AD9: =Bezugspreis -> 28 | AE9: =IF(cQEBP=1,VLOOKUP(AC9,N:O,2,FALSE),AD9) -> 28 | AF9: =AC9&": "&AE9&", " -> 2018: 28, | AL9: August | AN9: Klasse G | AO9: Ihr Stromverbrauch ist sehr hoch. Sie sollten dringend herausfinden, woran das liegt, und schnell aktiv werden
D10: =IF(PVExistB,"Bestandsanlage","Neuanlage") -> Neuanlage | H10: 08… Plauen | I10: 08 | J10: Plauen, Zwickau, Aue, Klingenthal | K10: Plauen | L10: 910 | N10: 2008 | O10: 19.45 | P10: 3 | T10: September | U10: 1997 | V10: September_1997 | W10: 50.62 | X10: 2020-12-31 | AB10: 1 | AC10: =AC5+1 -> 2019 | AD10: =(1+Preissteigerungsrate)*AD9 -> 28.56 | AE10: 28.56 | AF10: =AC10&": "&AE10&", " -> 2019: 28,56, | AL10: September
H11: 09… Chemnitz | I11: 09 | J11: Chemnitz, Annaberg-Buchholz, Zschopau, Freiberg | K11: Chemnitz | L11: 922 | N11: 2009 | O11: 20.69 | P11: 3 | T11: Oktober | U11: 1997 | V11: Oktober_1997 | W11: 50.62 | X11: 2020-12-31 | AB11: 2 | AC11: =AC10+1 -> 2020 | AD11: 29.1312 | AE11: 29.1312 | AF11: 2020: 29,1312, | AL11: Oktober
H12: 10… Berlin | I12: 10 | J12: Berlin Innenstadt | K12: Berlin | L12: 962 | N12: 2010 | O12: 21.13 | P12: 3 | T12: November | U12: 1997 | V12: November_1997 | W12: 50.62 | X12: 2020-12-31 | AB12: 3 | AC12: 2021 | AD12: 29.713824 | AE12: 29.713824 | AF12: 2021: 29,713824, | AL12: November
H13: 11… Berlin | I13: 11 | J13: Bundesinstitutionen (seit dem Teil-Regierungsumzug 1998) in Berlin | K13: Berlin | L13: 962 | N13: 2011 | O13: 22.27 | P13: 3 | T13: Dezember | U13: 1997 | V13: Dezember_1997 | W13: 50.62 | X13: 2020-12-31 | AB13: 4 | AC13: 2022 | AD13: 30.30810048 | AE13: 30.30810048 | AF13: 2022: 30,30810048, | AL13: Dezember
H14: 12… Berlin | I14: 12 | J14: Südliches und südöstliches Berlin | K14: Berlin | L14: 962 | N14: 2012 | O14: 22.46 | P14: 3 | T14: =T2 -> Januar | U14: 1998 | V14: Januar_1998 | W14: 50.62 | X14: 2020-12-31 | AB14: 5 | AC14: 2023 | AD14: 30.91426249 | AE14: 30.91426249 | AF14: 2023: 30,9142624896,
H15: 13… Berlin | I15: 13 | J15: Nördliches Berlin | K15: Berlin | L15: 962 | N15: 2013 | O15: 24.99 | P15: 3 | T15: =T3 -> Februar | U15: 1998 | V15: Februar_1998 | W15: 50.62 | X15: 2020-12-31 | AB15: 6 | AC15: 2024 | AD15: 31.53254774 | AE15: 31.53254774 | AF15: 2024: 31,532547739392,
H16: 14… Potsdam | I16: 14 | J16: Potsdam und südwestliches Berlin, Rathenow, Luckenwalde, Brandenburg an der Havel | K16: Potsdam | L16: 989 | N16: 2014 | O16: 25.27 | P16: 3 | T16: März | U16: 1998 | V16: März_1998 | W16: 50.62 | X16: 2020-12-31 | AB16: 7 | AC16: 2025 | AD16: 32.16319869 | AE16: 32.16319869 | AF16: 2025: 32,1631986941798,
A17: PV Anlage | H17: 15… Frankfurt (Oder) | I17: 15 | J17: Frankfurt (Oder), Eisenhüttenstadt, Fürstenwalde/Spree, Königs Wusterhausen | K17: Frankfurt (Oder) | L17: 997 | N17: 2015 | O17: 24.99 | P17: 3 | T17: April | U17: 1998 | V17: April_1998 | W17: 50.62 | X17: 2020-12-31 | AB17: 8 | AC17: 2026 | AD17: 32.80646267 | AE17: 32.80646267 | AF17: 2026: 32,8064626680634,
A18: Parameter ID | B18: Input Value Title | C18: Einstellung | E18: Standard Wert | F18: Comment | H18: 16… Oranienburg | I18: 16 | J18: Oranienburg, Eberswalde, Pritzwalk, Schwedt/Oder | K18: Oranienburg | L18: 961 | N18: 2016 | O18: 26.72 | P18: 3 | T18: Mai | U18: 1998 | V18: Mai_1998 | W18: 50.62 | X18: 2020-12-31 | AB18: 9 | AC18: 2027 | AD18: 33.46259192 | AE18: 33.46259192 | AF18: 2027: 33,4625919214247,
A19: PV Bestandsanlage | B19: PVAnlageYear | C19: =PVAnlageYear -> 2002 | H19: 17… Neubrandenburg | I19: 17 | J19: Neubrandenburg, Greifswald, Neustrelitz, Usedom | K19: Neubrandenburg | L19: 984 | N19: 2017 | O19: 28.01 | P19: 3 | Q19: 1 | R19: 1 | T19: Juni | U19: 1998 | V19: Juni_1998 | W19: 50.62 | X19: 2020-12-31 | AB19: 10 | AC19: 2028 | AD19: 34.13184376 | AE19: 34.13184376 | AF19: 2028: 34,1318437598532,
B20: PVAnlageMonth | C20: =PVAnlageMonth -> Mai | H20: 18… Rostock | I20: 18 | J20: Rostock, Stralsund, Güstrow, Bergen auf Rügen | K20: Rostock | L20: 966 | N20: 2018 | O20: 28.78 | P20: 3 | Q20: =0.9*Q19 -> 0.9 | R20: =0.95*R19 -> 0.95 | T20: Juli | U20: 1998 | V20: Juli_1998 | W20: 50.62 | X20: 2020-12-31 | AB20: 11 | AC20: 2029 | AD20: 34.81448064 | AE20: 34.81448064 | AF20: 2029: 34,8144806350503,
A21: PV Neuanlage | B21: PVAnlageYear | C21: =Eingabemaske!F40 -> 2018 | H21: 19… Schwerin | I21: 19 | J21: Schwerin, Ludwigslust, Wittenberge, Parchim | K21: Schwerin | L21: 983 | N21: 2019 | O21: 29.56 | P21: 3 | Q21: =0.9*Q20 -> 0.81 | R21: =0.95*R20 -> 0.9025 | T21: August | U21: 1998 | V21: August_1998 | W21: 50.62 | X21: 2020-12-31 | AB21: 12 | AC21: 2030 | AD21: 35.51077025 | AE21: 35.51077025 | AF21: 2030: 35,5107702477513,
B22: PVAnlageMonth | C22: =Eingabemaske!E40 -> Juli | H22: 20… Hamburg | I22: 20 | J22: Hamburg Mitte | K22: Hamburg | L22: 962 | N22: 2020 | O22: 30.33 | P22: 3 | Q22: 0.729 | R22: 0.857375 | T22: September | U22: 1998 | V22: September_1998 | W22: 50.62 | X22: 2020-12-31 | AB22: 13 | AC22: 2031 | AD22: 36.22098565 | AE22: 36.22098565 | AF22: 2031: 36,2209856527063,
A23: PVInstallationDate | B23: Month and Year | C23: =IF(PVExistB,C20&"_"&C19,C22&"_"&C21) -> Juli_2018 | D23: PVInstallationDate | H23: 21… Hamburg | I23: 21 | J23: Südliches und östliches Hamburg und Umland, Lüneburg, Buxtehude, Stade, Reinbek | K23: Hamburg | L23: 962 | N23: 2021 | O23: 30.4 | P23: 3 | Q23: 0.6561 | R23: 0.81450625 | T23: Oktober | U23: 1998 | V23: Oktober_1998 | W23: 50.62 | X23: 2020-12-31 | AB23: 14 | AC23: 2032 | AD23: 36.94540537 | AE23: 36.94540537 | AF23: 2032: 36,9454053657604,
A24: FeedInTariffFromTable | B24: Einspeisevergütung | C24: =VLOOKUP(PVInstallationDate,PVLookup[],2,FALSE) -> 12.2 | H24: 22… Hamburg | I24: 22 | J24: Hamburg Nord/West, Norderstedt, Ahrensburg, Wedel | K24: Hamburg | L24: 962 | N24: 2022 | O24: 30.47 | P24: 3 | Q24: 0.59049 | R24: 0.7737809375 | T24: November | U24: 1998 | V24: November_1998 | W24: 50.62 | X24: 2020-12-31 | AB24: 15 | AC24: 2033 | AD24: 37.68431347 | AE24: 37.68431347 | AF24: 2033: 37,6843134730756,
A25: FeedInTariffEndDate | B25: Auslauf Einspeisevergütung | C25: =VLOOKUP(PVInstallationDate,PVLookup[],3,FALSE) -> 2038-12-31 | H25: 23… Lübeck | I25: 23 | J25: Lübeck, Bad Segeberg, Wismar, Mölln | K25: Lübeck | L25: 979 | N25: 2023 | O25: 30.54 | P25: 3 | T25: Dezember | U25: 1998 | V25: Dezember_1998 | W25: 50.62 | X25: 2020-12-31 | AB25: 16 | AC25: 2034 | AD25: 38.43799974 | AE25: 38.43799974 | AF25: 2034: 38,4379997425372,
A26: Installation Batteriespeicher für PV Bestandsanlage | B26: =Eingabemaske!F47 -> 2018 | H26: 24… Kiel | I26: 24 | J26: Kiel, Flensburg, Schleswig, Neumünster | K26: Kiel | L26: 965 | N26: 2024 | O26: 30.61 | P26: 3 | T26: Januar | U26: 1999 | V26: Januar_1999 | W26: 50.62 | X26: 2020-12-31 | AB26: 17 | AC26: 2035 | AD26: 39.20675974 | AE26: 39.20675974 | AF26: 2035: 39,2067597373879,
C27: =IF(PVExist="Ja",B26,C21) -> 2018 | D27: BasisJahr | H27: 25… Sylt | I27: 25 | J27: Westküste (Elmshorn, Itzehoe, Sylt) | K27: Sylt | L27: 995 | N27: 2025 | O27: 30.68 | P27: 3 | T27: Februar | U27: 1999 | V27: Februar_1999 | W27: 50.62 | X27: 2020-12-31 | AB27: 18 | AC27: 2036 | AD27: 39.99089493 | AE27: 39.99089493 | AF27: 2036: 39,9908949321357,
A28: Einstellungen | H28: 26… Oldenburg | I28: 26 | J28: Oldenburg, Wilhelmshaven, Emden, Aurich | K28: Oldenburg | L28: 931 | N28: 2026 | O28: 30.56 | P28: 3 | T28: März | U28: 1999 | V28: März_1999 | W28: 50.62 | X28: 2020-12-31 | AB28: 19 | AC28: 2037 | AD28: 40.79071283 | AE28: 40.79071283 | AF28: 2037: 40,7907128307784,
H29: 27… Bremen | I29: 27 | J29: Großraum Bremen Bremerhaven, Cuxhaven, Delmenhorst, Helgoland, Neuwerk | K29: Bremen | L29: 923 | N29: 2027 | O29: 30.44 | P29: 3 | T29: April | U29: 1999 | V29: April_1999 | W29: 50.62 | X29: 2020-12-31 | AB29: 20 | AC29: 2038 | AD29: 41.60652709 | AE29: 41.60652709 | AF29: =AC29&": "&AE29 -> 2038: 41,6065270873939
H30: 28… Bremen | I30: 28 | J30: Bremen, Ottersberg, Schwanewede, Syke, Stuhr, Weyhe | K30: Bremen | L30: 923 | N30: 2028 | O30: 30.32 | P30: 3 | T30: Mai | U30: 1999 | V30: Mai_1999 | W30: 50.62 | X30: 2020-12-31 | AF30: (in Cent/kWh)
B31: Vordefinierter Wert | E31: Variablenwert | F31: Parameter ID | H31: 29… Celle | I31: 29 | J31: Celle, Uelzen, Salzwedel, Soltau, Lüchow | K31: Celle | L31: 929 | N31: 2029 | O31: 30.2 | P31: 3 | T31: Juni | U31: 1999 | V31: Juni_1999 | W31: 50.62 | X31: 2020-12-31 | AF31: =AF9&AF10&AF11&AF12&AF13&AF14&AF15&AF16 -> 2018: 28, 2019: 28,56, 2020: 29,1312, 2021: 29,713824, 2022: 30,30810048, 2023: 30,9142624896, 2024: 31,532547739392, 2025: 32,1631986941798,
A32: Stromverbrauch | H32: 30… Hannover | I32: 30 | J32: Hannover, Garbsen, Langenhagen, Laatzen | K32: Hannover | L32: 933 | N32: 2030 | O32: 30.08 | P32: 3 | T32: Juli | U32: 1999 | V32: Juli_1999 | W32: 50.62 | X32: 2020-12-31 | AF32: =AF17&AF18&AF19&AF20&AF21&AF22&AF23&AF24 -> 2026: 32,8064626680634, 2027: 33,4625919214247, 2028: 34,1318437598532, 2029: 34,8144806350503, 2030: 35,5107702477513, 2031: 36,2209856527063, 2032: 36,9454053657604, 2033: 37,6843134730756,
A33: Jahresstromverbrauch | E33: =Eingabemaske!F20 -> 0 | F33: Jahresstromverbrauch | H33: 31… Hannover | I33: 31 | J33: Hannover Umland, Hameln, Hildesheim, Peine, Schaumburg | K33: Hannover | L33: 933 | N33: 2031 | O33: 29.7 | P33: 3 | T33: August | U33: 1999 | V33: August_1999 | W33: 50.62 | X33: 2020-12-31 | AF33: =AF25&AF26&AF27&AF28&AF29&AF30 -> 2034: 38,4379997425372, 2035: 39,2067597373879, 2036: 39,9908949321357, 2037: 40,7907128307784, 2038: 41,6065270873939 (in Cent/kWh)
A34: Haushaltsgröße (Personen im Haushalt) | E34: =Eingabemaske!F22 -> 2 | F34: AnzahlPersonen | H34: 32… Herford | I34: 32 | J34: Herford, Minden, Detmold, Löhne | K34: Herford | L34: 925 | N34: 2032 | O34: 29.32 | P34: 3 | T34: September | U34: 1999 | V34: September_1999 | W34: 50.62 | X34: 2020-12-31
A35: Bezugspreis Strom | B35: 29.16 | C35: =IF(Wirtschaftlichkeitsberechnung!D15="","",Wirtschaftlichkeitsberechnung!D15) -> 28 | E35: =IF(cBP=1,cBPStandard,C35) -> 28 | F35: Bezugspreis | H35: 33… Bielefeld | I35: 33 | J35: Bielefeld, Paderborn, Bad Driburg, Gütersloh | K35: Bielefeld | L35: 886 | N35: 2033 | O35: 28.94 | P35: 3 | T35: Oktober | U35: 1999 | V35: Oktober_1999 | W35: 50.62 | X35: 2020-12-31
A36: Entwicklung Bezugspreis: | B36: 0.02 | C36: =IF(Wirtschaftlichkeitsberechnung!D17="","",Wirtschaftlichkeitsberechnung!D17/100) -> 0.02 | E36: =C36 -> 0.02 | F36: Preissteigerungsrate | H36: 34… Kassel | I36: 34 | J36: Kassel, Hannoversch Münden, Korbach, Warburg | K36: Kassel | L36: 921 | N36: 2034 | O36: 28.56 | P36: 3 | T36: November | U36: 1999 | V36: November_1999 | W36: 50.62 | X36: 2020-12-31
A37: Allgemeine Inflationsrate | B37: 0.01 | C37: =IF(OR(D37="",D37="überschreiben"),B37,D37/100) -> 0.01 | D37: =IF(Wirtschaftlichkeitsberechnung!D19="","",Wirtschaftlichkeitsberechnung!D19) -> 1 | E37: =C37 -> 0.01 | F37: Inflationsrate | H37: 35… Gießen | I37: 35 | J37: Gießen, Wetzlar, Marburg, Dillenburg | K37: Gießen | L37: 959 | N37: 2035 | O37: 28.18 | P37: 3 | T37: Dezember | U37: 1999 | V37: Dezember_1999 | W37: 50.62 | X37: 2020-12-31
H38: 36… Fulda | I38: 36 | J38: Fulda, Bad Hersfeld, Bad Salzungen, Alsfeld | K38: Fulda | L38: 929 | N38: 2036 | O38: 27.98 | P38: 3 | T38: Januar | U38: 2000 | V38: Januar_2000 | W38: 50.62 | X38: 2020-12-31
A39: Stromeinsparungen | H39: 37… Göttingen | I39: 37 | J39: Göttingen, Höxter, Eschwege, Osterode am Harz | K39: Göttingen | L39: 909 | N39: 2037 | O39: 27.8 | P39: 3 | T39: Februar | U39: 2000 | V39: Februar_2000 | W39: 50.62 | X39: 2020-12-31
H40: 38… Braunschweig | I40: 38 | J40: Braunschweig, Salzgitter, Wolfsburg, Halberstadt | K40: Braunschweig | L40: 941 | N40: 2038 | O40: 27.64 | P40: 3 | T40: März | U40: =IF(T40="Januar",U39+1,U39) -> 2000 | V40: =T40&"_"&U40 -> März_2000 | W40: 50.62 | X40: 2020-12-31
A41: Einsparpotential in % | B41: 4 | H41: 39… Magdeburg | I41: 39 | J41: Magdeburg, Stendal, Oschersleben, Staßfurt | K41: Magdeburg | L41: 964 | N41: 2039 | O41: 27.5 | P41: 3 | T41: April | U41: 2000 | V41: April_2000 | W41: 50.62 | X41: 2020-12-31
A42: Einsparpotential | B42: =SEK!A13 -> 0 | C42: =IF(Eingabemaske!#REF!="","",Eingabemaske!#REF!) ->  | E42: =IF(ISNUMBER(C42),C42,B42) -> 0 | H42: 40… Düsseldorf | I42: 40 | J42: Düsseldorf, Hilden, Mettmann, Ratingen | K42: Düsseldorf | L42: 942 | N42: 2040 | O42: 27.38 | P42: 3 | T42: Mai | U42: 2000 | V42: Mai_2000 | W42: 50.62 | X42: 2020-12-31
A43: Methode Bestimmung Einsparpotential | B43: =Stromsparen!G54 -> bitte wählen | H43: 41… Mönchengladbach | I43: 41 | J43: Mönchengladbach, Neuss, Viersen, Erkelenz | K43: Mönchengladbach | L43: 945 | N43: 2041 | O43: 27.15 | P43: 3 | T43: Juni | U43: 2000 | V43: Juni_2000 | W43: 50.62 | X43: 2020-12-31
A44: EP bitte wählen | B44: 0 | H44: 42… Wuppertal | I44: 42 | J44: Wuppertal, Velbert, Solingen, Remscheid | K44: Wuppertal | L44: 895 | N44: 2042 | O44: 26.94 | P44: 3 | T44: Juli | U44: 2000 | V44: Juli_2000 | W44: 50.62 | X44: 2020-12-31
A45: EP für Energieberatung | B45: =Stromsparen!G59 -> 0 | H45: 43… nicht vergeben | I45: 43 | J45: – (Reserve) | K45: nicht vergeben | L45: 0 | N45: 2043 | O45: 26.74 | P45: 3 | T45: August | U45: 2000 | V45: August_2000 | W45: 50.62 | X45: 2020-12-31
A46: EP nach Effizienzklasse | B46: =Stromsparen!G65 -> 0 | H46: 44… Dortmund | I46: 44 | J46: Dortmund, Lünen, Herne, Bochum | K46: Dortmund | L46: 927 | N46: 2044 | O46: 26.55 | P46: 3 | T46: September | U46: 2000 | V46: September_2000 | W46: 50.62 | X46: 2020-12-31
A47: Einsparpotential gesamt | B47: =IF(B43="bitte wählen",0,IF(B43="Energieberatung",B45,B46)) -> 0 | E47: =B47 -> 0 | F47: Einsparungen | H47: 45… Essen | I47: 45 | J47: Essen, Mülheim an der Ruhr, Recklinghausen, Gelsenkirchen | K47: Essen | L47: 918 | N47: 2045 | O47: 26.37 | P47: 3 | T47: Oktober | U47: 2000 | V47: Oktober_2000 | W47: 50.62 | X47: 2020-12-31
A48: Einsparpotential mit geringinvestiven Maßnamen | B48: =IF(B43="Energieberatung",Stromsparen!G57,B47*D48) -> 0 | C48: Anteil geringinvestiv: | D48: 0.3 | H48: 46… Oberhausen | I48: 46 | J48: Oberhausen, Bottrop, Bocholt, Wesel | K48: Oberhausen | L48: 911 | N48: 2046 | O48: 26.21 | P48: 3 | T48: November | U48: 2000 | V48: November_2000 | W48: 50.62 | X48: 2020-12-31
A49: Einsparpotential mit investiven Maßnamen | B49: =IF(B43="Energieberatung",Stromsparen!G58,B47*D49) -> 0 | C49: Anteil investiv: | D49: =1-D48 -> 0.7 | H49: 47… Duisburg | I49: 47 | J49: Duisburg, Krefeld, Moers, Kleve, Wesel | K49: Duisburg | L49: 958 | N49: 2047 | O49: 26.05 | P49: 3 | T49: Dezember | U49: 2000 | V49: Dezember_2000 | W49: 50.62 | X49: 2020-12-31
A50: Kosten für geringinvestive Maßnamen (€/kWh) | B50: 0.05 | H50: 48… Münster | I50: 48 | J50: Münster, Rheine, Nordhorn, Coesfeld | K50: Münster | L50: 939 | N50: 2048 | O50: 25.9 | P50: 3 | T50: Januar | U50: 2001 | V50: Januar_2001 | W50: 50.62 | X50: 2021-12-31
A51: Kosten investive Maßnamen in Klasse A | B51: 1.5 | C51: =(B52-B51)/6 -> -0.08333333333 | H51: 49… Osnabrück | I51: 49 | J51: Osnabrück, Melle, Ibbenbüren, Lingen (Ems) | K51: Osnabrück | L51: 919 | N51: 2049 | O51: 25.76 | P51: 3 | T51: Februar | U51: 2001 | V51: Februar_2001 | W51: 50.62 | X51: 2021-12-31
A52: Kosten investive Maßnamen in Klasse G | B52: 1 | H52: 50… Köln | I52: 50 | J52: Köln (linksrheinisch plus Deutz), Frechen, Brühl, Bergheim | K52: Köln | L52: 935 | N52: 2050 | O52: 25.63 | P52: 3 | T52: März | U52: 2001 | V52: März_2001 | W52: 50.62 | X52: 2021-12-31
A53: Jetzige Effizienzklasse | B53: =SEK!B9 -> 1 | C53: =SEK!C9 -> Klasse A | H53: 51… Köln | I53: 51 | J53: Köln (rechtsrheinisch ohne Deutz), Leverkusen, Bergisch Gladbach, Gummersbach | K53: Köln | L53: 935 | T53: April | U53: 2001 | V53: April_2001 | W53: 50.62 | X53: 2021-12-31
A54: Kosten investive Maßnamen pro kWh | B54: =ROUND((NumEffizienzKLasse-1)*(B52-B51)/6+B51,2) -> 1.5 | H54: 52… Aachen | I54: 52 | J54: Aachen, Eschweiler, Düren, Heinsberg | K54: Aachen | L54: 929 | T54: Mai | U54: 2001 | V54: Mai_2001 | W54: 50.62 | X54: 2021-12-31
A55: Gesamtkosten Einsparungen | B55: =ROUND((B48*B50+B49*B54)/1,0)*1 -> 0 | C55: =IF(OR(D55="",D55="überschreiben"),B55,D55) -> 0 | D55: =IF(Stromsparen!H70="","",Stromsparen!H70) -> überschreiben | E55: =C55 -> 0 | F55: KostenEinsparungen | H55: 53… Bonn | I55: 53 | J55: Bonn, Remagen, Siegburg, Euskirchen | K55: Bonn | L55: 961 | T55: Juni | U55: 2001 | V55: Juni_2001 | W55: 50.62 | X55: 2021-12-31
H56: 54… Trier | I56: 54 | J56: Trier, Wittlich, Daun, Prüm, Bitburg | K56: Trier | L56: 944 | T56: Juli | U56: 2001 | V56: Juli_2001 | W56: 50.62 | X56: 2021-12-31
A57: Verbleibender Jahresstromverbrauch | B57: =MAX(Jahresstromverbrauch-B47,0) -> 0 | H57: 55… Mainz | I57: 55 | J57: Mainz, Simmern/Hunsrück, Bad Kreuznach, Idar-Oberstein | K57: Mainz | L57: 975 | T57: August | U57: 2001 | V57: August_2001 | W57: 50.62 | X57: 2021-12-31
H58: 56… Koblenz | I58: 56 | J58: Koblenz, Neuwied, Mayen, Andernach | K58: Koblenz | L58: 962 | T58: September | U58: 2001 | V58: September_2001 | W58: 50.62 | X58: 2021-12-31
H59: 57… Siegen | I59: 57 | J59: Siegen, Lennestadt, Olpe, Altenkirchen (Westerwald) | K59: Siegen | L59: 912 | T59: Oktober | U59: 2001 | V59: Oktober_2001 | W59: 50.62 | X59: 2021-12-31
A60: PV-Anlage | H60: 58… Hagen | I60: 58 | J60: Hagen, Witten, Iserlohn, Lüdenscheid | K60: Hagen | L60: 911 | T60: November | U60: 2001 | V60: November_2001 | W60: 50.62 | X60: 2021-12-31
A61: ="Bestandsanlage: " &PVExist -> Bestandsanlage: Nein | H61: 59… Hamm | I61: 59 | J61: Hamm, Unna, Soest, Arnsberg | K61: Hamm | L61: 939 | T61: Dezember | U61: 2001 | V61: Dezember_2001 | W61: 50.62 | X61: 2021-12-31
A62: PV-Neuanlage | B62: Vordefiniert | C62: Anzeige | D62: überschreiben | E62: Variablenwert | F62: Variablenname | H62: 60… Frankfurt am Main | I62: 60 | J62: Frankfurt am Main Mitte | K62: Frankfurt am Main | L62: 955 | T62: Januar | U62: 2002 | V62: Januar_2002 | W62: 48.1 | X62: 2022-12-31
A63: Vorhandene Dachfläche in m2 | B63: =Eingabemaske!$F$37 -> 0 | C63: m2 | H63: 61… Bad Homburg | I63: 61 | J63: Bad Homburg, Friedberg, Bad Vilbel, Oberursel | K63: Bad Homburg | L63: 970 | T63: Februar | U63: 2002 | V63: Februar_2002 | W63: 48.1 | X63: 2022-12-31
A64: Leistung Watt pro m2 | B64: 160 | H64: 62… Frankfurt am Main | I64: 62 | J64: – (Reserve, wird im internen Gebrauch zur Bezeichnung des Internationalen Postzentrums (IPZ) in Frankfurt am Main benutzt, in welchem Post aus und für das Ausland bearbeitet wird.) | K64: Frankfurt am Main | L64: 955 | T64: März | U64: 2002 | V64: März_2002 | W64: 48.1 | X64: 2022-12-31
A65: ="Maximale Nennkapazität für gewählte Dachfläche" -> Maximale Nennkapazität für gewählte Dachfläche | B65: =MIN(WattPerM2*B63/1000,10) -> 0 | C65: =IF(OR(D65="",D65="überschreiben"),B65,D65) -> 0 | D65: =IF(Eingabemaske!F38="","",Eingabemaske!F38) ->  | E65: =C65 -> 0 | H65: 63… Aschaffenburg | I65: 63 | J65: Aschaffenburg, Hanau, Offenbach am Main, Miltenberg | K65: Aschaffenburg | L65: 961 | T65: April | U65: 2002 | V65: April_2002 | W65: 48.1 | X65: 2022-12-31
B66: Größe in kWp | C66: Kosten pro kWp | D66: Steigung | E66: Intersect | H66: 64… Darmstadt | I66: 64 | J66: Darmstadt, Bensheim, Heppenheim, Groß-Gerau | K66: Darmstadt | L66: 965 | T66: Mai | U66: 2002 | V66: Mai_2002 | W66: 48.1 | X66: =IF(U66<2000,DATEVALUE("31.12.2020"),DATEVALUE("31.12."&U66+20)) -> 2022-12-31
A67: kleine PV: Größe und Kosten (pro kWp) | B67: 1 | C67: 1688 | D67: =(C68-C67)/(B68-B67) -> -72 | E67: =C67-B67*D67 -> 1760 | H67: 65… Wiesbaden | I67: 65 | J67: Wiesbaden, Limburg an der Lahn, Rüsselsheim am Main, Frankfurt am Main-West | K67: Wiesbaden | L67: 957 | T67: Juni | U67: 2002 | V67: Juni_2002 | W67: 48.1 | X67: 2022-12-31
A68: mittlere PV: Größe und Kosten (pro kWp) | B68: 5 | C68: 1400 | D68: =(C69-C68)/(B69-B68) -> -40 | E68: =C68-B68*D68 -> 1600 | H68: 66… Saarbrücken | I68: 66 | J68: Saarbrücken, Neunkirchen, Homburg, Pirmasens, Zweibrücken | K68: Saarbrücken | L68: 975 | T68: Juli | U68: 2002 | V68: Juli_2002 | W68: 48.1 | X68: 2022-12-31
A69: grooße PV: Größe und Kosten (pro kWp) | B69: 10 | C69: 1200 | H69: 67… Kaiserslautern | I69: 67 | J69: Kaiserslautern, Ludwigshafen am Rhein, Worms, Speyer | K69: Kaiserslautern | L69: 953 | T69: August | U69: 2002 | V69: August_2002 | W69: 48.1 | X69: 2022-12-31
A70: Kosten pro kWp | B70: =IF(PVAnlage=0,0,IF(PVAnlage<=B68,E67+PVAnlage*D67,IF(PVAnlage<=B69,E68+PVAnlage*D68,C69))) -> 0 | H70: 68… Mannheim | I70: 68 | J70: Mannheim, Schwetzingen, Lampertheim, Viernheim | K70: Mannheim | L70: 1010 | T70: September | U70: 2002 | V70: September_2002 | W70: 48.1 | X70: 2022-12-31
A71: Kosten PV (0 für Bestands-PV) | B71: =IF(PVExist="Ja",0,PVAnlage*B70) -> 0 | H71: 69… Heidelberg | I71: 69 | J71: Heidelberg, Weinheim, Leimen, Mannheim (nur Postfächer) | K71: Heidelberg | L71: 978 | T71: Oktober | U71: 2002 | V71: Oktober_2002 | W71: 48.1 | X71: 2022-12-31
A72: Kostendegression PV-Anlage | B72: =IFERROR(VLOOKUP(BasisJahr,N1:R52,5,FALSE),1) -> 0.95 | H72: 70… Stuttgart | I72: 70 | J72: Stuttgart, Fellbach, Leinfelden-Echterdingen, Filderstadt | K72: Stuttgart | L72: 1000 | T72: November | U72: 2002 | V72: November_2002 | W72: 48.1 | X72: 2022-12-31
A73: PV Gesamtkosten | B73: =B71*B72 -> 0 | C73: =IF(PVExist="Ja",0,IF(OR(D73="",D73="überschreiben"),B73,D73)) -> 0 | D73: =IF(Eingabemaske!F39="","",Eingabemaske!F39) -> überschreiben | E73: =C73 -> 0 | F73: PVSystemkosten | H73: 71… Stuttgart | I73: 71 | J73: Stuttgarter Umland, Böblingen, Waiblingen, Backnang, Ludwigsburg | K73: Stuttgart | L73: 1000 | T73: Dezember | U73: 2002 | V73: Dezember_2002 | W73: 48.1 | X73: 2022-12-31
A74: Wartung in % des Invest pro Jahr | E74: 0.02 | F74: PVWartung | H74: 72… Tübingen | I74: 72 | J74: Tübingen, Reutlingen, Sigmaringen, Freudenstadt, Balingen, Nürtingen | K74: Tübingen | L74: 1020 | T74: Januar | U74: 2003 | V74: Januar_2003 | W74: 45.7 | X74: 2023-12-31
H75: 73… Göppingen | I75: 73 | J75: Göppingen, Esslingen am Neckar, Schwäbisch Gmünd, Aalen | K75: Göppingen | L75: 1000 | T75: Februar | U75: 2003 | V75: Februar_2003 | W75: 45.7 | X75: 2023-12-31
A76: PV-Bestandsanlage | H76: 74… Heilbronn | I76: 74 | J76: Heilbronn, Bietigheim-Bissingen, Schwäbisch Hall, Crailsheim | K76: Heilbronn | L76: 1000 | T76: März | U76: 2003 | V76: März_2003 | W76: 45.7 | X76: 2023-12-31
A77: Nennkapazität der PV-Anlage (kWp) (max. 10 kWp) | B77: =Eingabemaske!F45 -> 5 | H77: 75… Pforzheim | I77: 75 | J77: Pforzheim, Eppingen, Calw, Mühlacker | K77: Pforzheim | L77: 1020 | T77: April | U77: 2003 | V77: April_2003 | W77: 45.7 | X77: 2023-12-31
A78: PV Anlage zur ausschließlichen Netzeinspeisung? | B78: =Eingabemaske!F44 -> Nein | C78: =PVExist -> Nein | D78: =IF(AND(B78="Ja",C78="Ja"),"Ja","Nein") -> Nein | E78: PVNurNetzeinspeisung | H78: 76… Karlsruhe | I78: 76 | J78: Karlsruhe, Baden-Baden, Landau in der Pfalz, Bruchsal | K78: Karlsruhe | L78: 1050 | T78: Mai | U78: 2003 | V78: Mai_2003 | W78: 45.7 | X78: 2023-12-31
C79: PV Betandsanlage | H79: 77… Offenburg | I79: 77 | J79: Offenburg, Lahr, Kehl, Achern, Bühl | K79: Offenburg | L79: 1030 | T79: =T67 -> Juni | U79: 2003 | V79: Juni_2003 | W79: 45.7 | X79: 2023-12-31
A80: Finale Kapazität PV-Anlage | E80: =IF(PVExist="Ja",B77,C65) -> 0 | F80: PVAnlage | H80: 78… Villingen-Schwenningen | I80: 78 | J80: Villingen-Schwenningen, Donaueschingen, Singen (Hohentwiel), Konstanz, Tuttlingen, Rottweil | K80: Villingen-Schwenningen | L80: 1020 | T80: Juli | U80: 2003 | V80: Juli_2003 | W80: 45.7 | X80: 2023-12-31
H81: 79… Freiburg im Breisgau | I81: 79 | J81: Freiburg im Breisgau, Lörrach, Titisee-Neustadt, Waldshut-Tiengen, Emmendingen | K81: Freiburg im Breisgau | L81: 999 | T81: August | U81: 2003 | V81: August_2003 | W81: 45.7 | X81: 2023-12-31
H82: 80… München | I82: 80 | J82: München Mitte-Nordwest | K82: München | L82: 1020 | T82: September | U82: 2003 | V82: September_2003 | W82: 45.7 | X82: 2023-12-31
A83: Einspeisevergütung (Cent / kWh) | B83: =FeedInTariffFromTable -> 12.2 | C83: =IF(OR(D83="",D83="überschreiben"),B83,D83) -> 12.2 | D83: =IF(Eingabemaske!F52="","",Eingabemaske!F52) -> überschreiben | E83: =C83 -> 12.2 | F83: Einspeiseverguetung | H83: 81… München | I83: 81 | J83: München West, Süd, Ost | K83: München | L83: 1020 | T83: Oktober | U83: 2003 | V83: Oktober_2003 | W83: 45.7 | X83: 2023-12-31
A84: Einspeisevergütung nach Ablauf der EEG-Förderung | B84: 3 | C84: =IF(OR(D84="",D84="überschreiben"),B84,D84) -> 3 | D84: =IF(Eingabemaske!F54="","",Eingabemaske!F54) -> überschreiben | E84: =C84 -> 3 | F84: EinspeiseverguetungNachAblaufEEG | H84: 82… München | I84: 82 | J84: Münchener Umland (Süd, West), Fürstenfeldbruck, Starnberg, Garmisch-Partenkirchen | K84: München | L84: 1020 | T84: November | U84: 2003 | V84: November_2003 | W84: 45.7 | X84: 2023-12-31
A85: Eigenverbrauchsvergütung bis 30% | B85: =VLOOKUP(PVInstallationDate,PVLookup[],4,FALSE) -> 0 | C85: =IF(OR(D85="",D85="überschreiben"),B85,D85) -> 0 | D85: =IF(Eingabemaske!F55="","",Eingabemaske!F55) -> überschreiben | E85: =C85 -> 0 | F85: EigenverbrauchszuschussBis30 | H85: 83… Rosenheim | I85: 83 | J85: Rosenheim, Traunstein, Freilassing, Bad Tölz | K85: Rosenheim | L85: 1040 | T85: Dezember | U85: 2003 | V85: Dezember_2003 | W85: 45.7 | X85: 2023-12-31
A86: Eigenverbrauchsvergütung ab 30% | B86: =VLOOKUP(PVInstallationDate,PVLookup[],5,FALSE) -> 0 | C86: =IF(OR(D86="",D86="überschreiben"),B86,D86) -> 0 | D86: =IF(Eingabemaske!F56="","",Eingabemaske!F56) -> überschreiben | E86: =C86 -> 0 | F86: EigenverbrauchszuschussAb30 | H86: 84… Landshut | I86: 84 | J86: Landshut, Waldkraiburg, Dingolfing, Pfarrkirchen, Mühldorf am Inn | K86: Landshut | L86: 1010 | T86: Januar | U86: 2004 | V86: Januar_2004 | W86: 57.4 | X86: 2024-12-31
H87: 85… München | I87: 85 | J87: Münchener Umland (Nord, Ost), Ingolstadt, Dachau, Freising, Eichstätt | K87: München | L87: 1020 | T87: Februar | U87: 2004 | V87: Februar_2004 | W87: 57.4 | X87: 2024-12-31
H88: 86… Augsburg | I88: 86 | J88: Augsburg, Donauwörth, Landsberg am Lech, Neuburg a.Donau | K88: Augsburg | L88: 1020 | T88: März | U88: 2004 | V88: März_2004 | W88: 57.4 | X88: 2024-12-31
A89: Region nach Postleitzahl | B89: =Eingabemaske!E59 -> bitte auswählen | H89: 87… Kempten | I89: 87 | J89: Kempten, Kaufbeuren, Memmingen, Marktoberdorf | K89: Kempten | L89: 1040 | T89: April | U89: 2004 | V89: April_2004 | W89: 57.4 | X89: 2024-12-31
B90: =IFERROR(VLOOKUP(B89,Config!H:L,3,FALSE),"Deutschland") -> Deutschland | H90: 88… Friedrichshafen | I90: 88 | J90: Friedrichshafen, Lindau (Bodensee), Ravensburg, Biberach an der Riß | K90: Friedrichshafen | L90: 1060 | T90: Mai | U90: 2004 | V90: Mai_2004 | W90: 57.4 | X90: 2024-12-31
A91: Solarertrag (kWh / kWpeak) | B91: =IFERROR(VLOOKUP(B89,Config!H:L,5,FALSE),965) -> 965 | C91: =IF(OR(D91="",D91="überschreiben"),B91,D91) -> 965 | D91: =IF(Eingabemaske!F61="","",Eingabemaske!F61) -> überschreiben | E91: =C91 -> 965 | H91: 89… Ulm | I91: 89 | J91: Ulm, Neu-Ulm, Heidenheim an der Brenz, Ehingen (Donau) | K91: Ulm | L91: 1010 | T91: Juni | U91: 2004 | V91: Juni_2004 | W91: 57.4 | X91: 2024-12-31
A92: Solarertrag absolut (kWh) (0 wenn PVAnlage = 0) | B92: =PVAnlage*E91 -> 0 | C92: =IF(PVAnlage=0,0,IF(OR(D92="",D92="überschreiben"),B92,D92)) -> 0 | D92: =IF(Eingabemaske!F62="","",Eingabemaske!F62) -> überschreiben | E92: =C92 -> 0 | F92: Solarproduktion | H92: 90… Nürnberg | I92: 90 | J92: Nürnberg, Fürth, Zirndorf | K92: Nürnberg | L92: 963 | T92: Juli | U92: 2004 | V92: Juli_2004 | W92: 57.4 | X92: 2024-12-31
H93: 91… Nürnberg | I93: 91 | J93: Nürnberger Umland, Erlangen, Schwabach, Ansbach, Dinkelsbühl | K93: Nürnberg | L93: 963 | T93: August | U93: 2004 | V93: August_2004 | W93: 57.4 | X93: 2024-12-31
H94: 92… Amberg | I94: 92 | J94: Amberg, Neumarkt in der Oberpfalz, Weiden in der Oberpfalz, Schwandorf | K94: Amberg | L94: 977 | T94: September | U94: 2004 | V94: September_2004 | W94: 57.4 | X94: 2024-12-31
A95: Batteriespeicher | H95: 93… Regensburg | I95: 93 | J95: Regensburg, Cham, Kelheim, Abensberg | K95: Regensburg | L95: 986 | T95: Oktober | U95: 2004 | V95: Oktober_2004 | W95: 57.4 | X95: 2024-12-31
B96: Vordefiniert | C96: Anzeige | D96: überschreiben | E96: Variablenwert | F96: Variablenname | H96: 94… Passau | I96: 94 | J96: Passau, Landau an der Isar, Regen, Straubing | K96: Passau | L96: 986 | T96: November | U96: 2004 | V96: November_2004 | W96: 57.4 | X96: 2024-12-31
A97: Größenvorschlag: | H97: 95… Hof | I97: 95 | J97: Hof, Bayreuth, Kulmbach, Marktredwitz | K97: Hof | L97: 925 | T97: Dezember | U97: 2004 | V97: Dezember_2004 | W97: 57.4 | X97: 2024-12-31
A98: Stromverbrauch / Tag (kWh) | B98: =Jahresstromverbrauch/365 -> 0 | D98: PV Produktion pro Tag (Wh) | E98: =Solarproduktion/365 -> 0 | H98: 96… Bamberg | I98: 96 | J98: Bamberg, Lichtenfels, Coburg, Sonneberg | K98: Bamberg | L98: 966 | T98: Januar | U98: 2005 | V98: Januar_2005 | W98: 54.53 | X98: 2025-12-31
A99: Größe als Anteil des Tagesverbrauchs | B99: 0.5 | D99: Größe als Anteil der Tages-PV-Produktion | E99: 0.35 | H99: 97… Würzburg | I99: 97 | J99: Würzburg, Schweinfurt, Bad Kissingen, Wertheim | K99: Würzburg | L99: 977 | T99: Februar | U99: 2005 | V99: Februar_2005 | W99: 54.53 | X99: 2025-12-31
A100: Rundungsschritte: | B100: 0.5 | C100: kWh | D100: Rundungsschritte: | E100: 0.5 | H100: 98… Suhl | I100: 98 | J100: Suhl, Hildburghausen, Ilmenau, Meiningen | K100: Suhl | L100: 909 | T100: März | U100: 2005 | V100: März_2005 | W100: 54.53 | X100: 2025-12-31
B101: =ROUND(B98*B99/B100,0)*B100 -> 0 | E101: =ROUND(E98*E99/E100,0)*E100 -> 0 | H101: 99… Erfurt | I101: 99 | J101: Erfurt, Weimar, Mühlhausen/Thüringen, Eisenach | K101: Erfurt | L101: 928 | T101: April | U101: 2005 | V101: April_2005 | W101: 54.53 | X101: 2025-12-31
A102: Vorgeschlagene Speichergröße (alt) | B102: =MIN(B101,E101) -> 0 | T102: Mai | U102: 2005 | V102: Mai_2005 | W102: 54.53 | X102: 2025-12-31
A103: Größe Batteriespeicher (= Leistung PV in kWp) | B103: =IF(PVAnlage>0,MAX(2,PVAnlage),PVAnlage) -> 0 | C103: =IF(OR(D103="",D103="überschreiben"),B103,D103) -> 0 | D103: =IF(Eingabemaske!F66="","",Eingabemaske!F66) ->  | E103: =IF(ISNUMBER(C103),C103,B103) -> 0 | F103: Batteriespeicher | L103: =SUM(L2:L101)/97 -> 974.4742268 | T103: Juni | U103: 2005 | V103: Juni_2005 | W103: 54.53 | X103: 2025-12-31
E104: =E103*1000 -> 0 | F104: BatteriespeicherWh | T104: Juli | U104: =IF(T104="Januar",U103+1,U103) -> 2005 | V104: =T104&"_"&U104 -> Juli_2005 | W104: 54.53 | X104: 2025-12-31
A105: ="Speichergröße entspricht "&ROUND(100*D105,0)&" % des durchschnittlichen Tagesstromverbrauchs" ->  | D105: =C103/B98 ->  | T105: August | U105: 2005 | V105: August_2005 | W105: 54.53 | X105: 2025-12-31
A106: ="Größe ausreichend für Einspeicherung von "&ROUND(100*D106,0)&" % der durchschnittlichen PV-Tagesproduktion" ->  | D106: =C103/E98 ->  | T106: September | U106: 2005 | V106: September_2005 | W106: 54.53 | X106: 2025-12-31
T107: Oktober | U107: 2005 | V107: Oktober_2005 | W107: 54.53 | X107: 2025-12-31
A108: Kosten Batteriespeicher | B108: Kapazität (kWh) | C108: Kosten pro kWh | D108: Steigung | E108: Intersect | T108: November | U108: 2005 | V108: November_2005 | W108: 54.53 | X108: 2025-12-31
A109: kleiner Batteriespeicher (Größe und Kosten) | B109: 4 | C109: =1529 -> 1529 | D109: =(C110-C109)/(B110-B109) -> -119.5 | E109: =C109-B109*D109 -> 2007 | T109: Dezember | U109: 2005 | V109: Dezember_2005 | W109: 54.53 | X109: 2025-12-31
A110: mittlerer Batteriespeicher (Größe und Kosten) | B110: 6 | C110: =1290 -> 1290 | D110: =(C111-C110)/(B111-B110) -> -7.5 | E110: =C110-B110*D110 -> 1335 | T110: Januar | U110: 2006 | V110: Januar_2006 | W110: 51.8 | X110: 2026-12-31
A111: großer Batteriespeicher (Größe und Kosten) | B111: 8 | C111: =1275 -> 1275 | T111: Februar | U111: 2006 | V111: Februar_2006 | W111: 51.8 | X111: 2026-12-31
A112: Geschätzte Kosten pro kWh | B112: =IF(Batteriespeicher=0,0,IF(Batteriespeicher<=B110,E109+Batteriespeicher*D109,IF(Batteriespeicher<=B111,E110+Batteriespeicher*D110,C111))) -> 0 | T112: März | U112: 2006 | V112: März_2006 | W112: 51.8 | X112: 2026-12-31
A113: Kostendegression Batteriespeicher | B113: =IFERROR(VLOOKUP(BasisJahr,N1:R52,4,FALSE),1) -> 0.9 | T113: April | U113: 2006 | V113: April_2006 | W113: 51.8 | X113: 2026-12-31
A114: Geschätzte Kosten im Basisjahr | B114: =B112*B113 -> 0 | T114: Mai | U114: 2006 | V114: Mai_2006 | W114: 51.8 | X114: 2026-12-31
A115: Rundungsbetrag (Euro) | B115: 10 | T115: Juni | U115: 2006 | V115: Juni_2006 | W115: 51.8 | X115: 2026-12-31
A116: Geschätzte Kosten gesamt | B116: =ROUND(E103*B114/B115,0)*B115 -> 0 | C116: =IF(OR(D116="",D116="überschreiben"),B116,D116) -> 0 | D116: =IF(Eingabemaske!F70="","",Eingabemaske!F70) -> überschreiben | E116: =C116 -> 0 | F116: BatterieGesamtkosten | T116: Juli | U116: 2006 | V116: Juli_2006 | W116: 51.8 | X116: 2026-12-31
E117: 0.02 | F117: BatterieWartung | T117: August | U117: 2006 | V117: August_2006 | W117: 51.8 | X117: 2026-12-31
E118: 0.9 | F118: Wirkungsgrad | T118: September | U118: 2006 | V118: September_2006 | W118: 51.8 | X118: 2026-12-31
T119: Oktober | U119: 2006 | V119: Oktober_2006 | W119: 51.8 | X119: 2026-12-31
T120: November | U120: 2006 | V120: November_2006 | W120: 51.8 | X120: 2026-12-31
T121: Dezember | U121: 2006 | V121: Dezember_2006 | W121: 51.8 | X121: 2026-12-31
T122: Januar | U122: 2007 | V122: Januar_2007 | W122: 49.21 | X122: 2027-12-31
T123: Februar | U123: 2007 | V123: Februar_2007 | W123: 49.21 | X123: 2027-12-31
T124: März | U124: 2007 | V124: März_2007 | W124: 49.21 | X124: 2027-12-31
T125: April | U125: 2007 | V125: April_2007 | W125: 49.21 | X125: 2027-12-31
T126: Mai | U126: 2007 | V126: Mai_2007 | W126: 49.21 | X126: 2027-12-31
T127: =T115 -> Juni | U127: =IF(T127="Januar",U126+1,U126) -> 2007 | V127: Juni_2007 | W127: 49.21 | X127: 2027-12-31
T128: Juli | U128: 2007 | V128: Juli_2007 | W128: 49.21 | X128: 2027-12-31
T129: August | U129: 2007 | V129: August_2007 | W129: 49.21 | X129: 2027-12-31
T130: September | U130: 2007 | V130: September_2007 | W130: 49.21 | X130: =IF(U130<2000,DATEVALUE("31.12.2020"),DATEVALUE("31.12."&U130+20)) -> 2027-12-31
T131: Oktober | U131: 2007 | V131: Oktober_2007 | W131: 49.21 | X131: 2027-12-31
T132: November | U132: 2007 | V132: November_2007 | W132: 49.21 | X132: 2027-12-31
T133: Dezember | U133: 2007 | V133: Dezember_2007 | W133: 49.21 | X133: 2027-12-31
T134: Januar | U134: 2008 | V134: Januar_2008 | W134: 46.75 | X134: 2028-12-31
T135: Februar | U135: 2008 | V135: Februar_2008 | W135: 46.75 | X135: 2028-12-31
T136: März | U136: 2008 | V136: März_2008 | W136: 46.75 | X136: 2028-12-31
T137: April | U137: 2008 | V137: April_2008 | W137: 46.75 | X137: 2028-12-31
T138: Mai | U138: 2008 | V138: Mai_2008 | W138: 46.75 | X138: 2028-12-31
T139: Juni | U139: 2008 | V139: Juni_2008 | W139: 46.75 | X139: 2028-12-31
T140: Juli | U140: 2008 | V140: Juli_2008 | W140: 46.75 | X140: 2028-12-31
T141: August | U141: 2008 | V141: August_2008 | W141: 46.75 | X141: 2028-12-31
T142: September | U142: 2008 | V142: September_2008 | W142: 46.75 | X142: 2028-12-31
T143: =T131 -> Oktober | U143: 2008 | V143: Oktober_2008 | W143: 46.75 | X143: 2028-12-31
T144: November | U144: 2008 | V144: November_2008 | W144: 46.75 | X144: 2028-12-31
T145: Dezember | U145: 2008 | V145: Dezember_2008 | W145: 46.75 | X145: 2028-12-31
T146: Januar | U146: 2009 | V146: Januar_2009 | W146: 43.01 | X146: 2029-12-31 | Y146: 25.01 | Z146: 25.01
T147: Februar | U147: 2009 | V147: Februar_2009 | W147: 43.01 | X147: 2029-12-31 | Y147: 25.01 | Z147: 25.01
T148: März | U148: 2009 | V148: März_2009 | W148: 43.01 | X148: 2029-12-31 | Y148: 25.01 | Z148: 25.01
T149: April | U149: 2009 | V149: April_2009 | W149: 43.01 | X149: 2029-12-31 | Y149: 25.01 | Z149: 25.01
T150: Mai | U150: 2009 | V150: Mai_2009 | W150: 43.01 | X150: 2029-12-31 | Y150: 25.01 | Z150: 25.01
T151: Juni | U151: 2009 | V151: Juni_2009 | W151: 43.01 | X151: 2029-12-31 | Y151: 25.01 | Z151: 25.01
T152: Juli | U152: 2009 | V152: Juli_2009 | W152: 43.01 | X152: 2029-12-31 | Y152: 25.01 | Z152: 25.01
T153: August | U153: 2009 | V153: August_2009 | W153: 43.01 | X153: 2029-12-31 | Y153: 25.01 | Z153: 25.01
T154: September | U154: 2009 | V154: September_2009 | W154: 43.01 | X154: 2029-12-31 | Y154: 25.01 | Z154: 25.01
T155: Oktober | U155: 2009 | V155: Oktober_2009 | W155: 43.01 | X155: 2029-12-31 | Y155: 25.01 | Z155: 25.01
T156: November | U156: 2009 | V156: November_2009 | W156: 43.01 | X156: 2029-12-31 | Y156: 25.01 | Z156: 25.01
T157: Dezember | U157: 2009 | V157: Dezember_2009 | W157: 43.01 | X157: 2029-12-31 | Y157: 25.01 | Z157: 25.01
T158: Januar | U158: 2010 | V158: Januar_2010 | W158: 39.14 | X158: 2030-12-31 | Y158: 22.76 | Z158: 22.76
T159: Februar | U159: 2010 | V159: Februar_2010 | W159: 39.14 | X159: 2030-12-31 | Y159: 22.76 | Z159: 22.76
T160: März | U160: 2010 | V160: März_2010 | W160: 39.14 | X160: 2030-12-31 | Y160: 22.76 | Z160: 22.76
T161: April | U161: 2010 | V161: April_2010 | W161: 39.14 | X161: 2030-12-31 | Y161: 22.76 | Z161: 22.76
T162: Mai | U162: 2010 | V162: Mai_2010 | W162: 39.14 | X162: 2030-12-31 | Y162: 22.76 | Z162: 22.76
T163: Juni | U163: 2010 | V163: Juni_2010 | W163: 39.14 | X163: 2030-12-31 | Y163: 22.76 | Z163: 22.76
T164: Juli | U164: 2010 | V164: Juli_2010 | W164: 34.05 | X164: 2030-12-31 | Y164: 17.67 | Z164: 22.05
T165: August | U165: 2010 | V165: August_2010 | W165: 34.05 | X165: 2030-12-31 | Y165: 17.67 | Z165: 22.05
T166: September | U166: 2010 | V166: September_2010 | W166: 34.05 | X166: 2030-12-31 | Y166: 17.67 | Z166: 22.05
T167: Oktober | U167: 2010 | V167: Oktober_2010 | W167: 33.03 | X167: 2030-12-31 | Y167: 16.65 | Z167: 21.03
T168: November | U168: =IF(T168="Januar",U167+1,U167) -> 2010 | V168: =T168&"_"&U168 -> November_2010 | W168: 33.03 | X168: 2030-12-31 | Y168: 16.65 | Z168: 21.03
T169: Dezember | U169: 2010 | V169: Dezember_2010 | W169: 33.03 | X169: 2030-12-31 | Y169: 16.65 | Z169: 21.03
T170: Januar | U170: 2011 | V170: Januar_2011 | W170: 28.74 | X170: 2031-12-31 | Y170: 12.36 | Z170: 16.74
T171: Februar | U171: 2011 | V171: Februar_2011 | W171: 28.74 | X171: 2031-12-31 | Y171: 12.36 | Z171: 16.74
T172: März | U172: 2011 | V172: März_2011 | W172: 28.74 | X172: 2031-12-31 | Y172: 12.36 | Z172: 16.74
T173: April | U173: 2011 | V173: April_2011 | W173: 28.74 | X173: 2031-12-31 | Y173: 12.36 | Z173: 16.74
T174: Mai | U174: 2011 | V174: Mai_2011 | W174: 28.74 | X174: 2031-12-31 | Y174: 12.36 | Z174: 16.74
T175: Juni | U175: 2011 | V175: Juni_2011 | W175: 28.74 | X175: 2031-12-31 | Y175: 12.36 | Z175: 16.74
T176: Juli | U176: 2011 | V176: Juli_2011 | W176: 28.74 | X176: 2031-12-31 | Y176: 12.36 | Z176: 16.74
T177: August | U177: 2011 | V177: August_2011 | W177: 28.74 | X177: 2031-12-31 | Y177: 12.36 | Z177: 16.74
T178: September | U178: 2011 | V178: September_2011 | W178: 28.74 | X178: 2031-12-31 | Y178: 12.36 | Z178: 16.74
T179: Oktober | U179: 2011 | V179: Oktober_2011 | W179: 28.74 | X179: 2031-12-31 | Y179: 12.36 | Z179: 16.74
T180: November | U180: 2011 | V180: November_2011 | W180: 28.74 | X180: 2031-12-31 | Y180: 12.36 | Z180: 16.74
T181: Dezember | U181: 2011 | V181: Dezember_2011 | W181: 28.74 | X181: 2031-12-31 | Y181: 12.36 | Z181: 16.74
T182: Januar | U182: 2012 | V182: Januar_2012 | W182: 24.43 | X182: 2032-12-31 | Y182: 8.05 | Z182: 12.43
T183: Februar | U183: 2012 | V183: Februar_2012 | W183: 24.43 | X183: 2032-12-31 | Y183: 8.05 | Z183: 12.43
T184: März | U184: 2012 | V184: März_2012 | W184: 24.43 | X184: 2032-12-31 | Y184: 8.05 | Z184: 12.43
T185: April | U185: 2012 | V185: April_2012 | W185: 19.5 | X185: 2032-12-31
T186: Mai | U186: 2012 | V186: Mai_2012 | W186: 19.31 | X186: 2032-12-31
T187: Juni | U187: 2012 | V187: Juni_2012 | W187: 19.11 | X187: 2032-12-31
T188: Juli | U188: 2012 | V188: Juli_2012 | W188: 18.92 | X188: 2032-12-31
T189: August | U189: 2012 | V189: August_2012 | W189: 18.73 | X189: 2032-12-31
T190: September | U190: 2012 | V190: September_2012 | W190: 18.54 | X190: 2032-12-31
T191: Oktober | U191: 2012 | V191: Oktober_2012 | W191: 18.36 | X191: 2032-12-31
T192: November | U192: 2012 | V192: November_2012 | W192: 17.9 | X192: 2032-12-31
T193: Dezember | U193: 2012 | V193: Dezember_2012 | W193: 17.45 | X193: 2032-12-31
T194: Januar | U194: 2013 | V194: Januar_2013 | W194: 17.02 | X194: =IF(U194<2000,DATEVALUE("31.12.2020"),DATEVALUE("31.12."&U194+20)) -> 2033-12-31
T195: Februar | U195: 2013 | V195: Februar_2013 | W195: 16.64 | X195: 2033-12-31
T196: März | U196: 2013 | V196: März_2013 | W196: 16.28 | X196: 2033-12-31
T197: April | U197: 2013 | V197: April_2013 | W197: 15.92 | X197: 2033-12-31
T198: Mai | U198: 2013 | V198: Mai_2013 | W198: 15.63 | X198: 2033-12-31
T199: Juni | U199: 2013 | V199: Juni_2013 | W199: 15.35 | X199: 2033-12-31
T200: Juli | U200: 2013 | V200: Juli_2013 | W200: 15.07 | X200: 2033-12-31
... 113 more rows

Sheet Daten (hidden)
B1: Normierte Lastkurven / Produktionskurven | E1: Szenario 1 (ohne Einsparungen) | H1: Szenario 2 (mit Einsparungen) | K1: Referenzszenario (mit oder ohne Bestands-PV)
K3: PV Bestandsanlage | L3: =PVExist -> Nein
E4: Warmwasser | F4: =ElektrischWarmwasser -> Nein | H4: Warmwasser | I4: =ElektrischWarmwasser -> Nein | K4: Warmwasser | L4: =ElektrischWarmwasser -> Nein
F5: kWh / Jahr | G5: Skalierung | I5: kWh / Jahr | J5: Skalierung | L5: kWh / Jahr | M5: Skalierung
E6: Verbrauch ohne WW | F6: =SEK!F9 -> 0 | G6: =F6/$B$27 -> 0 | H6: Verbrauch ohne WW | I6: =SEK!F17 -> 0 | J6: =I6/$B$27 -> 0 | K6: Verbrauch ohne WW | L6: =F6 -> 0 | M6: =L6/$B$27 -> 0
E7: Warmwasser | F7: =SEK!E9 -> 0 | G7: =F7/$C$27 -> 0 | H7: Warmwasser | I7: =SEK!E17 -> 0 | J7: =I7/$C$27 -> 0 | K7: Warmwasser | L7: =F7 -> 0 | M7: =L7/$C$27 -> 0
E8: PV-Produktion | F8: =Solarproduktion -> 0 | G8: =F8/$D$27 -> 0 | H8: PV-Produktion | I8: =Solarproduktion -> 0 | J8: =I8/$D$27 -> 0 | K8: PV-Produktion | L8: =IF(L3="Ja",Solarproduktion,0) -> 0 | M8: =L8/$D$27 -> 0
E10: Jahresstromverbrauch | F10: ='S1'!Q8 -> 0 | H10: Jahresstromverbrauch | I10: ='S2'!Q8 -> 0 | K10: Jahresstromverbrauch | L10: =SR!Q8 -> 0
E11: PV-Produktion | F11: ='S1'!Q9 -> 0 | H11: PV-Produktion | I11: ='S2'!Q9 -> 0 | K11: PV-Produktion | L11: =SR!Q9 -> 0
A12: Normierung Daten | E12: Eigenverbrauch (kWh) | F12: ='S1'!Q10 -> 0 | H12: Eigenverbrauch (kWh) | I12: ='S2'!Q10 -> 0 | K12: Eigenverbrauch (kWh) | L12: =SR!Q10 -> 0
A13: Einheit | E13: Bezug (kWh) | F13: ='S1'!Q11 -> 0 | H13: Bezug (kWh) | I13: ='S2'!Q11 -> 0 | K13: Bezug (kWh) | L13: =SR!Q11 -> 0
A14: Skalierung der Lastkurven | E14: Einspeisung (kWh) | F14: ='S1'!Q12 -> 0 | H14: Einspeisung (kWh) | I14: ='S2'!Q12 -> 0 | K14: Einspeisung (kWh) | L14: =SR!Q12 -> 0
E15: Verluste (Speicherung - Entnahme) | F15: ='S1'!Q13 -> 0 | H15: Verluste (Speicherung - Entnahme) | I15: ='S2'!Q13 -> 0 | K15: Verluste (Speicherung - Entnahme) | L15: =SR!Q13 -> 0
E16: Volllastzyklen | F16: ='S1'!Q14 -> - | H16: Volllastzyklen | I16: ='S2'!Q14 -> - | K16: Volllastzyklen | L16: =SR!Q14 -> -
E17: Direktverbrauch | F17: ='S1'!Q15 -> 0 | H17: Direktverbrauch | I17: ='S2'!Q15 -> 0 | K17: Direktverbrauch | L17: =SR!Q15 -> 0
E18: Eigenverbrauch aus Batterie | F18: ='S1'!Q16 -> 0 | H18: Eigenverbrauch aus Batterie | I18: ='S2'!Q16 -> 0 | K18: Eigenverbrauch aus Batterie | L18: =SR!Q16 -> 0
E19: Einspeicherung (kWh) | F19: ='S1'!Q17 -> 0 | H19: Einspeicherung (kWh) | I19: ='S2'!Q17 -> 0 | K19: Einspeicherung (kWh) | L19: =SR!Q17 -> 0
E20: Direktverbrauchsquote | F20: ='S1'!Q18 ->  | H20: Direktverbrauchsquote | I20: ='S2'!Q18 ->  | K20: Direktverbrauchsquote | L20: =SR!Q18 -> -
E21: Eigenverbrauchsquote über Batterie | F21: ='S1'!Q19 ->  | H21: Eigenverbrauchsquote über Batterie | I21: ='S2'!Q19 ->  | K21: Eigenverbrauchsquote über Batterie | L21: =SR!Q19 -> -
E22: Eigenverbrauchsquote | F22: ='S1'!Q20 ->  | H22: Eigenverbrauchsquote | I22: ='S2'!Q20 ->  | K22: Eigenverbrauchsquote | L22: =SR!Q20 -> -
E23: Einspeisequote | F23: ='S1'!Q21 ->  | H23: Einspeisequote | I23: ='S2'!Q21 ->  | K23: Einspeisequote | L23: =SR!Q21 -> -
E24: Verluste Batterie | F24: ='S1'!Q22 ->  | H24: Verluste Batterie | I24: ='S2'!Q22 ->  | K24: Verluste Batterie | L24: =SR!Q22 -> -
B25: Lastkurve ohne WW (W) | C25: Lastkurve Warmwasser | D25: PV-Produktion (W/Wpeak)
B26: Normierung | C26: Normierung | D26: Normierung | E26: Eigenverbrauchsquote | F26: =F12/F11 ->  | H26: Eigenverbrauchsquote | I26: =I12/I11 ->  | K26: Eigenverbrauchsquote | L26: =IF(L11>0,L12/L11,"") -> 
B27: 3000 | C27: 365 | D27: 1000 | E27: Autarkiegrad | F27: =F12/F10 ->  | H27: Autarkiegrad | I27: =I12/I10 ->  | K27: Autarkiegrad | L27: =L12/L10 -> 
B28: kWh | C28: kWh | D28: Wh/Wpeak
B29: Daten | C29: Daten | D29: Daten | F29: Lastkurve (W) | G29: PV-Produktion (W) | I29: Lastkurve (W) | J29: PV-Produktion (W) | L29: Lastkurve (W) | M29: PV-Produktion (W)
A30: 1 | B30: 296.9836015 | C30: 0 | D30: 0 | F30: =$B30*G$6+$C30*G$7 -> 0 | G30: =$D30*G$8 -> 0 | I30: =$B30*J$6+$C30*J$7 -> 0 | J30: =$D30*J$8 -> 0 | L30: =$B30*M$6+$C30*M$7 -> 0 | M30: =$D30*M$8 -> 0
A31: 2 | B31: 212.4419545 | C31: 0 | D31: 0 | F31: =B31*$G$6+C31*$G$7 -> 0 | G31: =D31*$G$8 -> 0 | I31: 0 | J31: =$D31*J$8 -> 0 | L31: 0 | M31: =$D31*M$8 -> 0
A32: 3 | B32: 184.7276042 | C32: 0 | D32: 0 | F32: 0 | G32: 0 | I32: 0 | J32: 0 | L32: 0 | M32: 0
A33: 4 | B33: 244.8459404 | C33: 0 | D33: 0 | F33: 0 | G33: 0 | I33: 0 | J33: 0 | L33: 0 | M33: 0
A34: 5 | B34: 207.4830087 | C34: 0 | D34: 0 | F34: 0 | G34: 0 | I34: 0 | J34: 0 | L34: 0 | M34: 0
A35: 6 | B35: 85.50579723 | C35: 0 | D35: 0 | F35: 0 | G35: 0 | I35: 0 | J35: 0 | L35: 0 | M35: 0
A36: 7 | B36: 129.8110695 | C36: 45.45454545 | D36: 0 | F36: 0 | G36: 0 | I36: 0 | J36: 0 | L36: 0 | M36: 0
A37: 8 | B37: 257.2141509 | C37: 0 | D37: 0 | F37: 0 | G37: 0 | I37: 0 | J37: 0 | L37: 0 | M37: 0
A38: 9 | B38: 320.3848121 | C38: 318.1818182 | D38: 0.6830886371 | F38: 0 | G38: 0 | I38: 0 | J38: 0 | L38: 0 | M38: 0
A39: 10 | B39: 67.83356704 | C39: 90.90909091 | D39: 12.93575141 | F39: 0 | G39: 0 | I39: 0 | J39: 0 | L39: 0 | M39: 0
A40: 11 | B40: 624.6669388 | C40: 0 | D40: 26.67812261 | F40: 0 | G40: 0 | I40: 0 | J40: 0 | L40: 0 | M40: 0
A41: 12 | B41: 1179.007806 | C41: 0 | D41: 39.26397225 | F41: 0 | G41: 0 | I41: 0 | J41: 0 | L41: 0 | M41: 0
A42: 13 | B42: 261.745014 | C42: 0 | D42: 50.93531427 | F42: 0 | G42: 0 | I42: 0 | J42: 0 | L42: 0 | M42: 0
A43: 14 | B43: 433.2855137 | C43: 90.90909091 | D43: 44.1367935 | F43: 0 | G43: 0 | I43: 0 | J43: 0 | L43: 0 | M43: 0
A44: 15 | B44: 858.1476604 | C44: 90.90909091 | D44: 30.39382394 | F44: 0 | G44: 0 | I44: 0 | J44: 0 | L44: 0 | M44: 0
A45: 16 | B45: 309.459705 | C45: 0 | D45: 14.50636858 | F45: 0 | G45: 0 | I45: 0 | J45: 0 | L45: 0 | M45: 0
A46: 17 | B46: 294.4713016 | C46: 0 | D46: 0.8165355857 | F46: 0 | G46: 0 | I46: 0 | J46: 0 | L46: 0 | M46: 0
A47: 18 | B47: 281.5194589 | C47: 45.45454545 | D47: 0 | F47: 0 | G47: 0 | I47: 0 | J47: 0 | L47: 0 | M47: 0
A48: 19 | B48: 298.2670232 | C48: 90.90909091 | D48: 0 | F48: 0 | G48: 0 | I48: 0 | J48: 0 | L48: 0 | M48: 0
A49: 20 | B49: 320.2427607 | C49: 181.8181818 | D49: 0 | F49: 0 | G49: 0 | I49: 0 | J49: 0 | L49: 0 | M49: 0
A50: 21 | B50: 798.5742895 | C50: 0 | D50: 0 | F50: 0 | G50: 0 | I50: 0 | J50: 0 | L50: 0 | M50: 0
A51: 22 | B51: 420.5728721 | C51: 0 | D51: 0 | F51: 0 | G51: 0 | I51: 0 | J51: 0 | L51: 0 | M51: 0
A52: 23 | B52: 449.1937164 | C52: 45.45454545 | D52: 0 | F52: 0 | G52: 0 | I52: 0 | J52: 0 | L52: 0 | M52: 0
A53: 24 | B53: 284.8107004 | C53: 0 | D53: 0 | F53: 0 | G53: 0 | I53: 0 | J53: 0 | L53: 0 | M53: 0
A54: 25 | B54: 831.7726434 | C54: 0 | D54: 0 | F54: 0 | G54: 0 | I54: 0 | J54: 0 | L54: 0 | M54: 0
A55: 26 | B55: 273.1791007 | C55: 0 | D55: 0 | F55: 0 | G55: 0 | I55: 0 | J55: 0 | L55: 0 | M55: 0
A56: 27 | B56: 323.2184036 | C56: 0 | D56: 0 | F56: 0 | G56: 0 | I56: 0 | J56: 0 | L56: 0 | M56: 0
A57: 28 | B57: 128.9502211 | C57: 0 | D57: 0 | F57: 0 | G57: 0 | I57: 0 | J57: 0 | L57: 0 | M57: 0
A58: 29 | B58: 135.6385769 | C58: 0 | D58: 0 | F58: 0 | G58: 0 | I58: 0 | J58: 0 | L58: 0 | M58: 0
A59: 30 | B59: 83.82542119 | C59: 0 | D59: 0 | F59: 0 | G59: 0 | I59: 0 | J59: 0 | L59: 0 | M59: 0
A60: 31 | B60: 128.0205048 | C60: 45.45454545 | D60: 0 | F60: 0 | G60: 0 | I60: 0 | J60: 0 | L60: 0 | M60: 0
A61: 32 | B61: 59.11774115 | C61: 0 | D61: 0 | F61: 0 | G61: 0 | I61: 0 | J61: 0 | L61: 0 | M61: 0
A62: 33 | B62: 437.0830718 | C62: 318.1818182 | D62: 0.6664671293 | F62: 0 | G62: 0 | I62: 0 | J62: 0 | L62: 0 | M62: 0
A63: 34 | B63: 818.8003239 | C63: 90.90909091 | D63: 8.885896864 | F63: 0 | G63: 0 | I63: 0 | J63: 0 | L63: 0 | M63: 0
A64: 35 | B64: 139.6089841 | C64: 0 | D64: 19.31650896 | F64: 0 | G64: 0 | I64: 0 | J64: 0 | L64: 0 | M64: 0
A65: 36 | B65: 58.34486 | C65: 0 | D65: 27.79294523 | F65: 0 | G65: 0 | I65: 0 | J65: 0 | L65: 0 | M65: 0
A66: 37 | B66: 1079.194885 | C66: 0 | D66: 28.83934557 | F66: 0 | G66: 0 | I66: 0 | J66: 0 | L66: 0 | M66: 0
A67: 38 | B67: 872.0806499 | C67: 90.90909091 | D67: 24.66047788 | F67: 0 | G67: 0 | I67: 0 | J67: 0 | L67: 0 | M67: 0
A68: 39 | B68: 270.3087796 | C68: 90.90909091 | D68: 18.38539943 | F68: 0 | G68: 0 | I68: 0 | J68: 0 | L68: 0 | M68: 0
A69: 40 | B69: 181.9425784 | C69: 0 | D69: 9.139994672 | F69: 0 | G69: 0 | I69: 0 | J69: 0 | L69: 0 | M69: 0
A70: 41 | B70: 460.9441361 | C70: 0 | D70: 0.8575242327 | F70: 0 | G70: 0 | I70: 0 | J70: 0 | L70: 0 | M70: 0
A71: 42 | B71: 651.6648887 | C71: 45.45454545 | D71: 0 | F71: 0 | G71: 0 | I71: 0 | J71: 0 | L71: 0 | M71: 0
A72: 43 | B72: 373.0418288 | C72: 90.90909091 | D72: 0 | F72: 0 | G72: 0 | I72: 0 | J72: 0 | L72: 0 | M72: 0
A73: 44 | B73: 609.0597346 | C73: 181.8181818 | D73: 0 | F73: 0 | G73: 0 | I73: 0 | J73: 0 | L73: 0 | M73: 0
A74: 45 | B74: 891.8235901 | C74: 0 | D74: 0 | F74: 0 | G74: 0 | I74: 0 | J74: 0 | L74: 0 | M74: 0
A75: 46 | B75: 558.0603217 | C75: 0 | D75: 0 | F75: 0 | G75: 0 | I75: 0 | J75: 0 | L75: 0 | M75: 0
A76: 47 | B76: 605.6248807 | C76: 45.45454545 | D76: 0 | F76: 0 | G76: 0 | I76: 0 | J76: 0 | L76: 0 | M76: 0
A77: 48 | B77: 237.4916783 | C77: 0 | D77: 0 | F77: 0 | G77: 0 | I77: 0 | J77: 0 | L77: 0 | M77: 0
A78: 49 | B78: 255.4043033 | C78: 0 | D78: 0 | F78: 0 | G78: 0 | I78: 0 | J78: 0 | L78: 0 | M78: 0
A79: 50 | B79: 219.7860242 | C79: 0 | D79: 0 | F79: 0 | G79: 0 | I79: 0 | J79: 0 | L79: 0 | M79: 0
A80: 51 | B80: 288.5914546 | C80: 0 | D80: 0 | F80: 0 | G80: 0 | I80: 0 | J80: 0 | L80: 0 | M80: 0
A81: 52 | B81: 352.2174702 | C81: 0 | D81: 0 | F81: 0 | G81: 0 | I81: 0 | J81: 0 | L81: 0 | M81: 0
A82: 53 | B82: 702.3377761 | C82: 0 | D82: 0 | F82: 0 | G82: 0 | I82: 0 | J82: 0 | L82: 0 | M82: 0
A83: 54 | B83: 71.15373299 | C83: 0 | D83: 0 | F83: 0 | G83: 0 | I83: 0 | J83: 0 | L83: 0 | M83: 0
A84: 55 | B84: 372.4560846 | C84: 45.45454545 | D84: 0 | F84: 0 | G84: 0 | I84: 0 | J84: 0 | L84: 0 | M84: 0
A85: 56 | B85: 401.3919764 | C85: 0 | D85: 0 | F85: 0 | G85: 0 | I85: 0 | J85: 0 | L85: 0 | M85: 0
A86: 57 | B86: 747.8414228 | C86: 318.1818182 | D86: 0.5175768201 | F86: 0 | G86: 0 | I86: 0 | J86: 0 | L86: 0 | M86: 0
A87: 58 | B87: 66.11646146 | C87: 90.90909091 | D87: 31.22502368 | F87: 0 | G87: 0 | I87: 0 | J87: 0 | L87: 0 | M87: 0
A88: 59 | B88: 152.2561186 | C88: 0 | D88: 60.65424675 | F88: 0 | G88: 0 | I88: 0 | J88: 0 | L88: 0 | M88: 0
A89: 60 | B89: 352.192586 | C89: 0 | D89: 96.23170632 | F89: 0 | G89: 0 | I89: 0 | J89: 0 | L89: 0 | M89: 0
A90: 61 | B90: 115.2080507 | C90: 0 | D90: 89.8220364 | F90: 0 | G90: 0 | I90: 0 | J90: 0 | L90: 0 | M90: 0
A91: 62 | B91: 71.15373299 | C91: 90.90909091 | D91: 85.86664903 | F91: 0 | G91: 0 | I91: 0 | J91: 0 | L91: 0 | M91: 0
A92: 63 | B92: 287.9860601 | C92: 90.90909091 | D92: 87.84949246 | F92: 0 | G92: 0 | I92: 0 | J92: 0 | L92: 0 | M92: 0
A93: 64 | B93: 1296.316457 | C93: 0 | D93: 52.77916355 | F93: 0 | G93: 0 | I93: 0 | J93: 0 | L93: 0 | M93: 0
A94: 65 | B94: 396.7102467 | C94: 0 | D94: 2.210846435 | F94: 0 | G94: 0 | I94: =$B94*J$6+$C94*J$7 -> 0 | J94: 0 | L94: =$B94*M$6+$C94*M$7 -> 0 | M94: 0
A95: 66 | B95: 145.9370782 | C95: 45.45454545 | D95: 0 | F95: =B95*$G$6+C95*$G$7 -> 0 | G95: =D95*$G$8 -> 0 | I95: 0 | J95: =$D95*J$8 -> 0 | L95: 0 | M95: =$D95*M$8 -> 0
A96: 67 | B96: 226.4302127 | C96: 90.90909091 | D96: 0 | F96: 0 | G96: 0 | I96: 0 | J96: 0 | L96: 0 | M96: 0
A97: 68 | B97: 722.8863877 | C97: 181.8181818 | D97: 0 | F97: 0 | G97: 0 | I97: 0 | J97: 0 | L97: 0 | M97: 0
A98: 69 | B98: 260.6149382 | C98: 0 | D98: 0 | F98: 0 | G98: 0 | I98: 0 | J98: 0 | L98: 0 | M98: 0
A99: 70 | B99: 228.7935744 | C99: 0 | D99: 0 | F99: 0 | G99: 0 | I99: 0 | J99: 0 | L99: 0 | M99: 0
A100: 71 | B100: 324.056847 | C100: 45.45454545 | D100: 0 | F100: 0 | G100: 0 | I100: 0 | J100: 0 | L100: 0 | M100: 0
A101: 72 | B101: 243.823574 | C101: 0 | D101: 0 | F101: 0 | G101: 0 | I101: 0 | J101: 0 | L101: 0 | M101: 0
A102: 73 | B102: 292.2623876 | C102: 0 | D102: 0 | F102: 0 | G102: 0 | I102: 0 | J102: 0 | L102: 0 | M102: 0
A103: 74 | B103: 222.7276005 | C103: 0 | D103: 0 | F103: 0 | G103: 0 | I103: 0 | J103: 0 | L103: 0 | M103: 0
A104: 75 | B104: 314.1399655 | C104: 0 | D104: 0 | F104: 0 | G104: 0 | I104: 0 | J104: 0 | L104: 0 | M104: 0
A105: 76 | B105: 201.1063948 | C105: 0 | D105: 0 | F105: 0 | G105: 0 | I105: 0 | J105: 0 | L105: 0 | M105: 0
A106: 77 | B106: 153.2165958 | C106: 0 | D106: 0 | F106: 0 | G106: 0 | I106: 0 | J106: 0 | L106: 0 | M106: 0
A107: 78 | B107: 78.31599154 | C107: 0 | D107: 0 | F107: 0 | G107: 0 | I107: 0 | J107: 0 | L107: 0 | M107: 0
A108: 79 | B108: 195.973351 | C108: 45.45454545 | D108: 0 | F108: 0 | G108: 0 | I108: 0 | J108: 0 | L108: 0 | M108: 0
A109: 80 | B109: 1049.829074 | C109: 0 | D109: 0 | F109: 0 | G109: 0 | I109: 0 | J109: 0 | L109: 0 | M109: 0
A110: 81 | B110: 387.1205335 | C110: 318.1818182 | D110: 0.7788612197 | F110: 0 | G110: 0 | I110: 0 | J110: 0 | L110: 0 | M110: 0
A111: 82 | B111: 673.1714065 | C111: 90.90909091 | D111: 24.61242609 | F111: 0 | G111: 0 | I111: 0 | J111: 0 | L111: 0 | M111: 0
A112: 83 | B112: 1355.580933 | C112: 0 | D112: 49.83591102 | F112: 0 | G112: 0 | I112: 0 | J112: 0 | L112: 0 | M112: 0
A113: 84 | B113: 208.4473792 | C113: 0 | D113: 65.07413419 | F113: 0 | G113: 0 | I113: 0 | J113: 0 | L113: 0 | M113: 0
A114: 85 | B114: 338.5713476 | C114: 0 | D114: 71.89191271 | F114: 0 | G114: 0 | I114: 0 | J114: 0 | L114: 0 | M114: 0
A115: 86 | B115: 572.584372 | C115: 90.90909091 | D115: 65.65641252 | F115: 0 | G115: 0 | I115: 0 | J115: 0 | L115: 0 | M115: 0
A116: 87 | B116: 333.7229577 | C116: 90.90909091 | D116: 49.59966372 | F116: 0 | G116: 0 | I116: 0 | J116: 0 | L116: 0 | M116: 0
A117: 88 | B117: 394.4670366 | C117: 0 | D117: 25.19005823 | F117: 0 | G117: 0 | I117: 0 | J117: 0 | L117: 0 | M117: 0
A118: 89 | B118: 617.2708049 | C118: 0 | D118: 0.8746045585 | F118: 0 | G118: 0 | I118: 0 | J118: 0 | L118: 0 | M118: 0
A119: 90 | B119: 209.2107658 | C119: 45.45454545 | D119: 0 | F119: 0 | G119: 0 | I119: 0 | J119: 0 | L119: 0 | M119: 0
A120: 91 | B120: 585.7039768 | C120: 90.90909091 | D120: 0 | F120: 0 | G120: 0 | I120: 0 | J120: 0 | L120: 0 | M120: 0
A121: 92 | B121: 822.6415901 | C121: 181.8181818 | D121: 0 | F121: 0 | G121: 0 | I121: 0 | J121: 0 | L121: 0 | M121: 0
A122: 93 | B122: 1310.276434 | C122: 0 | D122: 0 | F122: 0 | G122: 0 | I122: 0 | J122: 0 | L122: 0 | M122: 0
A123: 94 | B123: 610.2254381 | C123: 0 | D123: 0 | F123: 0 | G123: 0 | I123: 0 | J123: 0 | L123: 0 | M123: 0
A124: 95 | B124: 483.8756678 | C124: 45.45454545 | D124: 0 | F124: 0 | G124: 0 | I124: 0 | J124: 0 | L124: 0 | M124: 0
A125: 96 | B125: 250.6430541 | C125: 0 | D125: 0 | F125: 0 | G125: 0 | I125: 0 | J125: 0 | L125: 0 | M125: 0
A126: 97 | B126: 333.7558306 | C126: 0 | D126: 0 | F126: 0 | G126: 0 | I126: 0 | J126: 0 | L126: 0 | M126: 0
A127: 98 | B127: 197.9696929 | C127: 0 | D127: 0 | F127: 0 | G127: 0 | I127: 0 | J127: 0 | L127: 0 | M127: 0
A128: 99 | B128: 231.776196 | C128: 0 | D128: 0 | F128: 0 | G128: 0 | I128: 0 | J128: 0 | L128: 0 | M128: 0
A129: 100 | B129: 179.8046442 | C129: 0 | D129: 0 | F129: 0 | G129: 0 | I129: 0 | J129: 0 | L129: 0 | M129: 0
A130: 101 | B130: 180.4370716 | C130: 0 | D130: 0 | F130: 0 | G130: 0 | I130: 0 | J130: 0 | L130: 0 | M130: 0
A131: 102 | B131: 114.2990683 | C131: 0 | D131: 0 | F131: 0 | G131: 0 | I131: 0 | J131: 0 | L131: 0 | M131: 0
A132: 103 | B132: 481.2063492 | C132: 45.45454545 | D132: 0 | F132: 0 | G132: 0 | I132: 0 | J132: 0 | L132: 0 | M132: 0
A133: 104 | B133: 177.451778 | C133: 0 | D133: 0 | F133: 0 | G133: 0 | I133: 0 | J133: 0 | L133: 0 | M133: 0
A134: 105 | B134: 477.5694828 | C134: 318.1818182 | D134: 0.747138443 | F134: 0 | G134: 0 | I134: 0 | J134: 0 | L134: 0 | M134: 0
A135: 106 | B135: 75.79663036 | C135: 90.90909091 | D135: 41.92820677 | F135: 0 | G135: 0 | I135: 0 | J135: 0 | L135: 0 | M135: 0
A136: 107 | B136: 254.3909447 | C136: 0 | D136: 74.57048932 | F136: 0 | G136: 0 | I136: 0 | J136: 0 | L136: 0 | M136: 0
A137: 108 | B137: 154.5059217 | C137: 0 | D137: 100.7562022 | F137: 0 | G137: 0 | I137: 0 | J137: 0 | L137: 0 | M137: 0
A138: 109 | B138: 384.5390535 | C138: 0 | D138: 116.6452371 | F138: 0 | G138: 0 | I138: 0 | J138: 0 | L138: 0 | M138: 0
A139: 110 | B139: 208.0005921 | C139: 90.90909091 | D139: 117.931166 | F139: 0 | G139: 0 | I139: 0 | J139: 0 | L139: 0 | M139: 0
A140: 111 | B140: 458.8134009 | C140: 90.90909091 | D140: 102.0742962 | F140: 0 | G140: 0 | I140: 0 | J140: 0 | L140: 0 | M140: 0
A141: 112 | B141: 901.3807518 | C141: 0 | D141: 43.98931583 | F141: 0 | G141: 0 | I141: 0 | J141: 0 | L141: 0 | M141: 0
A142: 113 | B142: 472.2030229 | C142: 0 | D142: 1.785803585 | F142: 0 | G142: 0 | I142: 0 | J142: 0 | L142: 0 | M142: 0
A143: 114 | B143: 634.9765508 | C143: 45.45454545 | D143: 0 | F143: 0 | G143: 0 | I143: 0 | J143: 0 | L143: 0 | M143: 0
A144: 115 | B144: 608.6793085 | C144: 90.90909091 | D144: 0 | F144: 0 | G144: 0 | I144: 0 | J144: 0 | L144: 0 | M144: 0
A145: 116 | B145: 358.6534941 | C145: 181.8181818 | D145: 0 | F145: 0 | G145: 0 | I145: 0 | J145: 0 | L145: 0 | M145: 0
A146: 117 | B146: 392.1209837 | C146: 0 | D146: 0 | F146: 0 | G146: 0 | I146: 0 | J146: 0 | L146: 0 | M146: 0
A147: 118 | B147: 714.8083701 | C147: 0 | D147: 0 | F147: 0 | G147: 0 | I147: 0 | J147: 0 | L147: 0 | M147: 0
A148: 119 | B148: 333.2736637 | C148: 45.45454545 | D148: 0 | F148: 0 | G148: 0 | I148: 0 | J148: 0 | L148: 0 | M148: 0
A149: 120 | B149: 268.2273171 | C149: 0 | D149: 0 | F149: 0 | G149: 0 | I149: 0 | J149: 0 | L149: 0 | M149: 0
A150: 121 | B150: 285.4833099 | C150: 0 | D150: 0 | F150: 0 | G150: 0 | I150: 0 | J150: 0 | L150: 0 | M150: 0
A151: 122 | B151: 162.4147723 | C151: 0 | D151: 0 | F151: 0 | G151: 0 | I151: 0 | J151: 0 | L151: 0 | M151: 0
A152: 123 | B152: 213.3294318 | C152: 0 | D152: 0 | F152: 0 | G152: 0 | I152: 0 | J152: 0 | L152: 0 | M152: 0
A153: 124 | B153: 128.0368036 | C153: 0 | D153: 0 | F153: 0 | G153: 0 | I153: 0 | J153: 0 | L153: 0 | M153: 0
A154: 125 | B154: 122.8475177 | C154: 0 | D154: 0 | F154: 0 | G154: 0 | I154: 0 | J154: 0 | L154: 0 | M154: 0
A155: 126 | B155: 84.37636415 | C155: 0 | D155: 0 | F155: 0 | G155: 0 | I155: 0 | J155: 0 | L155: 0 | M155: 0
A156: 127 | B156: 138.0752139 | C156: 45.45454545 | D156: 0 | F156: 0 | G156: 0 | I156: 0 | J156: 0 | L156: 0 | M156: 0
A157: 128 | B157: 661.2146586 | C157: 0 | D157: 0 | F157: 0 | G157: 0 | I157: 0 | J157: 0 | L157: 0 | M157: 0
A158: 129 | B158: 850.7432625 | C158: 318.1818182 | D158: 0.8408560188 | F158: 0 | G158: 0 | I158: =$B158*J$6+$C158*J$7 -> 0 | J158: 0 | L158: =$B158*M$6+$C158*M$7 -> 0 | M158: 0
A159: 130 | B159: 689.7173256 | C159: 90.90909091 | D159: 17.50855777 | F159: =B159*$G$6+C159*$G$7 -> 0 | G159: =D159*$G$8 -> 0 | I159: 0 | J159: =$D159*J$8 -> 0 | L159: 0 | M159: =$D159*M$8 -> 0
A160: 131 | B160: 597.7463504 | C160: 0 | D160: 32.94857662 | F160: 0 | G160: 0 | I160: 0 | J160: 0 | L160: 0 | M160: 0
A161: 132 | B161: 466.6810134 | C161: 0 | D161: 37.50399259 | F161: 0 | G161: 0 | I161: 0 | J161: 0 | L161: 0 | M161: 0
A162: 133 | B162: 1600.170226 | C162: 0 | D162: 45.23142801 | F162: 0 | G162: 0 | I162: 0 | J162: 0 | L162: 0 | M162: 0
A163: 134 | B163: 722.2898083 | C163: 90.90909091 | D163: 56.85773987 | F163: 0 | G163: 0 | I163: 0 | J163: 0 | L163: 0 | M163: 0
A164: 135 | B164: 362.7940142 | C164: 90.90909091 | D164: 43.17815536 | F164: 0 | G164: 0 | I164: 0 | J164: 0 | L164: 0 | M164: 0
A165: 136 | B165: 227.7809871 | C165: 0 | D165: 21.81460343 | F165: 0 | G165: 0 | I165: 0 | J165: 0 | L165: 0 | M165: 0
A166: 137 | B166: 316.5922126 | C166: 0 | D166: 1.278811694 | F166: 0 | G166: 0 | I166: 0 | J166: 0 | L166: 0 | M166: 0
A167: 138 | B167: 916.30722 | C167: 45.45454545 | D167: 0 | F167: 0 | G167: 0 | I167: 0 | J167: 0 | L167: 0 | M167: 0
A168: 139 | B168: 278.4804575 | C168: 90.90909091 | D168: 0 | F168: 0 | G168: 0 | I168: 0 | J168: 0 | L168: 0 | M168: 0
A169: 140 | B169: 342.5992916 | C169: 181.8181818 | D169: 0 | F169: 0 | G169: 0 | I169: 0 | J169: 0 | L169: 0 | M169: 0
A170: 141 | B170: 423.863379 | C170: 0 | D170: 0 | F170: 0 | G170: 0 | I170: 0 | J170: 0 | L170: 0 | M170: 0
A171: 142 | B171: 500.8879602 | C171: 0 | D171: 0 | F171: 0 | G171: 0 | I171: 0 | J171: 0 | L171: 0 | M171: 0
A172: 143 | B172: 507.2758684 | C172: 45.45454545 | D172: 0 | F172: 0 | G172: 0 | I172: 0 | J172: 0 | L172: 0 | M172: 0
A173: 144 | B173: 172.2885884 | C173: 0 | D173: 0 | F173: 0 | G173: 0 | I173: 0 | J173: 0 | L173: 0 | M173: 0
A174: 145 | B174: 249.3898426 | C174: 0 | D174: 0 | F174: 0 | G174: 0 | I174: 0 | J174: 0 | L174: 0 | M174: 0
A175: 146 | B175: 198.2274423 | C175: 0 | D175: 0 | F175: 0 | G175: 0 | I175: 0 | J175: 0 | L175: 0 | M175: 0
A176: 147 | B176: 262.519548 | C176: 0 | D176: 0 | F176: 0 | G176: 0 | I176: 0 | J176: 0 | L176: 0 | M176: 0
A177: 148 | B177: 117.2346944 | C177: 0 | D177: 0 | F177: 0 | G177: 0 | I177: 0 | J177: 0 | L177: 0 | M177: 0
A178: 149 | B178: 143.6731618 | C178: 0 | D178: 0 | F178: 0 | G178: 0 | I178: 0 | J178: 0 | L178: 0 | M178: 0
A179: 150 | B179: 100.9046531 | C179: 0 | D179: 0 | F179: 0 | G179: 0 | I179: 0 | J179: 0 | L179: 0 | M179: 0
A180: 151 | B180: 148.7726899 | C180: 45.45454545 | D180: 0 | F180: 0 | G180: 0 | I180: 0 | J180: 0 | L180: 0 | M180: 0
A181: 152 | B181: 69.82439944 | C181: 0 | D181: 0 | F181: 0 | G181: 0 | I181: 0 | J181: 0 | L181: 0 | M181: 0
A182: 153 | B182: 116.0988337 | C182: 318.1818182 | D182: 2.979466274 | F182: 0 | G182: 0 | I182: 0 | J182: 0 | L182: 0 | M182: 0
A183: 154 | B183: 66.11646146 | C183: 90.90909091 | D183: 179.7938305 | F183: 0 | G183: 0 | I183: 0 | J183: 0 | L183: 0 | M183: 0
A184: 155 | B184: 431.7658294 | C184: 0 | D184: 290.1864752 | F184: 0 | G184: 0 | I184: 0 | J184: 0 | L184: 0 | M184: 0
A185: 156 | B185: 948.8982327 | C185: 0 | D185: 392.8623323 | F185: 0 | G185: 0 | I185: 0 | J185: 0 | L185: 0 | M185: 0
A186: 157 | B186: 844.3123807 | C186: 0 | D186: 402.9337213 | F186: 0 | G186: 0 | I186: 0 | J186: 0 | L186: 0 | M186: 0
A187: 158 | B187: 993.1082102 | C187: 90.90909091 | D187: 392.581321 | F187: 0 | G187: 0 | I187: 0 | J187: 0 | L187: 0 | M187: 0
A188: 159 | B188: 1090.286845 | C188: 90.90909091 | D188: 265.3888963 | F188: 0 | G188: 0 | I188: 0 | J188: 0 | L188: 0 | M188: 0
A189: 160 | B189: 346.4187955 | C189: 0 | D189: 144.6710514 | F189: 0 | G189: 0 | I189: 0 | J189: 0 | L189: 0 | M189: 0
A190: 161 | B190: 199.644284 | C190: 0 | D190: 1.257768662 | F190: 0 | G190: 0 | I190: 0 | J190: 0 | L190: 0 | M190: 0
A191: 162 | B191: 235.0251984 | C191: 45.45454545 | D191: 0 | F191: 0 | G191: 0 | I191: 0 | J191: 0 | L191: 0 | M191: 0
A192: 163 | B192: 334.2327636 | C192: 90.90909091 | D192: 0 | F192: 0 | G192: 0 | I192: 0 | J192: 0 | L192: 0 | M192: 0
A193: 164 | B193: 500.0890929 | C193: 181.8181818 | D193: 0 | F193: 0 | G193: 0 | I193: 0 | J193: 0 | L193: 0 | M193: 0
A194: 165 | B194: 280.5206911 | C194: 0 | D194: 0 | F194: 0 | G194: 0 | I194: 0 | J194: 0 | L194: 0 | M194: 0
A195: 166 | B195: 238.4085392 | C195: 0 | D195: 0 | F195: 0 | G195: 0 | I195: 0 | J195: 0 | L195: 0 | M195: 0
A196: 167 | B196: 424.2551912 | C196: 45.45454545 | D196: 0 | F196: 0 | G196: 0 | I196: 0 | J196: 0 | L196: 0 | M196: 0
A197: 168 | B197: 262.3259834 | C197: 0 | D197: 0 | F197: 0 | G197: 0 | I197: 0 | J197: 0 | L197: 0 | M197: 0
A198: 169 | B198: 311.2685425 | C198: 0 | D198: 0 | F198: 0 | G198: 0 | I198: 0 | J198: 0 | L198: 0 | M198: 0
A199: 170 | B199: 298.3953929 | C199: 0 | D199: 0 | F199: 0 | G199: 0 | I199: 0 | J199: 0 | L199: 0 | M199: 0
A200: 171 | B200: 196.4249406 | C200: 0 | D200: 0 | F200: 0 | G200: 0 | I200: 0 | J200: 0 | L200: 0 | M200: 0
A201: 172 | B201: 109.9766636 | C201: 0 | D201: 0 | F201: 0 | G201: 0 | I201: 0 | J201: 0 | L201: 0 | M201: 0
A202: 173 | B202: 252.9941114 | C202: 0 | D202: 0 | F202: 0 | G202: 0 | I202: 0 | J202: 0 | L202: 0 | M202: 0
... 4298 more rows

Sheet SEK (hidden)
A1: Modell Stromeffizienzklassen
H2: =SEK!$C$9 -> Klasse A
A3: Allgemeine Einstellungen
A4: Gebäudetyp | B4: Warmwasser-bereitung | C4: Personen | D4: Key | E4: Zeile:
A5: =Config!D5 -> EFH | B5: =ElektrischWarmwasser -> Nein | C5: =AnzahlPersonen -> 2 | D5: =CONCATENATE(A5,"_"&B5,"_"&C5) -> EFH_Nein_2 | E5: =MATCH(D5,D20:D39,0) -> 2 | H5: Einsparpotential
H6: Gewählte Klasse
A7: Vor Einsparungen | H7: bitte wählen | I7: =IF(B9>1,Jahresstromverbrauch-INDEX(E20:K39,E5,B9)+1,0) -> 0
A8: Verbrauch vor Einsparungen | B8: Spalte / Klasse | C8: Klasse (text) | D8: Einsparungen bis zur nächsten Klasse | E8: Verbrauch WW | F8: Verbrauch ohne WW | H8: Klasse A | I8: =MAX(IF($B$9>1,Jahresstromverbrauch-INDEX($E$20:$K$39,$E$5,MATCH($H8,$D$19:$J$19))+1,"0"),0) -> 0 | J8: Herzlichen Glückwunsch, Sie verbrauchen viel weniger Strom als vergleichbare Haushalte. Weiter so!
A9: =Jahresstromverbrauch -> 0 | B9: =MATCH(A9,OFFSET(D19,E5,1):OFFSET(D19,E5,7),1) -> 1 | C9: =INDEX(E19:K19,B9) -> Klasse A | D9: =IF(B9>1,Jahresstromverbrauch-INDEX(E20:K39,E5,B9)+1,"") ->  | E9: =IF(ElektrischWarmwasser="Ja",MROUND(INDEX(L20:R39,E5,B9)*A9,10),0) -> 0 | F9: =A9-E9 -> 0 | H9: Klasse B | I9: 0 | J9: Sie benötigen weniger Strom als vergleichbare Haushalte. Doch auch Sie können noch sparen. Nutzen Sie Ihre Sparmöglichkeiten voll aus!
A10: =INDEX(J8:J14,B9) -> Herzlichen Glückwunsch, Sie verbrauchen viel weniger Strom als vergleichbare Haushalte. Weiter so! | H10: Klasse C | I10: 0 | J10: Ihr Verbrauch liegt im Schnitt bzw. leicht darunter. Einige Möglichkeiten zum Stromsparen werden offensichtlich bislang nicht ausreichend genutzt. Das sollten Sie ändern.
A11: Einsparungen | H11: Klasse D | I11: 0 | J11: Ihr Verbrauch liegt im Schnitt bzw. leicht darunter. Einige Möglichkeiten zum Stromsparen werden offensichtlich bislang nicht ausreichend genutzt. Das sollten Sie ändern.
A12: Einsparungen gesamt | H12: Klasse E | I12: 0 | J12: Sie verbrauchen mehr Strom als vergleichbare Haushalte. Für Sie lohnt es sich besonders, nach Ursachen für Ihren hohen Verbrauch zu suchen und Strom zu sparen.
A13: =Config!B47 -> 0 | H13: Klasse F | I13: 0 | J13: Sie verbrauchen mehr Strom als vergleichbare Haushalte. Für Sie lohnt es sich besonders, nach Ursachen für Ihren hohen Verbrauch zu suchen und Strom zu sparen.
H14: Klasse G | I14: 0 | J14: Ihr Stromverbrauch ist sehr hoch. Sie sollten dringend herausfinden, woran das liegt, und schnell aktiv werden
A15: Nach Einsparungen | H15: Gewählte Klasse
A16: Verbrauch nach Einsparungen | B16: Spalte / Klasse | C16: Klasse (text) | E16: Verbrauch WW | F16: Verbrauch ohne WW | H16: =Stromsparen!G63 -> bitte wählen | I16: =VLOOKUP(H16,H7:I14,2,FALSE) -> 0
A17: =Config!B57 -> 0 | B17: =MATCH(A17,OFFSET(D19,E5,1):OFFSET(D19,E5,7),1) -> 1 | C17: =INDEX(E19:K19,B17) -> Klasse A | E17: =IF(ElektrischWarmwasser="Ja",MROUND(INDEX(L20:R39,E5,B17)*A17,10),0) -> 0 | F17: =A17-E17 -> 0
A19: Gebäudetyp | B19: elektrisch Warmwasser | C19: Personen | D19: Key | E19: Klasse A | F19: Klasse B | G19: Klasse C | H19: Klasse D | I19: Klasse E | J19: Klasse F | K19: Klasse G | L19: Klasse A | M19: Klasse B | N19: Klasse C | O19: Klasse D | P19: Klasse E | Q19: Klasse F | R19: Klasse G
A20: 1-2 Familienhaus/Reihenhaus/Doppelhaushälfte | B20: Nein | C20: 1 | D20: EFH_Nein_1 | E20: 0 | F20: =E42+1 -> 1301 | G20: =F42+1 -> 1701 | H20: 2001 | I20: 2501 | J20: 3001 | K20: 4001
A21: 1-2 Familienhaus/Reihenhaus/Doppelhaushälfte | B21: Nein | C21: 2 | D21: EFH_Nein_2 | E21: 0 | F21: 2101 | G21: 2501 | H21: 3001 | I21: 3201 | J21: 3601 | K21: 4401
A22: 1-2 Familienhaus/Reihenhaus/Doppelhaushälfte | B22: Nein | C22: 3 | D22: EFH_Nein_3 | E22: 0 | F22: 2601 | G22: 3001 | H22: 3501 | I22: 3901 | J22: 4301 | K22: 5201
A23: 1-2 Familienhaus/Reihenhaus/Doppelhaushälfte | B23: Nein | C23: 4 | D23: EFH_Nein_4 | E23: 0 | F23: 2901 | G23: 3501 | H23: 3801 | I23: 4201 | J23: 4901 | K23: 5901
A24: 1-2 Familienhaus/Reihenhaus/Doppelhaushälfte | B24: Nein | C24: 5 | D24: EFH_Nein_5 | E24: 0 | F24: 3501 | G24: 4001 | H24: 4801 | I24: 5401 | J24: 6001 | K24: 7501
A25: 1-2 Familienhaus/Reihenhaus/Doppelhaushälfte | B25: Ja | C25: 1 | D25: EFH_Ja_1 | E25: 0 | F25: 1501 | G25: 2001 | H25: 2501 | I25: 3001 | J25: 3601 | K25: 5001 | L25: =(F25-F20)/(F25-1) -> 0.1333333333 | M25: =(G25-G20)/(G25-1) -> 0.15 | N25: 0.2 | O25: 0.1666666667 | P25: 0.1666666667 | Q25: =(K25-K20)/(K25-1) -> 0.2 | R25: =Q25 -> 0.2
A26: 1-2 Familienhaus/Reihenhaus/Doppelhaushälfte | B26: Ja | C26: 2 | D26: EFH_Ja_2 | E26: 0 | F26: 2501 | G26: 3001 | H26: 3501 | I26: 4001 | J26: 4501 | K26: 5801 | L26: =(F26-F21)/(F26-1) -> 0.16 | M26: =(G26-G21)/(G26-1) -> 0.1666666667 | N26: 0.1428571429 | O26: 0.2 | P26: 0.2 | Q26: 0.2413793103 | R26: =Q26 -> 0.2413793103
A27: 1-2 Familienhaus/Reihenhaus/Doppelhaushälfte | B27: Ja | C27: 3 | D27: EFH_Ja_3 | E27: 0 | F27: 3001 | G27: 3801 | H27: 4201 | I27: 4901 | J27: 5701 | K27: 7301 | L27: 0.1333333333 | M27: =(G27-G22)/(G27-1) -> 0.2105263158 | N27: 0.1666666667 | O27: 0.2040816327 | P27: 0.2456140351 | Q27: 0.2876712329 | R27: 0.2876712329
A28: 1-2 Familienhaus/Reihenhaus/Doppelhaushälfte | B28: Ja | C28: 4 | D28: EFH_Ja_4 | E28: 0 | F28: 3501 | G28: 4001 | H28: 4801 | I28: 5501 | J28: 6301 | K28: 8001 | L28: 0.1714285714 | M28: =(G28-G23)/(G28-1) -> 0.125 | N28: 0.2083333333 | O28: 0.2363636364 | P28: 0.2222222222 | Q28: 0.2625 | R28: 0.2625
A29: 1-2 Familienhaus/Reihenhaus/Doppelhaushälfte | B29: Ja | C29: 5 | D29: EFH_Ja_5 | E29: 0 | F29: 4201 | G29: 5001 | H29: 6001 | I29: 7001 | J29: 8001 | K29: 10901 | L29: 0.1666666667 | M29: =(G29-G24)/(G29-1) -> 0.2 | N29: 0.2 | O29: 0.2285714286 | P29: 0.25 | Q29: 0.3119266055 | R29: 0.3119266055
A30: Wohnung im Mehrfamilienhaus | B30: Nein | C30: 1 | D30: MFH_Nein_1 | E30: 0 | F30: =E52+1 -> 801 | G30: 1001 | H30: 1201 | I30: 1501 | J30: 1801 | K30: 2201
A31: Wohnung im Mehrfamilienhaus | B31: Nein | C31: 2 | D31: MFH_Nein_2 | E31: 0 | F31: 1301 | G31: 1601 | H31: 2001 | I31: 2201 | J31: 2601 | K31: 3101
A32: Wohnung im Mehrfamilienhaus | B32: Nein | C32: 3 | D32: MFH_Nein_3 | E32: 0 | F32: 1701 | G32: 2001 | H32: 2401 | I32: 2801 | J32: 3201 | K32: 3901
A33: Wohnung im Mehrfamilienhaus | B33: Nein | C33: 4 | D33: MFH_Nein_4 | E33: 0 | F33: 1901 | G33: 2401 | H33: 2801 | I33: 3201 | J33: 3701 | K33: 4501
A34: Wohnung im Mehrfamilienhaus | B34: Nein | C34: 5 | D34: MFH_Nein_5 | E34: 0 | F34: 2201 | G34: 2801 | H34: 3501 | I34: 4001 | J34: 4801 | K34: 5701
A35: Wohnung im Mehrfamilienhaus | B35: Ja | C35: 1 | D35: MFH_Ja_1 | E35: 0 | F35: 1201 | G35: 1501 | H35: 1801 | I35: 2001 | J35: 2401 | K35: 3001 | L35: =(F35-F30)/(F35-1) -> 0.3333333333 | M35: =(G35-G30)/(G35-1) -> 0.3333333333 | N35: 0.3333333333 | O35: 0.25 | P35: 0.25 | Q35: 0.2666666667 | R35: =Q35 -> 0.2666666667
A36: Wohnung im Mehrfamilienhaus | B36: Ja | C36: 2 | D36: MFH_Ja_2 | E36: 0 | F36: 2001 | G36: 2501 | H36: 2901 | I36: 3101 | J36: 3501 | K36: 4201 | L36: =(F36-F31)/(F36-1) -> 0.35 | M36: 0.36 | N36: 0.3103448276 | O36: 0.2903225806 | P36: 0.2571428571 | Q36: 0.2619047619 | R36: 0.2619047619
A37: Wohnung im Mehrfamilienhaus | B37: Ja | C37: 3 | D37: MFH_Ja_3 | E37: 0 | F37: 2601 | G37: 3201 | H37: 3701 | I37: 4101 | J37: 4701 | K37: 5601 | L37: =(F37-F32)/(F37-1) -> 0.3461538462 | M37: 0.375 | N37: 0.3513513514 | O37: 0.3170731707 | P37: 0.3191489362 | Q37: 0.3035714286 | R37: 0.3035714286
A38: Wohnung im Mehrfamilienhaus | B38: Ja | C38: 4 | D38: MFH_Ja_4 | E38: 0 | F38: 2801 | G38: 3501 | H38: 4001 | I38: 4601 | J38: 5401 | K38: 6501 | L38: =(F38-F33)/(F38-1) -> 0.3214285714 | M38: 0.3142857143 | N38: 0.3 | O38: 0.3043478261 | P38: 0.3148148148 | Q38: 0.3076923077 | R38: 0.3076923077
A39: Wohnung im Mehrfamilienhaus | B39: Ja | C39: 5 | D39: MFH_Ja_5 | E39: 0 | F39: 3501 | G39: 4401 | H39: 5001 | I39: 6001 | J39: 7001 | K39: 9001 | L39: =(F39-F34)/(F39-1) -> 0.3714285714 | M39: 0.3636363636 | N39: 0.3 | O39: 0.3333333333 | P39: 0.3142857143 | Q39: 0.3666666667 | R39: 0.3666666667
E41: Klasse A | F41: Klasse B | G41: Klasse C | H41: Klasse D | I41: Klasse E | J41: Klasse F | K41: Klasse G
A42: Aktuelle Tabelle des Stromspiegels bitte hier einpflegen ==> | E42: 1300 | F42: 1700 | G42: 2000 | H42: 2500 | I42: 3000 | J42: 4000 | K42: 4000
A43: Die Tabelle oben berechnet hieraus | E43: 2100 | F43: 2500 | G43: 3000 | H43: 3200 | I43: 3600 | J43: 4400 | K43: 4400
A44: automatisch die Werte für die Lookup-Tabelle | E44: 2600 | F44: 3000 | G44: 3500 | H44: 3900 | I44: 4300 | J44: 5200 | K44: 5200
A45: EFH_Nein_1 | E45: 2900 | F45: 3500 | G45: 3800 | H45: 4200 | I45: 4900 | J45: 5900 | K45: 5900
A46: EFH_Nein_2 | E46: 3500 | F46: 4000 | G46: 4800 | H46: 5400 | I46: 6000 | J46: 7500 | K46: 7500
A47: EFH_Nein_3 | E47: 1500 | F47: 2000 | G47: 2500 | H47: 3000 | I47: 3600 | J47: 5000 | K47: 5000
A48: EFH_Nein_4 | E48: 2500 | F48: 3000 | G48: 3500 | H48: 4000 | I48: 4500 | J48: 5800 | K48: 5800
A49: EFH_Nein_5 | E49: 3000 | F49: 3800 | G49: 4200 | H49: 4900 | I49: 5700 | J49: 7300 | K49: 7300
A50: EFH_Ja_1 | E50: 3500 | F50: 4000 | G50: 4800 | H50: 5500 | I50: 6300 | J50: 8000 | K50: 8000
A51: EFH_Ja_2 | E51: 4200 | F51: 5000 | G51: 6000 | H51: 7000 | I51: 8000 | J51: 10900 | K51: 10900
A52: EFH_Ja_3 | E52: 800 | F52: 1000 | G52: 1200 | H52: 1500 | I52: 1800 | J52: 2200 | K52: 2200
A53: EFH_Ja_4 | E53: 1300 | F53: 1600 | G53: 2000 | H53: 2200 | I53: 2600 | J53: 3100 | K53: 3100
A54: EFH_Ja_5 | E54: 1700 | F54: 2000 | G54: 2400 | H54: 2800 | I54: 3200 | J54: 3900 | K54: 3900
A55: MFH_Nein_1 | E55: 1900 | F55: 2400 | G55: 2800 | H55: 3200 | I55: 3700 | J55: 4500 | K55: 4500
A56: MFH_Nein_2 | E56: 2200 | F56: 2800 | G56: 3500 | H56: 4000 | I56: 4800 | J56: 5700 | K56: 5700
A57: MFH_Nein_3 | E57: 1200 | F57: 1500 | G57: 1800 | H57: 2000 | I57: 2400 | J57: 3000 | K57: 3000
A58: MFH_Nein_4 | E58: 2000 | F58: 2500 | G58: 2900 | H58: 3100 | I58: 3500 | J58: 4200 | K58: 4200
A59: MFH_Nein_5 | E59: 2600 | F59: 3200 | G59: 3700 | H59: 4100 | I59: 4700 | J59: 5600 | K59: 5600
A60: MFH_Ja_1 | E60: 2800 | F60: 3500 | G60: 4000 | H60: 4600 | I60: 5400 | J60: 6500 | K60: 6500
A61: MFH_Ja_2 | E61: 3500 | F61: 4400 | G61: 5000 | H61: 6000 | I61: 7000 | J61: 9000 | K61: 9000
A62: MFH_Ja_3
A63: MFH_Ja_4
A64: MFH_Ja_5
N68: RGB Colors
C70: Zeile | E70: Klasse A | F70: Klasse B | G70: Klasse C | H70: Klasse D | I70: Klasse E | J70: Klasse F | K70: Klasse G
C71: 1 | D71: =IF($E$5=C71,"==>","") ->  | E71: 1700 | F71: 2200 | G71: 2700 | H71: 3100 | I71: 3700 | J71: 4500 | K71: > 4.500
C72: 2 | D72: =IF($E$5=C72,"==>","") -> ==> | E72: 2500 | F72: 3000 | G72: 3500 | H72: 4000 | I72: 4400 | J72: 5000 | K72: > 5.000 | N72: 11 | O72: 28 | P72: 243
C73: 3 | E73: 3300 | F73: 4000 | G73: 4300 | H73: 5000 | I73: 5500 | J73: 6500 | K73: > 6.500 | N73: 121 | O73: 161 | P73: 199
C74: 4 | E74: 3600 | F74: 4300 | G74: 5000 | H74: 5600 | I74: 6200 | J74: 7300 | K74: > 7.300 | N74: 49 | O74: 81 | P74: 18
C75: 5 | E75: 4500 | F75: 5400 | G75: 6000 | H75: 7000 | I75: 8000 | J75: 9700 | K75: > 9.700
C76: 6 | E76: 1400 | F76: 1900 | G76: 2200 | H76: 2600 | I76: 3100 | J76: 3700 | K76: > 3.700 | N76: 250 | O76: 227 | P76: 220 | Q76: 155
C77: 7 | E77: 2200 | F77: 2500 | G77: 3000 | H77: 3200 | I77: 3600 | J77: 4000 | K77: > 4.000 | N77: 166 | O77: 131 | P77: 39 | Q77: 17
C78: 8 | E78: 2700 | F78: 3200 | G78: 3500 | H78: 4000 | I78: 4200 | J78: 4800 | K78: > 4.800 | N78: 49 | O78: 41 | P78: 41 | Q78: 20
C79: 9 | E79: 3000 | F79: 3600 | G79: 4000 | H79: 4400 | I79: 4900 | J79: 5500 | K79: > 5.500
C80: 10 | E80: 3500 | F80: 4200 | G80: 4800 | H80: 5300 | I80: 6000 | J80: 7000 | K80: > 7.000 | N80: 198 | O80: 208 | P80: 251 | Q80: 254
C81: 11 | E81: 1200 | F81: 1500 | G81: 1800 | H81: 2000 | I81: 2400 | J81: 3000 | K81: > 3.000 | N81: 219 | O81: 229 | P81: 242 | Q81: 235
C82: 12 | E82: 2000 | F82: 2500 | G82: 2900 | H82: 3200 | I82: 3500 | J82: 4000 | K82: > 4.000 | N82: 198 | O82: 211 | P82: 210 | Q82: 209
C83: 13 | E83: 2800 | F83: 3500 | G83: 3900 | H83: 4200 | I83: 4800 | J83: 5400 | K83: > 5.400
C84: 14 | E84: 3200 | F84: 4000 | G84: 4500 | H84: 5000 | I84: 5500 | J84: 6500 | K84: > 6.500 | N84: 250 | O84: 248 | P84: 232
C85: 15 | E85: 3800 | F85: 4600 | G85: 5600 | H85: 6100 | I85: 7000 | J85: 8000 | K85: > 8.000 | N85: 225 | O85: 209 | P85: 196
C86: 16 | E86: 800 | F86: 1000 | G86: 1200 | H86: 1500 | I86: 1700 | J86: 2000 | K86: > 2.000 | N86: 201 | O86: 193 | P86: 181
C87: 17 | E87: 1400 | F87: 1700 | G87: 2000 | H87: 2200 | I87: 2500 | J87: 2900 | K87: > 2.900
C88: 18 | E88: 1800 | F88: 2200 | G88: 2500 | H88: 3000 | I88: 3300 | J88: 3700 | K88: > 3.700
C89: 19 | E89: 2000 | F89: 2400 | G89: 2800 | H89: 3300 | I89: 3700 | J89: 4000 | K89: > 4.000
C90: 20 | E90: 2300 | F90: 3000 | G90: 3500 | H90: 4200 | I90: 4600 | J90: 5300 | K90: > 5.300
G91: 2500
E94: 131 | F94: 158 | G94: 194 | H94: 226 | I94: 234 | J94: 234 | K94: 232
E95: 188 | F95: 200 | G95: 218 | H95: 217 | I95: 158 | J95: 115 | K95: 67
E96: 49 | F96: 90 | G96: 146 | H96: 176 | I96: 103 | J96: 59 | K96: 35

Sheet WB (hidden)
K1: Szenario 1 (ohne Einsparungen) | N1: Szenario 2 (mit Einsparungen) | Q1: Referenzszenario (mit oder ohne Bestands-PV)
C2: Parameter
Q3: PV Bestandsanlage | R3: =PVExist -> Nein
C4: Quelle Entwicklung Bezugspreis | D4: =Config!D6 -> User defined | K4: Warmwasser | L4: =ElektrischWarmwasser -> Nein | N4: Warmwasser | O4: =ElektrischWarmwasser -> Nein | Q4: Warmwasser | R4: =ElektrischWarmwasser -> Nein
C5: Bezugspreis | D5: =Config!D7 -> User defined | L5: kWh / Jahr | M5: Skalierung | O5: kWh / Jahr | P5: Skalierung | R5: kWh / Jahr | S5: Skalierung
C6: Elektrisch Warmwasser | D6: =ElektrischWarmwasser -> Nein | K6: Last ohne WW | L6: =Daten!F6 -> 0 | M6: =Daten!G6 -> 0 | N6: Last ohne WW | O6: =Daten!I6 -> 0 | P6: =Daten!J6 -> 0 | Q6: Last ohne WW | R6: =Daten!L6 -> 0 | S6: =Daten!M6 -> 0
C7: Gebäudetyp | D7: =GeTyp -> EFH | K7: Warmwasser | L7: =Daten!F7 -> 0 | M7: =Daten!G7 -> 0 | N7: Warmwasser | O7: =Daten!I7 -> 0 | P7: =Daten!J7 -> 0 | Q7: Warmwasser | R7: =Daten!L7 -> 0 | S7: =Daten!M7 -> 0
C8: Quelle Entwicklung Bezugspreis | D8: =cQEBP -> 2 | K8: PV-Produktion | L8: =Daten!F8 -> 0 | M8: =Daten!G8 -> 0 | N8: PV-Produktion | O8: =Daten!I8 -> 0 | P8: =Daten!J8 -> 0 | Q8: PV-Produktion | R8: =Daten!L8 -> 0 | S8: =Daten!M8 -> 0
C9: Bezugspreis | D9: =cBP -> 2
C10: Bereits PV Anlage vorhanden | D10: =PVExist -> Nein | K10: Jahresstromverbrauch | L10: ='S1'!Q8 -> 0 | N10: Jahresstromverbrauch | O10: ='S2'!Q8 -> 0 | Q10: Jahresstromverbrauch | R10: =SR!Q8 -> 0
K11: PV-Produktion | L11: ='S1'!Q9 -> 0 | N11: PV-Produktion | O11: ='S2'!Q9 -> 0 | Q11: PV-Produktion | R11: =SR!Q9 -> 0
C12: Bezugspreis | D12: =Bezugspreis -> 28 | K12: Eigenverbrauch (kWh) | L12: ='S1'!Q10 -> 0 | N12: Eigenverbrauch (kWh) | O12: ='S2'!Q10 -> 0 | Q12: Eigenverbrauch (kWh) | R12: =SR!Q10 -> 0
C13: Preissteigerungsrate | D13: =Preissteigerungsrate -> 0.02 | K13: Bezug (kWh) | L13: ='S1'!Q11 -> 0 | N13: Bezug (kWh) | O13: ='S2'!Q11 -> 0 | Q13: Bezug (kWh) | R13: =SR!Q11 -> 0
C14: Einspeisevergütung (Cent / kWh) | D14: =Einspeiseverguetung -> 12.2 | K14: Einspeisung (kWh) | L14: ='S1'!Q12 -> 0 | N14: Einspeisung (kWh) | O14: ='S2'!Q12 -> 0 | Q14: Einspeisung (kWh) | R14: =SR!Q12 -> 0
C15: Auslauf der EEG Einspeisevergütung | D15: =YEAR(FeedInTariffEndDate) -> 2038 | K15: Verluste (Speicherung - Entnahme) | L15: ='S1'!Q13 -> 0 | N15: Verluste (Speicherung - Entnahme) | O15: ='S2'!Q13 -> 0 | Q15: Verluste (Speicherung - Entnahme) | R15: =SR!Q13 -> 0
K16: Volllastzyklen | L16: ='S1'!Q14 -> - | N16: Volllastzyklen | O16: ='S2'!Q14 -> - | Q16: Volllastzyklen | R16: =SR!Q14 -> -
C17: Größe Batteriespeicher
G18: Eigenverbrauchszuschuss
G19: EigenverbrauchszuschussBis30 | J19: =EigenverbrauchszuschussBis30 -> 0 | L19: =MIN(0.3*L11,L12) -> 0 | M19: =($J$19*L19+$J$20*L20)/100 -> 0 | O19: =MIN(0.3*O11,O12) -> 0 | P19: =($J$19*O19+$J$20*O20)/100 -> 0 | R19: =MIN(0.3*R11,R12) -> 0 | S19: =($J$19*R19+$J$20*R20)/100 -> 0
G20: EigenverbrauchszuschussAb30 | J20: =EigenverbrauchszuschussAb30 -> 0 | L20: =MAX(L12-0.3*L11,0) -> 0 | O20: =MAX(O12-0.3*O11,0) -> 0 | R20: =MAX(R12-0.3*R11,0) -> 0
C29: Allgemein | D29: 0 | E29: 1 | F29: 2 | G29: 3 | H29: 4 | I29: 5 | J29: 6 | K29: 7 | L29: 8 | M29: 9 | N29: 10 | O29: 11 | P29: 12 | Q29: 13 | R29: 14 | S29: 15 | T29: 16 | U29: 17 | V29: 18 | W29: 19 | X29: 20
D30: =BasisJahr -> 2018 | E30: =E29+$D$30 -> 2019 | F30: 2020 | G30: 2021 | H30: 2022 | I30: 2023 | J30: 2024 | K30: 2025 | L30: 2026 | M30: 2027 | N30: 2028 | O30: =O29+$D$30 -> 2029 | P30: 2030 | Q30: 2031 | R30: 2032 | S30: 2033 | T30: 2034 | U30: 2035 | V30: 2036 | W30: 2037 | X30: 2038
C31: Allgemeiner Inflationsfaktor | D31: =(1+Inflationsrate)^D29 -> 1 | E31: 1.01 | F31: 1.0201 | G31: 1.030301 | H31: 1.04060401 | I31: 1.05101005 | J31: 1.061520151 | K31: 1.072135352 | L31: 1.082856706 | M31: 1.093685273 | N31: 1.104622125 | O31: 1.115668347 | P31: 1.12682503 | Q31: 1.13809328 | R31: 1.149474213 | S31: 1.160968955 | T31: 1.172578645 | U31: 1.184304431 | V31: 1.196147476 | W31: 1.20810895 | X31: 1.22019004
C32: Bezugspreis | D32: =-VLOOKUP(D29,Config!$AB$9:$AE$29,4,FALSE)/100 -> -0.28 | E32: =-VLOOKUP(E29,Config!$AB$9:$AE$29,4,FALSE)/100 -> -0.2856 | F32: =-VLOOKUP(F29,Config!$AB$9:$AE$29,4,FALSE)/100 -> -0.291312 | G32: =-VLOOKUP(G29,Config!$AB$9:$AE$29,4,FALSE)/100 -> -0.29713824 | H32: =-VLOOKUP(H29,Config!$AB$9:$AE$29,4,FALSE)/100 -> -0.3030810048 | I32: =-VLOOKUP(I29,Config!$AB$9:$AE$29,4,FALSE)/100 -> -0.3091426249 | J32: =-VLOOKUP(J29,Config!$AB$9:$AE$29,4,FALSE)/100 -> -0.3153254774 | K32: =-VLOOKUP(K29,Config!$AB$9:$AE$29,4,FALSE)/100 -> -0.3216319869 | L32: =-VLOOKUP(L29,Config!$AB$9:$AE$29,4,FALSE)/100 -> -0.3280646267 | M32: =-VLOOKUP(M29,Config!$AB$9:$AE$29,4,FALSE)/100 -> -0.3346259192 | N32: =-VLOOKUP(N29,Config!$AB$9:$AE$29,4,FALSE)/100 -> -0.3413184376 | O32: =-VLOOKUP(O29,Config!$AB$9:$AE$29,4,FALSE)/100 -> -0.3481448064 | P32: =-VLOOKUP(P29,Config!$AB$9:$AE$29,4,FALSE)/100 -> -0.3551077025 | Q32: =-VLOOKUP(Q29,Config!$AB$9:$AE$29,4,FALSE)/100 -> -0.3622098565 | R32: =-VLOOKUP(R29,Config!$AB$9:$AE$29,4,FALSE)/100 -> -0.3694540537 | S32: =-VLOOKUP(S29,Config!$AB$9:$AE$29,4,FALSE)/100 -> -0.3768431347 | T32: =-VLOOKUP(T29,Config!$AB$9:$AE$29,4,FALSE)/100 -> -0.3843799974 | U32: =-VLOOKUP(U29,Config!$AB$9:$AE$29,4,FALSE)/100 -> -0.3920675974 | V32: =-VLOOKUP(V29,Config!$AB$9:$AE$29,4,FALSE)/100 -> -0.3999089493 | W32: =-VLOOKUP(W29,Config!$AB$9:$AE$29,4,FALSE)/100 -> -0.4079071283 | X32: =-VLOOKUP(X29,Config!$AB$9:$AE$29,4,FALSE)/100 -> -0.4160652709
C33: EEG-Einspeisevergütung | E33: =IF(E30<$D$15,"Ja","Nein") -> Ja | F33: Ja | G33: Ja | H33: Ja | I33: Ja | J33: Ja | K33: Ja | L33: Ja | M33: Ja | N33: Ja | O33: Ja | P33: Ja | Q33: Ja | R33: Ja | S33: Ja | T33: Ja | U33: Ja | V33: Ja | W33: Ja | X33: Nein
C34: Einspeisevergütung | E34: =IF(E33="Ja",Einspeiseverguetung/100,EinspeiseverguetungNachAblaufEEG/100) -> 0.122 | F34: 0.122 | G34: 0.122 | H34: 0.122 | I34: 0.122 | J34: 0.122 | K34: 0.122 | L34: 0.122 | M34: 0.122 | N34: 0.122 | O34: 0.122 | P34: 0.122 | Q34: 0.122 | R34: 0.122 | S34: 0.122 | T34: 0.122 | U34: 0.122 | V34: 0.122 | W34: 0.122 | X34: 0.03
Y36: Summe
C37: Referenzszenario (mit oder ohne Bestands-PV)
C38: Kosten PV (€) | D38: 0 | E38: 0 | F38: 0 | G38: 0 | H38: 0 | I38: 0 | J38: 0 | K38: 0 | L38: 0 | M38: 0 | N38: 0 | O38: 0 | P38: 0 | Q38: 0 | R38: 0 | S38: 0 | T38: 0 | U38: 0 | V38: 0 | W38: 0 | X38: 0
C39: Kosten Batterie (€) | D39: 0 | E39: 0 | F39: 0 | G39: 0 | H39: 0 | I39: 0 | J39: 0 | K39: 0 | L39: 0 | M39: 0 | N39: 0 | O39: 0 | P39: 0 | Q39: 0 | R39: 0 | S39: 0 | T39: 0 | U39: 0 | V39: 0 | W39: 0 | X39: 0
A40: ohne EigenVerbrauch | C40: Kosten für Einsparungen (€) | D40: 0 | E40: 0 | F40: 0 | G40: 0 | H40: 0 | I40: 0 | J40: 0 | K40: 0 | L40: 0 | M40: 0 | N40: 0 | O40: 0 | P40: 0 | Q40: 0 | R40: 0 | S40: 0 | T40: 0 | U40: 0 | V40: 0 | W40: 0 | X40: 0
A41: =IF(PVNurNetzeinspeisung="Ja",Jahresstromverbrauch,R13) -> 0 | B41: =R13 -> 0 | C41: Strombezug (€) | D41: 0 | E41: =IF(AND(PVNurNetzeinspeisung="Ja",E$33="Ja"),$A$41*E$32,$B$41*E$32) -> 0 | F41: 0 | G41: 0 | H41: 0 | I41: 0 | J41: 0 | K41: 0 | L41: 0 | M41: 0 | N41: 0 | O41: 0 | P41: 0 | Q41: 0 | R41: 0 | S41: 0 | T41: 0 | U41: 0 | V41: 0 | W41: 0 | X41: 0 | Y41: =SUM(E41:X41) -> 0
A42: =IF(PVNurNetzeinspeisung="Ja",0,IF($M$19<>0,$R$12,0)) -> 0 | B42: =IF($M$19<>0,$R$12,0) -> 0 | C42: Eigenverbrauchszuschuss | E42: =IF(PVNurNetzeinspeisung="Ja",0,IF(E$33="Ja",$S$19,0)) -> 0 | F42: 0 | G42: 0 | H42: 0 | I42: 0 | J42: 0 | K42: 0 | L42: 0 | M42: 0 | N42: 0 | O42: 0 | P42: 0 | Q42: 0 | R42: 0 | S42: 0 | T42: 0 | U42: 0 | V42: 0 | W42: 0 | X42: 0 | Y42: =SUM(E42:X42) -> 0
A43: =IF(PVNurNetzeinspeisung="Ja",Solarproduktion,R14) -> 0 | B43: =R14 -> 0 | C43: Einspeisung (€) | D43: 0 | E43: =IF(AND(PVNurNetzeinspeisung="Ja",E$33="Ja"),$A$43*E$34,$B$43*E$34) -> 0 | F43: 0 | G43: 0 | H43: 0 | I43: 0 | J43: 0 | K43: 0 | L43: 0 | M43: 0 | N43: 0 | O43: 0 | P43: 0 | Q43: 0 | R43: 0 | S43: 0 | T43: 0 | U43: 0 | V43: 0 | W43: 0 | X43: 0 | Y43: =SUM(E43:X43) -> 0 | Z43: =SUM(Y41:Y43) -> 0
C44: Summe Einnahmen-Ausgaben | D44: =SUM(D38:D43) -> 0 | E44: =SUM(E38:E43) -> 0 | F44: 0 | G44: 0 | H44: 0 | I44: 0 | J44: 0 | K44: 0 | L44: 0 | M44: 0 | N44: 0 | O44: 0 | P44: =SUM(P38:P43) -> 0 | Q44: =SUM(Q38:Q43) -> 0 | R44: =SUM(R38:R43) -> 0 | S44: =SUM(S38:S43) -> 0 | T44: =SUM(T38:T43) -> 0 | U44: =SUM(U38:U43) -> 0 | V44: =SUM(V38:V43) -> 0 | W44: =SUM(W38:W43) -> 0 | X44: =SUM(X38:X43) -> 0 | Y44: =SUM(D44:X44) -> 0
C47: Szenario 1 (ohne Einsparungen)
B48: =PVAnlage -> 0 | C48: Kosten PV (€) | D48: =-PVSystemkosten -> 0 | E48: =-PVSystemkosten*PVWartung*E31 -> 0 | F48: 0 | G48: 0 | H48: 0 | I48: 0 | J48: 0 | K48: 0 | L48: 0 | M48: 0 | N48: 0 | O48: 0 | P48: 0 | Q48: 0 | R48: 0 | S48: 0 | T48: 0 | U48: 0 | V48: 0 | W48: 0 | X48: 0 | Y48: =SUM(D48:X48) -> 0
B49: =Batteriespeicher -> 0 | C49: Kosten Batterie (€) | D49: =-BatterieGesamtkosten -> 0 | E49: =$D$49*BatterieWartung*E31 -> 0 | F49: 0 | G49: 0 | H49: 0 | I49: 0 | J49: 0 | K49: 0 | L49: 0 | M49: 0 | N49: 0 | O49: 0 | P49: 0 | Q49: 0 | R49: 0 | S49: 0 | T49: 0 | U49: 0 | V49: 0 | W49: 0 | X49: 0 | Y49: =SUM(D49:X49) -> 0
B50: 0 | C50: Kosten für Einsparungen (€) | D50: 0 | E50: 0 | F50: 0 | G50: 0 | H50: 0 | I50: 0 | J50: 0 | K50: 0 | L50: 0 | M50: 0 | N50: 0 | O50: 0 | P50: 0 | Q50: 0 | R50: 0 | S50: 0 | T50: 0 | U50: 0 | V50: 0 | W50: 0 | X50: 0 | Y50: 0
B51: =L13 -> 0 | C51: Strombezug (€) | D51: 0 | E51: =$B$51*E$32 -> 0 | F51: =$B$51*F32 -> 0 | G51: 0 | H51: 0 | I51: 0 | J51: 0 | K51: 0 | L51: 0 | M51: 0 | N51: 0 | O51: =$B$51*O32 -> 0 | P51: 0 | Q51: 0 | R51: 0 | S51: 0 | T51: 0 | U51: 0 | V51: 0 | W51: 0 | X51: 0 | Y51: 0
B52: =IF($M$19<>0,$L$12,0) -> 0 | C52: Eigenverbrauchszuschuss | D52: 0 | E52: =IF(E$33="Ja",$M$19,0) -> 0 | F52: 0 | G52: 0 | H52: 0 | I52: 0 | J52: 0 | K52: 0 | L52: 0 | M52: 0 | N52: 0 | O52: 0 | P52: 0 | Q52: 0 | R52: 0 | S52: 0 | T52: 0 | U52: 0 | V52: 0 | W52: 0 | X52: 0 | Y52: 0
B53: =L14 -> 0 | C53: Einspeisung (€) | D53: 0 | E53: =$B$53*E$34 -> 0 | F53: =$B$53*F34 -> 0 | G53: 0 | H53: 0 | I53: 0 | J53: 0 | K53: 0 | L53: 0 | M53: 0 | N53: 0 | O53: =$B$53*O34 -> 0 | P53: 0 | Q53: 0 | R53: 0 | S53: 0 | T53: 0 | U53: 0 | V53: 0 | W53: 0 | X53: 0 | Y53: 0 | Z53: =SUM(Y48:Y53) -> 0
C54: Summe Einnahmen-Ausgaben | D54: =SUM(D48:D53) -> 0 | E54: 0 | F54: 0 | G54: 0 | H54: 0 | I54: 0 | J54: 0 | K54: 0 | L54: 0 | M54: 0 | N54: 0 | O54: 0 | P54: 0 | Q54: 0 | R54: 0 | S54: 0 | T54: 0 | U54: 0 | V54: 0 | W54: 0 | X54: 0 | Y54: 0
B55: =Y55 -> 0 | C55: Vorteil gegenüber Referenzszenario (nominal) | D55: =(D54-D44) -> 0 | E55: 0 | F55: 0 | G55: 0 | H55: 0 | I55: 0 | J55: 0 | K55: 0 | L55: 0 | M55: 0 | N55: 0 | O55: 0 | P55: 0 | Q55: 0 | R55: 0 | S55: 0 | T55: 0 | U55: 0 | V55: 0 | W55: 0 | X55: 0 | Y55: 0
B56: =Y56 -> 0 | C56: Vorteil gegenüber Referenzszenario (inflationsbereinigt) | D56: =(D54-D44)/D31 -> 0 | E56: 0 | F56: 0 | G56: 0 | H56: 0 | I56: 0 | J56: 0 | K56: 0 | L56: 0 | M56: 0 | N56: 0 | O56: 0 | P56: 0 | Q56: 0 | R56: 0 | S56: 0 | T56: 0 | U56: 0 | V56: 0 | W56: 0 | X56: 0 | Y56: 0
C57: IRR (gegenüber Referenz) | D57: =IRR(D56:X56) -> 
C59: IRR mit ersten Rückflüssen im Jahr 0 | D59: =(D56+1/2*E56) -> 0 | E59: =(E56/2+1/2*F56) -> 0 | F59: =(F56/2+1/2*G56) -> 0 | G59: 0 | H59: 0 | I59: 0 | J59: 0 | K59: 0 | L59: 0 | M59: 0 | N59: 0 | O59: 0 | P59: 0 | Q59: 0 | R59: 0 | S59: 0 | T59: 0 | U59: 0 | V59: 0 | W59: 0 | X59: =(X56/2) -> 0 | Y59: =SUM(D59:X59) -> 0
C60: IRR (gegenüber Referenz) | D60: =IFERROR(IRR(D59:X59),"kein IRR") -> kein IRR | E60: Szenario1_IRR
C62: Szenario 2 (mit Einsparungen)
B63: =PVAnlage -> 0 | C63: Kosten PV (€) | D63: =-PVSystemkosten -> 0 | E63: =-PVSystemkosten*PVWartung*E31 -> 0 | F63: 0 | G63: 0 | H63: 0 | I63: 0 | J63: 0 | K63: 0 | L63: 0 | M63: 0 | N63: 0 | O63: 0 | P63: 0 | Q63: 0 | R63: 0 | S63: 0 | T63: 0 | U63: 0 | V63: 0 | W63: 0 | X63: 0 | Y63: =SUM(D63:X63) -> 0
B64: =Batteriespeicher -> 0 | C64: Kosten Batterie (€) | D64: =-BatterieGesamtkosten -> 0 | E64: =$D$64*BatterieWartung*E31 -> 0 | F64: 0 | G64: 0 | H64: 0 | I64: 0 | J64: 0 | K64: 0 | L64: 0 | M64: 0 | N64: 0 | O64: 0 | P64: 0 | Q64: 0 | R64: 0 | S64: 0 | T64: 0 | U64: 0 | V64: 0 | W64: 0 | X64: 0 | Y64: 0
B65: =Einsparungen -> 0 | C65: Kosten für Einsparungen (€) | D65: =-KostenEinsparungen -> 0 | E65: 0 | F65: 0 | G65: 0 | H65: 0 | I65: 0 | J65: 0 | K65: 0 | L65: 0 | M65: 0 | N65: 0 | O65: 0 | P65: 0 | Q65: 0 | R65: 0 | S65: 0 | T65: 0 | U65: 0 | V65: 0 | W65: 0 | X65: 0 | Y65: 0
B66: =O13 -> 0 | C66: Strombezug (€) | D66: 0 | E66: =$B$66*E$32 -> 0 | F66: 0 | G66: 0 | H66: 0 | I66: 0 | J66: 0 | K66: 0 | L66: 0 | M66: 0 | N66: 0 | O66: 0 | P66: 0 | Q66: 0 | R66: 0 | S66: 0 | T66: 0 | U66: 0 | V66: 0 | W66: 0 | X66: 0 | Y66: 0
B67: =IF($M$19<>0,$O$12,0) -> 0 | C67: Eigenverbrauchszuschuss | D67: 0 | E67: =IF(E$33="Ja",$P$19,0) -> 0 | F67: 0 | G67: 0 | H67: 0 | I67: 0 | J67: 0 | K67: 0 | L67: 0 | M67: 0 | N67: 0 | O67: 0 | P67: 0 | Q67: 0 | R67: 0 | S67: 0 | T67: 0 | U67: 0 | V67: 0 | W67: 0 | X67: 0 | Y67: 0
B68: =O14 -> 0 | C68: Einspeisung (€) | D68: 0 | E68: =$B$68*E$34 -> 0 | F68: 0 | G68: 0 | H68: 0 | I68: 0 | J68: 0 | K68: 0 | L68: 0 | M68: 0 | N68: 0 | O68: 0 | P68: 0 | Q68: 0 | R68: 0 | S68: 0 | T68: 0 | U68: 0 | V68: 0 | W68: 0 | X68: 0 | Y68: 0
C69: Summe Einnahmen-Ausgaben | D69: =SUM(D63:D68) -> 0 | E69: =SUM(E63:E68) -> 0 | F69: 0 | G69: 0 | H69: 0 | I69: 0 | J69: 0 | K69: 0 | L69: 0 | M69: 0 | N69: 0 | O69: 0 | P69: 0 | Q69: 0 | R69: 0 | S69: 0 | T69: 0 | U69: 0 | V69: 0 | W69: 0 | X69: 0 | Y69: 0
B70: =Y70 -> 0 | C70: Vorteil gegenüber Referenzszenario (nominal) | D70: =(D69-D44) -> 0 | E70: 0 | F70: 0 | G70: 0 | H70: 0 | I70: 0 | J70: 0 | K70: 0 | L70: 0 | M70: 0 | N70: 0 | O70: 0 | P70: 0 | Q70: 0 | R70: 0 | S70: 0 | T70: 0 | U70: 0 | V70: 0 | W70: 0 | X70: 0 | Y70: 0
B71: =Y71 -> 0 | C71: Vorteil gegenüber Referenzszenario (inflationsbereinigt) | D71: =(D70)/D$31 -> 0 | E71: 0 | F71: 0 | G71: 0 | H71: 0 | I71: 0 | J71: 0 | K71: 0 | L71: 0 | M71: 0 | N71: 0 | O71: 0 | P71: 0 | Q71: 0 | R71: 0 | S71: 0 | T71: 0 | U71: 0 | V71: 0 | W71: 0 | X71: 0 | Y71: =SUM(D71:X71) -> 0
B72: =Y72 -> 0 | C72: Vorteil gegenüber Szenario 1: | D72: =(D69-D54) -> 0 | E72: =(E69-E54) -> 0 | F72: =(F69-F54) -> 0 | G72: =(G69-G54) -> 0 | H72: 0 | I72: 0 | J72: 0 | K72: 0 | L72: 0 | M72: 0 | N72: 0 | O72: 0 | P72: 0 | Q72: 0 | R72: 0 | S72: 0 | T72: 0 | U72: 0 | V72: 0 | W72: 0 | X72: 0 | Y72: 0
B73: =Y73 -> 0 | C73: Vorteil gegenüber Szenario 1: (inflationsbereinigt) | D73: =(D72)/D$31 -> 0 | E73: 0 | F73: 0 | G73: 0 | H73: 0 | I73: 0 | J73: 0 | K73: 0 | L73: 0 | M73: 0 | N73: 0 | O73: 0 | P73: 0 | Q73: 0 | R73: 0 | S73: 0 | T73: 0 | U73: 0 | V73: 0 | W73: 0 | X73: 0 | Y73: 0
C74: IRR (gegenüber Referenz) | D74: =IRR(D71:X71) -> 
C75: IRR (gegenüber Szenario 1) | D75: =IRR(D73:X73) -> 
C77: IRR mit ersten Rückflüssen im Jahr 0
C78: Vorteil gegenüber Referenzszenario | D78: =(D71+1/2*E71) -> 0 | E78: =(E71/2+1/2*F71) -> 0 | F78: 0 | G78: 0 | H78: 0 | I78: 0 | J78: 0 | K78: 0 | L78: 0 | M78: 0 | N78: 0 | O78: 0 | P78: 0 | Q78: 0 | R78: 0 | S78: 0 | T78: 0 | U78: 0 | V78: 0 | W78: 0 | X78: =(X71/2) -> 0 | Y78: =SUM(D78:X78) -> 0
C79: Vorteil gegenüber Szenario 1: | D79: =(D73+1/2*E73) -> 0 | E79: =(E73/2+1/2*F73) -> 0 | F79: =(F73/2+1/2*G73) -> 0 | G79: 0 | H79: 0 | I79: 0 | J79: 0 | K79: 0 | L79: 0 | M79: 0 | N79: 0 | O79: 0 | P79: 0 | Q79: 0 | R79: 0 | S79: 0 | T79: 0 | U79: 0 | V79: 0 | W79: 0 | X79: =(X73/2) -> 0 | Y79: 0
C80: IRR (gegenüber Referenz) | D80: =IFERROR(IRR(D78:X78),"kein IRR") -> kein IRR | E80: Szenario2_IRR
C81: IRR (gegenüber Szenario 1) | D81: =IRR(D79:X79) ->  | E81: Szenario2_VergleichS1_IRR
C85: Ergebnisausgabe | E85: Referenzszenario beschreibt die jetzige Situatioin ohne PV-Anlage oder mit einer PV-Bestandsanlage (xxxkWp)
C87: Referenzszenario
C88: Bereits PV Anlage vorhanden | D88: =PVExist -> Nein
C89: Größe PV-Anlage | D89: =ROUND(PVAnlage,1)& " kWp" -> 0 kWp
C90: Batteriespeicher | D90: =ROUND(Batteriespeicher,1)& " kWh" -> 0 kWh
C91: Referenzszenario Titel Teil 1 | D91: Referenzszenario beschreibt die jetzige Situatioin
C92: Referenzszenario Titel Teil 2 | D92: =IF(PVExist="Ja", "mit einer PV-Bestandsanlage ("&ROUND(PVAnlage,1)&" kWp)","ohne PV-Anlage")&IF(AND(PVNurNetzeinspeisung="Ja",PVExist="Ja")," und ausschließlich Netzeinspeisung","") -> ohne PV-Anlage | H92: =IF(AND(PVNurNetzeinspeisung="Ja",PVExist="Ja")," und ausschließlich Netzeinspeisung","") -> 
C94: Szenario Titel
D95: Allgemein | E95: PV Bestand | F95: neu PV
C96: Szenario 1 Titel Teil 1 | D96: Szenario 1 (
C97: Szenario 2 Titel Teil 1 | D97: Szenario 2 (
C98: Szenario 1&2 Titel Teil 2 | E98: ="PV-Bestandsanlage ("&D89&") und Batteriespeicher ("&D90&") " -> PV-Bestandsanlage (0 kWp) und Batteriespeicher (0 kWh) | F98: ="PV-Investition ("&D89&") und Batteriespeicher ("&D90&") " -> PV-Investition (0 kWp) und Batteriespeicher (0 kWh)
C99: Szenario 1 Titel Teil 3 | D99: ohne Stromsparmaßnahmen)
C100: Szenario 2 Titel Teil 3 | D100: ="mit Stromsparmaßnahmen ("&ROUND(Einsparungen,0)&" kWh))" -> mit Stromsparmaßnahmen (0 kWh))
C101: Szenario 1 Titel | D101: =D96&IF(PVExist="Ja",E98,F98)&D99 -> Szenario 1 (PV-Investition (0 kWp) und Batteriespeicher (0 kWh) ohne Stromsparmaßnahmen)
C102: Szenario 1 Titel | D102: =D97&IF(PVExist="Ja",E98,F98)&D100 -> Szenario 2 (PV-Investition (0 kWp) und Batteriespeicher (0 kWh) mit Stromsparmaßnahmen (0 kWh))
C103: Referenzszenario Titel | D103: Referenzszenario | E103: =" mit PV-Bestandsanlage ("&D89&") ohne Batteriespeicher" -> mit PV-Bestandsanlage (0 kWp) ohne Batteriespeicher | F103: =" ohne PV-Anlage und ohne Batteriespeicher" -> ohne PV-Anlage und ohne Batteriespeicher | G103: =D103&IF(PVExist="Ja",E103,F103) -> Referenzszenario ohne PV-Anlage und ohne Batteriespeicher
C106: Szenario 1 (ohne Einsparungen)
E108: Allgemein | F108: IRR>0 | G108: IRR<=0 | H108: Ergebnis
C109: IRR (gegenüber Referenz) | D109: =Szenario1_IRR -> kein IRR | F109: Reale Verzinsung des eingesetzten Kapitals (um Inflationsrate korrigiert). | G109: Die Investitionen sind nicht wirtschaftlich. | H109: =IF(D109>=0,F109,G109) -> Reale Verzinsung des eingesetzten Kapitals (um Inflationsrate korrigiert).
C110: Vorteil gegenüber Referenzszenario (nominal) | D110: =Y55 -> 0 | E110: Unter nominaler Betrachtung ergibt sich ein | F110: =" Gewinn von "&ROUND(D110,0)&" Euro." -> Gewinn von 0 Euro. | G110: =" Verlust von "&ROUND(D110,0)&" Euro." -> Verlust von 0 Euro. | H110: =E110&IF(D110>=0,F110,G110) -> Unter nominaler Betrachtung ergibt sich ein Gewinn von 0 Euro.
C111: Vorteil gegenüber Referenzszenario (inflationsbereinigt) | D111: =Y56 -> 0 | E111: Inflationsbereinigt ergibt sich ein | F111: =" Gewinn von "&ROUND(D111,0)&" Euro." -> Gewinn von 0 Euro. | G111: =" Verlust von "&ROUND(D111,0)&" Euro." -> Verlust von 0 Euro. | H111: =E111&IF(D111>=0,F111,G111) -> Inflationsbereinigt ergibt sich ein Gewinn von 0 Euro.
C113: Szenario 2 (mit Einsparungen)
E115: Allgemein | F115: IRR>0 | G115: IRR<=0 | H115: Ergebnis
C116: IRR (gegenüber Referenz) | D116: =Szenario2_IRR -> kein IRR | F116: Reale Verzinsung des eingesetzten Kapitals (um Inflationsrate korrigiert). | G116: Die Investitionen sind nicht wirtschaftlich. | H116: =IF(D116>=0,F116,G116) -> Reale Verzinsung des eingesetzten Kapitals (um Inflationsrate korrigiert).
C117: Vorteil gegenüber Referenzszenario (nominal) | D117: =B70 -> 0 | E117: Unter nominaler Betrachtung ergibt sich ein | F117: =" Gewinn von "&ROUND(D117,0)&" Euro." -> Gewinn von 0 Euro. | G117: =" Verlust von "&ROUND(D117,0)&" Euro." -> Verlust von 0 Euro. | H117: =E117&IF(D117>=0,F117,G117) -> Unter nominaler Betrachtung ergibt sich ein Gewinn von 0 Euro.
C118: Vorteil gegenüber Referenzszenario (inflationsbereinigt) | D118: =B71 -> 0 | E118: Inflationsbereinigt ergibt sich ein | F118: =" Gewinn von "&ROUND(D118,0)&" Euro." -> Gewinn von 0 Euro. | G118: =" Verlust von "&ROUND(D118,0)&" Euro." -> Verlust von 0 Euro. | H118: =E118&IF(D118>=0,F118,G118) -> Inflationsbereinigt ergibt sich ein Gewinn von 0 Euro.
C120: Hinweis Referenzszenario
C121: für PVNurNetzeinspeisung = Ja
C122: =IF(PVNurNetzeinspeisung="Ja","Bei der gewählten PV-Bestandsanlage mit ausschließlicher Netzeinspeisung wird bis zum Ende der EEG-Vergütung die gesamte PV-Erzeugung eingespeist. Danach wird eine Umstellung auf Eigenstromnutzung angenommen (Strombezug: "&ROUND(R13,0) & " kWh/a, Stromeinspeisung: " & ROUND(R14,0) &" kWh/a).","") -> 

Sheet S1 (hidden)
A1: Modellierung
D2: Datensatz | E2: Lastkurve (W) | F2: PV-Produktion (W) | I2: Solarspeicher Periodenanfang | J2: Eigenverbrauch (W) | K2: Bezug (W) | L2: Speicherung / Entnahme (W) | M2: Einspeisung (W) | N2: Speicherstand Periodenende
A3: Model Eingang
A8: Model Ausgang | E8: Summe | F8: Summe | J8: Summe | K8: Summe | L8: Summe | M8: Summe | P8: Jahresstromverbrauch | Q8: =E14 -> 0
E9: =SUM(E17:E8776) -> 0 | F9: =SUM(F17:F8776) -> 0 | I9: =AVERAGE(I17:I8776) -> 0 | J9: =SUM(J17:J8776) -> 0 | K9: =SUM(K17:K8776) -> 0 | L9: =SUM(L17:L8776) -> 0 | M9: =SUM(M17:M8776) -> 0 | P9: PV-Produktion | Q9: =F14 -> 0
J10: Wh | K10: Wh | L10: Wh | M10: Wh | P10: Eigenverbrauch (kWh) | Q10: =J14 -> 0
L11: Summe Speicherung | P11: Bezug (kWh) | Q11: =K14 -> 0
L12: =(SUMIF(L17:L8776,">0"))/1000 -> 0 | P12: Einspeisung (kWh) | Q12: =M14 -> 0
E13: Jahresstromverbrauch | F13: PV-Produktion | J13: Eigenverbrauch (kWh) | K13: Bezug (kWh) | L13: Verluste (Speicherung - Entnahme) | M13: Einspeisung (kWh) | P13: Verluste (Speicherung - Entnahme) | Q13: =L14 -> 0
E14: =E9/1000 -> 0 | F14: =F9/1000 -> 0 | J14: =J9/1000 -> 0 | K14: =K9/1000 -> 0 | L14: =L9/1000 -> 0 | M14: =M9/1000 -> 0 | P14: Volllastzyklen | Q14: =IFERROR(L12/(BatteriespeicherWh/1000),"-") -> - | R14: 20 Jahre | S14: =Q14*20 -> 
P15: Direktverbrauch | Q15: =Q10-Q16 -> 0
A16: Berechnungen | B16: Stunde | C16: Tag | D16: Monat | E16: Lastkurve (W) | F16: PV-Produktion | I16: Daten | J16: Daten | K16: Daten | L16: Daten | M16: Daten | N16: Daten | P16: Eigenverbrauch aus Batterie | Q16: =L12-L14 -> 0 | U16: Solar-produktion | V16: Verbrauch | X16: Solar-Einspeisung | Y16: Netzbezug | Z16: Solar-Eigenverbrauch | AA16: Eigenverbrauchsquote (rechte Achse) | AB16: Autarkiegrad | AC16: Einspeisequote | AD16: Verluste (%)
B17: 1 | C17: =CEILING(B17/24,1) -> 1 | D17: =MONTH(C17) -> 1 | E17: =Daten!F30 -> 0 | F17: =Daten!G30 -> 0 | I17: 0 | J17: =MIN(E17,F17+I17) -> 0 | K17: =E17-J17 -> 0 | L17: =MIN((F17-J17),BatteriespeicherWh-I17) -> 0 | M17: =F17-(J17+L17) -> 0 | N17: =IF(L17>0,I17+L17*Wirkungsgrad,I17+L17) -> 0 | P17: Einspeicherung (kWh) | Q17: =L12 -> 0 | T17: 1 | U17: =SUMIF(D:D,T17,F:F)/1000 -> 0 | V17: =SUMIF(D:D,T17,E:E)/1000 -> 0 | W17: Jan | X17: =SUMIF(D:D,T17,M:M)/1000 -> 0 | Y17: =SUMIF(D:D,T17,K:K)/1000 -> 0 | Z17: =SUMIF(D:D,T17,J:J)/1000 -> 0 | AA17: =Z17/U17 ->  | AB17: =Z17/V17 ->  | AC17: =X17/U17 ->  | AD17: =(U17-X17-Z17)/U17 -> 
B18: 2 | C18: =CEILING(B18/24,1) -> 1 | D18: =MONTH(C18) -> 1 | E18: =Daten!F31 -> 0 | F18: =Daten!G31 -> 0 | I18: =N17 -> 0 | J18: =MIN(E18,F18+I18) -> 0 | K18: =E18-J18 -> 0 | L18: =MIN((F18-J18),BatteriespeicherWh-I18) -> 0 | M18: =F18-(J18+L18) -> 0 | N18: 0 | P18: Direktverbrauchsquote | Q18: =Q15/Q9 ->  | T18: 2 | U18: 0 | V18: 0 | W18: Feb | X18: 0 | Y18: 0 | Z18: 0
B19: 3 | C19: 1 | D19: 1 | E19: =Daten!F32 -> 0 | F19: =Daten!G32 -> 0 | I19: =N18 -> 0 | J19: 0 | K19: 0 | L19: 0 | M19: 0 | N19: 0 | P19: Eigenverbrauchsquote über Batterie | Q19: =Q16/Q9 ->  | T19: 3 | U19: 0 | V19: 0 | W19: Mrz | X19: 0 | Y19: 0 | Z19: 0
B20: 4 | C20: 1 | D20: 1 | E20: =Daten!F33 -> 0 | F20: =Daten!G33 -> 0 | I20: =N19 -> 0 | J20: 0 | K20: 0 | L20: 0 | M20: 0 | N20: 0 | P20: Eigenverbrauchsquote | Q20: =Q10/Q9 ->  | T20: 4 | U20: 0 | V20: 0 | W20: Apr | X20: 0 | Y20: 0 | Z20: 0
B21: 5 | C21: 1 | D21: 1 | E21: =Daten!F34 -> 0 | F21: =Daten!G34 -> 0 | I21: 0 | J21: 0 | K21: 0 | L21: 0 | M21: 0 | N21: 0 | P21: Einspeisequote | Q21: =Q12/Q9 ->  | T21: 5 | U21: 0 | V21: 0 | W21: Mai | X21: 0 | Y21: 0 | Z21: 0
B22: 6 | C22: 1 | D22: 1 | E22: =Daten!F35 -> 0 | F22: =Daten!G35 -> 0 | I22: 0 | J22: 0 | K22: 0 | L22: 0 | M22: 0 | N22: 0 | P22: Verluste Batterie | Q22: =Q13/Q9 ->  | T22: 6 | U22: 0 | V22: 0 | W22: Jun | X22: 0 | Y22: 0 | Z22: 0
B23: 7 | C23: 1 | D23: 1 | E23: =Daten!F36 -> 0 | F23: =Daten!G36 -> 0 | I23: 0 | J23: 0 | K23: 0 | L23: 0 | M23: 0 | N23: 0 | P23: Autarkiegrad | Q23: =Q10/Q8 ->  | T23: 7 | U23: 0 | V23: 0 | W23: Jul | X23: 0 | Y23: 0 | Z23: 0
B24: 8 | C24: 1 | D24: 1 | E24: =Daten!F37 -> 0 | F24: =Daten!G37 -> 0 | I24: 0 | J24: 0 | K24: 0 | L24: 0 | M24: 0 | N24: 0 | T24: 8 | U24: 0 | V24: 0 | W24: Aug | X24: 0 | Y24: 0 | Z24: 0
B25: 9 | C25: 1 | D25: 1 | E25: =Daten!F38 -> 0 | F25: =Daten!G38 -> 0 | I25: 0 | J25: 0 | K25: 0 | L25: 0 | M25: 0 | N25: 0 | T25: 9 | U25: 0 | V25: 0 | W25: Sep | X25: 0 | Y25: 0 | Z25: 0
B26: 10 | C26: 1 | D26: 1 | E26: =Daten!F39 -> 0 | F26: =Daten!G39 -> 0 | I26: 0 | J26: 0 | K26: 0 | L26: 0 | M26: 0 | N26: 0 | T26: 10 | U26: 0 | V26: 0 | W26: Okt | X26: 0 | Y26: 0 | Z26: 0
B27: 11 | C27: 1 | D27: 1 | E27: =Daten!F40 -> 0 | F27: =Daten!G40 -> 0 | I27: 0 | J27: 0 | K27: 0 | L27: 0 | M27: 0 | N27: 0 | T27: 11 | U27: 0 | V27: 0 | W27: Nov | X27: 0 | Y27: 0 | Z27: 0
B28: 12 | C28: 1 | D28: 1 | E28: =Daten!F41 -> 0 | F28: =Daten!G41 -> 0 | I28: 0 | J28: 0 | K28: 0 | L28: 0 | M28: 0 | N28: 0 | P28: Verluste Batterie | Q28: =Q13/Q9 ->  | T28: 12 | U28: 0 | V28: 0 | W28: Dez | X28: 0 | Y28: 0 | Z28: 0
B29: 13 | C29: 1 | D29: 1 | E29: =Daten!F42 -> 0 | F29: =Daten!G42 -> 0 | I29: 0 | J29: 0 | K29: 0 | L29: 0 | M29: 0 | N29: 0 | U29: Solar-produktion | V29: Verbrauch | X29: Solar-Einspeisung | Y29: Netzbezug | Z29: Solar-Eigenverbrauch | AA29: Eigenverbrauchsquote | AB29: Autarkiegrad | AC29: Einspeisequote | AD29: Verluste (%)
B30: 14 | C30: 1 | D30: 1 | E30: =Daten!F43 -> 0 | F30: =Daten!G43 -> 0 | I30: 0 | J30: 0 | K30: 0 | L30: 0 | M30: 0 | N30: 0 | T30: Jahr | U30: =SUM(U17:U28) -> 0 | V30: =SUM(V17:V28) -> 0 | X30: =SUM(X17:X28) -> 0 | Y30: =SUM(Y17:Y28) -> 0 | Z30: =SUM(Z17:Z28) -> 0 | AA30: =Z30/U30 ->  | AB30: =Z30/V30 ->  | AC30: =X30/U30 ->  | AD30: =(U30-X30-Z30)/U30 -> 
B31: 15 | C31: 1 | D31: 1 | E31: =Daten!F44 -> 0 | F31: =Daten!G44 -> 0 | I31: 0 | J31: 0 | K31: 0 | L31: 0 | M31: 0 | N31: 0
B32: 16 | C32: 1 | D32: 1 | E32: =Daten!F45 -> 0 | F32: =Daten!G45 -> 0 | I32: 0 | J32: 0 | K32: 0 | L32: 0 | M32: 0 | N32: 0
B33: 17 | C33: 1 | D33: 1 | E33: =Daten!F46 -> 0 | F33: =Daten!G46 -> 0 | I33: 0 | J33: 0 | K33: 0 | L33: 0 | M33: 0 | N33: 0
B34: 18 | C34: 1 | D34: 1 | E34: =Daten!F47 -> 0 | F34: =Daten!G47 -> 0 | I34: 0 | J34: 0 | K34: 0 | L34: 0 | M34: 0 | N34: 0
B35: 19 | C35: 1 | D35: 1 | E35: =Daten!F48 -> 0 | F35: =Daten!G48 -> 0 | I35: 0 | J35: 0 | K35: 0 | L35: 0 | M35: 0 | N35: 0
B36: 20 | C36: 1 | D36: 1 | E36: =Daten!F49 -> 0 | F36: =Daten!G49 -> 0 | I36: 0 | J36: 0 | K36: 0 | L36: 0 | M36: 0 | N36: 0
B37: 21 | C37: 1 | D37: 1 | E37: =Daten!F50 -> 0 | F37: =Daten!G50 -> 0 | I37: 0 | J37: 0 | K37: 0 | L37: 0 | M37: 0 | N37: 0
B38: 22 | C38: 1 | D38: 1 | E38: =Daten!F51 -> 0 | F38: =Daten!G51 -> 0 | I38: 0 | J38: 0 | K38: 0 | L38: 0 | M38: 0 | N38: 0
B39: 23 | C39: 1 | D39: 1 | E39: =Daten!F52 -> 0 | F39: =Daten!G52 -> 0 | I39: 0 | J39: 0 | K39: 0 | L39: 0 | M39: 0 | N39: 0
B40: 24 | C40: 1 | D40: 1 | E40: =Daten!F53 -> 0 | F40: =Daten!G53 -> 0 | I40: 0 | J40: 0 | K40: 0 | L40: 0 | M40: 0 | N40: 0
B41: 25 | C41: 2 | D41: 1 | E41: =Daten!F54 -> 0 | F41: =Daten!G54 -> 0 | I41: 0 | J41: 0 | K41: 0 | L41: 0 | M41: 0 | N41: 0
B42: 26 | C42: 2 | D42: 1 | E42: =Daten!F55 -> 0 | F42: =Daten!G55 -> 0 | I42: 0 | J42: 0 | K42: 0 | L42: 0 | M42: 0 | N42: 0
B43: 27 | C43: 2 | D43: 1 | E43: =Daten!F56 -> 0 | F43: =Daten!G56 -> 0 | I43: 0 | J43: 0 | K43: 0 | L43: 0 | M43: 0 | N43: 0
B44: 28 | C44: 2 | D44: 1 | E44: =Daten!F57 -> 0 | F44: =Daten!G57 -> 0 | I44: 0 | J44: 0 | K44: 0 | L44: 0 | M44: 0 | N44: 0
B45: 29 | C45: 2 | D45: 1 | E45: =Daten!F58 -> 0 | F45: =Daten!G58 -> 0 | I45: 0 | J45: 0 | K45: 0 | L45: 0 | M45: 0 | N45: 0
B46: 30 | C46: 2 | D46: 1 | E46: =Daten!F59 -> 0 | F46: =Daten!G59 -> 0 | I46: 0 | J46: 0 | K46: 0 | L46: 0 | M46: 0 | N46: 0
B47: 31 | C47: 2 | D47: 1 | E47: =Daten!F60 -> 0 | F47: =Daten!G60 -> 0 | I47: 0 | J47: 0 | K47: 0 | L47: 0 | M47: 0 | N47: 0
B48: 32 | C48: 2 | D48: 1 | E48: =Daten!F61 -> 0 | F48: =Daten!G61 -> 0 | I48: 0 | J48: 0 | K48: 0 | L48: 0 | M48: 0 | N48: 0
B49: 33 | C49: 2 | D49: 1 | E49: =Daten!F62 -> 0 | F49: =Daten!G62 -> 0 | I49: 0 | J49: 0 | K49: 0 | L49: 0 | M49: 0 | N49: 0
B50: 34 | C50: 2 | D50: 1 | E50: =Daten!F63 -> 0 | F50: =Daten!G63 -> 0 | I50: 0 | J50: 0 | K50: 0 | L50: 0 | M50: 0 | N50: 0
B51: 35 | C51: 2 | D51: 1 | E51: =Daten!F64 -> 0 | F51: =Daten!G64 -> 0 | I51: 0 | J51: 0 | K51: 0 | L51: 0 | M51: 0 | N51: 0
B52: 36 | C52: 2 | D52: 1 | E52: =Daten!F65 -> 0 | F52: =Daten!G65 -> 0 | I52: 0 | J52: 0 | K52: 0 | L52: 0 | M52: 0 | N52: 0
B53: 37 | C53: 2 | D53: 1 | E53: =Daten!F66 -> 0 | F53: =Daten!G66 -> 0 | I53: 0 | J53: 0 | K53: 0 | L53: 0 | M53: 0 | N53: 0
B54: 38 | C54: 2 | D54: 1 | E54: =Daten!F67 -> 0 | F54: =Daten!G67 -> 0 | I54: 0 | J54: 0 | K54: 0 | L54: 0 | M54: 0 | N54: 0
B55: 39 | C55: 2 | D55: 1 | E55: =Daten!F68 -> 0 | F55: =Daten!G68 -> 0 | I55: 0 | J55: 0 | K55: 0 | L55: 0 | M55: 0 | N55: 0
B56: 40 | C56: 2 | D56: 1 | E56: =Daten!F69 -> 0 | F56: =Daten!G69 -> 0 | I56: 0 | J56: 0 | K56: 0 | L56: 0 | M56: 0 | N56: 0
B57: 41 | C57: 2 | D57: 1 | E57: =Daten!F70 -> 0 | F57: =Daten!G70 -> 0 | I57: 0 | J57: 0 | K57: 0 | L57: 0 | M57: 0 | N57: 0
B58: 42 | C58: 2 | D58: 1 | E58: =Daten!F71 -> 0 | F58: =Daten!G71 -> 0 | I58: 0 | J58: 0 | K58: 0 | L58: 0 | M58: 0 | N58: 0
B59: 43 | C59: 2 | D59: 1 | E59: =Daten!F72 -> 0 | F59: =Daten!G72 -> 0 | I59: 0 | J59: 0 | K59: 0 | L59: 0 | M59: 0 | N59: 0
B60: 44 | C60: 2 | D60: 1 | E60: =Daten!F73 -> 0 | F60: =Daten!G73 -> 0 | I60: 0 | J60: 0 | K60: 0 | L60: 0 | M60: 0 | N60: 0
B61: 45 | C61: 2 | D61: 1 | E61: =Daten!F74 -> 0 | F61: =Daten!G74 -> 0 | I61: 0 | J61: 0 | K61: 0 | L61: 0 | M61: 0 | N61: 0
B62: 46 | C62: 2 | D62: 1 | E62: =Daten!F75 -> 0 | F62: =Daten!G75 -> 0 | I62: 0 | J62: 0 | K62: 0 | L62: 0 | M62: 0 | N62: 0
B63: 47 | C63: 2 | D63: 1 | E63: =Daten!F76 -> 0 | F63: =Daten!G76 -> 0 | I63: 0 | J63: 0 | K63: 0 | L63: 0 | M63: 0 | N63: 0
B64: 48 | C64: 2 | D64: 1 | E64: =Daten!F77 -> 0 | F64: =Daten!G77 -> 0 | I64: 0 | J64: 0 | K64: 0 | L64: 0 | M64: 0 | N64: 0
B65: 49 | C65: 3 | D65: 1 | E65: =Daten!F78 -> 0 | F65: =Daten!G78 -> 0 | I65: 0 | J65: 0 | K65: 0 | L65: 0 | M65: 0 | N65: 0
B66: 50 | C66: 3 | D66: 1 | E66: =Daten!F79 -> 0 | F66: =Daten!G79 -> 0 | I66: 0 | J66: 0 | K66: 0 | L66: 0 | M66: 0 | N66: 0
B67: 51 | C67: 3 | D67: 1 | E67: =Daten!F80 -> 0 | F67: =Daten!G80 -> 0 | I67: 0 | J67: 0 | K67: 0 | L67: 0 | M67: 0 | N67: 0
B68: 52 | C68: 3 | D68: 1 | E68: =Daten!F81 -> 0 | F68: =Daten!G81 -> 0 | I68: 0 | J68: 0 | K68: 0 | L68: 0 | M68: 0 | N68: 0
B69: 53 | C69: 3 | D69: 1 | E69: =Daten!F82 -> 0 | F69: =Daten!G82 -> 0 | I69: 0 | J69: 0 | K69: 0 | L69: 0 | M69: 0 | N69: 0
B70: 54 | C70: 3 | D70: 1 | E70: =Daten!F83 -> 0 | F70: =Daten!G83 -> 0 | I70: 0 | J70: 0 | K70: 0 | L70: 0 | M70: 0 | N70: 0
B71: 55 | C71: 3 | D71: 1 | E71: =Daten!F84 -> 0 | F71: =Daten!G84 -> 0 | I71: 0 | J71: 0 | K71: 0 | L71: 0 | M71: 0 | N71: 0
B72: 56 | C72: 3 | D72: 1 | E72: =Daten!F85 -> 0 | F72: =Daten!G85 -> 0 | I72: 0 | J72: 0 | K72: 0 | L72: 0 | M72: 0 | N72: 0
B73: 57 | C73: 3 | D73: 1 | E73: =Daten!F86 -> 0 | F73: =Daten!G86 -> 0 | I73: 0 | J73: 0 | K73: 0 | L73: 0 | M73: 0 | N73: 0
B74: 58 | C74: 3 | D74: 1 | E74: =Daten!F87 -> 0 | F74: =Daten!G87 -> 0 | I74: 0 | J74: 0 | K74: 0 | L74: 0 | M74: 0 | N74: 0
B75: 59 | C75: 3 | D75: 1 | E75: =Daten!F88 -> 0 | F75: =Daten!G88 -> 0 | I75: 0 | J75: 0 | K75: 0 | L75: 0 | M75: 0 | N75: 0
B76: 60 | C76: 3 | D76: 1 | E76: =Daten!F89 -> 0 | F76: =Daten!G89 -> 0 | I76: 0 | J76: 0 | K76: 0 | L76: 0 | M76: 0 | N76: 0
B77: 61 | C77: 3 | D77: 1 | E77: =Daten!F90 -> 0 | F77: =Daten!G90 -> 0 | I77: 0 | J77: 0 | K77: 0 | L77: 0 | M77: 0 | N77: 0
B78: 62 | C78: 3 | D78: 1 | E78: =Daten!F91 -> 0 | F78: =Daten!G91 -> 0 | I78: 0 | J78: 0 | K78: 0 | L78: 0 | M78: 0 | N78: 0
B79: 63 | C79: 3 | D79: 1 | E79: =Daten!F92 -> 0 | F79: =Daten!G92 -> 0 | I79: 0 | J79: 0 | K79: 0 | L79: 0 | M79: 0 | N79: 0
B80: 64 | C80: 3 | D80: 1 | E80: =Daten!F93 -> 0 | F80: =Daten!G93 -> 0 | I80: 0 | J80: 0 | K80: 0 | L80: 0 | M80: 0 | N80: 0
B81: 65 | C81: 3 | D81: 1 | E81: =Daten!F94 -> 0 | F81: =Daten!G94 -> 0 | I81: 0 | J81: =MIN(E81,F81+I81) -> 0 | K81: =E81-J81 -> 0 | L81: =MIN((F81-J81),BatteriespeicherWh-I81) -> 0 | M81: 0 | N81: =IF(L81>0,I81+L81*Wirkungsgrad,I81+L81) -> 0
B82: 66 | C82: =CEILING(B82/24,1) -> 3 | D82: =MONTH(C82) -> 1 | E82: =Daten!F95 -> 0 | F82: =Daten!G95 -> 0 | I82: =N81 -> 0 | J82: 0 | K82: 0 | L82: 0 | M82: =F82-(J82+L82) -> 0 | N82: 0
B83: 67 | C83: 3 | D83: 1 | E83: =Daten!F96 -> 0 | F83: =Daten!G96 -> 0 | I83: 0 | J83: 0 | K83: 0 | L83: 0 | M83: 0 | N83: 0
B84: 68 | C84: 3 | D84: 1 | E84: =Daten!F97 -> 0 | F84: =Daten!G97 -> 0 | I84: 0 | J84: 0 | K84: 0 | L84: 0 | M84: 0 | N84: 0
B85: 69 | C85: 3 | D85: 1 | E85: =Daten!F98 -> 0 | F85: =Daten!G98 -> 0 | I85: 0 | J85: 0 | K85: 0 | L85: 0 | M85: 0 | N85: 0
B86: 70 | C86: 3 | D86: 1 | E86: =Daten!F99 -> 0 | F86: =Daten!G99 -> 0 | I86: 0 | J86: 0 | K86: 0 | L86: 0 | M86: 0 | N86: 0
B87: 71 | C87: 3 | D87: 1 | E87: =Daten!F100 -> 0 | F87: =Daten!G100 -> 0 | I87: 0 | J87: 0 | K87: 0 | L87: 0 | M87: 0 | N87: 0
B88: 72 | C88: 3 | D88: 1 | E88: =Daten!F101 -> 0 | F88: =Daten!G101 -> 0 | I88: 0 | J88: 0 | K88: 0 | L88: 0 | M88: 0 | N88: 0
B89: 73 | C89: 4 | D89: 1 | E89: =Daten!F102 -> 0 | F89: =Daten!G102 -> 0 | I89: 0 | J89: 0 | K89: 0 | L89: 0 | M89: 0 | N89: 0
B90: 74 | C90: 4 | D90: 1 | E90: =Daten!F103 -> 0 | F90: =Daten!G103 -> 0 | I90: 0 | J90: 0 | K90: 0 | L90: 0 | M90: 0 | N90: 0
B91: 75 | C91: 4 | D91: 1 | E91: =Daten!F104 -> 0 | F91: =Daten!G104 -> 0 | I91: 0 | J91: 0 | K91: 0 | L91: 0 | M91: 0 | N91: 0
B92: 76 | C92: 4 | D92: 1 | E92: =Daten!F105 -> 0 | F92: =Daten!G105 -> 0 | I92: 0 | J92: 0 | K92: 0 | L92: 0 | M92: 0 | N92: 0
B93: 77 | C93: 4 | D93: 1 | E93: =Daten!F106 -> 0 | F93: =Daten!G106 -> 0 | I93: 0 | J93: 0 | K93: 0 | L93: 0 | M93: 0 | N93: 0
B94: 78 | C94: 4 | D94: 1 | E94: =Daten!F107 -> 0 | F94: =Daten!G107 -> 0 | I94: 0 | J94: 0 | K94: 0 | L94: 0 | M94: 0 | N94: 0
B95: 79 | C95: 4 | D95: 1 | E95: =Daten!F108 -> 0 | F95: =Daten!G108 -> 0 | I95: 0 | J95: 0 | K95: 0 | L95: 0 | M95: 0 | N95: 0
B96: 80 | C96: 4 | D96: 1 | E96: =Daten!F109 -> 0 | F96: =Daten!G109 -> 0 | I96: 0 | J96: 0 | K96: 0 | L96: 0 | M96: 0 | N96: 0
B97: 81 | C97: 4 | D97: 1 | E97: =Daten!F110 -> 0 | F97: =Daten!G110 -> 0 | I97: 0 | J97: 0 | K97: 0 | L97: 0 | M97: 0 | N97: 0
B98: 82 | C98: 4 | D98: 1 | E98: =Daten!F111 -> 0 | F98: =Daten!G111 -> 0 | I98: 0 | J98: 0 | K98: 0 | L98: 0 | M98: 0 | N98: 0
B99: 83 | C99: 4 | D99: 1 | E99: =Daten!F112 -> 0 | F99: =Daten!G112 -> 0 | I99: 0 | J99: 0 | K99: 0 | L99: 0 | M99: 0 | N99: 0
B100: 84 | C100: 4 | D100: 1 | E100: =Daten!F113 -> 0 | F100: =Daten!G113 -> 0 | I100: 0 | J100: 0 | K100: 0 | L100: 0 | M100: 0 | N100: 0
B101: 85 | C101: 4 | D101: 1 | E101: =Daten!F114 -> 0 | F101: =Daten!G114 -> 0 | I101: 0 | J101: 0 | K101: 0 | L101: 0 | M101: 0 | N101: 0
B102: 86 | C102: 4 | D102: 1 | E102: =Daten!F115 -> 0 | F102: =Daten!G115 -> 0 | I102: 0 | J102: 0 | K102: 0 | L102: 0 | M102: 0 | N102: 0
B103: 87 | C103: 4 | D103: 1 | E103: =Daten!F116 -> 0 | F103: =Daten!G116 -> 0 | I103: 0 | J103: 0 | K103: 0 | L103: 0 | M103: 0 | N103: 0
B104: 88 | C104: 4 | D104: 1 | E104: =Daten!F117 -> 0 | F104: =Daten!G117 -> 0 | I104: 0 | J104: 0 | K104: 0 | L104: 0 | M104: 0 | N104: 0
B105: 89 | C105: 4 | D105: 1 | E105: =Daten!F118 -> 0 | F105: =Daten!G118 -> 0 | I105: 0 | J105: 0 | K105: 0 | L105: 0 | M105: 0 | N105: 0
B106: 90 | C106: 4 | D106: 1 | E106: =Daten!F119 -> 0 | F106: =Daten!G119 -> 0 | I106: 0 | J106: 0 | K106: 0 | L106: 0 | M106: 0 | N106: 0
B107: 91 | C107: 4 | D107: 1 | E107: =Daten!F120 -> 0 | F107: =Daten!G120 -> 0 | I107: 0 | J107: 0 | K107: 0 | L107: 0 | M107: 0 | N107: 0
B108: 92 | C108: 4 | D108: 1 | E108: =Daten!F121 -> 0 | F108: =Daten!G121 -> 0 | I108: 0 | J108: 0 | K108: 0 | L108: 0 | M108: 0 | N108: 0
B109: 93 | C109: 4 | D109: 1 | E109: =Daten!F122 -> 0 | F109: =Daten!G122 -> 0 | I109: 0 | J109: 0 | K109: 0 | L109: 0 | M109: 0 | N109: 0
B110: 94 | C110: 4 | D110: 1 | E110: =Daten!F123 -> 0 | F110: =Daten!G123 -> 0 | I110: 0 | J110: 0 | K110: 0 | L110: 0 | M110: 0 | N110: 0
B111: 95 | C111: 4 | D111: 1 | E111: =Daten!F124 -> 0 | F111: =Daten!G124 -> 0 | I111: 0 | J111: 0 | K111: 0 | L111: 0 | M111: 0 | N111: 0
B112: 96 | C112: 4 | D112: 1 | E112: =Daten!F125 -> 0 | F112: =Daten!G125 -> 0 | I112: 0 | J112: 0 | K112: 0 | L112: 0 | M112: 0 | N112: 0
B113: 97 | C113: 5 | D113: 1 | E113: =Daten!F126 -> 0 | F113: =Daten!G126 -> 0 | I113: 0 | J113: 0 | K113: 0 | L113: 0 | M113: 0 | N113: 0
B114: 98 | C114: 5 | D114: 1 | E114: =Daten!F127 -> 0 | F114: =Daten!G127 -> 0 | I114: 0 | J114: 0 | K114: 0 | L114: 0 | M114: 0 | N114: 0
B115: 99 | C115: 5 | D115: 1 | E115: =Daten!F128 -> 0 | F115: =Daten!G128 -> 0 | I115: 0 | J115: 0 | K115: 0 | L115: 0 | M115: 0 | N115: 0
B116: 100 | C116: 5 | D116: 1 | E116: =Daten!F129 -> 0 | F116: =Daten!G129 -> 0 | I116: 0 | J116: 0 | K116: 0 | L116: 0 | M116: 0 | N116: 0
B117: 101 | C117: 5 | D117: 1 | E117: =Daten!F130 -> 0 | F117: =Daten!G130 -> 0 | I117: 0 | J117: 0 | K117: 0 | L117: 0 | M117: 0 | N117: 0
B118: 102 | C118: 5 | D118: 1 | E118: =Daten!F131 -> 0 | F118: =Daten!G131 -> 0 | I118: 0 | J118: 0 | K118: 0 | L118: 0 | M118: 0 | N118: 0
B119: 103 | C119: 5 | D119: 1 | E119: =Daten!F132 -> 0 | F119: =Daten!G132 -> 0 | I119: 0 | J119: 0 | K119: 0 | L119: 0 | M119: 0 | N119: 0
B120: 104 | C120: 5 | D120: 1 | E120: =Daten!F133 -> 0 | F120: =Daten!G133 -> 0 | I120: 0 | J120: 0 | K120: 0 | L120: 0 | M120: 0 | N120: 0
B121: 105 | C121: 5 | D121: 1 | E121: =Daten!F134 -> 0 | F121: =Daten!G134 -> 0 | I121: 0 | J121: 0 | K121: 0 | L121: 0 | M121: 0 | N121: 0
B122: 106 | C122: 5 | D122: 1 | E122: =Daten!F135 -> 0 | F122: =Daten!G135 -> 0 | I122: 0 | J122: 0 | K122: 0 | L122: 0 | M122: 0 | N122: 0
B123: 107 | C123: 5 | D123: 1 | E123: =Daten!F136 -> 0 | F123: =Daten!G136 -> 0 | I123: 0 | J123: 0 | K123: 0 | L123: 0 | M123: 0 | N123: 0
B124: 108 | C124: 5 | D124: 1 | E124: =Daten!F137 -> 0 | F124: =Daten!G137 -> 0 | I124: 0 | J124: 0 | K124: 0 | L124: 0 | M124: 0 | N124: 0
B125: 109 | C125: 5 | D125: 1 | E125: =Daten!F138 -> 0 | F125: =Daten!G138 -> 0 | I125: 0 | J125: 0 | K125: 0 | L125: 0 | M125: 0 | N125: 0
B126: 110 | C126: 5 | D126: 1 | E126: =Daten!F139 -> 0 | F126: =Daten!G139 -> 0 | I126: 0 | J126: 0 | K126: 0 | L126: 0 | M126: 0 | N126: 0
B127: 111 | C127: 5 | D127: 1 | E127: =Daten!F140 -> 0 | F127: =Daten!G140 -> 0 | I127: 0 | J127: 0 | K127: 0 | L127: 0 | M127: 0 | N127: 0
B128: 112 | C128: 5 | D128: 1 | E128: =Daten!F141 -> 0 | F128: =Daten!G141 -> 0 | I128: 0 | J128: 0 | K128: 0 | L128: 0 | M128: 0 | N128: 0
B129: 113 | C129: 5 | D129: 1 | E129: =Daten!F142 -> 0 | F129: =Daten!G142 -> 0 | I129: 0 | J129: 0 | K129: 0 | L129: 0 | M129: 0 | N129: 0
B130: 114 | C130: 5 | D130: 1 | E130: =Daten!F143 -> 0 | F130: =Daten!G143 -> 0 | I130: 0 | J130: 0 | K130: 0 | L130: 0 | M130: 0 | N130: 0
B131: 115 | C131: 5 | D131: 1 | E131: =Daten!F144 -> 0 | F131: =Daten!G144 -> 0 | I131: 0 | J131: 0 | K131: 0 | L131: 0 | M131: 0 | N131: 0
B132: 116 | C132: 5 | D132: 1 | E132: =Daten!F145 -> 0 | F132: =Daten!G145 -> 0 | I132: 0 | J132: 0 | K132: 0 | L132: 0 | M132: 0 | N132: 0
B133: 117 | C133: 5 | D133: 1 | E133: =Daten!F146 -> 0 | F133: =Daten!G146 -> 0 | I133: 0 | J133: 0 | K133: 0 | L133: 0 | M133: 0 | N133: 0
B134: 118 | C134: 5 | D134: 1 | E134: =Daten!F147 -> 0 | F134: =Daten!G147 -> 0 | I134: 0 | J134: 0 | K134: 0 | L134: 0 | M134: 0 | N134: 0
B135: 119 | C135: 5 | D135: 1 | E135: =Daten!F148 -> 0 | F135: =Daten!G148 -> 0 | I135: 0 | J135: 0 | K135: 0 | L135: 0 | M135: 0 | N135: 0
B136: 120 | C136: 5 | D136: 1 | E136: =Daten!F149 -> 0 | F136: =Daten!G149 -> 0 | I136: 0 | J136: 0 | K136: 0 | L136: 0 | M136: 0 | N136: 0
B137: 121 | C137: 6 | D137: 1 | E137: =Daten!F150 -> 0 | F137: =Daten!G150 -> 0 | I137: 0 | J137: 0 | K137: 0 | L137: 0 | M137: 0 | N137: 0
B138: 122 | C138: 6 | D138: 1 | E138: =Daten!F151 -> 0 | F138: =Daten!G151 -> 0 | I138: 0 | J138: 0 | K138: 0 | L138: 0 | M138: 0 | N138: 0
B139: 123 | C139: 6 | D139: 1 | E139: =Daten!F152 -> 0 | F139: =Daten!G152 -> 0 | I139: 0 | J139: 0 | K139: 0 | L139: 0 | M139: 0 | N139: 0
B140: 124 | C140: 6 | D140: 1 | E140: =Daten!F153 -> 0 | F140: =Daten!G153 -> 0 | I140: 0 | J140: 0 | K140: 0 | L140: 0 | M140: 0 | N140: 0
B141: 125 | C141: 6 | D141: 1 | E141: =Daten!F154 -> 0 | F141: =Daten!G154 -> 0 | I141: 0 | J141: 0 | K141: 0 | L141: 0 | M141: 0 | N141: 0
B142: 126 | C142: 6 | D142: 1 | E142: =Daten!F155 -> 0 | F142: =Daten!G155 -> 0 | I142: 0 | J142: 0 | K142: 0 | L142: 0 | M142: 0 | N142: 0
B143: 127 | C143: 6 | D143: 1 | E143: =Daten!F156 -> 0 | F143: =Daten!G156 -> 0 | I143: 0 | J143: 0 | K143: 0 | L143: 0 | M143: 0 | N143: 0
B144: 128 | C144: 6 | D144: 1 | E144: =Daten!F157 -> 0 | F144: =Daten!G157 -> 0 | I144: 0 | J144: 0 | K144: 0 | L144: 0 | M144: 0 | N144: 0
B145: 129 | C145: 6 | D145: 1 | E145: =Daten!F158 -> 0 | F145: =Daten!G158 -> 0 | I145: 0 | J145: =MIN(E145,F145+I145) -> 0 | K145: =E145-J145 -> 0 | L145: =MIN((F145-J145),BatteriespeicherWh-I145) -> 0 | M145: 0 | N145: =IF(L145>0,I145+L145*Wirkungsgrad,I145+L145) -> 0
B146: 130 | C146: =CEILING(B146/24,1) -> 6 | D146: =MONTH(C146) -> 1 | E146: =Daten!F159 -> 0 | F146: =Daten!G159 -> 0 | I146: =N145 -> 0 | J146: 0 | K146: 0 | L146: 0 | M146: =F146-(J146+L146) -> 0 | N146: 0
B147: 131 | C147: 6 | D147: 1 | E147: =Daten!F160 -> 0 | F147: =Daten!G160 -> 0 | I147: 0 | J147: 0 | K147: 0 | L147: 0 | M147: 0 | N147: 0
B148: 132 | C148: 6 | D148: 1 | E148: =Daten!F161 -> 0 | F148: =Daten!G161 -> 0 | I148: 0 | J148: 0 | K148: 0 | L148: 0 | M148: 0 | N148: 0
B149: 133 | C149: 6 | D149: 1 | E149: =Daten!F162 -> 0 | F149: =Daten!G162 -> 0 | I149: 0 | J149: 0 | K149: 0 | L149: 0 | M149: 0 | N149: 0
B150: 134 | C150: 6 | D150: 1 | E150: =Daten!F163 -> 0 | F150: =Daten!G163 -> 0 | I150: 0 | J150: 0 | K150: 0 | L150: 0 | M150: 0 | N150: 0
B151: 135 | C151: 6 | D151: 1 | E151: =Daten!F164 -> 0 | F151: =Daten!G164 -> 0 | I151: 0 | J151: 0 | K151: 0 | L151: 0 | M151: 0 | N151: 0
B152: 136 | C152: 6 | D152: 1 | E152: =Daten!F165 -> 0 | F152: =Daten!G165 -> 0 | I152: 0 | J152: 0 | K152: 0 | L152: 0 | M152: 0 | N152: 0
B153: 137 | C153: 6 | D153: 1 | E153: =Daten!F166 -> 0 | F153: =Daten!G166 -> 0 | I153: 0 | J153: 0 | K153: 0 | L153: 0 | M153: 0 | N153: 0
B154: 138 | C154: 6 | D154: 1 | E154: =Daten!F167 -> 0 | F154: =Daten!G167 -> 0 | I154: 0 | J154: 0 | K154: 0 | L154: 0 | M154: 0 | N154: 0
B155: 139 | C155: 6 | D155: 1 | E155: =Daten!F168 -> 0 | F155: =Daten!G168 -> 0 | I155: 0 | J155: 0 | K155: 0 | L155: 0 | M155: 0 | N155: 0
B156: 140 | C156: 6 | D156: 1 | E156: =Daten!F169 -> 0 | F156: =Daten!G169 -> 0 | I156: 0 | J156: 0 | K156: 0 | L156: 0 | M156: 0 | N156: 0
B157: 141 | C157: 6 | D157: 1 | E157: =Daten!F170 -> 0 | F157: =Daten!G170 -> 0 | I157: 0 | J157: 0 | K157: 0 | L157: 0 | M157: 0 | N157: 0
B158: 142 | C158: 6 | D158: 1 | E158: =Daten!F171 -> 0 | F158: =Daten!G171 -> 0 | I158: 0 | J158: 0 | K158: 0 | L158: 0 | M158: 0 | N158: 0
B159: 143 | C159: 6 | D159: 1 | E159: =Daten!F172 -> 0 | F159: =Daten!G172 -> 0 | I159: 0 | J159: 0 | K159: 0 | L159: 0 | M159: 0 | N159: 0
B160: 144 | C160: 6 | D160: 1 | E160: =Daten!F173 -> 0 | F160: =Daten!G173 -> 0 | I160: 0 | J160: 0 | K160: 0 | L160: 0 | M160: 0 | N160: 0
B161: 145 | C161: 7 | D161: 1 | E161: =Daten!F174 -> 0 | F161: =Daten!G174 -> 0 | I161: 0 | J161: 0 | K161: 0 | L161: 0 | M161: 0 | N161: 0
B162: 146 | C162: 7 | D162: 1 | E162: =Daten!F175 -> 0 | F162: =Daten!G175 -> 0 | I162: 0 | J162: 0 | K162: 0 | L162: 0 | M162: 0 | N162: 0
B163: 147 | C163: 7 | D163: 1 | E163: =Daten!F176 -> 0 | F163: =Daten!G176 -> 0 | I163: 0 | J163: 0 | K163: 0 | L163: 0 | M163: 0 | N163: 0
B164: 148 | C164: 7 | D164: 1 | E164: =Daten!F177 -> 0 | F164: =Daten!G177 -> 0 | I164: 0 | J164: 0 | K164: 0 | L164: 0 | M164: 0 | N164: 0
B165: 149 | C165: 7 | D165: 1 | E165: =Daten!F178 -> 0 | F165: =Daten!G178 -> 0 | I165: 0 | J165: 0 | K165: 0 | L165: 0 | M165: 0 | N165: 0
B166: 150 | C166: 7 | D166: 1 | E166: =Daten!F179 -> 0 | F166: =Daten!G179 -> 0 | I166: 0 | J166: 0 | K166: 0 | L166: 0 | M166: 0 | N166: 0
B167: 151 | C167: 7 | D167: 1 | E167: =Daten!F180 -> 0 | F167: =Daten!G180 -> 0 | I167: 0 | J167: 0 | K167: 0 | L167: 0 | M167: 0 | N167: 0
B168: 152 | C168: 7 | D168: 1 | E168: =Daten!F181 -> 0 | F168: =Daten!G181 -> 0 | I168: 0 | J168: 0 | K168: 0 | L168: 0 | M168: 0 | N168: 0
B169: 153 | C169: 7 | D169: 1 | E169: =Daten!F182 -> 0 | F169: =Daten!G182 -> 0 | I169: 0 | J169: 0 | K169: 0 | L169: 0 | M169: 0 | N169: 0
B170: 154 | C170: 7 | D170: 1 | E170: =Daten!F183 -> 0 | F170: =Daten!G183 -> 0 | I170: 0 | J170: 0 | K170: 0 | L170: 0 | M170: 0 | N170: 0
B171: 155 | C171: 7 | D171: 1 | E171: =Daten!F184 -> 0 | F171: =Daten!G184 -> 0 | I171: 0 | J171: 0 | K171: 0 | L171: 0 | M171: 0 | N171: 0
B172: 156 | C172: 7 | D172: 1 | E172: =Daten!F185 -> 0 | F172: =Daten!G185 -> 0 | I172: 0 | J172: 0 | K172: 0 | L172: 0 | M172: 0 | N172: 0
B173: 157 | C173: 7 | D173: 1 | E173: =Daten!F186 -> 0 | F173: =Daten!G186 -> 0 | I173: 0 | J173: 0 | K173: 0 | L173: 0 | M173: 0 | N173: 0
B174: 158 | C174: 7 | D174: 1 | E174: =Daten!F187 -> 0 | F174: =Daten!G187 -> 0 | I174: 0 | J174: 0 | K174: 0 | L174: 0 | M174: 0 | N174: 0
B175: 159 | C175: 7 | D175: 1 | E175: =Daten!F188 -> 0 | F175: =Daten!G188 -> 0 | I175: 0 | J175: 0 | K175: 0 | L175: 0 | M175: 0 | N175: 0
B176: 160 | C176: 7 | D176: 1 | E176: =Daten!F189 -> 0 | F176: =Daten!G189 -> 0 | I176: 0 | J176: 0 | K176: 0 | L176: 0 | M176: 0 | N176: 0
B177: 161 | C177: 7 | D177: 1 | E177: =Daten!F190 -> 0 | F177: =Daten!G190 -> 0 | I177: 0 | J177: 0 | K177: 0 | L177: 0 | M177: 0 | N177: 0
B178: 162 | C178: 7 | D178: 1 | E178: =Daten!F191 -> 0 | F178: =Daten!G191 -> 0 | I178: 0 | J178: 0 | K178: 0 | L178: 0 | M178: 0 | N178: 0
B179: 163 | C179: 7 | D179: 1 | E179: =Daten!F192 -> 0 | F179: =Daten!G192 -> 0 | I179: 0 | J179: 0 | K179: 0 | L179: 0 | M179: 0 | N179: 0
B180: 164 | C180: 7 | D180: 1 | E180: =Daten!F193 -> 0 | F180: =Daten!G193 -> 0 | I180: 0 | J180: 0 | K180: 0 | L180: 0 | M180: 0 | N180: 0
B181: 165 | C181: 7 | D181: 1 | E181: =Daten!F194 -> 0 | F181: =Daten!G194 -> 0 | I181: 0 | J181: 0 | K181: 0 | L181: 0 | M181: 0 | N181: 0
B182: 166 | C182: 7 | D182: 1 | E182: =Daten!F195 -> 0 | F182: =Daten!G195 -> 0 | I182: 0 | J182: 0 | K182: 0 | L182: 0 | M182: 0 | N182: 0
B183: 167 | C183: 7 | D183: 1 | E183: =Daten!F196 -> 0 | F183: =Daten!G196 -> 0 | I183: 0 | J183: 0 | K183: 0 | L183: 0 | M183: 0 | N183: 0
B184: 168 | C184: 7 | D184: 1 | E184: =Daten!F197 -> 0 | F184: =Daten!G197 -> 0 | I184: 0 | J184: 0 | K184: 0 | L184: 0 | M184: 0 | N184: 0
B185: 169 | C185: 8 | D185: 1 | E185: =Daten!F198 -> 0 | F185: =Daten!G198 -> 0 | I185: 0 | J185: 0 | K185: 0 | L185: 0 | M185: 0 | N185: 0
B186: 170 | C186: 8 | D186: 1 | E186: =Daten!F199 -> 0 | F186: =Daten!G199 -> 0 | I186: 0 | J186: 0 | K186: 0 | L186: 0 | M186: 0 | N186: 0
B187: 171 | C187: 8 | D187: 1 | E187: =Daten!F200 -> 0 | F187: =Daten!G200 -> 0 | I187: 0 | J187: 0 | K187: 0 | L187: 0 | M187: 0 | N187: 0
B188: 172 | C188: 8 | D188: 1 | E188: =Daten!F201 -> 0 | F188: =Daten!G201 -> 0 | I188: 0 | J188: 0 | K188: 0 | L188: 0 | M188: 0 | N188: 0
B189: 173 | C189: 8 | D189: 1 | E189: =Daten!F202 -> 0 | F189: =Daten!G202 -> 0 | I189: 0 | J189: 0 | K189: 0 | L189: 0 | M189: 0 | N189: 0
B190: 174 | C190: 8 | D190: 1 | E190: =Daten!F203 -> 0 | F190: =Daten!G203 -> 0 | I190: 0 | J190: 0 | K190: 0 | L190: 0 | M190: 0 | N190: 0
B191: 175 | C191: 8 | D191: 1 | E191: =Daten!F204 -> 0 | F191: =Daten!G204 -> 0 | I191: 0 | J191: 0 | K191: 0 | L191: 0 | M191: 0 | N191: 0
B192: 176 | C192: 8 | D192: 1 | E192: =Daten!F205 -> 0 | F192: =Daten!G205 -> 0 | I192: 0 | J192: 0 | K192: 0 | L192: 0 | M192: 0 | N192: 0
B193: 177 | C193: 8 | D193: 1 | E193: =Daten!F206 -> 0 | F193: =Daten!G206 -> 0 | I193: 0 | J193: 0 | K193: 0 | L193: 0 | M193: 0 | N193: 0
B194: 178 | C194: 8 | D194: 1 | E194: =Daten!F207 -> 0 | F194: =Daten!G207 -> 0 | I194: 0 | J194: 0 | K194: 0 | L194: 0 | M194: 0 | N194: 0
B195: 179 | C195: 8 | D195: 1 | E195: =Daten!F208 -> 0 | F195: =Daten!G208 -> 0 | I195: 0 | J195: 0 | K195: 0 | L195: 0 | M195: 0 | N195: 0
B196: 180 | C196: 8 | D196: 1 | E196: =Daten!F209 -> 0 | F196: =Daten!G209 -> 0 | I196: 0 | J196: 0 | K196: 0 | L196: 0 | M196: 0 | N196: 0
B197: 181 | C197: 8 | D197: 1 | E197: =Daten!F210 -> 0 | F197: =Daten!G210 -> 0 | I197: 0 | J197: 0 | K197: 0 | L197: 0 | M197: 0 | N197: 0
B198: 182 | C198: 8 | D198: 1 | E198: =Daten!F211 -> 0 | F198: =Daten!G211 -> 0 | I198: 0 | J198: 0 | K198: 0 | L198: 0 | M198: 0 | N198: 0
B199: 183 | C199: 8 | D199: 1 | E199: =Daten!F212 -> 0 | F199: =Daten!G212 -> 0 | I199: 0 | J199: 0 | K199: 0 | L199: 0 | M199: 0 | N199: 0
B200: 184 | C200: 8 | D200: 1 | E200: =Daten!F213 -> 0 | F200: =Daten!G213 -> 0 | I200: 0 | J200: 0 | K200: 0 | L200: 0 | M200: 0 | N200: 0
B201: 185 | C201: 8 | D201: 1 | E201: =Daten!F214 -> 0 | F201: =Daten!G214 -> 0 | I201: 0 | J201: 0 | K201: 0 | L201: 0 | M201: 0 | N201: 0
B202: 186 | C202: 8 | D202: 1 | E202: =Daten!F215 -> 0 | F202: =Daten!G215 -> 0 | I202: 0 | J202: 0 | K202: 0 | L202: 0 | M202: 0 | N202: 0
B203: 187 | C203: 8 | D203: 1 | E203: =Daten!F216 -> 0 | F203: =Daten!G216 -> 0 | I203: 0 | J203: 0 | K203: 0 | L203: 0 | M203: 0 | N203: 0
B204: 188 | C204: 8 | D204: 1 | E204: =Daten!F217 -> 0 | F204: =Daten!G217 -> 0 | I204: 0 | J204: 0 | K204: 0 | L204: 0 | M204: 0 | N204: 0
... 4296 more rows

Sheet S2 (hidden)
A1: Modellierung
D2: Datensatz | E2: Lastkurve (W) | F2: PV-Produktion (W) | I2: Solarspeicher Periodenanfang | J2: Eigenverbrauch (W) | K2: Bezug (W) | L2: Speicherung / Entnahme (W) | M2: Einspeisung (W) | N2: Speicherstand Periodenende
A3: Model Eingang
A8: Model Ausgang | E8: Summe | F8: Summe | J8: Summe | K8: Summe | L8: Summe | M8: Summe | P8: Jahresstromverbrauch | Q8: =E14 -> 0
E9: =SUM(E17:E8776) -> 0 | F9: =SUM(F17:F8776) -> 0 | I9: =AVERAGE(I17:I8776) -> 0 | J9: =SUM(J17:J8776) -> 0 | K9: =SUM(K17:K8776) -> 0 | L9: =SUM(L17:L8776) -> 0 | M9: =SUM(M17:M8776) -> 0 | P9: PV-Produktion | Q9: =F14 -> 0
J10: Wh | K10: Wh | L10: Wh | M10: Wh | P10: Eigenverbrauch (kWh) | Q10: =J14 -> 0
L11: Summe Speicherung | P11: Bezug (kWh) | Q11: =K14 -> 0
L12: =(SUMIF(L17:L8776,">0"))/1000 -> 0 | P12: Einspeisung (kWh) | Q12: =M14 -> 0
E13: Jahresstromverbrauch | F13: PV-Produktion | J13: Eigenverbrauch (kWh) | K13: Bezug (kWh) | L13: Verluste (Speicherung - Entnahme) | M13: Einspeisung (kWh) | P13: Verluste (Speicherung - Entnahme) | Q13: =L14 -> 0
E14: =E9/1000 -> 0 | F14: =F9/1000 -> 0 | J14: =J9/1000 -> 0 | K14: =K9/1000 -> 0 | L14: =L9/1000 -> 0 | M14: =M9/1000 -> 0 | P14: Volllastzyklen | Q14: =IFERROR(L12/(BatteriespeicherWh/1000),"-") -> - | R14: 20 Jahre: | S14: =Q14*20 -> 
P15: Direktverbrauch | Q15: =Q10-Q16 -> 0
A16: Berechnungen | B16: Stunde | C16: Tag | D16: Monat | E16: Lastkurve (W) | F16: PV-Produktion | I16: Daten | J16: Daten | K16: Daten | L16: Daten | M16: Daten | N16: Daten | P16: Eigenverbrauch aus Batterie | Q16: =L12-L14 -> 0 | U16: Solar-produktion | V16: Verbrauch | X16: Solar-Einspeisung | Y16: Netzbezug | Z16: Solar-Eigenverbrauch | AA16: Eigenverbrauchsquote | AB16: Autarkiegrad | AC16: Einspeisequote | AD16: Verluste (%)
B17: 1 | C17: =CEILING(B17/24,1) -> 1 | D17: =MONTH(C17) -> 1 | E17: =Daten!I30 -> 0 | F17: =Daten!J30 -> 0 | I17: 0 | J17: =MIN(E17,F17+I17) -> 0 | K17: =E17-J17 -> 0 | L17: =MIN((F17-J17),BatteriespeicherWh-I17) -> 0 | M17: =F17-(J17+L17) -> 0 | N17: =IF(L17>0,I17+L17*Wirkungsgrad,I17+L17) -> 0 | P17: Einspeicherung (kWh) | Q17: =L12 -> 0 | T17: 1 | U17: =SUMIF(D:D,T17,F:F)/1000 -> 0 | V17: =SUMIF(D:D,T17,E:E)/1000 -> 0 | W17: Jan | X17: =SUMIF(D:D,T17,M:M)/1000 -> 0 | Y17: =SUMIF(D:D,T17,K:K)/1000 -> 0 | Z17: =SUMIF(D:D,T17,J:J)/1000 -> 0 | AA17: =Z17/U17 ->  | AB17: =Z17/V17 ->  | AC17: =X17/U17 ->  | AD17: =(U17-X17-Z17)/U17 -> 
B18: 2 | C18: =CEILING(B18/24,1) -> 1 | D18: =MONTH(C18) -> 1 | E18: =Daten!I31 -> 0 | F18: =Daten!J31 -> 0 | I18: =N17 -> 0 | J18: =MIN(E18,F18+I18) -> 0 | K18: =E18-J18 -> 0 | L18: =MIN((F18-J18),BatteriespeicherWh-I18) -> 0 | M18: =F18-(J18+L18) -> 0 | N18: 0 | P18: Direktverbrauchsquote | Q18: =Q15/Q9 ->  | T18: 2 | U18: 0 | V18: 0 | W18: Feb | X18: 0 | Y18: 0 | Z18: 0
B19: 3 | C19: 1 | D19: 1 | E19: =Daten!I32 -> 0 | F19: =Daten!J32 -> 0 | I19: =N18 -> 0 | J19: 0 | K19: 0 | L19: 0 | M19: 0 | N19: 0 | P19: Eigenverbrauchsquote über Batterie | Q19: =Q16/Q9 ->  | T19: 3 | U19: 0 | V19: 0 | W19: Mrz | X19: 0 | Y19: 0 | Z19: 0
B20: 4 | C20: 1 | D20: 1 | E20: =Daten!I33 -> 0 | F20: =Daten!J33 -> 0 | I20: 0 | J20: 0 | K20: 0 | L20: 0 | M20: 0 | N20: 0 | P20: Eigenverbrauchsquote | Q20: =Q10/Q9 ->  | T20: 4 | U20: 0 | V20: 0 | W20: Apr | X20: 0 | Y20: 0 | Z20: 0
B21: 5 | C21: 1 | D21: 1 | E21: =Daten!I34 -> 0 | F21: =Daten!J34 -> 0 | I21: 0 | J21: 0 | K21: 0 | L21: 0 | M21: 0 | N21: 0 | P21: Einspeisequote | Q21: =Q12/Q9 ->  | T21: 5 | U21: 0 | V21: 0 | W21: Mai | X21: 0 | Y21: 0 | Z21: 0
B22: 6 | C22: 1 | D22: 1 | E22: =Daten!I35 -> 0 | F22: =Daten!J35 -> 0 | I22: 0 | J22: 0 | K22: 0 | L22: 0 | M22: 0 | N22: 0 | P22: Verluste Batterie | Q22: =Q13/Q9 ->  | T22: 6 | U22: 0 | V22: 0 | W22: Jun | X22: 0 | Y22: 0 | Z22: 0
B23: 7 | C23: 1 | D23: 1 | E23: =Daten!I36 -> 0 | F23: =Daten!J36 -> 0 | I23: 0 | J23: 0 | K23: 0 | L23: 0 | M23: 0 | N23: 0 | P23: Autarkiegrad | Q23: =Q10/Q8 ->  | T23: 7 | U23: 0 | V23: 0 | W23: Jul | X23: 0 | Y23: 0 | Z23: 0
B24: 8 | C24: 1 | D24: 1 | E24: =Daten!I37 -> 0 | F24: =Daten!J37 -> 0 | I24: 0 | J24: 0 | K24: 0 | L24: 0 | M24: 0 | N24: 0 | T24: 8 | U24: 0 | V24: 0 | W24: Aug | X24: 0 | Y24: 0 | Z24: 0
B25: 9 | C25: 1 | D25: 1 | E25: =Daten!I38 -> 0 | F25: =Daten!J38 -> 0 | I25: 0 | J25: 0 | K25: 0 | L25: 0 | M25: 0 | N25: 0 | T25: 9 | U25: 0 | V25: 0 | W25: Sep | X25: 0 | Y25: 0 | Z25: 0
B26: 10 | C26: 1 | D26: 1 | E26: =Daten!I39 -> 0 | F26: =Daten!J39 -> 0 | I26: 0 | J26: 0 | K26: 0 | L26: 0 | M26: 0 | N26: 0 | T26: 10 | U26: 0 | V26: 0 | W26: Okt | X26: 0 | Y26: 0 | Z26: 0
B27: 11 | C27: 1 | D27: 1 | E27: =Daten!I40 -> 0 | F27: =Daten!J40 -> 0 | I27: 0 | J27: 0 | K27: 0 | L27: 0 | M27: 0 | N27: 0 | T27: 11 | U27: 0 | V27: 0 | W27: Nov | X27: 0 | Y27: 0 | Z27: 0
B28: 12 | C28: 1 | D28: 1 | E28: =Daten!I41 -> 0 | F28: =Daten!J41 -> 0 | I28: 0 | J28: 0 | K28: 0 | L28: 0 | M28: 0 | N28: 0 | T28: 12 | U28: 0 | V28: 0 | W28: Dez | X28: 0 | Y28: 0 | Z28: 0
B29: 13 | C29: 1 | D29: 1 | E29: =Daten!I42 -> 0 | F29: =Daten!J42 -> 0 | I29: 0 | J29: 0 | K29: 0 | L29: 0 | M29: 0 | N29: 0 | U29: Solar-produktion | V29: Verbrauch | X29: Solar-Einspeisung | Y29: Netzbezug | Z29: Solar-Eigenverbrauch | AA29: Eigenverbrauchsquote | AB29: Autarkiegrad | AC29: Einspeisequote | AD29: Verluste (%)
B30: 14 | C30: 1 | D30: 1 | E30: =Daten!I43 -> 0 | F30: =Daten!J43 -> 0 | I30: 0 | J30: 0 | K30: 0 | L30: 0 | M30: 0 | N30: 0 | T30: Jahr | U30: =SUM(U17:U28) -> 0 | V30: =SUM(V17:V28) -> 0 | X30: =SUM(X17:X28) -> 0 | Y30: =SUM(Y17:Y28) -> 0 | Z30: =SUM(Z17:Z28) -> 0 | AA30: =Z30/U30 ->  | AB30: =Z30/V30 ->  | AC30: =X30/U30 ->  | AD30: =(U30-X30-Z30)/U30 -> 
B31: 15 | C31: 1 | D31: 1 | E31: =Daten!I44 -> 0 | F31: =Daten!J44 -> 0 | I31: 0 | J31: 0 | K31: 0 | L31: 0 | M31: 0 | N31: 0
B32: 16 | C32: 1 | D32: 1 | E32: =Daten!I45 -> 0 | F32: =Daten!J45 -> 0 | I32: 0 | J32: 0 | K32: 0 | L32: 0 | M32: 0 | N32: 0
B33: 17 | C33: 1 | D33: 1 | E33: =Daten!I46 -> 0 | F33: =Daten!J46 -> 0 | I33: 0 | J33: 0 | K33: 0 | L33: 0 | M33: 0 | N33: 0
B34: 18 | C34: 1 | D34: 1 | E34: =Daten!I47 -> 0 | F34: =Daten!J47 -> 0 | I34: 0 | J34: 0 | K34: 0 | L34: 0 | M34: 0 | N34: 0
B35: 19 | C35: 1 | D35: 1 | E35: =Daten!I48 -> 0 | F35: =Daten!J48 -> 0 | I35: 0 | J35: 0 | K35: 0 | L35: 0 | M35: 0 | N35: 0
B36: 20 | C36: 1 | D36: 1 | E36: =Daten!I49 -> 0 | F36: =Daten!J49 -> 0 | I36: 0 | J36: 0 | K36: 0 | L36: 0 | M36: 0 | N36: 0
B37: 21 | C37: 1 | D37: 1 | E37: =Daten!I50 -> 0 | F37: =Daten!J50 -> 0 | I37: 0 | J37: 0 | K37: 0 | L37: 0 | M37: 0 | N37: 0
B38: 22 | C38: 1 | D38: 1 | E38: =Daten!I51 -> 0 | F38: =Daten!J51 -> 0 | I38: 0 | J38: 0 | K38: 0 | L38: 0 | M38: 0 | N38: 0
B39: 23 | C39: 1 | D39: 1 | E39: =Daten!I52 -> 0 | F39: =Daten!J52 -> 0 | I39: 0 | J39: 0 | K39: 0 | L39: 0 | M39: 0 | N39: 0
B40: 24 | C40: 1 | D40: 1 | E40: =Daten!I53 -> 0 | F40: =Daten!J53 -> 0 | I40: 0 | J40: 0 | K40: 0 | L40: 0 | M40: 0 | N40: 0
B41: 25 | C41: 2 | D41: 1 | E41: =Daten!I54 -> 0 | F41: =Daten!J54 -> 0 | I41: 0 | J41: 0 | K41: 0 | L41: 0 | M41: 0 | N41: 0
B42: 26 | C42: 2 | D42: 1 | E42: =Daten!I55 -> 0 | F42: =Daten!J55 -> 0 | I42: 0 | J42: 0 | K42: 0 | L42: 0 | M42: 0 | N42: 0
B43: 27 | C43: 2 | D43: 1 | E43: =Daten!I56 -> 0 | F43: =Daten!J56 -> 0 | I43: 0 | J43: 0 | K43: 0 | L43: 0 | M43: 0 | N43: 0
B44: 28 | C44: 2 | D44: 1 | E44: =Daten!I57 -> 0 | F44: =Daten!J57 -> 0 | I44: 0 | J44: 0 | K44: 0 | L44: 0 | M44: 0 | N44: 0
B45: 29 | C45: 2 | D45: 1 | E45: =Daten!I58 -> 0 | F45: =Daten!J58 -> 0 | I45: 0 | J45: 0 | K45: 0 | L45: 0 | M45: 0 | N45: 0
B46: 30 | C46: 2 | D46: 1 | E46: =Daten!I59 -> 0 | F46: =Daten!J59 -> 0 | I46: 0 | J46: 0 | K46: 0 | L46: 0 | M46: 0 | N46: 0
B47: 31 | C47: 2 | D47: 1 | E47: =Daten!I60 -> 0 | F47: =Daten!J60 -> 0 | I47: 0 | J47: 0 | K47: 0 | L47: 0 | M47: 0 | N47: 0
B48: 32 | C48: 2 | D48: 1 | E48: =Daten!I61 -> 0 | F48: =Daten!J61 -> 0 | I48: 0 | J48: 0 | K48: 0 | L48: 0 | M48: 0 | N48: 0
B49: 33 | C49: 2 | D49: 1 | E49: =Daten!I62 -> 0 | F49: =Daten!J62 -> 0 | I49: 0 | J49: 0 | K49: 0 | L49: 0 | M49: 0 | N49: 0
B50: 34 | C50: 2 | D50: 1 | E50: =Daten!I63 -> 0 | F50: =Daten!J63 -> 0 | I50: 0 | J50: 0 | K50: 0 | L50: 0 | M50: 0 | N50: 0
B51: 35 | C51: 2 | D51: 1 | E51: =Daten!I64 -> 0 | F51: =Daten!J64 -> 0 | I51: 0 | J51: 0 | K51: 0 | L51: 0 | M51: 0 | N51: 0
B52: 36 | C52: 2 | D52: 1 | E52: =Daten!I65 -> 0 | F52: =Daten!J65 -> 0 | I52: 0 | J52: 0 | K52: 0 | L52: 0 | M52: 0 | N52: 0
B53: 37 | C53: 2 | D53: 1 | E53: =Daten!I66 -> 0 | F53: =Daten!J66 -> 0 | I53: 0 | J53: 0 | K53: 0 | L53: 0 | M53: 0 | N53: 0
B54: 38 | C54: 2 | D54: 1 | E54: =Daten!I67 -> 0 | F54: =Daten!J67 -> 0 | I54: 0 | J54: 0 | K54: 0 | L54: 0 | M54: 0 | N54: 0
B55: 39 | C55: 2 | D55: 1 | E55: =Daten!I68 -> 0 | F55: =Daten!J68 -> 0 | I55: 0 | J55: 0 | K55: 0 | L55: 0 | M55: 0 | N55: 0
B56: 40 | C56: 2 | D56: 1 | E56: =Daten!I69 -> 0 | F56: =Daten!J69 -> 0 | I56: 0 | J56: 0 | K56: 0 | L56: 0 | M56: 0 | N56: 0
B57: 41 | C57: 2 | D57: 1 | E57: =Daten!I70 -> 0 | F57: =Daten!J70 -> 0 | I57: 0 | J57: 0 | K57: 0 | L57: 0 | M57: 0 | N57: 0
B58: 42 | C58: 2 | D58: 1 | E58: =Daten!I71 -> 0 | F58: =Daten!J71 -> 0 | I58: 0 | J58: 0 | K58: 0 | L58: 0 | M58: 0 | N58: 0
B59: 43 | C59: 2 | D59: 1 | E59: =Daten!I72 -> 0 | F59: =Daten!J72 -> 0 | I59: 0 | J59: 0 | K59: 0 | L59: 0 | M59: 0 | N59: 0
B60: 44 | C60: 2 | D60: 1 | E60: =Daten!I73 -> 0 | F60: =Daten!J73 -> 0 | I60: 0 | J60: 0 | K60: 0 | L60: 0 | M60: 0 | N60: 0
B61: 45 | C61: 2 | D61: 1 | E61: =Daten!I74 -> 0 | F61: =Daten!J74 -> 0 | I61: 0 | J61: 0 | K61: 0 | L61: 0 | M61: 0 | N61: 0
B62: 46 | C62: 2 | D62: 1 | E62: =Daten!I75 -> 0 | F62: =Daten!J75 -> 0 | I62: 0 | J62: 0 | K62: 0 | L62: 0 | M62: 0 | N62: 0
B63: 47 | C63: 2 | D63: 1 | E63: =Daten!I76 -> 0 | F63: =Daten!J76 -> 0 | I63: 0 | J63: 0 | K63: 0 | L63: 0 | M63: 0 | N63: 0
B64: 48 | C64: 2 | D64: 1 | E64: =Daten!I77 -> 0 | F64: =Daten!J77 -> 0 | I64: 0 | J64: 0 | K64: 0 | L64: 0 | M64: 0 | N64: 0
B65: 49 | C65: 3 | D65: 1 | E65: =Daten!I78 -> 0 | F65: =Daten!J78 -> 0 | I65: 0 | J65: 0 | K65: 0 | L65: 0 | M65: 0 | N65: 0
B66: 50 | C66: 3 | D66: 1 | E66: =Daten!I79 -> 0 | F66: =Daten!J79 -> 0 | I66: 0 | J66: 0 | K66: 0 | L66: 0 | M66: 0 | N66: 0
B67: 51 | C67: 3 | D67: 1 | E67: =Daten!I80 -> 0 | F67: =Daten!J80 -> 0 | I67: 0 | J67: 0 | K67: 0 | L67: 0 | M67: 0 | N67: 0
B68: 52 | C68: 3 | D68: 1 | E68: =Daten!I81 -> 0 | F68: =Daten!J81 -> 0 | I68: 0 | J68: 0 | K68: 0 | L68: 0 | M68: 0 | N68: 0
B69: 53 | C69: 3 | D69: 1 | E69: =Daten!I82 -> 0 | F69: =Daten!J82 -> 0 | I69: 0 | J69: 0 | K69: 0 | L69: 0 | M69: 0 | N69: 0
B70: 54 | C70: 3 | D70: 1 | E70: =Daten!I83 -> 0 | F70: =Daten!J83 -> 0 | I70: 0 | J70: 0 | K70: 0 | L70: 0 | M70: 0 | N70: 0
B71: 55 | C71: 3 | D71: 1 | E71: =Daten!I84 -> 0 | F71: =Daten!J84 -> 0 | I71: 0 | J71: 0 | K71: 0 | L71: 0 | M71: 0 | N71: 0
B72: 56 | C72: 3 | D72: 1 | E72: =Daten!I85 -> 0 | F72: =Daten!J85 -> 0 | I72: 0 | J72: 0 | K72: 0 | L72: 0 | M72: 0 | N72: 0
B73: 57 | C73: 3 | D73: 1 | E73: =Daten!I86 -> 0 | F73: =Daten!J86 -> 0 | I73: 0 | J73: 0 | K73: 0 | L73: 0 | M73: 0 | N73: 0
B74: 58 | C74: 3 | D74: 1 | E74: =Daten!I87 -> 0 | F74: =Daten!J87 -> 0 | I74: 0 | J74: 0 | K74: 0 | L74: 0 | M74: 0 | N74: 0
B75: 59 | C75: 3 | D75: 1 | E75: =Daten!I88 -> 0 | F75: =Daten!J88 -> 0 | I75: 0 | J75: 0 | K75: 0 | L75: 0 | M75: 0 | N75: 0
B76: 60 | C76: 3 | D76: 1 | E76: =Daten!I89 -> 0 | F76: =Daten!J89 -> 0 | I76: 0 | J76: 0 | K76: 0 | L76: 0 | M76: 0 | N76: 0
B77: 61 | C77: 3 | D77: 1 | E77: =Daten!I90 -> 0 | F77: =Daten!J90 -> 0 | I77: 0 | J77: 0 | K77: 0 | L77: 0 | M77: 0 | N77: 0
B78: 62 | C78: 3 | D78: 1 | E78: =Daten!I91 -> 0 | F78: =Daten!J91 -> 0 | I78: 0 | J78: 0 | K78: 0 | L78: 0 | M78: 0 | N78: 0
B79: 63 | C79: 3 | D79: 1 | E79: =Daten!I92 -> 0 | F79: =Daten!J92 -> 0 | I79: 0 | J79: 0 | K79: 0 | L79: 0 | M79: 0 | N79: 0
B80: 64 | C80: 3 | D80: 1 | E80: =Daten!I93 -> 0 | F80: =Daten!J93 -> 0 | I80: 0 | J80: 0 | K80: 0 | L80: 0 | M80: 0 | N80: 0
B81: 65 | C81: 3 | D81: 1 | E81: =Daten!I94 -> 0 | F81: =Daten!J94 -> 0 | I81: 0 | J81: 0 | K81: 0 | L81: 0 | M81: 0 | N81: =IF(L81>0,I81+L81*Wirkungsgrad,I81+L81) -> 0
B82: 66 | C82: =CEILING(B82/24,1) -> 3 | D82: =MONTH(C82) -> 1 | E82: =Daten!I95 -> 0 | F82: =Daten!J95 -> 0 | I82: 0 | J82: =MIN(E82,F82+I82) -> 0 | K82: =E82-J82 -> 0 | L82: =MIN((F82-J82),BatteriespeicherWh-I82) -> 0 | M82: =F82-(J82+L82) -> 0 | N82: 0
B83: 67 | C83: 3 | D83: 1 | E83: =Daten!I96 -> 0 | F83: =Daten!J96 -> 0 | I83: =N82 -> 0 | J83: 0 | K83: 0 | L83: 0 | M83: 0 | N83: 0
B84: 68 | C84: 3 | D84: 1 | E84: =Daten!I97 -> 0 | F84: =Daten!J97 -> 0 | I84: 0 | J84: 0 | K84: 0 | L84: 0 | M84: 0 | N84: 0
B85: 69 | C85: 3 | D85: 1 | E85: =Daten!I98 -> 0 | F85: =Daten!J98 -> 0 | I85: 0 | J85: 0 | K85: 0 | L85: 0 | M85: 0 | N85: 0
B86: 70 | C86: 3 | D86: 1 | E86: =Daten!I99 -> 0 | F86: =Daten!J99 -> 0 | I86: 0 | J86: 0 | K86: 0 | L86: 0 | M86: 0 | N86: 0
B87: 71 | C87: 3 | D87: 1 | E87: =Daten!I100 -> 0 | F87: =Daten!J100 -> 0 | I87: 0 | J87: 0 | K87: 0 | L87: 0 | M87: 0 | N87: 0
B88: 72 | C88: 3 | D88: 1 | E88: =Daten!I101 -> 0 | F88: =Daten!J101 -> 0 | I88: 0 | J88: 0 | K88: 0 | L88: 0 | M88: 0 | N88: 0
B89: 73 | C89: 4 | D89: 1 | E89: =Daten!I102 -> 0 | F89: =Daten!J102 -> 0 | I89: 0 | J89: 0 | K89: 0 | L89: 0 | M89: 0 | N89: 0
B90: 74 | C90: 4 | D90: 1 | E90: =Daten!I103 -> 0 | F90: =Daten!J103 -> 0 | I90: 0 | J90: 0 | K90: 0 | L90: 0 | M90: 0 | N90: 0
B91: 75 | C91: 4 | D91: 1 | E91: =Daten!I104 -> 0 | F91: =Daten!J104 -> 0 | I91: 0 | J91: 0 | K91: 0 | L91: 0 | M91: 0 | N91: 0
B92: 76 | C92: 4 | D92: 1 | E92: =Daten!I105 -> 0 | F92: =Daten!J105 -> 0 | I92: 0 | J92: 0 | K92: 0 | L92: 0 | M92: 0 | N92: 0
B93: 77 | C93: 4 | D93: 1 | E93: =Daten!I106 -> 0 | F93: =Daten!J106 -> 0 | I93: 0 | J93: 0 | K93: 0 | L93: 0 | M93: 0 | N93: 0
B94: 78 | C94: 4 | D94: 1 | E94: =Daten!I107 -> 0 | F94: =Daten!J107 -> 0 | I94: 0 | J94: 0 | K94: 0 | L94: 0 | M94: 0 | N94: 0
B95: 79 | C95: 4 | D95: 1 | E95: =Daten!I108 -> 0 | F95: =Daten!J108 -> 0 | I95: 0 | J95: 0 | K95: 0 | L95: 0 | M95: 0 | N95: 0
B96: 80 | C96: 4 | D96: 1 | E96: =Daten!I109 -> 0 | F96: =Daten!J109 -> 0 | I96: 0 | J96: 0 | K96: 0 | L96: 0 | M96: 0 | N96: 0
B97: 81 | C97: 4 | D97: 1 | E97: =Daten!I110 -> 0 | F97: =Daten!J110 -> 0 | I97: 0 | J97: 0 | K97: 0 | L97: 0 | M97: 0 | N97: 0
B98: 82 | C98: 4 | D98: 1 | E98: =Daten!I111 -> 0 | F98: =Daten!J111 -> 0 | I98: 0 | J98: 0 | K98: 0 | L98: 0 | M98: 0 | N98: 0
B99: 83 | C99: 4 | D99: 1 | E99: =Daten!I112 -> 0 | F99: =Daten!J112 -> 0 | I99: 0 | J99: 0 | K99: 0 | L99: 0 | M99: 0 | N99: 0
B100: 84 | C100: 4 | D100: 1 | E100: =Daten!I113 -> 0 | F100: =Daten!J113 -> 0 | I100: 0 | J100: 0 | K100: 0 | L100: 0 | M100: 0 | N100: 0
B101: 85 | C101: 4 | D101: 1 | E101: =Daten!I114 -> 0 | F101: =Daten!J114 -> 0 | I101: 0 | J101: 0 | K101: 0 | L101: 0 | M101: 0 | N101: 0
B102: 86 | C102: 4 | D102: 1 | E102: =Daten!I115 -> 0 | F102: =Daten!J115 -> 0 | I102: 0 | J102: 0 | K102: 0 | L102: 0 | M102: 0 | N102: 0
B103: 87 | C103: 4 | D103: 1 | E103: =Daten!I116 -> 0 | F103: =Daten!J116 -> 0 | I103: 0 | J103: 0 | K103: 0 | L103: 0 | M103: 0 | N103: 0
B104: 88 | C104: 4 | D104: 1 | E104: =Daten!I117 -> 0 | F104: =Daten!J117 -> 0 | I104: 0 | J104: 0 | K104: 0 | L104: 0 | M104: 0 | N104: 0
B105: 89 | C105: 4 | D105: 1 | E105: =Daten!I118 -> 0 | F105: =Daten!J118 -> 0 | I105: 0 | J105: 0 | K105: 0 | L105: 0 | M105: 0 | N105: 0
B106: 90 | C106: 4 | D106: 1 | E106: =Daten!I119 -> 0 | F106: =Daten!J119 -> 0 | I106: 0 | J106: 0 | K106: 0 | L106: 0 | M106: 0 | N106: 0
B107: 91 | C107: 4 | D107: 1 | E107: =Daten!I120 -> 0 | F107: =Daten!J120 -> 0 | I107: 0 | J107: 0 | K107: 0 | L107: 0 | M107: 0 | N107: 0
B108: 92 | C108: 4 | D108: 1 | E108: =Daten!I121 -> 0 | F108: =Daten!J121 -> 0 | I108: 0 | J108: 0 | K108: 0 | L108: 0 | M108: 0 | N108: 0
B109: 93 | C109: 4 | D109: 1 | E109: =Daten!I122 -> 0 | F109: =Daten!J122 -> 0 | I109: 0 | J109: 0 | K109: 0 | L109: 0 | M109: 0 | N109: 0
B110: 94 | C110: 4 | D110: 1 | E110: =Daten!I123 -> 0 | F110: =Daten!J123 -> 0 | I110: 0 | J110: 0 | K110: 0 | L110: 0 | M110: 0 | N110: 0
B111: 95 | C111: 4 | D111: 1 | E111: =Daten!I124 -> 0 | F111: =Daten!J124 -> 0 | I111: 0 | J111: 0 | K111: 0 | L111: 0 | M111: 0 | N111: 0
B112: 96 | C112: 4 | D112: 1 | E112: =Daten!I125 -> 0 | F112: =Daten!J125 -> 0 | I112: 0 | J112: 0 | K112: 0 | L112: 0 | M112: 0 | N112: 0
B113: 97 | C113: 5 | D113: 1 | E113: =Daten!I126 -> 0 | F113: =Daten!J126 -> 0 | I113: 0 | J113: 0 | K113: 0 | L113: 0 | M113: 0 | N113: 0
B114: 98 | C114: 5 | D114: 1 | E114: =Daten!I127 -> 0 | F114: =Daten!J127 -> 0 | I114: 0 | J114: 0 | K114: 0 | L114: 0 | M114: 0 | N114: 0
B115: 99 | C115: 5 | D115: 1 | E115: =Daten!I128 -> 0 | F115: =Daten!J128 -> 0 | I115: 0 | J115: 0 | K115: 0 | L115: 0 | M115: 0 | N115: 0
B116: 100 | C116: 5 | D116: 1 | E116: =Daten!I129 -> 0 | F116: =Daten!J129 -> 0 | I116: 0 | J116: 0 | K116: 0 | L116: 0 | M116: 0 | N116: 0
B117: 101 | C117: 5 | D117: 1 | E117: =Daten!I130 -> 0 | F117: =Daten!J130 -> 0 | I117: 0 | J117: 0 | K117: 0 | L117: 0 | M117: 0 | N117: 0
B118: 102 | C118: 5 | D118: 1 | E118: =Daten!I131 -> 0 | F118: =Daten!J131 -> 0 | I118: 0 | J118: 0 | K118: 0 | L118: 0 | M118: 0 | N118: 0
B119: 103 | C119: 5 | D119: 1 | E119: =Daten!I132 -> 0 | F119: =Daten!J132 -> 0 | I119: 0 | J119: 0 | K119: 0 | L119: 0 | M119: 0 | N119: 0
B120: 104 | C120: 5 | D120: 1 | E120: =Daten!I133 -> 0 | F120: =Daten!J133 -> 0 | I120: 0 | J120: 0 | K120: 0 | L120: 0 | M120: 0 | N120: 0
B121: 105 | C121: 5 | D121: 1 | E121: =Daten!I134 -> 0 | F121: =Daten!J134 -> 0 | I121: 0 | J121: 0 | K121: 0 | L121: 0 | M121: 0 | N121: 0
B122: 106 | C122: 5 | D122: 1 | E122: =Daten!I135 -> 0 | F122: =Daten!J135 -> 0 | I122: 0 | J122: 0 | K122: 0 | L122: 0 | M122: 0 | N122: 0
B123: 107 | C123: 5 | D123: 1 | E123: =Daten!I136 -> 0 | F123: =Daten!J136 -> 0 | I123: 0 | J123: 0 | K123: 0 | L123: 0 | M123: 0 | N123: 0
B124: 108 | C124: 5 | D124: 1 | E124: =Daten!I137 -> 0 | F124: =Daten!J137 -> 0 | I124: 0 | J124: 0 | K124: 0 | L124: 0 | M124: 0 | N124: 0
B125: 109 | C125: 5 | D125: 1 | E125: =Daten!I138 -> 0 | F125: =Daten!J138 -> 0 | I125: 0 | J125: 0 | K125: 0 | L125: 0 | M125: 0 | N125: 0
B126: 110 | C126: 5 | D126: 1 | E126: =Daten!I139 -> 0 | F126: =Daten!J139 -> 0 | I126: 0 | J126: 0 | K126: 0 | L126: 0 | M126: 0 | N126: 0
B127: 111 | C127: 5 | D127: 1 | E127: =Daten!I140 -> 0 | F127: =Daten!J140 -> 0 | I127: 0 | J127: 0 | K127: 0 | L127: 0 | M127: 0 | N127: 0
B128: 112 | C128: 5 | D128: 1 | E128: =Daten!I141 -> 0 | F128: =Daten!J141 -> 0 | I128: 0 | J128: 0 | K128: 0 | L128: 0 | M128: 0 | N128: 0
B129: 113 | C129: 5 | D129: 1 | E129: =Daten!I142 -> 0 | F129: =Daten!J142 -> 0 | I129: 0 | J129: 0 | K129: 0 | L129: 0 | M129: 0 | N129: 0
B130: 114 | C130: 5 | D130: 1 | E130: =Daten!I143 -> 0 | F130: =Daten!J143 -> 0 | I130: 0 | J130: 0 | K130: 0 | L130: 0 | M130: 0 | N130: 0
B131: 115 | C131: 5 | D131: 1 | E131: =Daten!I144 -> 0 | F131: =Daten!J144 -> 0 | I131: 0 | J131: 0 | K131: 0 | L131: 0 | M131: 0 | N131: 0
B132: 116 | C132: 5 | D132: 1 | E132: =Daten!I145 -> 0 | F132: =Daten!J145 -> 0 | I132: 0 | J132: 0 | K132: 0 | L132: 0 | M132: 0 | N132: 0
B133: 117 | C133: 5 | D133: 1 | E133: =Daten!I146 -> 0 | F133: =Daten!J146 -> 0 | I133: 0 | J133: 0 | K133: 0 | L133: 0 | M133: 0 | N133: 0
B134: 118 | C134: 5 | D134: 1 | E134: =Daten!I147 -> 0 | F134: =Daten!J147 -> 0 | I134: 0 | J134: 0 | K134: 0 | L134: 0 | M134: 0 | N134: 0
B135: 119 | C135: 5 | D135: 1 | E135: =Daten!I148 -> 0 | F135: =Daten!J148 -> 0 | I135: 0 | J135: 0 | K135: 0 | L135: 0 | M135: 0 | N135: 0
B136: 120 | C136: 5 | D136: 1 | E136: =Daten!I149 -> 0 | F136: =Daten!J149 -> 0 | I136: 0 | J136: 0 | K136: 0 | L136: 0 | M136: 0 | N136: 0
B137: 121 | C137: 6 | D137: 1 | E137: =Daten!I150 -> 0 | F137: =Daten!J150 -> 0 | I137: 0 | J137: 0 | K137: 0 | L137: 0 | M137: 0 | N137: 0
B138: 122 | C138: 6 | D138: 1 | E138: =Daten!I151 -> 0 | F138: =Daten!J151 -> 0 | I138: 0 | J138: 0 | K138: 0 | L138: 0 | M138: 0 | N138: 0
B139: 123 | C139: 6 | D139: 1 | E139: =Daten!I152 -> 0 | F139: =Daten!J152 -> 0 | I139: 0 | J139: 0 | K139: 0 | L139: 0 | M139: 0 | N139: 0
B140: 124 | C140: 6 | D140: 1 | E140: =Daten!I153 -> 0 | F140: =Daten!J153 -> 0 | I140: 0 | J140: 0 | K140: 0 | L140: 0 | M140: 0 | N140: 0
B141: 125 | C141: 6 | D141: 1 | E141: =Daten!I154 -> 0 | F141: =Daten!J154 -> 0 | I141: 0 | J141: 0 | K141: 0 | L141: 0 | M141: 0 | N141: 0
B142: 126 | C142: 6 | D142: 1 | E142: =Daten!I155 -> 0 | F142: =Daten!J155 -> 0 | I142: 0 | J142: 0 | K142: 0 | L142: 0 | M142: 0 | N142: 0
B143: 127 | C143: 6 | D143: 1 | E143: =Daten!I156 -> 0 | F143: =Daten!J156 -> 0 | I143: 0 | J143: 0 | K143: 0 | L143: 0 | M143: 0 | N143: 0
B144: 128 | C144: 6 | D144: 1 | E144: =Daten!I157 -> 0 | F144: =Daten!J157 -> 0 | I144: 0 | J144: 0 | K144: 0 | L144: 0 | M144: 0 | N144: 0
B145: 129 | C145: 6 | D145: 1 | E145: =Daten!I158 -> 0 | F145: =Daten!J158 -> 0 | I145: 0 | J145: 0 | K145: 0 | L145: 0 | M145: 0 | N145: =IF(L145>0,I145+L145*Wirkungsgrad,I145+L145) -> 0
B146: 130 | C146: =CEILING(B146/24,1) -> 6 | D146: =MONTH(C146) -> 1 | E146: =Daten!I159 -> 0 | F146: =Daten!J159 -> 0 | I146: 0 | J146: =MIN(E146,F146+I146) -> 0 | K146: =E146-J146 -> 0 | L146: =MIN((F146-J146),BatteriespeicherWh-I146) -> 0 | M146: =F146-(J146+L146) -> 0 | N146: 0
B147: 131 | C147: 6 | D147: 1 | E147: =Daten!I160 -> 0 | F147: =Daten!J160 -> 0 | I147: =N146 -> 0 | J147: 0 | K147: 0 | L147: 0 | M147: 0 | N147: 0
B148: 132 | C148: 6 | D148: 1 | E148: =Daten!I161 -> 0 | F148: =Daten!J161 -> 0 | I148: 0 | J148: 0 | K148: 0 | L148: 0 | M148: 0 | N148: 0
B149: 133 | C149: 6 | D149: 1 | E149: =Daten!I162 -> 0 | F149: =Daten!J162 -> 0 | I149: 0 | J149: 0 | K149: 0 | L149: 0 | M149: 0 | N149: 0
B150: 134 | C150: 6 | D150: 1 | E150: =Daten!I163 -> 0 | F150: =Daten!J163 -> 0 | I150: 0 | J150: 0 | K150: 0 | L150: 0 | M150: 0 | N150: 0
B151: 135 | C151: 6 | D151: 1 | E151: =Daten!I164 -> 0 | F151: =Daten!J164 -> 0 | I151: 0 | J151: 0 | K151: 0 | L151: 0 | M151: 0 | N151: 0
B152: 136 | C152: 6 | D152: 1 | E152: =Daten!I165 -> 0 | F152: =Daten!J165 -> 0 | I152: 0 | J152: 0 | K152: 0 | L152: 0 | M152: 0 | N152: 0
B153: 137 | C153: 6 | D153: 1 | E153: =Daten!I166 -> 0 | F153: =Daten!J166 -> 0 | I153: 0 | J153: 0 | K153: 0 | L153: 0 | M153: 0 | N153: 0
B154: 138 | C154: 6 | D154: 1 | E154: =Daten!I167 -> 0 | F154: =Daten!J167 -> 0 | I154: 0 | J154: 0 | K154: 0 | L154: 0 | M154: 0 | N154: 0
B155: 139 | C155: 6 | D155: 1 | E155: =Daten!I168 -> 0 | F155: =Daten!J168 -> 0 | I155: 0 | J155: 0 | K155: 0 | L155: 0 | M155: 0 | N155: 0
B156: 140 | C156: 6 | D156: 1 | E156: =Daten!I169 -> 0 | F156: =Daten!J169 -> 0 | I156: 0 | J156: 0 | K156: 0 | L156: 0 | M156: 0 | N156: 0
B157: 141 | C157: 6 | D157: 1 | E157: =Daten!I170 -> 0 | F157: =Daten!J170 -> 0 | I157: 0 | J157: 0 | K157: 0 | L157: 0 | M157: 0 | N157: 0
B158: 142 | C158: 6 | D158: 1 | E158: =Daten!I171 -> 0 | F158: =Daten!J171 -> 0 | I158: 0 | J158: 0 | K158: 0 | L158: 0 | M158: 0 | N158: 0
B159: 143 | C159: 6 | D159: 1 | E159: =Daten!I172 -> 0 | F159: =Daten!J172 -> 0 | I159: 0 | J159: 0 | K159: 0 | L159: 0 | M159: 0 | N159: 0
B160: 144 | C160: 6 | D160: 1 | E160: =Daten!I173 -> 0 | F160: =Daten!J173 -> 0 | I160: 0 | J160: 0 | K160: 0 | L160: 0 | M160: 0 | N160: 0
B161: 145 | C161: 7 | D161: 1 | E161: =Daten!I174 -> 0 | F161: =Daten!J174 -> 0 | I161: 0 | J161: 0 | K161: 0 | L161: 0 | M161: 0 | N161: 0
B162: 146 | C162: 7 | D162: 1 | E162: =Daten!I175 -> 0 | F162: =Daten!J175 -> 0 | I162: 0 | J162: 0 | K162: 0 | L162: 0 | M162: 0 | N162: 0
B163: 147 | C163: 7 | D163: 1 | E163: =Daten!I176 -> 0 | F163: =Daten!J176 -> 0 | I163: 0 | J163: 0 | K163: 0 | L163: 0 | M163: 0 | N163: 0
B164: 148 | C164: 7 | D164: 1 | E164: =Daten!I177 -> 0 | F164: =Daten!J177 -> 0 | I164: 0 | J164: 0 | K164: 0 | L164: 0 | M164: 0 | N164: 0
B165: 149 | C165: 7 | D165: 1 | E165: =Daten!I178 -> 0 | F165: =Daten!J178 -> 0 | I165: 0 | J165: 0 | K165: 0 | L165: 0 | M165: 0 | N165: 0
B166: 150 | C166: 7 | D166: 1 | E166: =Daten!I179 -> 0 | F166: =Daten!J179 -> 0 | I166: 0 | J166: 0 | K166: 0 | L166: 0 | M166: 0 | N166: 0
B167: 151 | C167: 7 | D167: 1 | E167: =Daten!I180 -> 0 | F167: =Daten!J180 -> 0 | I167: 0 | J167: 0 | K167: 0 | L167: 0 | M167: 0 | N167: 0
B168: 152 | C168: 7 | D168: 1 | E168: =Daten!I181 -> 0 | F168: =Daten!J181 -> 0 | I168: 0 | J168: 0 | K168: 0 | L168: 0 | M168: 0 | N168: 0
B169: 153 | C169: 7 | D169: 1 | E169: =Daten!I182 -> 0 | F169: =Daten!J182 -> 0 | I169: 0 | J169: 0 | K169: 0 | L169: 0 | M169: 0 | N169: 0
B170: 154 | C170: 7 | D170: 1 | E170: =Daten!I183 -> 0 | F170: =Daten!J183 -> 0 | I170: 0 | J170: 0 | K170: 0 | L170: 0 | M170: 0 | N170: 0
B171: 155 | C171: 7 | D171: 1 | E171: =Daten!I184 -> 0 | F171: =Daten!J184 -> 0 | I171: 0 | J171: 0 | K171: 0 | L171: 0 | M171: 0 | N171: 0
B172: 156 | C172: 7 | D172: 1 | E172: =Daten!I185 -> 0 | F172: =Daten!J185 -> 0 | I172: 0 | J172: 0 | K172: 0 | L172: 0 | M172: 0 | N172: 0
B173: 157 | C173: 7 | D173: 1 | E173: =Daten!I186 -> 0 | F173: =Daten!J186 -> 0 | I173: 0 | J173: 0 | K173: 0 | L173: 0 | M173: 0 | N173: 0
B174: 158 | C174: 7 | D174: 1 | E174: =Daten!I187 -> 0 | F174: =Daten!J187 -> 0 | I174: 0 | J174: 0 | K174: 0 | L174: 0 | M174: 0 | N174: 0
B175: 159 | C175: 7 | D175: 1 | E175: =Daten!I188 -> 0 | F175: =Daten!J188 -> 0 | I175: 0 | J175: 0 | K175: 0 | L175: 0 | M175: 0 | N175: 0
B176: 160 | C176: 7 | D176: 1 | E176: =Daten!I189 -> 0 | F176: =Daten!J189 -> 0 | I176: 0 | J176: 0 | K176: 0 | L176: 0 | M176: 0 | N176: 0
B177: 161 | C177: 7 | D177: 1 | E177: =Daten!I190 -> 0 | F177: =Daten!J190 -> 0 | I177: 0 | J177: 0 | K177: 0 | L177: 0 | M177: 0 | N177: 0
B178: 162 | C178: 7 | D178: 1 | E178: =Daten!I191 -> 0 | F178: =Daten!J191 -> 0 | I178: 0 | J178: 0 | K178: 0 | L178: 0 | M178: 0 | N178: 0
B179: 163 | C179: 7 | D179: 1 | E179: =Daten!I192 -> 0 | F179: =Daten!J192 -> 0 | I179: 0 | J179: 0 | K179: 0 | L179: 0 | M179: 0 | N179: 0
B180: 164 | C180: 7 | D180: 1 | E180: =Daten!I193 -> 0 | F180: =Daten!J193 -> 0 | I180: 0 | J180: 0 | K180: 0 | L180: 0 | M180: 0 | N180: 0
B181: 165 | C181: 7 | D181: 1 | E181: =Daten!I194 -> 0 | F181: =Daten!J194 -> 0 | I181: 0 | J181: 0 | K181: 0 | L181: 0 | M181: 0 | N181: 0
B182: 166 | C182: 7 | D182: 1 | E182: =Daten!I195 -> 0 | F182: =Daten!J195 -> 0 | I182: 0 | J182: 0 | K182: 0 | L182: 0 | M182: 0 | N182: 0
B183: 167 | C183: 7 | D183: 1 | E183: =Daten!I196 -> 0 | F183: =Daten!J196 -> 0 | I183: 0 | J183: 0 | K183: 0 | L183: 0 | M183: 0 | N183: 0
B184: 168 | C184: 7 | D184: 1 | E184: =Daten!I197 -> 0 | F184: =Daten!J197 -> 0 | I184: 0 | J184: 0 | K184: 0 | L184: 0 | M184: 0 | N184: 0
B185: 169 | C185: 8 | D185: 1 | E185: =Daten!I198 -> 0 | F185: =Daten!J198 -> 0 | I185: 0 | J185: 0 | K185: 0 | L185: 0 | M185: 0 | N185: 0
B186: 170 | C186: 8 | D186: 1 | E186: =Daten!I199 -> 0 | F186: =Daten!J199 -> 0 | I186: 0 | J186: 0 | K186: 0 | L186: 0 | M186: 0 | N186: 0
B187: 171 | C187: 8 | D187: 1 | E187: =Daten!I200 -> 0 | F187: =Daten!J200 -> 0 | I187: 0 | J187: 0 | K187: 0 | L187: 0 | M187: 0 | N187: 0
B188: 172 | C188: 8 | D188: 1 | E188: =Daten!I201 -> 0 | F188: =Daten!J201 -> 0 | I188: 0 | J188: 0 | K188: 0 | L188: 0 | M188: 0 | N188: 0
B189: 173 | C189: 8 | D189: 1 | E189: =Daten!I202 -> 0 | F189: =Daten!J202 -> 0 | I189: 0 | J189: 0 | K189: 0 | L189: 0 | M189: 0 | N189: 0
B190: 174 | C190: 8 | D190: 1 | E190: =Daten!I203 -> 0 | F190: =Daten!J203 -> 0 | I190: 0 | J190: 0 | K190: 0 | L190: 0 | M190: 0 | N190: 0
B191: 175 | C191: 8 | D191: 1 | E191: =Daten!I204 -> 0 | F191: =Daten!J204 -> 0 | I191: 0 | J191: 0 | K191: 0 | L191: 0 | M191: 0 | N191: 0
B192: 176 | C192: 8 | D192: 1 | E192: =Daten!I205 -> 0 | F192: =Daten!J205 -> 0 | I192: 0 | J192: 0 | K192: 0 | L192: 0 | M192: 0 | N192: 0
B193: 177 | C193: 8 | D193: 1 | E193: =Daten!I206 -> 0 | F193: =Daten!J206 -> 0 | I193: 0 | J193: 0 | K193: 0 | L193: 0 | M193: 0 | N193: 0
B194: 178 | C194: 8 | D194: 1 | E194: =Daten!I207 -> 0 | F194: =Daten!J207 -> 0 | I194: 0 | J194: 0 | K194: 0 | L194: 0 | M194: 0 | N194: 0
B195: 179 | C195: 8 | D195: 1 | E195: =Daten!I208 -> 0 | F195: =Daten!J208 -> 0 | I195: 0 | J195: 0 | K195: 0 | L195: 0 | M195: 0 | N195: 0
B196: 180 | C196: 8 | D196: 1 | E196: =Daten!I209 -> 0 | F196: =Daten!J209 -> 0 | I196: 0 | J196: 0 | K196: 0 | L196: 0 | M196: 0 | N196: 0
B197: 181 | C197: 8 | D197: 1 | E197: =Daten!I210 -> 0 | F197: =Daten!J210 -> 0 | I197: 0 | J197: 0 | K197: 0 | L197: 0 | M197: 0 | N197: 0
B198: 182 | C198: 8 | D198: 1 | E198: =Daten!I211 -> 0 | F198: =Daten!J211 -> 0 | I198: 0 | J198: 0 | K198: 0 | L198: 0 | M198: 0 | N198: 0
B199: 183 | C199: 8 | D199: 1 | E199: =Daten!I212 -> 0 | F199: =Daten!J212 -> 0 | I199: 0 | J199: 0 | K199: 0 | L199: 0 | M199: 0 | N199: 0
B200: 184 | C200: 8 | D200: 1 | E200: =Daten!I213 -> 0 | F200: =Daten!J213 -> 0 | I200: 0 | J200: 0 | K200: 0 | L200: 0 | M200: 0 | N200: 0
B201: 185 | C201: 8 | D201: 1 | E201: =Daten!I214 -> 0 | F201: =Daten!J214 -> 0 | I201: 0 | J201: 0 | K201: 0 | L201: 0 | M201: 0 | N201: 0
B202: 186 | C202: 8 | D202: 1 | E202: =Daten!I215 -> 0 | F202: =Daten!J215 -> 0 | I202: 0 | J202: 0 | K202: 0 | L202: 0 | M202: 0 | N202: 0
B203: 187 | C203: 8 | D203: 1 | E203: =Daten!I216 -> 0 | F203: =Daten!J216 -> 0 | I203: 0 | J203: 0 | K203: 0 | L203: 0 | M203: 0 | N203: 0
B204: 188 | C204: 8 | D204: 1 | E204: =Daten!I217 -> 0 | F204: =Daten!J217 -> 0 | I204: 0 | J204: 0 | K204: 0 | L204: 0 | M204: 0 | N204: 0
... 4296 more rows

Sheet SR (hidden)
A1: Modellierung
D2: Datensatz | E2: Lastkurve (W) | F2: PV-Produktion (W) | I2: Solarspeicher Periodenanfang | J2: Eigenverbrauch (W) | K2: Bezug (W) | L2: Speicherung / Entnahme (W) | M2: Einspeisung (W) | N2: Speicherstand Periodenende
A3: Model Eingang
A8: Model Ausgang | E8: Summe | F8: Summe | J8: Summe | K8: Summe | L8: Summe | M8: Summe | P8: Jahresstromverbrauch | Q8: =E14 -> 0
E9: =SUM(E17:E8776) -> 0 | F9: =SUM(F17:F8776) -> 0 | I9: =AVERAGE(I17:I8776) -> 0 | J9: =SUM(J17:J8776) -> 0 | K9: =SUM(K17:K8776) -> 0 | L9: =SUM(L17:L8776) -> 0 | M9: =SUM(M17:M8776) -> 0 | P9: PV-Produktion | Q9: =F14 -> 0
J10: Wh | K10: Wh | L10: Wh | M10: Wh | P10: Eigenverbrauch (kWh) | Q10: =J14 -> 0
L11: Summe Speicherung | P11: Bezug (kWh) | Q11: =K14 -> 0
L12: =(SUMIF(L17:L8776,">0"))/1000 -> 0 | P12: Einspeisung (kWh) | Q12: =M14 -> 0
E13: Jahresstromverbrauch | F13: PV-Produktion | J13: Eigenverbrauch (kWh) | K13: Bezug (kWh) | L13: Verluste (Speicherung - Entnahme) | M13: Einspeisung (kWh) | P13: Verluste (Speicherung - Entnahme) | Q13: =L14 -> 0
E14: =E9/1000 -> 0 | F14: =F9/1000 -> 0 | J14: =J9/1000 -> 0 | K14: =K9/1000 -> 0 | L14: =L9/1000 -> 0 | M14: =M9/1000 -> 0 | P14: Volllastzyklen | Q14: =IFERROR(L12/(BatteriespeicherWh/1000),"-") -> -
P15: Direktverbrauch | Q15: =Q10-Q16 -> 0
A16: Berechnungen | B16: Stunde | C16: Tag | D16: Monat | E16: Lastkurve (W) | F16: PV-Produktion | I16: Daten | J16: Daten | K16: Daten | L16: Daten | M16: Daten | N16: Daten | P16: Eigenverbrauch aus Batterie | Q16: =L12-L14 -> 0 | U16: Solar-produktion | V16: Verbrauch | X16: Solar-Einspeisung | Y16: Netzbezug | Z16: Solar-Eigenverbrauch | AA16: Eigenverbrauchsquote | AB16: Autarkiegrad | AC16: Einspeisequote | AD16: Verluste (%)
B17: 1 | C17: =CEILING(B17/24,1) -> 1 | D17: =MONTH(C17) -> 1 | E17: =Daten!L30 -> 0 | F17: =Daten!M30 -> 0 | I17: 0 | J17: =MIN(E17,F17+I17) -> 0 | K17: =E17-J17 -> 0 | L17: =MIN((F17-J17),0-I17) -> 0 | M17: =F17-(J17+L17) -> 0 | N17: =IF(L17>0,I17+L17*Wirkungsgrad,I17+L17) -> 0 | P17: Einspeicherung (kWh) | Q17: =L12 -> 0 | T17: 1 | U17: =SUMIF(D:D,T17,F:F)/1000 -> 0 | V17: =SUMIF(D:D,T17,E:E)/1000 -> 0 | W17: Jan | X17: =SUMIF(D:D,T17,M:M)/1000 -> 0 | Y17: =SUMIF(D:D,T17,K:K)/1000 -> 0 | Z17: =SUMIF(D:D,T17,J:J)/1000 -> 0 | AA17: =Z17/U17 ->  | AB17: =Z17/V17 ->  | AC17: =X17/U17 ->  | AD17: =(U17-X17-Z17)/U17 -> 
B18: 2 | C18: =CEILING(B18/24,1) -> 1 | D18: =MONTH(C18) -> 1 | E18: =Daten!L31 -> 0 | F18: =Daten!M31 -> 0 | I18: =N17 -> 0 | J18: =MIN(E18,F18+I18) -> 0 | K18: =E18-J18 -> 0 | L18: =MIN((F18-J18),0-I18) -> 0 | M18: =F18-(J18+L18) -> 0 | N18: 0 | P18: Direktverbrauchsquote | Q18: =IFERROR(Q15/Q9,"-") -> - | T18: 2 | U18: 0 | V18: 0 | W18: Feb | X18: 0 | Y18: 0 | Z18: 0
B19: 3 | C19: 1 | D19: 1 | E19: =Daten!L32 -> 0 | F19: =Daten!M32 -> 0 | I19: =N18 -> 0 | J19: 0 | K19: 0 | L19: 0 | M19: 0 | N19: 0 | P19: Eigenverbrauchsquote über Batterie | Q19: =IFERROR(Q16/Q9,"-") -> - | T19: 3 | U19: 0 | V19: 0 | W19: Mrz | X19: 0 | Y19: 0 | Z19: 0
B20: 4 | C20: 1 | D20: 1 | E20: =Daten!L33 -> 0 | F20: =Daten!M33 -> 0 | I20: 0 | J20: 0 | K20: 0 | L20: 0 | M20: 0 | N20: 0 | P20: Eigenverbrauchsquote | Q20: =IFERROR(Q10/Q9,"-") -> - | T20: 4 | U20: 0 | V20: 0 | W20: Apr | X20: 0 | Y20: 0 | Z20: 0
B21: 5 | C21: 1 | D21: 1 | E21: =Daten!L34 -> 0 | F21: =Daten!M34 -> 0 | I21: 0 | J21: 0 | K21: 0 | L21: 0 | M21: 0 | N21: 0 | P21: Einspeisequote | Q21: =IFERROR(Q12/Q9,"-") -> - | T21: 5 | U21: 0 | V21: 0 | W21: Mai | X21: 0 | Y21: 0 | Z21: 0
B22: 6 | C22: 1 | D22: 1 | E22: =Daten!L35 -> 0 | F22: =Daten!M35 -> 0 | I22: 0 | J22: 0 | K22: 0 | L22: 0 | M22: 0 | N22: 0 | P22: Verluste Batterie | Q22: =IFERROR(Q13/Q9,"-") -> - | T22: 6 | U22: 0 | V22: 0 | W22: Jun | X22: 0 | Y22: 0 | Z22: 0
B23: 7 | C23: 1 | D23: 1 | E23: =Daten!L36 -> 0 | F23: =Daten!M36 -> 0 | I23: 0 | J23: 0 | K23: 0 | L23: 0 | M23: 0 | N23: 0 | P23: Autarkiegrad | Q23: =Q10/Q8 ->  | T23: 7 | U23: 0 | V23: 0 | W23: Jul | X23: 0 | Y23: 0 | Z23: 0
B24: 8 | C24: 1 | D24: 1 | E24: =Daten!L37 -> 0 | F24: =Daten!M37 -> 0 | I24: 0 | J24: 0 | K24: 0 | L24: 0 | M24: 0 | N24: 0 | T24: 8 | U24: 0 | V24: 0 | W24: Aug | X24: 0 | Y24: 0 | Z24: 0
B25: 9 | C25: 1 | D25: 1 | E25: =Daten!L38 -> 0 | F25: =Daten!M38 -> 0 | I25: 0 | J25: 0 | K25: 0 | L25: 0 | M25: 0 | N25: 0 | T25: 9 | U25: 0 | V25: 0 | W25: Sep | X25: 0 | Y25: 0 | Z25: 0
B26: 10 | C26: 1 | D26: 1 | E26: =Daten!L39 -> 0 | F26: =Daten!M39 -> 0 | I26: 0 | J26: 0 | K26: 0 | L26: 0 | M26: 0 | N26: 0 | T26: 10 | U26: 0 | V26: 0 | W26: Okt | X26: 0 | Y26: 0 | Z26: 0
B27: 11 | C27: 1 | D27: 1 | E27: =Daten!L40 -> 0 | F27: =Daten!M40 -> 0 | I27: 0 | J27: 0 | K27: 0 | L27: 0 | M27: 0 | N27: 0 | T27: 11 | U27: 0 | V27: 0 | W27: Nov | X27: 0 | Y27: 0 | Z27: 0
B28: 12 | C28: 1 | D28: 1 | E28: =Daten!L41 -> 0 | F28: =Daten!M41 -> 0 | I28: 0 | J28: 0 | K28: 0 | L28: 0 | M28: 0 | N28: 0 | T28: 12 | U28: 0 | V28: 0 | W28: Dez | X28: 0 | Y28: 0 | Z28: 0
B29: 13 | C29: 1 | D29: 1 | E29: =Daten!L42 -> 0 | F29: =Daten!M42 -> 0 | I29: 0 | J29: 0 | K29: 0 | L29: 0 | M29: 0 | N29: 0 | U29: Solar-produktion | V29: Verbrauch | X29: Solar-Einspeisung | Y29: Netzbezug | Z29: Solar-Eigenverbrauch | AA29: Eigenverbrauchsquote | AB29: Autarkiegrad | AC29: Einspeisequote | AD29: Verluste (%)
B30: 14 | C30: 1 | D30: 1 | E30: =Daten!L43 -> 0 | F30: =Daten!M43 -> 0 | I30: 0 | J30: 0 | K30: 0 | L30: 0 | M30: 0 | N30: 0 | T30: Jahr | U30: =SUM(U17:U28) -> 0 | V30: =SUM(V17:V28) -> 0 | X30: =SUM(X17:X28) -> 0 | Y30: =SUM(Y17:Y28) -> 0 | Z30: =SUM(Z17:Z28) -> 0 | AA30: =Z30/U30 ->  | AB30: =Z30/V30 ->  | AC30: =X30/U30 ->  | AD30: =(U30-X30-Z30)/U30 -> 
B31: 15 | C31: 1 | D31: 1 | E31: =Daten!L44 -> 0 | F31: =Daten!M44 -> 0 | I31: 0 | J31: 0 | K31: 0 | L31: 0 | M31: 0 | N31: 0
B32: 16 | C32: 1 | D32: 1 | E32: =Daten!L45 -> 0 | F32: =Daten!M45 -> 0 | I32: 0 | J32: 0 | K32: 0 | L32: 0 | M32: 0 | N32: 0
B33: 17 | C33: 1 | D33: 1 | E33: =Daten!L46 -> 0 | F33: =Daten!M46 -> 0 | I33: 0 | J33: 0 | K33: 0 | L33: 0 | M33: 0 | N33: 0
B34: 18 | C34: 1 | D34: 1 | E34: =Daten!L47 -> 0 | F34: =Daten!M47 -> 0 | I34: 0 | J34: 0 | K34: 0 | L34: 0 | M34: 0 | N34: 0
B35: 19 | C35: 1 | D35: 1 | E35: =Daten!L48 -> 0 | F35: =Daten!M48 -> 0 | I35: 0 | J35: 0 | K35: 0 | L35: 0 | M35: 0 | N35: 0
B36: 20 | C36: 1 | D36: 1 | E36: =Daten!L49 -> 0 | F36: =Daten!M49 -> 0 | I36: 0 | J36: 0 | K36: 0 | L36: 0 | M36: 0 | N36: 0
B37: 21 | C37: 1 | D37: 1 | E37: =Daten!L50 -> 0 | F37: =Daten!M50 -> 0 | I37: 0 | J37: 0 | K37: 0 | L37: 0 | M37: 0 | N37: 0
B38: 22 | C38: 1 | D38: 1 | E38: =Daten!L51 -> 0 | F38: =Daten!M51 -> 0 | I38: 0 | J38: 0 | K38: 0 | L38: 0 | M38: 0 | N38: 0
B39: 23 | C39: 1 | D39: 1 | E39: =Daten!L52 -> 0 | F39: =Daten!M52 -> 0 | I39: 0 | J39: 0 | K39: 0 | L39: 0 | M39: 0 | N39: 0
B40: 24 | C40: 1 | D40: 1 | E40: =Daten!L53 -> 0 | F40: =Daten!M53 -> 0 | I40: 0 | J40: 0 | K40: 0 | L40: 0 | M40: 0 | N40: 0
B41: 25 | C41: 2 | D41: 1 | E41: =Daten!L54 -> 0 | F41: =Daten!M54 -> 0 | I41: 0 | J41: 0 | K41: 0 | L41: 0 | M41: 0 | N41: 0
B42: 26 | C42: 2 | D42: 1 | E42: =Daten!L55 -> 0 | F42: =Daten!M55 -> 0 | I42: 0 | J42: 0 | K42: 0 | L42: 0 | M42: 0 | N42: 0
B43: 27 | C43: 2 | D43: 1 | E43: =Daten!L56 -> 0 | F43: =Daten!M56 -> 0 | I43: 0 | J43: 0 | K43: 0 | L43: 0 | M43: 0 | N43: 0
B44: 28 | C44: 2 | D44: 1 | E44: =Daten!L57 -> 0 | F44: =Daten!M57 -> 0 | I44: 0 | J44: 0 | K44: 0 | L44: 0 | M44: 0 | N44: 0
B45: 29 | C45: 2 | D45: 1 | E45: =Daten!L58 -> 0 | F45: =Daten!M58 -> 0 | I45: 0 | J45: 0 | K45: 0 | L45: 0 | M45: 0 | N45: 0
B46: 30 | C46: 2 | D46: 1 | E46: =Daten!L59 -> 0 | F46: =Daten!M59 -> 0 | I46: 0 | J46: 0 | K46: 0 | L46: 0 | M46: 0 | N46: 0
B47: 31 | C47: 2 | D47: 1 | E47: =Daten!L60 -> 0 | F47: =Daten!M60 -> 0 | I47: 0 | J47: 0 | K47: 0 | L47: 0 | M47: 0 | N47: 0
B48: 32 | C48: 2 | D48: 1 | E48: =Daten!L61 -> 0 | F48: =Daten!M61 -> 0 | I48: 0 | J48: 0 | K48: 0 | L48: 0 | M48: 0 | N48: 0
B49: 33 | C49: 2 | D49: 1 | E49: =Daten!L62 -> 0 | F49: =Daten!M62 -> 0 | I49: 0 | J49: 0 | K49: 0 | L49: 0 | M49: 0 | N49: 0
B50: 34 | C50: 2 | D50: 1 | E50: =Daten!L63 -> 0 | F50: =Daten!M63 -> 0 | I50: 0 | J50: 0 | K50: 0 | L50: 0 | M50: 0 | N50: 0
B51: 35 | C51: 2 | D51: 1 | E51: =Daten!L64 -> 0 | F51: =Daten!M64 -> 0 | I51: 0 | J51: 0 | K51: 0 | L51: 0 | M51: 0 | N51: 0
B52: 36 | C52: 2 | D52: 1 | E52: =Daten!L65 -> 0 | F52: =Daten!M65 -> 0 | I52: 0 | J52: 0 | K52: 0 | L52: 0 | M52: 0 | N52: 0
B53: 37 | C53: 2 | D53: 1 | E53: =Daten!L66 -> 0 | F53: =Daten!M66 -> 0 | I53: 0 | J53: 0 | K53: 0 | L53: 0 | M53: 0 | N53: 0
B54: 38 | C54: 2 | D54: 1 | E54: =Daten!L67 -> 0 | F54: =Daten!M67 -> 0 | I54: 0 | J54: 0 | K54: 0 | L54: 0 | M54: 0 | N54: 0
B55: 39 | C55: 2 | D55: 1 | E55: =Daten!L68 -> 0 | F55: =Daten!M68 -> 0 | I55: 0 | J55: 0 | K55: 0 | L55: 0 | M55: 0 | N55: 0
B56: 40 | C56: 2 | D56: 1 | E56: =Daten!L69 -> 0 | F56: =Daten!M69 -> 0 | I56: 0 | J56: 0 | K56: 0 | L56: 0 | M56: 0 | N56: 0
B57: 41 | C57: 2 | D57: 1 | E57: =Daten!L70 -> 0 | F57: =Daten!M70 -> 0 | I57: 0 | J57: 0 | K57: 0 | L57: 0 | M57: 0 | N57: 0
B58: 42 | C58: 2 | D58: 1 | E58: =Daten!L71 -> 0 | F58: =Daten!M71 -> 0 | I58: 0 | J58: 0 | K58: 0 | L58: 0 | M58: 0 | N58: 0
B59: 43 | C59: 2 | D59: 1 | E59: =Daten!L72 -> 0 | F59: =Daten!M72 -> 0 | I59: 0 | J59: 0 | K59: 0 | L59: 0 | M59: 0 | N59: 0
B60: 44 | C60: 2 | D60: 1 | E60: =Daten!L73 -> 0 | F60: =Daten!M73 -> 0 | I60: 0 | J60: 0 | K60: 0 | L60: 0 | M60: 0 | N60: 0
B61: 45 | C61: 2 | D61: 1 | E61: =Daten!L74 -> 0 | F61: =Daten!M74 -> 0 | I61: 0 | J61: 0 | K61: 0 | L61: 0 | M61: 0 | N61: 0
B62: 46 | C62: 2 | D62: 1 | E62: =Daten!L75 -> 0 | F62: =Daten!M75 -> 0 | I62: 0 | J62: 0 | K62: 0 | L62: 0 | M62: 0 | N62: 0
B63: 47 | C63: 2 | D63: 1 | E63: =Daten!L76 -> 0 | F63: =Daten!M76 -> 0 | I63: 0 | J63: 0 | K63: 0 | L63: 0 | M63: 0 | N63: 0
B64: 48 | C64: 2 | D64: 1 | E64: =Daten!L77 -> 0 | F64: =Daten!M77 -> 0 | I64: 0 | J64: 0 | K64: 0 | L64: 0 | M64: 0 | N64: 0
B65: 49 | C65: 3 | D65: 1 | E65: =Daten!L78 -> 0 | F65: =Daten!M78 -> 0 | I65: 0 | J65: 0 | K65: 0 | L65: 0 | M65: 0 | N65: 0
B66: 50 | C66: 3 | D66: 1 | E66: =Daten!L79 -> 0 | F66: =Daten!M79 -> 0 | I66: 0 | J66: 0 | K66: 0 | L66: 0 | M66: 0 | N66: 0
B67: 51 | C67: 3 | D67: 1 | E67: =Daten!L80 -> 0 | F67: =Daten!M80 -> 0 | I67: 0 | J67: 0 | K67: 0 | L67: 0 | M67: 0 | N67: 0
B68: 52 | C68: 3 | D68: 1 | E68: =Daten!L81 -> 0 | F68: =Daten!M81 -> 0 | I68: 0 | J68: 0 | K68: 0 | L68: 0 | M68: 0 | N68: 0
B69: 53 | C69: 3 | D69: 1 | E69: =Daten!L82 -> 0 | F69: =Daten!M82 -> 0 | I69: 0 | J69: 0 | K69: 0 | L69: 0 | M69: 0 | N69: 0
B70: 54 | C70: 3 | D70: 1 | E70: =Daten!L83 -> 0 | F70: =Daten!M83 -> 0 | I70: 0 | J70: 0 | K70: 0 | L70: 0 | M70: 0 | N70: 0
B71: 55 | C71: 3 | D71: 1 | E71: =Daten!L84 -> 0 | F71: =Daten!M84 -> 0 | I71: 0 | J71: 0 | K71: 0 | L71: 0 | M71: 0 | N71: 0
B72: 56 | C72: 3 | D72: 1 | E72: =Daten!L85 -> 0 | F72: =Daten!M85 -> 0 | I72: 0 | J72: 0 | K72: 0 | L72: 0 | M72: 0 | N72: 0
B73: 57 | C73: 3 | D73: 1 | E73: =Daten!L86 -> 0 | F73: =Daten!M86 -> 0 | I73: 0 | J73: 0 | K73: 0 | L73: 0 | M73: 0 | N73: 0
B74: 58 | C74: 3 | D74: 1 | E74: =Daten!L87 -> 0 | F74: =Daten!M87 -> 0 | I74: 0 | J74: 0 | K74: 0 | L74: 0 | M74: 0 | N74: 0
B75: 59 | C75: 3 | D75: 1 | E75: =Daten!L88 -> 0 | F75: =Daten!M88 -> 0 | I75: 0 | J75: 0 | K75: 0 | L75: 0 | M75: 0 | N75: 0
B76: 60 | C76: 3 | D76: 1 | E76: =Daten!L89 -> 0 | F76: =Daten!M89 -> 0 | I76: 0 | J76: 0 | K76: 0 | L76: 0 | M76: 0 | N76: 0
B77: 61 | C77: 3 | D77: 1 | E77: =Daten!L90 -> 0 | F77: =Daten!M90 -> 0 | I77: 0 | J77: 0 | K77: 0 | L77: 0 | M77: 0 | N77: 0
B78: 62 | C78: 3 | D78: 1 | E78: =Daten!L91 -> 0 | F78: =Daten!M91 -> 0 | I78: 0 | J78: 0 | K78: 0 | L78: 0 | M78: 0 | N78: 0
B79: 63 | C79: 3 | D79: 1 | E79: =Daten!L92 -> 0 | F79: =Daten!M92 -> 0 | I79: 0 | J79: 0 | K79: 0 | L79: 0 | M79: 0 | N79: 0
B80: 64 | C80: 3 | D80: 1 | E80: =Daten!L93 -> 0 | F80: =Daten!M93 -> 0 | I80: 0 | J80: 0 | K80: 0 | L80: 0 | M80: 0 | N80: 0
B81: 65 | C81: 3 | D81: 1 | E81: =Daten!L94 -> 0 | F81: =Daten!M94 -> 0 | I81: 0 | J81: 0 | K81: 0 | L81: 0 | M81: 0 | N81: =IF(L81>0,I81+L81*Wirkungsgrad,I81+L81) -> 0
B82: 66 | C82: =CEILING(B82/24,1) -> 3 | D82: =MONTH(C82) -> 1 | E82: =Daten!L95 -> 0 | F82: =Daten!M95 -> 0 | I82: 0 | J82: =MIN(E82,F82+I82) -> 0 | K82: =E82-J82 -> 0 | L82: =MIN((F82-J82),0-I82) -> 0 | M82: =F82-(J82+L82) -> 0 | N82: 0
B83: 67 | C83: 3 | D83: 1 | E83: =Daten!L96 -> 0 | F83: =Daten!M96 -> 0 | I83: =N82 -> 0 | J83: 0 | K83: 0 | L83: 0 | M83: 0 | N83: 0
B84: 68 | C84: 3 | D84: 1 | E84: =Daten!L97 -> 0 | F84: =Daten!M97 -> 0 | I84: 0 | J84: 0 | K84: 0 | L84: 0 | M84: 0 | N84: 0
B85: 69 | C85: 3 | D85: 1 | E85: =Daten!L98 -> 0 | F85: =Daten!M98 -> 0 | I85: 0 | J85: 0 | K85: 0 | L85: 0 | M85: 0 | N85: 0
B86: 70 | C86: 3 | D86: 1 | E86: =Daten!L99 -> 0 | F86: =Daten!M99 -> 0 | I86: 0 | J86: 0 | K86: 0 | L86: 0 | M86: 0 | N86: 0
B87: 71 | C87: 3 | D87: 1 | E87: =Daten!L100 -> 0 | F87: =Daten!M100 -> 0 | I87: 0 | J87: 0 | K87: 0 | L87: 0 | M87: 0 | N87: 0
B88: 72 | C88: 3 | D88: 1 | E88: =Daten!L101 -> 0 | F88: =Daten!M101 -> 0 | I88: 0 | J88: 0 | K88: 0 | L88: 0 | M88: 0 | N88: 0
B89: 73 | C89: 4 | D89: 1 | E89: =Daten!L102 -> 0 | F89: =Daten!M102 -> 0 | I89: 0 | J89: 0 | K89: 0 | L89: 0 | M89: 0 | N89: 0
B90: 74 | C90: 4 | D90: 1 | E90: =Daten!L103 -> 0 | F90: =Daten!M103 -> 0 | I90: 0 | J90: 0 | K90: 0 | L90: 0 | M90: 0 | N90: 0
B91: 75 | C91: 4 | D91: 1 | E91: =Daten!L104 -> 0 | F91: =Daten!M104 -> 0 | I91: 0 | J91: 0 | K91: 0 | L91: 0 | M91: 0 | N91: 0
B92: 76 | C92: 4 | D92: 1 | E92: =Daten!L105 -> 0 | F92: =Daten!M105 -> 0 | I92: 0 | J92: 0 | K92: 0 | L92: 0 | M92: 0 | N92: 0
B93: 77 | C93: 4 | D93: 1 | E93: =Daten!L106 -> 0 | F93: =Daten!M106 -> 0 | I93: 0 | J93: 0 | K93: 0 | L93: 0 | M93: 0 | N93: 0
B94: 78 | C94: 4 | D94: 1 | E94: =Daten!L107 -> 0 | F94: =Daten!M107 -> 0 | I94: 0 | J94: 0 | K94: 0 | L94: 0 | M94: 0 | N94: 0
B95: 79 | C95: 4 | D95: 1 | E95: =Daten!L108 -> 0 | F95: =Daten!M108 -> 0 | I95: 0 | J95: 0 | K95: 0 | L95: 0 | M95: 0 | N95: 0
B96: 80 | C96: 4 | D96: 1 | E96: =Daten!L109 -> 0 | F96: =Daten!M109 -> 0 | I96: 0 | J96: 0 | K96: 0 | L96: 0 | M96: 0 | N96: 0
B97: 81 | C97: 4 | D97: 1 | E97: =Daten!L110 -> 0 | F97: =Daten!M110 -> 0 | I97: 0 | J97: 0 | K97: 0 | L97: 0 | M97: 0 | N97: 0
B98: 82 | C98: 4 | D98: 1 | E98: =Daten!L111 -> 0 | F98: =Daten!M111 -> 0 | I98: 0 | J98: 0 | K98: 0 | L98: 0 | M98: 0 | N98: 0
B99: 83 | C99: 4 | D99: 1 | E99: =Daten!L112 -> 0 | F99: =Daten!M112 -> 0 | I99: 0 | J99: 0 | K99: 0 | L99: 0 | M99: 0 | N99: 0
B100: 84 | C100: 4 | D100: 1 | E100: =Daten!L113 -> 0 | F100: =Daten!M113 -> 0 | I100: 0 | J100: 0 | K100: 0 | L100: 0 | M100: 0 | N100: 0
B101: 85 | C101: 4 | D101: 1 | E101: =Daten!L114 -> 0 | F101: =Daten!M114 -> 0 | I101: 0 | J101: 0 | K101: 0 | L101: 0 | M101: 0 | N101: 0
B102: 86 | C102: 4 | D102: 1 | E102: =Daten!L115 -> 0 | F102: =Daten!M115 -> 0 | I102: 0 | J102: 0 | K102: 0 | L102: 0 | M102: 0 | N102: 0
B103: 87 | C103: 4 | D103: 1 | E103: =Daten!L116 -> 0 | F103: =Daten!M116 -> 0 | I103: 0 | J103: 0 | K103: 0 | L103: 0 | M103: 0 | N103: 0
B104: 88 | C104: 4 | D104: 1 | E104: =Daten!L117 -> 0 | F104: =Daten!M117 -> 0 | I104: 0 | J104: 0 | K104: 0 | L104: 0 | M104: 0 | N104: 0
B105: 89 | C105: 4 | D105: 1 | E105: =Daten!L118 -> 0 | F105: =Daten!M118 -> 0 | I105: 0 | J105: 0 | K105: 0 | L105: 0 | M105: 0 | N105: 0
B106: 90 | C106: 4 | D106: 1 | E106: =Daten!L119 -> 0 | F106: =Daten!M119 -> 0 | I106: 0 | J106: 0 | K106: 0 | L106: 0 | M106: 0 | N106: 0
B107: 91 | C107: 4 | D107: 1 | E107: =Daten!L120 -> 0 | F107: =Daten!M120 -> 0 | I107: 0 | J107: 0 | K107: 0 | L107: 0 | M107: 0 | N107: 0
B108: 92 | C108: 4 | D108: 1 | E108: =Daten!L121 -> 0 | F108: =Daten!M121 -> 0 | I108: 0 | J108: 0 | K108: 0 | L108: 0 | M108: 0 | N108: 0
B109: 93 | C109: 4 | D109: 1 | E109: =Daten!L122 -> 0 | F109: =Daten!M122 -> 0 | I109: 0 | J109: 0 | K109: 0 | L109: 0 | M109: 0 | N109: 0
B110: 94 | C110: 4 | D110: 1 | E110: =Daten!L123 -> 0 | F110: =Daten!M123 -> 0 | I110: 0 | J110: 0 | K110: 0 | L110: 0 | M110: 0 | N110: 0
B111: 95 | C111: 4 | D111: 1 | E111: =Daten!L124 -> 0 | F111: =Daten!M124 -> 0 | I111: 0 | J111: 0 | K111: 0 | L111: 0 | M111: 0 | N111: 0
B112: 96 | C112: 4 | D112: 1 | E112: =Daten!L125 -> 0 | F112: =Daten!M125 -> 0 | I112: 0 | J112: 0 | K112: 0 | L112: 0 | M112: 0 | N112: 0
B113: 97 | C113: 5 | D113: 1 | E113: =Daten!L126 -> 0 | F113: =Daten!M126 -> 0 | I113: 0 | J113: 0 | K113: 0 | L113: 0 | M113: 0 | N113: 0
B114: 98 | C114: 5 | D114: 1 | E114: =Daten!L127 -> 0 | F114: =Daten!M127 -> 0 | I114: 0 | J114: 0 | K114: 0 | L114: 0 | M114: 0 | N114: 0
B115: 99 | C115: 5 | D115: 1 | E115: =Daten!L128 -> 0 | F115: =Daten!M128 -> 0 | I115: 0 | J115: 0 | K115: 0 | L115: 0 | M115: 0 | N115: 0
B116: 100 | C116: 5 | D116: 1 | E116: =Daten!L129 -> 0 | F116: =Daten!M129 -> 0 | I116: 0 | J116: 0 | K116: 0 | L116: 0 | M116: 0 | N116: 0
B117: 101 | C117: 5 | D117: 1 | E117: =Daten!L130 -> 0 | F117: =Daten!M130 -> 0 | I117: 0 | J117: 0 | K117: 0 | L117: 0 | M117: 0 | N117: 0
B118: 102 | C118: 5 | D118: 1 | E118: =Daten!L131 -> 0 | F118: =Daten!M131 -> 0 | I118: 0 | J118: 0 | K118: 0 | L118: 0 | M118: 0 | N118: 0
B119: 103 | C119: 5 | D119: 1 | E119: =Daten!L132 -> 0 | F119: =Daten!M132 -> 0 | I119: 0 | J119: 0 | K119: 0 | L119: 0 | M119: 0 | N119: 0
B120: 104 | C120: 5 | D120: 1 | E120: =Daten!L133 -> 0 | F120: =Daten!M133 -> 0 | I120: 0 | J120: 0 | K120: 0 | L120: 0 | M120: 0 | N120: 0
B121: 105 | C121: 5 | D121: 1 | E121: =Daten!L134 -> 0 | F121: =Daten!M134 -> 0 | I121: 0 | J121: 0 | K121: 0 | L121: 0 | M121: 0 | N121: 0
B122: 106 | C122: 5 | D122: 1 | E122: =Daten!L135 -> 0 | F122: =Daten!M135 -> 0 | I122: 0 | J122: 0 | K122: 0 | L122: 0 | M122: 0 | N122: 0
B123: 107 | C123: 5 | D123: 1 | E123: =Daten!L136 -> 0 | F123: =Daten!M136 -> 0 | I123: 0 | J123: 0 | K123: 0 | L123: 0 | M123: 0 | N123: 0
B124: 108 | C124: 5 | D124: 1 | E124: =Daten!L137 -> 0 | F124: =Daten!M137 -> 0 | I124: 0 | J124: 0 | K124: 0 | L124: 0 | M124: 0 | N124: 0
B125: 109 | C125: 5 | D125: 1 | E125: =Daten!L138 -> 0 | F125: =Daten!M138 -> 0 | I125: 0 | J125: 0 | K125: 0 | L125: 0 | M125: 0 | N125: 0
B126: 110 | C126: 5 | D126: 1 | E126: =Daten!L139 -> 0 | F126: =Daten!M139 -> 0 | I126: 0 | J126: 0 | K126: 0 | L126: 0 | M126: 0 | N126: 0
B127: 111 | C127: 5 | D127: 1 | E127: =Daten!L140 -> 0 | F127: =Daten!M140 -> 0 | I127: 0 | J127: 0 | K127: 0 | L127: 0 | M127: 0 | N127: 0
B128: 112 | C128: 5 | D128: 1 | E128: =Daten!L141 -> 0 | F128: =Daten!M141 -> 0 | I128: 0 | J128: 0 | K128: 0 | L128: 0 | M128: 0 | N128: 0
B129: 113 | C129: 5 | D129: 1 | E129: =Daten!L142 -> 0 | F129: =Daten!M142 -> 0 | I129: 0 | J129: 0 | K129: 0 | L129: 0 | M129: 0 | N129: 0
B130: 114 | C130: 5 | D130: 1 | E130: =Daten!L143 -> 0 | F130: =Daten!M143 -> 0 | I130: 0 | J130: 0 | K130: 0 | L130: 0 | M130: 0 | N130: 0
B131: 115 | C131: 5 | D131: 1 | E131: =Daten!L144 -> 0 | F131: =Daten!M144 -> 0 | I131: 0 | J131: 0 | K131: 0 | L131: 0 | M131: 0 | N131: 0
B132: 116 | C132: 5 | D132: 1 | E132: =Daten!L145 -> 0 | F132: =Daten!M145 -> 0 | I132: 0 | J132: 0 | K132: 0 | L132: 0 | M132: 0 | N132: 0
B133: 117 | C133: 5 | D133: 1 | E133: =Daten!L146 -> 0 | F133: =Daten!M146 -> 0 | I133: 0 | J133: 0 | K133: 0 | L133: 0 | M133: 0 | N133: 0
B134: 118 | C134: 5 | D134: 1 | E134: =Daten!L147 -> 0 | F134: =Daten!M147 -> 0 | I134: 0 | J134: 0 | K134: 0 | L134: 0 | M134: 0 | N134: 0
B135: 119 | C135: 5 | D135: 1 | E135: =Daten!L148 -> 0 | F135: =Daten!M148 -> 0 | I135: 0 | J135: 0 | K135: 0 | L135: 0 | M135: 0 | N135: 0
B136: 120 | C136: 5 | D136: 1 | E136: =Daten!L149 -> 0 | F136: =Daten!M149 -> 0 | I136: 0 | J136: 0 | K136: 0 | L136: 0 | M136: 0 | N136: 0
B137: 121 | C137: 6 | D137: 1 | E137: =Daten!L150 -> 0 | F137: =Daten!M150 -> 0 | I137: 0 | J137: 0 | K137: 0 | L137: 0 | M137: 0 | N137: 0
B138: 122 | C138: 6 | D138: 1 | E138: =Daten!L151 -> 0 | F138: =Daten!M151 -> 0 | I138: 0 | J138: 0 | K138: 0 | L138: 0 | M138: 0 | N138: 0
B139: 123 | C139: 6 | D139: 1 | E139: =Daten!L152 -> 0 | F139: =Daten!M152 -> 0 | I139: 0 | J139: 0 | K139: 0 | L139: 0 | M139: 0 | N139: 0
B140: 124 | C140: 6 | D140: 1 | E140: =Daten!L153 -> 0 | F140: =Daten!M153 -> 0 | I140: 0 | J140: 0 | K140: 0 | L140: 0 | M140: 0 | N140: 0
B141: 125 | C141: 6 | D141: 1 | E141: =Daten!L154 -> 0 | F141: =Daten!M154 -> 0 | I141: 0 | J141: 0 | K141: 0 | L141: 0 | M141: 0 | N141: 0
B142: 126 | C142: 6 | D142: 1 | E142: =Daten!L155 -> 0 | F142: =Daten!M155 -> 0 | I142: 0 | J142: 0 | K142: 0 | L142: 0 | M142: 0 | N142: 0
B143: 127 | C143: 6 | D143: 1 | E143: =Daten!L156 -> 0 | F143: =Daten!M156 -> 0 | I143: 0 | J143: 0 | K143: 0 | L143: 0 | M143: 0 | N143: 0
B144: 128 | C144: 6 | D144: 1 | E144: =Daten!L157 -> 0 | F144: =Daten!M157 -> 0 | I144: 0 | J144: 0 | K144: 0 | L144: 0 | M144: 0 | N144: 0
B145: 129 | C145: 6 | D145: 1 | E145: =Daten!L158 -> 0 | F145: =Daten!M158 -> 0 | I145: 0 | J145: 0 | K145: 0 | L145: 0 | M145: 0 | N145: =IF(L145>0,I145+L145*Wirkungsgrad,I145+L145) -> 0
B146: 130 | C146: =CEILING(B146/24,1) -> 6 | D146: =MONTH(C146) -> 1 | E146: =Daten!L159 -> 0 | F146: =Daten!M159 -> 0 | I146: 0 | J146: =MIN(E146,F146+I146) -> 0 | K146: =E146-J146 -> 0 | L146: =MIN((F146-J146),0-I146) -> 0 | M146: =F146-(J146+L146) -> 0 | N146: 0
B147: 131 | C147: 6 | D147: 1 | E147: =Daten!L160 -> 0 | F147: =Daten!M160 -> 0 | I147: =N146 -> 0 | J147: 0 | K147: 0 | L147: 0 | M147: 0 | N147: 0
B148: 132 | C148: 6 | D148: 1 | E148: =Daten!L161 -> 0 | F148: =Daten!M161 -> 0 | I148: 0 | J148: 0 | K148: 0 | L148: 0 | M148: 0 | N148: 0
B149: 133 | C149: 6 | D149: 1 | E149: =Daten!L162 -> 0 | F149: =Daten!M162 -> 0 | I149: 0 | J149: 0 | K149: 0 | L149: 0 | M149: 0 | N149: 0
B150: 134 | C150: 6 | D150: 1 | E150: =Daten!L163 -> 0 | F150: =Daten!M163 -> 0 | I150: 0 | J150: 0 | K150: 0 | L150: 0 | M150: 0 | N150: 0
B151: 135 | C151: 6 | D151: 1 | E151: =Daten!L164 -> 0 | F151: =Daten!M164 -> 0 | I151: 0 | J151: 0 | K151: 0 | L151: 0 | M151: 0 | N151: 0
B152: 136 | C152: 6 | D152: 1 | E152: =Daten!L165 -> 0 | F152: =Daten!M165 -> 0 | I152: 0 | J152: 0 | K152: 0 | L152: 0 | M152: 0 | N152: 0
B153: 137 | C153: 6 | D153: 1 | E153: =Daten!L166 -> 0 | F153: =Daten!M166 -> 0 | I153: 0 | J153: 0 | K153: 0 | L153: 0 | M153: 0 | N153: 0
B154: 138 | C154: 6 | D154: 1 | E154: =Daten!L167 -> 0 | F154: =Daten!M167 -> 0 | I154: 0 | J154: 0 | K154: 0 | L154: 0 | M154: 0 | N154: 0
B155: 139 | C155: 6 | D155: 1 | E155: =Daten!L168 -> 0 | F155: =Daten!M168 -> 0 | I155: 0 | J155: 0 | K155: 0 | L155: 0 | M155: 0 | N155: 0
B156: 140 | C156: 6 | D156: 1 | E156: =Daten!L169 -> 0 | F156: =Daten!M169 -> 0 | I156: 0 | J156: 0 | K156: 0 | L156: 0 | M156: 0 | N156: 0
B157: 141 | C157: 6 | D157: 1 | E157: =Daten!L170 -> 0 | F157: =Daten!M170 -> 0 | I157: 0 | J157: 0 | K157: 0 | L157: 0 | M157: 0 | N157: 0
B158: 142 | C158: 6 | D158: 1 | E158: =Daten!L171 -> 0 | F158: =Daten!M171 -> 0 | I158: 0 | J158: 0 | K158: 0 | L158: 0 | M158: 0 | N158: 0
B159: 143 | C159: 6 | D159: 1 | E159: =Daten!L172 -> 0 | F159: =Daten!M172 -> 0 | I159: 0 | J159: 0 | K159: 0 | L159: 0 | M159: 0 | N159: 0
B160: 144 | C160: 6 | D160: 1 | E160: =Daten!L173 -> 0 | F160: =Daten!M173 -> 0 | I160: 0 | J160: 0 | K160: 0 | L160: 0 | M160: 0 | N160: 0
B161: 145 | C161: 7 | D161: 1 | E161: =Daten!L174 -> 0 | F161: =Daten!M174 -> 0 | I161: 0 | J161: 0 | K161: 0 | L161: 0 | M161: 0 | N161: 0
B162: 146 | C162: 7 | D162: 1 | E162: =Daten!L175 -> 0 | F162: =Daten!M175 -> 0 | I162: 0 | J162: 0 | K162: 0 | L162: 0 | M162: 0 | N162: 0
B163: 147 | C163: 7 | D163: 1 | E163: =Daten!L176 -> 0 | F163: =Daten!M176 -> 0 | I163: 0 | J163: 0 | K163: 0 | L163: 0 | M163: 0 | N163: 0
B164: 148 | C164: 7 | D164: 1 | E164: =Daten!L177 -> 0 | F164: =Daten!M177 -> 0 | I164: 0 | J164: 0 | K164: 0 | L164: 0 | M164: 0 | N164: 0
B165: 149 | C165: 7 | D165: 1 | E165: =Daten!L178 -> 0 | F165: =Daten!M178 -> 0 | I165: 0 | J165: 0 | K165: 0 | L165: 0 | M165: 0 | N165: 0
B166: 150 | C166: 7 | D166: 1 | E166: =Daten!L179 -> 0 | F166: =Daten!M179 -> 0 | I166: 0 | J166: 0 | K166: 0 | L166: 0 | M166: 0 | N166: 0
B167: 151 | C167: 7 | D167: 1 | E167: =Daten!L180 -> 0 | F167: =Daten!M180 -> 0 | I167: 0 | J167: 0 | K167: 0 | L167: 0 | M167: 0 | N167: 0
B168: 152 | C168: 7 | D168: 1 | E168: =Daten!L181 -> 0 | F168: =Daten!M181 -> 0 | I168: 0 | J168: 0 | K168: 0 | L168: 0 | M168: 0 | N168: 0
B169: 153 | C169: 7 | D169: 1 | E169: =Daten!L182 -> 0 | F169: =Daten!M182 -> 0 | I169: 0 | J169: 0 | K169: 0 | L169: 0 | M169: 0 | N169: 0
B170: 154 | C170: 7 | D170: 1 | E170: =Daten!L183 -> 0 | F170: =Daten!M183 -> 0 | I170: 0 | J170: 0 | K170: 0 | L170: 0 | M170: 0 | N170: 0
B171: 155 | C171: 7 | D171: 1 | E171: =Daten!L184 -> 0 | F171: =Daten!M184 -> 0 | I171: 0 | J171: 0 | K171: 0 | L171: 0 | M171: 0 | N171: 0
B172: 156 | C172: 7 | D172: 1 | E172: =Daten!L185 -> 0 | F172: =Daten!M185 -> 0 | I172: 0 | J172: 0 | K172: 0 | L172: 0 | M172: 0 | N172: 0
B173: 157 | C173: 7 | D173: 1 | E173: =Daten!L186 -> 0 | F173: =Daten!M186 -> 0 | I173: 0 | J173: 0 | K173: 0 | L173: 0 | M173: 0 | N173: 0
B174: 158 | C174: 7 | D174: 1 | E174: =Daten!L187 -> 0 | F174: =Daten!M187 -> 0 | I174: 0 | J174: 0 | K174: 0 | L174: 0 | M174: 0 | N174: 0
B175: 159 | C175: 7 | D175: 1 | E175: =Daten!L188 -> 0 | F175: =Daten!M188 -> 0 | I175: 0 | J175: 0 | K175: 0 | L175: 0 | M175: 0 | N175: 0
B176: 160 | C176: 7 | D176: 1 | E176: =Daten!L189 -> 0 | F176: =Daten!M189 -> 0 | I176: 0 | J176: 0 | K176: 0 | L176: 0 | M176: 0 | N176: 0
B177: 161 | C177: 7 | D177: 1 | E177: =Daten!L190 -> 0 | F177: =Daten!M190 -> 0 | I177: 0 | J177: 0 | K177: 0 | L177: 0 | M177: 0 | N177: 0
B178: 162 | C178: 7 | D178: 1 | E178: =Daten!L191 -> 0 | F178: =Daten!M191 -> 0 | I178: 0 | J178: 0 | K178: 0 | L178: 0 | M178: 0 | N178: 0
B179: 163 | C179: 7 | D179: 1 | E179: =Daten!L192 -> 0 | F179: =Daten!M192 -> 0 | I179: 0 | J179: 0 | K179: 0 | L179: 0 | M179: 0 | N179: 0
B180: 164 | C180: 7 | D180: 1 | E180: =Daten!L193 -> 0 | F180: =Daten!M193 -> 0 | I180: 0 | J180: 0 | K180: 0 | L180: 0 | M180: 0 | N180: 0
B181: 165 | C181: 7 | D181: 1 | E181: =Daten!L194 -> 0 | F181: =Daten!M194 -> 0 | I181: 0 | J181: 0 | K181: 0 | L181: 0 | M181: 0 | N181: 0
B182: 166 | C182: 7 | D182: 1 | E182: =Daten!L195 -> 0 | F182: =Daten!M195 -> 0 | I182: 0 | J182: 0 | K182: 0 | L182: 0 | M182: 0 | N182: 0
B183: 167 | C183: 7 | D183: 1 | E183: =Daten!L196 -> 0 | F183: =Daten!M196 -> 0 | I183: 0 | J183: 0 | K183: 0 | L183: 0 | M183: 0 | N183: 0
B184: 168 | C184: 7 | D184: 1 | E184: =Daten!L197 -> 0 | F184: =Daten!M197 -> 0 | I184: 0 | J184: 0 | K184: 0 | L184: 0 | M184: 0 | N184: 0
B185: 169 | C185: 8 | D185: 1 | E185: =Daten!L198 -> 0 | F185: =Daten!M198 -> 0 | I185: 0 | J185: 0 | K185: 0 | L185: 0 | M185: 0 | N185: 0
B186: 170 | C186: 8 | D186: 1 | E186: =Daten!L199 -> 0 | F186: =Daten!M199 -> 0 | I186: 0 | J186: 0 | K186: 0 | L186: 0 | M186: 0 | N186: 0
B187: 171 | C187: 8 | D187: 1 | E187: =Daten!L200 -> 0 | F187: =Daten!M200 -> 0 | I187: 0 | J187: 0 | K187: 0 | L187: 0 | M187: 0 | N187: 0
B188: 172 | C188: 8 | D188: 1 | E188: =Daten!L201 -> 0 | F188: =Daten!M201 -> 0 | I188: 0 | J188: 0 | K188: 0 | L188: 0 | M188: 0 | N188: 0
B189: 173 | C189: 8 | D189: 1 | E189: =Daten!L202 -> 0 | F189: =Daten!M202 -> 0 | I189: 0 | J189: 0 | K189: 0 | L189: 0 | M189: 0 | N189: 0
B190: 174 | C190: 8 | D190: 1 | E190: =Daten!L203 -> 0 | F190: =Daten!M203 -> 0 | I190: 0 | J190: 0 | K190: 0 | L190: 0 | M190: 0 | N190: 0
B191: 175 | C191: 8 | D191: 1 | E191: =Daten!L204 -> 0 | F191: =Daten!M204 -> 0 | I191: 0 | J191: 0 | K191: 0 | L191: 0 | M191: 0 | N191: 0
B192: 176 | C192: 8 | D192: 1 | E192: =Daten!L205 -> 0 | F192: =Daten!M205 -> 0 | I192: 0 | J192: 0 | K192: 0 | L192: 0 | M192: 0 | N192: 0
B193: 177 | C193: 8 | D193: 1 | E193: =Daten!L206 -> 0 | F193: =Daten!M206 -> 0 | I193: 0 | J193: 0 | K193: 0 | L193: 0 | M193: 0 | N193: 0
B194: 178 | C194: 8 | D194: 1 | E194: =Daten!L207 -> 0 | F194: =Daten!M207 -> 0 | I194: 0 | J194: 0 | K194: 0 | L194: 0 | M194: 0 | N194: 0
B195: 179 | C195: 8 | D195: 1 | E195: =Daten!L208 -> 0 | F195: =Daten!M208 -> 0 | I195: 0 | J195: 0 | K195: 0 | L195: 0 | M195: 0 | N195: 0
B196: 180 | C196: 8 | D196: 1 | E196: =Daten!L209 -> 0 | F196: =Daten!M209 -> 0 | I196: 0 | J196: 0 | K196: 0 | L196: 0 | M196: 0 | N196: 0
B197: 181 | C197: 8 | D197: 1 | E197: =Daten!L210 -> 0 | F197: =Daten!M210 -> 0 | I197: 0 | J197: 0 | K197: 0 | L197: 0 | M197: 0 | N197: 0
B198: 182 | C198: 8 | D198: 1 | E198: =Daten!L211 -> 0 | F198: =Daten!M211 -> 0 | I198: 0 | J198: 0 | K198: 0 | L198: 0 | M198: 0 | N198: 0
B199: 183 | C199: 8 | D199: 1 | E199: =Daten!L212 -> 0 | F199: =Daten!M212 -> 0 | I199: 0 | J199: 0 | K199: 0 | L199: 0 | M199: 0 | N199: 0
B200: 184 | C200: 8 | D200: 1 | E200: =Daten!L213 -> 0 | F200: =Daten!M213 -> 0 | I200: 0 | J200: 0 | K200: 0 | L200: 0 | M200: 0 | N200: 0
B201: 185 | C201: 8 | D201: 1 | E201: =Daten!L214 -> 0 | F201: =Daten!M214 -> 0 | I201: 0 | J201: 0 | K201: 0 | L201: 0 | M201: 0 | N201: 0
B202: 186 | C202: 8 | D202: 1 | E202: =Daten!L215 -> 0 | F202: =Daten!M215 -> 0 | I202: 0 | J202: 0 | K202: 0 | L202: 0 | M202: 0 | N202: 0
B203: 187 | C203: 8 | D203: 1 | E203: =Daten!L216 -> 0 | F203: =Daten!M216 -> 0 | I203: 0 | J203: 0 | K203: 0 | L203: 0 | M203: 0 | N203: 0
B204: 188 | C204: 8 | D204: 1 | E204: =Daten!L217 -> 0 | F204: =Daten!M217 -> 0 | I204: 0 | J204: 0 | K204: 0 | L204: 0 | M204: 0 | N204: 0
... 4296 more rows

Sheet Berechnungen (hidden)
B2: Referenzszenario
B4: Monat | C4: Monat | D4: Solarproduktion | E4: Verbrauch | F4: Solar-Einspeisung (linke Achse) | G4: Netzbezug | H4: Solar-Eigenverbrauch (linke Achse) | I4: Eigenverbrauchsquote (rechte Achse) | J4: Autarkiegrad (rechte Achse)
B5: 1 | C5: Jan | D5: =SUMIF(SR!D:D,B22,SR!F:F)/1000 -> 0 | E5: =SUMIF(SR!D:D,B22,SR!E:E)/1000 -> 0 | F5: =SUMIF(SR!D:D,B22,SR!M:M)/1000 -> 0 | G5: =SUMIF(SR!D:D,B22,SR!K:K)/1000 -> 0 | H5: =SUMIF(SR!D:D,B22,SR!J:J)/1000 -> 0 | I5: =IFERROR(H5/D5,0) -> 0 | J5: =H5/E5 -> 
B6: 2 | C6: Feb | D6: =SUMIF(SR!D:D,B23,SR!F:F)/1000 -> 0 | E6: =SUMIF(SR!D:D,B23,SR!E:E)/1000 -> 0 | F6: =SUMIF(SR!D:D,B23,SR!M:M)/1000 -> 0 | G6: =SUMIF(SR!D:D,B23,SR!K:K)/1000 -> 0 | H6: =SUMIF(SR!D:D,B23,SR!J:J)/1000 -> 0 | I6: =IFERROR(H6/D6,0) -> 0
B7: 3 | C7: Mar | D7: =SUMIF(SR!D:D,B24,SR!F:F)/1000 -> 0 | E7: =SUMIF(SR!D:D,B24,SR!E:E)/1000 -> 0 | F7: =SUMIF(SR!D:D,B24,SR!M:M)/1000 -> 0 | G7: =SUMIF(SR!D:D,B24,SR!K:K)/1000 -> 0 | H7: =SUMIF(SR!D:D,B24,SR!J:J)/1000 -> 0 | I7: 0
B8: 4 | C8: Apr | D8: =SUMIF(SR!D:D,B25,SR!F:F)/1000 -> 0 | E8: =SUMIF(SR!D:D,B25,SR!E:E)/1000 -> 0 | F8: =SUMIF(SR!D:D,B25,SR!M:M)/1000 -> 0 | G8: =SUMIF(SR!D:D,B25,SR!K:K)/1000 -> 0 | H8: =SUMIF(SR!D:D,B25,SR!J:J)/1000 -> 0 | I8: 0
B9: 5 | C9: Mai | D9: =SUMIF(SR!D:D,B26,SR!F:F)/1000 -> 0 | E9: =SUMIF(SR!D:D,B26,SR!E:E)/1000 -> 0 | F9: =SUMIF(SR!D:D,B26,SR!M:M)/1000 -> 0 | G9: =SUMIF(SR!D:D,B26,SR!K:K)/1000 -> 0 | H9: =SUMIF(SR!D:D,B26,SR!J:J)/1000 -> 0 | I9: 0
B10: 6 | C10: Jun | D10: =SUMIF(SR!D:D,B27,SR!F:F)/1000 -> 0 | E10: =SUMIF(SR!D:D,B27,SR!E:E)/1000 -> 0 | F10: =SUMIF(SR!D:D,B27,SR!M:M)/1000 -> 0 | G10: =SUMIF(SR!D:D,B27,SR!K:K)/1000 -> 0 | H10: =SUMIF(SR!D:D,B27,SR!J:J)/1000 -> 0 | I10: 0
B11: 7 | C11: Jul | D11: =SUMIF(SR!D:D,B28,SR!F:F)/1000 -> 0 | E11: =SUMIF(SR!D:D,B28,SR!E:E)/1000 -> 0 | F11: =SUMIF(SR!D:D,B28,SR!M:M)/1000 -> 0 | G11: =SUMIF(SR!D:D,B28,SR!K:K)/1000 -> 0 | H11: =SUMIF(SR!D:D,B28,SR!J:J)/1000 -> 0 | I11: 0
B12: 8 | C12: Aug | D12: =SUMIF(SR!D:D,B29,SR!F:F)/1000 -> 0 | E12: =SUMIF(SR!D:D,B29,SR!E:E)/1000 -> 0 | F12: =SUMIF(SR!D:D,B29,SR!M:M)/1000 -> 0 | G12: =SUMIF(SR!D:D,B29,SR!K:K)/1000 -> 0 | H12: =SUMIF(SR!D:D,B29,SR!J:J)/1000 -> 0 | I12: 0
B13: 9 | C13: Sep | D13: =SUMIF(SR!D:D,B30,SR!F:F)/1000 -> 0 | E13: =SUMIF(SR!D:D,B30,SR!E:E)/1000 -> 0 | F13: =SUMIF(SR!D:D,B30,SR!M:M)/1000 -> 0 | G13: =SUMIF(SR!D:D,B30,SR!K:K)/1000 -> 0 | H13: =SUMIF(SR!D:D,B30,SR!J:J)/1000 -> 0 | I13: 0
B14: 10 | C14: Okt | D14: =SUMIF(SR!D:D,B31,SR!F:F)/1000 -> 0 | E14: =SUMIF(SR!D:D,B31,SR!E:E)/1000 -> 0 | F14: =SUMIF(SR!D:D,B31,SR!M:M)/1000 -> 0 | G14: =SUMIF(SR!D:D,B31,SR!K:K)/1000 -> 0 | H14: =SUMIF(SR!D:D,B31,SR!J:J)/1000 -> 0 | I14: 0
B15: 11 | C15: Nov | D15: =SUMIF(SR!D:D,B32,SR!F:F)/1000 -> 0 | E15: =SUMIF(SR!D:D,B32,SR!E:E)/1000 -> 0 | F15: =SUMIF(SR!D:D,B32,SR!M:M)/1000 -> 0 | G15: =SUMIF(SR!D:D,B32,SR!K:K)/1000 -> 0 | H15: =SUMIF(SR!D:D,B32,SR!J:J)/1000 -> 0 | I15: 0
B16: 12 | C16: Dez | D16: =SUMIF(SR!D:D,B33,SR!F:F)/1000 -> 0 | E16: =SUMIF(SR!D:D,B33,SR!E:E)/1000 -> 0 | F16: =SUMIF(SR!D:D,B33,SR!M:M)/1000 -> 0 | G16: =SUMIF(SR!D:D,B33,SR!K:K)/1000 -> 0 | H16: =SUMIF(SR!D:D,B33,SR!J:J)/1000 -> 0 | I16: 0
D17: =SUM(D5:D16) -> 0 | E17: =SUM(E5:E16) -> 0 | F17: =SUM(F5:F16) -> 0 | G17: =SUM(G5:G16) -> 0 | H17: =SUM(H5:H16) -> 0 | I17: 0
B19: Szenario 1:
B21: Monat | C21: Monat | D21: Solarproduktion | E21: Verbrauch | F21: Solar-Einspeisung (linke Achse) | G21: Netzbezug | H21: Solar-Eigenverbrauch (linke Achse) | I21: Eigenverbrauchsquote (rechte Achse) | J21: Autarkiegrad (rechte Achse)
B22: 1 | C22: Jan | D22: =SUMIF('S1'!D:D,B22,'S1'!F:F)/1000 -> 0 | E22: =SUMIF('S1'!D:D,B22,'S1'!E:E)/1000 -> 0 | F22: =SUMIF('S1'!D:D,B22,'S1'!M:M)/1000 -> 0 | G22: =SUMIF('S1'!D:D,B22,'S1'!K:K)/1000 -> 0 | H22: =SUMIF('S1'!D:D,B22,'S1'!J:J)/1000 -> 0 | I22: =H22/D22 ->  | J22: =H22/E22 -> 
B23: 2 | C23: Feb | D23: =SUMIF('S1'!D:D,B23,'S1'!F:F)/1000 -> 0 | E23: =SUMIF('S1'!D:D,B23,'S1'!E:E)/1000 -> 0 | F23: =SUMIF('S1'!D:D,B23,'S1'!M:M)/1000 -> 0 | G23: =SUMIF('S1'!D:D,B23,'S1'!K:K)/1000 -> 0 | H23: =SUMIF('S1'!D:D,B23,'S1'!J:J)/1000 -> 0
B24: 3 | C24: Mar | D24: =SUMIF('S1'!D:D,B24,'S1'!F:F)/1000 -> 0 | E24: =SUMIF('S1'!D:D,B24,'S1'!E:E)/1000 -> 0 | F24: =SUMIF('S1'!D:D,B24,'S1'!M:M)/1000 -> 0 | G24: =SUMIF('S1'!D:D,B24,'S1'!K:K)/1000 -> 0 | H24: =SUMIF('S1'!D:D,B24,'S1'!J:J)/1000 -> 0
B25: 4 | C25: Apr | D25: =SUMIF('S1'!D:D,B25,'S1'!F:F)/1000 -> 0 | E25: =SUMIF('S1'!D:D,B25,'S1'!E:E)/1000 -> 0 | F25: =SUMIF('S1'!D:D,B25,'S1'!M:M)/1000 -> 0 | G25: =SUMIF('S1'!D:D,B25,'S1'!K:K)/1000 -> 0 | H25: =SUMIF('S1'!D:D,B25,'S1'!J:J)/1000 -> 0
B26: 5 | C26: Mai | D26: =SUMIF('S1'!D:D,B26,'S1'!F:F)/1000 -> 0 | E26: =SUMIF('S1'!D:D,B26,'S1'!E:E)/1000 -> 0 | F26: =SUMIF('S1'!D:D,B26,'S1'!M:M)/1000 -> 0 | G26: =SUMIF('S1'!D:D,B26,'S1'!K:K)/1000 -> 0 | H26: =SUMIF('S1'!D:D,B26,'S1'!J:J)/1000 -> 0
B27: 6 | C27: Jun | D27: =SUMIF('S1'!D:D,B27,'S1'!F:F)/1000 -> 0 | E27: =SUMIF('S1'!D:D,B27,'S1'!E:E)/1000 -> 0 | F27: =SUMIF('S1'!D:D,B27,'S1'!M:M)/1000 -> 0 | G27: =SUMIF('S1'!D:D,B27,'S1'!K:K)/1000 -> 0 | H27: =SUMIF('S1'!D:D,B27,'S1'!J:J)/1000 -> 0
B28: 7 | C28: Jul | D28: =SUMIF('S1'!D:D,B28,'S1'!F:F)/1000 -> 0 | E28: =SUMIF('S1'!D:D,B28,'S1'!E:E)/1000 -> 0 | F28: =SUMIF('S1'!D:D,B28,'S1'!M:M)/1000 -> 0 | G28: =SUMIF('S1'!D:D,B28,'S1'!K:K)/1000 -> 0 | H28: =SUMIF('S1'!D:D,B28,'S1'!J:J)/1000 -> 0
B29: 8 | C29: Aug | D29: =SUMIF('S1'!D:D,B29,'S1'!F:F)/1000 -> 0 | E29: =SUMIF('S1'!D:D,B29,'S1'!E:E)/1000 -> 0 | F29: =SUMIF('S1'!D:D,B29,'S1'!M:M)/1000 -> 0 | G29: =SUMIF('S1'!D:D,B29,'S1'!K:K)/1000 -> 0 | H29: =SUMIF('S1'!D:D,B29,'S1'!J:J)/1000 -> 0
B30: 9 | C30: Sep | D30: =SUMIF('S1'!D:D,B30,'S1'!F:F)/1000 -> 0 | E30: =SUMIF('S1'!D:D,B30,'S1'!E:E)/1000 -> 0 | F30: =SUMIF('S1'!D:D,B30,'S1'!M:M)/1000 -> 0 | G30: =SUMIF('S1'!D:D,B30,'S1'!K:K)/1000 -> 0 | H30: =SUMIF('S1'!D:D,B30,'S1'!J:J)/1000 -> 0
B31: 10 | C31: Okt | D31: =SUMIF('S1'!D:D,B31,'S1'!F:F)/1000 -> 0 | E31: =SUMIF('S1'!D:D,B31,'S1'!E:E)/1000 -> 0 | F31: =SUMIF('S1'!D:D,B31,'S1'!M:M)/1000 -> 0 | G31: =SUMIF('S1'!D:D,B31,'S1'!K:K)/1000 -> 0 | H31: =SUMIF('S1'!D:D,B31,'S1'!J:J)/1000 -> 0
B32: 11 | C32: Nov | D32: =SUMIF('S1'!D:D,B32,'S1'!F:F)/1000 -> 0 | E32: =SUMIF('S1'!D:D,B32,'S1'!E:E)/1000 -> 0 | F32: =SUMIF('S1'!D:D,B32,'S1'!M:M)/1000 -> 0 | G32: =SUMIF('S1'!D:D,B32,'S1'!K:K)/1000 -> 0 | H32: =SUMIF('S1'!D:D,B32,'S1'!J:J)/1000 -> 0
B33: 12 | C33: Dez | D33: =SUMIF('S1'!D:D,B33,'S1'!F:F)/1000 -> 0 | E33: =SUMIF('S1'!D:D,B33,'S1'!E:E)/1000 -> 0 | F33: =SUMIF('S1'!D:D,B33,'S1'!M:M)/1000 -> 0 | G33: =SUMIF('S1'!D:D,B33,'S1'!K:K)/1000 -> 0 | H33: =SUMIF('S1'!D:D,B33,'S1'!J:J)/1000 -> 0
D34: =SUM(D22:D33) -> 0 | E34: =SUM(E22:E33) -> 0 | F34: =SUM(F22:F33) -> 0 | G34: =SUM(G22:G33) -> 0 | H34: =SUM(H22:H33) -> 0
B36: Szenario 2
B38: Monat | C38: Monat | D38: Solarproduktion | E38: Verbrauch | F38: Solar-Einspeisung (linke Achse) | G38: Netzbezug | H38: Solar-Eigenverbrauch (linke Achse) | I38: Eigenverbrauchsquote (rechte Achse) | J38: Autarkiegrad (rechte Achse)
B39: 1 | C39: Jan | D39: =SUMIF('S2'!D:D,B39,'S2'!F:F)/1000 -> 0 | E39: =SUMIF('S2'!D:D,B39,'S2'!E:E)/1000 -> 0 | F39: =SUMIF('S2'!D:D,B39,'S2'!M:M)/1000 -> 0 | G39: =SUMIF('S2'!D:D,B39,'S2'!K:K)/1000 -> 0 | H39: =SUMIF('S2'!D:D,B39,'S2'!J:J)/1000 -> 0 | I39: =H39/D39 ->  | J39: =H39/E39 -> 
B40: 2 | C40: Feb | D40: =SUMIF('S2'!D:D,B40,'S2'!F:F)/1000 -> 0 | E40: =SUMIF('S2'!D:D,B40,'S2'!E:E)/1000 -> 0 | F40: =SUMIF('S2'!D:D,B40,'S2'!M:M)/1000 -> 0 | G40: =SUMIF('S2'!D:D,B40,'S2'!K:K)/1000 -> 0 | H40: =SUMIF('S2'!D:D,B40,'S2'!J:J)/1000 -> 0 | I40: =H40/D40 -> 
B41: 3 | C41: Mar | D41: =SUMIF('S2'!D:D,B41,'S2'!F:F)/1000 -> 0 | E41: =SUMIF('S2'!D:D,B41,'S2'!E:E)/1000 -> 0 | F41: =SUMIF('S2'!D:D,B41,'S2'!M:M)/1000 -> 0 | G41: =SUMIF('S2'!D:D,B41,'S2'!K:K)/1000 -> 0 | H41: =SUMIF('S2'!D:D,B41,'S2'!J:J)/1000 -> 0
B42: 4 | C42: Apr | D42: =SUMIF('S2'!D:D,B42,'S2'!F:F)/1000 -> 0 | E42: =SUMIF('S2'!D:D,B42,'S2'!E:E)/1000 -> 0 | F42: =SUMIF('S2'!D:D,B42,'S2'!M:M)/1000 -> 0 | G42: =SUMIF('S2'!D:D,B42,'S2'!K:K)/1000 -> 0 | H42: =SUMIF('S2'!D:D,B42,'S2'!J:J)/1000 -> 0
B43: 5 | C43: Mai | D43: =SUMIF('S2'!D:D,B43,'S2'!F:F)/1000 -> 0 | E43: =SUMIF('S2'!D:D,B43,'S2'!E:E)/1000 -> 0 | F43: =SUMIF('S2'!D:D,B43,'S2'!M:M)/1000 -> 0 | G43: =SUMIF('S2'!D:D,B43,'S2'!K:K)/1000 -> 0 | H43: =SUMIF('S2'!D:D,B43,'S2'!J:J)/1000 -> 0
B44: 6 | C44: Jun | D44: =SUMIF('S2'!D:D,B44,'S2'!F:F)/1000 -> 0 | E44: =SUMIF('S2'!D:D,B44,'S2'!E:E)/1000 -> 0 | F44: =SUMIF('S2'!D:D,B44,'S2'!M:M)/1000 -> 0 | G44: =SUMIF('S2'!D:D,B44,'S2'!K:K)/1000 -> 0 | H44: =SUMIF('S2'!D:D,B44,'S2'!J:J)/1000 -> 0
B45: 7 | C45: Jul | D45: =SUMIF('S2'!D:D,B45,'S2'!F:F)/1000 -> 0 | E45: =SUMIF('S2'!D:D,B45,'S2'!E:E)/1000 -> 0 | F45: =SUMIF('S2'!D:D,B45,'S2'!M:M)/1000 -> 0 | G45: =SUMIF('S2'!D:D,B45,'S2'!K:K)/1000 -> 0 | H45: =SUMIF('S2'!D:D,B45,'S2'!J:J)/1000 -> 0
B46: 8 | C46: Aug | D46: =SUMIF('S2'!D:D,B46,'S2'!F:F)/1000 -> 0 | E46: =SUMIF('S2'!D:D,B46,'S2'!E:E)/1000 -> 0 | F46: =SUMIF('S2'!D:D,B46,'S2'!M:M)/1000 -> 0 | G46: =SUMIF('S2'!D:D,B46,'S2'!K:K)/1000 -> 0 | H46: =SUMIF('S2'!D:D,B46,'S2'!J:J)/1000 -> 0
B47: 9 | C47: Sep | D47: =SUMIF('S2'!D:D,B47,'S2'!F:F)/1000 -> 0 | E47: =SUMIF('S2'!D:D,B47,'S2'!E:E)/1000 -> 0 | F47: =SUMIF('S2'!D:D,B47,'S2'!M:M)/1000 -> 0 | G47: =SUMIF('S2'!D:D,B47,'S2'!K:K)/1000 -> 0 | H47: =SUMIF('S2'!D:D,B47,'S2'!J:J)/1000 -> 0
B48: 10 | C48: Okt | D48: =SUMIF('S2'!D:D,B48,'S2'!F:F)/1000 -> 0 | E48: =SUMIF('S2'!D:D,B48,'S2'!E:E)/1000 -> 0 | F48: =SUMIF('S2'!D:D,B48,'S2'!M:M)/1000 -> 0 | G48: =SUMIF('S2'!D:D,B48,'S2'!K:K)/1000 -> 0 | H48: =SUMIF('S2'!D:D,B48,'S2'!J:J)/1000 -> 0
B49: 11 | C49: Nov | D49: =SUMIF('S2'!D:D,B49,'S2'!F:F)/1000 -> 0 | E49: =SUMIF('S2'!D:D,B49,'S2'!E:E)/1000 -> 0 | F49: =SUMIF('S2'!D:D,B49,'S2'!M:M)/1000 -> 0 | G49: =SUMIF('S2'!D:D,B49,'S2'!K:K)/1000 -> 0 | H49: =SUMIF('S2'!D:D,B49,'S2'!J:J)/1000 -> 0
B50: 12 | C50: Dez | D50: =SUMIF('S2'!D:D,B50,'S2'!F:F)/1000 -> 0 | E50: =SUMIF('S2'!D:D,B50,'S2'!E:E)/1000 -> 0 | F50: =SUMIF('S2'!D:D,B50,'S2'!M:M)/1000 -> 0 | G50: =SUMIF('S2'!D:D,B50,'S2'!K:K)/1000 -> 0 | H50: =SUMIF('S2'!D:D,B50,'S2'!J:J)/1000 -> 0
D51: =SUM(D39:D50) -> 0 | E51: =SUM(E39:E50) -> 0 | F51: 0 | G51: 0 | H51: 0 | J51: =H51/E51 -> 
A61: Woche | B61: =Ergebnis!E72 -> 18
A62: Tag | B62: Stunde | D62: Solar-produktion | E62: Verbrauch | F62: Netz-Einspeisung | G62: Netzbezug | H62: Solar-Eigenverbrauch | I62: Solarspeicher | J62: Solarspeicher | K62: Speicherung / Entnahme
A63: =(B61-1)*7+1 -> 120 | B63: =(A63-1)*24+1 -> 2857 | C63: Mo. 0:00 | D63: =SUMIF('S1'!B:B,B63,'S1'!F:F)/1000 -> 0 | E63: =SUMIF('S1'!B:B,B63,'S1'!E:E)/1000 -> 0 | F63: =SUMIF('S1'!B:B,B63,'S1'!M:M)/1000 -> 0 | G63: =SUMIF('S1'!B:B,B63,'S1'!K:K)/1000 -> 0 | H63: =SUMIF('S1'!B:B,B63,'S1'!J:J)/1000 -> 0 | I63: =SUMIF('S1'!B:B,B63,'S1'!I:I)/BatteriespeicherWh ->  | J63: =SUMIF('S1'!B:B,B63,'S1'!I:I)/1000 -> 0 | K63: =SUMIF('S1'!B:B,B63,'S1'!L:L)/1000 -> 0
A64: =CEILING(B64/24,1) -> 120 | B64: =B63+1 -> 2858 | D64: =SUMIF('S1'!B:B,B64,'S1'!F:F)/1000 -> 0 | E64: =SUMIF('S1'!B:B,B64,'S1'!E:E)/1000 -> 0 | F64: =SUMIF('S1'!B:B,B64,'S1'!M:M)/1000 -> 0 | G64: =SUMIF('S1'!B:B,B64,'S1'!K:K)/1000 -> 0 | H64: =SUMIF('S1'!B:B,B64,'S1'!J:J)/1000 -> 0 | I64: =SUMIF('S1'!B:B,B64,'S1'!I:I)/BatteriespeicherWh ->  | J64: =SUMIF('S1'!B:B,B64,'S1'!I:I)/1000 -> 0 | K64: =SUMIF('S1'!B:B,B64,'S1'!L:L)/1000 -> 0
A65: =CEILING(B65/24,1) -> 120 | B65: =B64+1 -> 2859 | D65: =SUMIF('S1'!B:B,B65,'S1'!F:F)/1000 -> 0 | E65: =SUMIF('S1'!B:B,B65,'S1'!E:E)/1000 -> 0 | F65: =SUMIF('S1'!B:B,B65,'S1'!M:M)/1000 -> 0 | G65: =SUMIF('S1'!B:B,B65,'S1'!K:K)/1000 -> 0 | H65: =SUMIF('S1'!B:B,B65,'S1'!J:J)/1000 -> 0 | I65: =SUMIF('S1'!B:B,B65,'S1'!I:I)/BatteriespeicherWh ->  | J65: =SUMIF('S1'!B:B,B65,'S1'!I:I)/1000 -> 0 | K65: =SUMIF('S1'!B:B,B65,'S1'!L:L)/1000 -> 0
A66: 120 | B66: 2860 | D66: =SUMIF('S1'!B:B,B66,'S1'!F:F)/1000 -> 0 | E66: =SUMIF('S1'!B:B,B66,'S1'!E:E)/1000 -> 0 | F66: =SUMIF('S1'!B:B,B66,'S1'!M:M)/1000 -> 0 | G66: =SUMIF('S1'!B:B,B66,'S1'!K:K)/1000 -> 0 | H66: =SUMIF('S1'!B:B,B66,'S1'!J:J)/1000 -> 0 | I66: =SUMIF('S1'!B:B,B66,'S1'!I:I)/BatteriespeicherWh ->  | J66: =SUMIF('S1'!B:B,B66,'S1'!I:I)/1000 -> 0 | K66: =SUMIF('S1'!B:B,B66,'S1'!L:L)/1000 -> 0
A67: 120 | B67: 2861 | D67: =SUMIF('S1'!B:B,B67,'S1'!F:F)/1000 -> 0 | E67: =SUMIF('S1'!B:B,B67,'S1'!E:E)/1000 -> 0 | F67: =SUMIF('S1'!B:B,B67,'S1'!M:M)/1000 -> 0 | G67: =SUMIF('S1'!B:B,B67,'S1'!K:K)/1000 -> 0 | H67: =SUMIF('S1'!B:B,B67,'S1'!J:J)/1000 -> 0 | I67: =SUMIF('S1'!B:B,B67,'S1'!I:I)/BatteriespeicherWh ->  | J67: =SUMIF('S1'!B:B,B67,'S1'!I:I)/1000 -> 0 | K67: =SUMIF('S1'!B:B,B67,'S1'!L:L)/1000 -> 0
A68: 120 | B68: 2862 | D68: =SUMIF('S1'!B:B,B68,'S1'!F:F)/1000 -> 0 | E68: =SUMIF('S1'!B:B,B68,'S1'!E:E)/1000 -> 0 | F68: =SUMIF('S1'!B:B,B68,'S1'!M:M)/1000 -> 0 | G68: =SUMIF('S1'!B:B,B68,'S1'!K:K)/1000 -> 0 | H68: =SUMIF('S1'!B:B,B68,'S1'!J:J)/1000 -> 0 | I68: =SUMIF('S1'!B:B,B68,'S1'!I:I)/BatteriespeicherWh ->  | J68: =SUMIF('S1'!B:B,B68,'S1'!I:I)/1000 -> 0 | K68: =SUMIF('S1'!B:B,B68,'S1'!L:L)/1000 -> 0
A69: 120 | B69: 2863 | D69: =SUMIF('S1'!B:B,B69,'S1'!F:F)/1000 -> 0 | E69: =SUMIF('S1'!B:B,B69,'S1'!E:E)/1000 -> 0 | F69: =SUMIF('S1'!B:B,B69,'S1'!M:M)/1000 -> 0 | G69: =SUMIF('S1'!B:B,B69,'S1'!K:K)/1000 -> 0 | H69: =SUMIF('S1'!B:B,B69,'S1'!J:J)/1000 -> 0 | I69: =SUMIF('S1'!B:B,B69,'S1'!I:I)/BatteriespeicherWh ->  | J69: =SUMIF('S1'!B:B,B69,'S1'!I:I)/1000 -> 0 | K69: =SUMIF('S1'!B:B,B69,'S1'!L:L)/1000 -> 0
A70: 120 | B70: 2864 | D70: =SUMIF('S1'!B:B,B70,'S1'!F:F)/1000 -> 0 | E70: =SUMIF('S1'!B:B,B70,'S1'!E:E)/1000 -> 0 | F70: =SUMIF('S1'!B:B,B70,'S1'!M:M)/1000 -> 0 | G70: =SUMIF('S1'!B:B,B70,'S1'!K:K)/1000 -> 0 | H70: =SUMIF('S1'!B:B,B70,'S1'!J:J)/1000 -> 0 | I70: =SUMIF('S1'!B:B,B70,'S1'!I:I)/BatteriespeicherWh ->  | J70: =SUMIF('S1'!B:B,B70,'S1'!I:I)/1000 -> 0 | K70: =SUMIF('S1'!B:B,B70,'S1'!L:L)/1000 -> 0
A71: 120 | B71: 2865 | D71: =SUMIF('S1'!B:B,B71,'S1'!F:F)/1000 -> 0 | E71: =SUMIF('S1'!B:B,B71,'S1'!E:E)/1000 -> 0 | F71: =SUMIF('S1'!B:B,B71,'S1'!M:M)/1000 -> 0 | G71: =SUMIF('S1'!B:B,B71,'S1'!K:K)/1000 -> 0 | H71: =SUMIF('S1'!B:B,B71,'S1'!J:J)/1000 -> 0 | I71: =SUMIF('S1'!B:B,B71,'S1'!I:I)/BatteriespeicherWh ->  | J71: =SUMIF('S1'!B:B,B71,'S1'!I:I)/1000 -> 0 | K71: =SUMIF('S1'!B:B,B71,'S1'!L:L)/1000 -> 0
A72: 120 | B72: 2866 | D72: =SUMIF('S1'!B:B,B72,'S1'!F:F)/1000 -> 0 | E72: =SUMIF('S1'!B:B,B72,'S1'!E:E)/1000 -> 0 | F72: =SUMIF('S1'!B:B,B72,'S1'!M:M)/1000 -> 0 | G72: =SUMIF('S1'!B:B,B72,'S1'!K:K)/1000 -> 0 | H72: =SUMIF('S1'!B:B,B72,'S1'!J:J)/1000 -> 0 | I72: =SUMIF('S1'!B:B,B72,'S1'!I:I)/BatteriespeicherWh ->  | J72: =SUMIF('S1'!B:B,B72,'S1'!I:I)/1000 -> 0 | K72: =SUMIF('S1'!B:B,B72,'S1'!L:L)/1000 -> 0
A73: 120 | B73: 2867 | D73: =SUMIF('S1'!B:B,B73,'S1'!F:F)/1000 -> 0 | E73: =SUMIF('S1'!B:B,B73,'S1'!E:E)/1000 -> 0 | F73: =SUMIF('S1'!B:B,B73,'S1'!M:M)/1000 -> 0 | G73: =SUMIF('S1'!B:B,B73,'S1'!K:K)/1000 -> 0 | H73: =SUMIF('S1'!B:B,B73,'S1'!J:J)/1000 -> 0 | I73: =SUMIF('S1'!B:B,B73,'S1'!I:I)/BatteriespeicherWh ->  | J73: =SUMIF('S1'!B:B,B73,'S1'!I:I)/1000 -> 0 | K73: =SUMIF('S1'!B:B,B73,'S1'!L:L)/1000 -> 0
A74: 120 | B74: 2868 | D74: =SUMIF('S1'!B:B,B74,'S1'!F:F)/1000 -> 0 | E74: =SUMIF('S1'!B:B,B74,'S1'!E:E)/1000 -> 0 | F74: =SUMIF('S1'!B:B,B74,'S1'!M:M)/1000 -> 0 | G74: =SUMIF('S1'!B:B,B74,'S1'!K:K)/1000 -> 0 | H74: =SUMIF('S1'!B:B,B74,'S1'!J:J)/1000 -> 0 | I74: =SUMIF('S1'!B:B,B74,'S1'!I:I)/BatteriespeicherWh ->  | J74: =SUMIF('S1'!B:B,B74,'S1'!I:I)/1000 -> 0 | K74: =SUMIF('S1'!B:B,B74,'S1'!L:L)/1000 -> 0
A75: 120 | B75: 2869 | C75: Mo. 12:00 | D75: =SUMIF('S1'!B:B,B75,'S1'!F:F)/1000 -> 0 | E75: =SUMIF('S1'!B:B,B75,'S1'!E:E)/1000 -> 0 | F75: =SUMIF('S1'!B:B,B75,'S1'!M:M)/1000 -> 0 | G75: =SUMIF('S1'!B:B,B75,'S1'!K:K)/1000 -> 0 | H75: =SUMIF('S1'!B:B,B75,'S1'!J:J)/1000 -> 0 | I75: =SUMIF('S1'!B:B,B75,'S1'!I:I)/BatteriespeicherWh ->  | J75: =SUMIF('S1'!B:B,B75,'S1'!I:I)/1000 -> 0 | K75: =SUMIF('S1'!B:B,B75,'S1'!L:L)/1000 -> 0
A76: 120 | B76: 2870 | D76: =SUMIF('S1'!B:B,B76,'S1'!F:F)/1000 -> 0 | E76: =SUMIF('S1'!B:B,B76,'S1'!E:E)/1000 -> 0 | F76: =SUMIF('S1'!B:B,B76,'S1'!M:M)/1000 -> 0 | G76: =SUMIF('S1'!B:B,B76,'S1'!K:K)/1000 -> 0 | H76: =SUMIF('S1'!B:B,B76,'S1'!J:J)/1000 -> 0 | I76: =SUMIF('S1'!B:B,B76,'S1'!I:I)/BatteriespeicherWh ->  | J76: =SUMIF('S1'!B:B,B76,'S1'!I:I)/1000 -> 0 | K76: =SUMIF('S1'!B:B,B76,'S1'!L:L)/1000 -> 0
A77: 120 | B77: 2871 | D77: =SUMIF('S1'!B:B,B77,'S1'!F:F)/1000 -> 0 | E77: =SUMIF('S1'!B:B,B77,'S1'!E:E)/1000 -> 0 | F77: =SUMIF('S1'!B:B,B77,'S1'!M:M)/1000 -> 0 | G77: =SUMIF('S1'!B:B,B77,'S1'!K:K)/1000 -> 0 | H77: =SUMIF('S1'!B:B,B77,'S1'!J:J)/1000 -> 0 | I77: =SUMIF('S1'!B:B,B77,'S1'!I:I)/BatteriespeicherWh ->  | J77: =SUMIF('S1'!B:B,B77,'S1'!I:I)/1000 -> 0 | K77: =SUMIF('S1'!B:B,B77,'S1'!L:L)/1000 -> 0
A78: 120 | B78: 2872 | D78: =SUMIF('S1'!B:B,B78,'S1'!F:F)/1000 -> 0 | E78: =SUMIF('S1'!B:B,B78,'S1'!E:E)/1000 -> 0 | F78: =SUMIF('S1'!B:B,B78,'S1'!M:M)/1000 -> 0 | G78: =SUMIF('S1'!B:B,B78,'S1'!K:K)/1000 -> 0 | H78: =SUMIF('S1'!B:B,B78,'S1'!J:J)/1000 -> 0 | I78: =SUMIF('S1'!B:B,B78,'S1'!I:I)/BatteriespeicherWh ->  | J78: =SUMIF('S1'!B:B,B78,'S1'!I:I)/1000 -> 0 | K78: =SUMIF('S1'!B:B,B78,'S1'!L:L)/1000 -> 0
A79: 120 | B79: 2873 | D79: =SUMIF('S1'!B:B,B79,'S1'!F:F)/1000 -> 0 | E79: =SUMIF('S1'!B:B,B79,'S1'!E:E)/1000 -> 0 | F79: =SUMIF('S1'!B:B,B79,'S1'!M:M)/1000 -> 0 | G79: =SUMIF('S1'!B:B,B79,'S1'!K:K)/1000 -> 0 | H79: =SUMIF('S1'!B:B,B79,'S1'!J:J)/1000 -> 0 | I79: =SUMIF('S1'!B:B,B79,'S1'!I:I)/BatteriespeicherWh ->  | J79: =SUMIF('S1'!B:B,B79,'S1'!I:I)/1000 -> 0 | K79: =SUMIF('S1'!B:B,B79,'S1'!L:L)/1000 -> 0
A80: 120 | B80: 2874 | D80: =SUMIF('S1'!B:B,B80,'S1'!F:F)/1000 -> 0 | E80: =SUMIF('S1'!B:B,B80,'S1'!E:E)/1000 -> 0 | F80: =SUMIF('S1'!B:B,B80,'S1'!M:M)/1000 -> 0 | G80: =SUMIF('S1'!B:B,B80,'S1'!K:K)/1000 -> 0 | H80: =SUMIF('S1'!B:B,B80,'S1'!J:J)/1000 -> 0 | I80: =SUMIF('S1'!B:B,B80,'S1'!I:I)/BatteriespeicherWh ->  | J80: =SUMIF('S1'!B:B,B80,'S1'!I:I)/1000 -> 0 | K80: =SUMIF('S1'!B:B,B80,'S1'!L:L)/1000 -> 0
A81: 120 | B81: 2875 | D81: =SUMIF('S1'!B:B,B81,'S1'!F:F)/1000 -> 0 | E81: =SUMIF('S1'!B:B,B81,'S1'!E:E)/1000 -> 0 | F81: =SUMIF('S1'!B:B,B81,'S1'!M:M)/1000 -> 0 | G81: =SUMIF('S1'!B:B,B81,'S1'!K:K)/1000 -> 0 | H81: =SUMIF('S1'!B:B,B81,'S1'!J:J)/1000 -> 0 | I81: =SUMIF('S1'!B:B,B81,'S1'!I:I)/BatteriespeicherWh ->  | J81: =SUMIF('S1'!B:B,B81,'S1'!I:I)/1000 -> 0 | K81: =SUMIF('S1'!B:B,B81,'S1'!L:L)/1000 -> 0
A82: 120 | B82: 2876 | D82: =SUMIF('S1'!B:B,B82,'S1'!F:F)/1000 -> 0 | E82: =SUMIF('S1'!B:B,B82,'S1'!E:E)/1000 -> 0 | F82: =SUMIF('S1'!B:B,B82,'S1'!M:M)/1000 -> 0 | G82: =SUMIF('S1'!B:B,B82,'S1'!K:K)/1000 -> 0 | H82: =SUMIF('S1'!B:B,B82,'S1'!J:J)/1000 -> 0 | I82: =SUMIF('S1'!B:B,B82,'S1'!I:I)/BatteriespeicherWh ->  | J82: =SUMIF('S1'!B:B,B82,'S1'!I:I)/1000 -> 0 | K82: =SUMIF('S1'!B:B,B82,'S1'!L:L)/1000 -> 0
A83: 120 | B83: 2877 | D83: =SUMIF('S1'!B:B,B83,'S1'!F:F)/1000 -> 0 | E83: =SUMIF('S1'!B:B,B83,'S1'!E:E)/1000 -> 0 | F83: =SUMIF('S1'!B:B,B83,'S1'!M:M)/1000 -> 0 | G83: =SUMIF('S1'!B:B,B83,'S1'!K:K)/1000 -> 0 | H83: =SUMIF('S1'!B:B,B83,'S1'!J:J)/1000 -> 0 | I83: =SUMIF('S1'!B:B,B83,'S1'!I:I)/BatteriespeicherWh ->  | J83: =SUMIF('S1'!B:B,B83,'S1'!I:I)/1000 -> 0 | K83: =SUMIF('S1'!B:B,B83,'S1'!L:L)/1000 -> 0
A84: 120 | B84: 2878 | D84: =SUMIF('S1'!B:B,B84,'S1'!F:F)/1000 -> 0 | E84: =SUMIF('S1'!B:B,B84,'S1'!E:E)/1000 -> 0 | F84: =SUMIF('S1'!B:B,B84,'S1'!M:M)/1000 -> 0 | G84: =SUMIF('S1'!B:B,B84,'S1'!K:K)/1000 -> 0 | H84: =SUMIF('S1'!B:B,B84,'S1'!J:J)/1000 -> 0 | I84: =SUMIF('S1'!B:B,B84,'S1'!I:I)/BatteriespeicherWh ->  | J84: =SUMIF('S1'!B:B,B84,'S1'!I:I)/1000 -> 0 | K84: =SUMIF('S1'!B:B,B84,'S1'!L:L)/1000 -> 0
A85: 120 | B85: 2879 | D85: =SUMIF('S1'!B:B,B85,'S1'!F:F)/1000 -> 0 | E85: =SUMIF('S1'!B:B,B85,'S1'!E:E)/1000 -> 0 | F85: =SUMIF('S1'!B:B,B85,'S1'!M:M)/1000 -> 0 | G85: =SUMIF('S1'!B:B,B85,'S1'!K:K)/1000 -> 0 | H85: =SUMIF('S1'!B:B,B85,'S1'!J:J)/1000 -> 0 | I85: =SUMIF('S1'!B:B,B85,'S1'!I:I)/BatteriespeicherWh ->  | J85: =SUMIF('S1'!B:B,B85,'S1'!I:I)/1000 -> 0 | K85: =SUMIF('S1'!B:B,B85,'S1'!L:L)/1000 -> 0
A86: 120 | B86: 2880 | D86: =SUMIF('S1'!B:B,B86,'S1'!F:F)/1000 -> 0 | E86: =SUMIF('S1'!B:B,B86,'S1'!E:E)/1000 -> 0 | F86: =SUMIF('S1'!B:B,B86,'S1'!M:M)/1000 -> 0 | G86: =SUMIF('S1'!B:B,B86,'S1'!K:K)/1000 -> 0 | H86: =SUMIF('S1'!B:B,B86,'S1'!J:J)/1000 -> 0 | I86: =SUMIF('S1'!B:B,B86,'S1'!I:I)/BatteriespeicherWh ->  | J86: =SUMIF('S1'!B:B,B86,'S1'!I:I)/1000 -> 0 | K86: =SUMIF('S1'!B:B,B86,'S1'!L:L)/1000 -> 0
A87: 121 | B87: 2881 | C87: Di. 0:00 | D87: =SUMIF('S1'!B:B,B87,'S1'!F:F)/1000 -> 0 | E87: =SUMIF('S1'!B:B,B87,'S1'!E:E)/1000 -> 0 | F87: =SUMIF('S1'!B:B,B87,'S1'!M:M)/1000 -> 0 | G87: =SUMIF('S1'!B:B,B87,'S1'!K:K)/1000 -> 0 | H87: =SUMIF('S1'!B:B,B87,'S1'!J:J)/1000 -> 0 | I87: =SUMIF('S1'!B:B,B87,'S1'!I:I)/BatteriespeicherWh ->  | J87: =SUMIF('S1'!B:B,B87,'S1'!I:I)/1000 -> 0 | K87: =SUMIF('S1'!B:B,B87,'S1'!L:L)/1000 -> 0
A88: 121 | B88: 2882 | D88: =SUMIF('S1'!B:B,B88,'S1'!F:F)/1000 -> 0 | E88: =SUMIF('S1'!B:B,B88,'S1'!E:E)/1000 -> 0 | F88: =SUMIF('S1'!B:B,B88,'S1'!M:M)/1000 -> 0 | G88: =SUMIF('S1'!B:B,B88,'S1'!K:K)/1000 -> 0 | H88: =SUMIF('S1'!B:B,B88,'S1'!J:J)/1000 -> 0 | I88: =SUMIF('S1'!B:B,B88,'S1'!I:I)/BatteriespeicherWh ->  | J88: =SUMIF('S1'!B:B,B88,'S1'!I:I)/1000 -> 0 | K88: =SUMIF('S1'!B:B,B88,'S1'!L:L)/1000 -> 0
A89: 121 | B89: 2883 | D89: =SUMIF('S1'!B:B,B89,'S1'!F:F)/1000 -> 0 | E89: =SUMIF('S1'!B:B,B89,'S1'!E:E)/1000 -> 0 | F89: =SUMIF('S1'!B:B,B89,'S1'!M:M)/1000 -> 0 | G89: =SUMIF('S1'!B:B,B89,'S1'!K:K)/1000 -> 0 | H89: =SUMIF('S1'!B:B,B89,'S1'!J:J)/1000 -> 0 | I89: =SUMIF('S1'!B:B,B89,'S1'!I:I)/BatteriespeicherWh ->  | J89: =SUMIF('S1'!B:B,B89,'S1'!I:I)/1000 -> 0 | K89: =SUMIF('S1'!B:B,B89,'S1'!L:L)/1000 -> 0
A90: 121 | B90: 2884 | D90: =SUMIF('S1'!B:B,B90,'S1'!F:F)/1000 -> 0 | E90: =SUMIF('S1'!B:B,B90,'S1'!E:E)/1000 -> 0 | F90: =SUMIF('S1'!B:B,B90,'S1'!M:M)/1000 -> 0 | G90: =SUMIF('S1'!B:B,B90,'S1'!K:K)/1000 -> 0 | H90: =SUMIF('S1'!B:B,B90,'S1'!J:J)/1000 -> 0 | I90: =SUMIF('S1'!B:B,B90,'S1'!I:I)/BatteriespeicherWh ->  | J90: =SUMIF('S1'!B:B,B90,'S1'!I:I)/1000 -> 0 | K90: =SUMIF('S1'!B:B,B90,'S1'!L:L)/1000 -> 0
A91: 121 | B91: 2885 | D91: =SUMIF('S1'!B:B,B91,'S1'!F:F)/1000 -> 0 | E91: =SUMIF('S1'!B:B,B91,'S1'!E:E)/1000 -> 0 | F91: =SUMIF('S1'!B:B,B91,'S1'!M:M)/1000 -> 0 | G91: =SUMIF('S1'!B:B,B91,'S1'!K:K)/1000 -> 0 | H91: =SUMIF('S1'!B:B,B91,'S1'!J:J)/1000 -> 0 | I91: =SUMIF('S1'!B:B,B91,'S1'!I:I)/BatteriespeicherWh ->  | J91: =SUMIF('S1'!B:B,B91,'S1'!I:I)/1000 -> 0 | K91: =SUMIF('S1'!B:B,B91,'S1'!L:L)/1000 -> 0
A92: 121 | B92: 2886 | D92: =SUMIF('S1'!B:B,B92,'S1'!F:F)/1000 -> 0 | E92: =SUMIF('S1'!B:B,B92,'S1'!E:E)/1000 -> 0 | F92: =SUMIF('S1'!B:B,B92,'S1'!M:M)/1000 -> 0 | G92: =SUMIF('S1'!B:B,B92,'S1'!K:K)/1000 -> 0 | H92: =SUMIF('S1'!B:B,B92,'S1'!J:J)/1000 -> 0 | I92: =SUMIF('S1'!B:B,B92,'S1'!I:I)/BatteriespeicherWh ->  | J92: =SUMIF('S1'!B:B,B92,'S1'!I:I)/1000 -> 0 | K92: =SUMIF('S1'!B:B,B92,'S1'!L:L)/1000 -> 0
A93: 121 | B93: 2887 | D93: =SUMIF('S1'!B:B,B93,'S1'!F:F)/1000 -> 0 | E93: =SUMIF('S1'!B:B,B93,'S1'!E:E)/1000 -> 0 | F93: =SUMIF('S1'!B:B,B93,'S1'!M:M)/1000 -> 0 | G93: =SUMIF('S1'!B:B,B93,'S1'!K:K)/1000 -> 0 | H93: =SUMIF('S1'!B:B,B93,'S1'!J:J)/1000 -> 0 | I93: =SUMIF('S1'!B:B,B93,'S1'!I:I)/BatteriespeicherWh ->  | J93: =SUMIF('S1'!B:B,B93,'S1'!I:I)/1000 -> 0 | K93: =SUMIF('S1'!B:B,B93,'S1'!L:L)/1000 -> 0
A94: 121 | B94: 2888 | D94: =SUMIF('S1'!B:B,B94,'S1'!F:F)/1000 -> 0 | E94: =SUMIF('S1'!B:B,B94,'S1'!E:E)/1000 -> 0 | F94: =SUMIF('S1'!B:B,B94,'S1'!M:M)/1000 -> 0 | G94: =SUMIF('S1'!B:B,B94,'S1'!K:K)/1000 -> 0 | H94: =SUMIF('S1'!B:B,B94,'S1'!J:J)/1000 -> 0 | I94: =SUMIF('S1'!B:B,B94,'S1'!I:I)/BatteriespeicherWh ->  | J94: =SUMIF('S1'!B:B,B94,'S1'!I:I)/1000 -> 0 | K94: =SUMIF('S1'!B:B,B94,'S1'!L:L)/1000 -> 0
A95: 121 | B95: 2889 | D95: =SUMIF('S1'!B:B,B95,'S1'!F:F)/1000 -> 0 | E95: =SUMIF('S1'!B:B,B95,'S1'!E:E)/1000 -> 0 | F95: =SUMIF('S1'!B:B,B95,'S1'!M:M)/1000 -> 0 | G95: =SUMIF('S1'!B:B,B95,'S1'!K:K)/1000 -> 0 | H95: =SUMIF('S1'!B:B,B95,'S1'!J:J)/1000 -> 0 | I95: =SUMIF('S1'!B:B,B95,'S1'!I:I)/BatteriespeicherWh ->  | J95: =SUMIF('S1'!B:B,B95,'S1'!I:I)/1000 -> 0 | K95: =SUMIF('S1'!B:B,B95,'S1'!L:L)/1000 -> 0
A96: 121 | B96: 2890 | D96: =SUMIF('S1'!B:B,B96,'S1'!F:F)/1000 -> 0 | E96: =SUMIF('S1'!B:B,B96,'S1'!E:E)/1000 -> 0 | F96: =SUMIF('S1'!B:B,B96,'S1'!M:M)/1000 -> 0 | G96: =SUMIF('S1'!B:B,B96,'S1'!K:K)/1000 -> 0 | H96: =SUMIF('S1'!B:B,B96,'S1'!J:J)/1000 -> 0 | I96: =SUMIF('S1'!B:B,B96,'S1'!I:I)/BatteriespeicherWh ->  | J96: =SUMIF('S1'!B:B,B96,'S1'!I:I)/1000 -> 0 | K96: =SUMIF('S1'!B:B,B96,'S1'!L:L)/1000 -> 0
A97: 121 | B97: 2891 | D97: =SUMIF('S1'!B:B,B97,'S1'!F:F)/1000 -> 0 | E97: =SUMIF('S1'!B:B,B97,'S1'!E:E)/1000 -> 0 | F97: =SUMIF('S1'!B:B,B97,'S1'!M:M)/1000 -> 0 | G97: =SUMIF('S1'!B:B,B97,'S1'!K:K)/1000 -> 0 | H97: =SUMIF('S1'!B:B,B97,'S1'!J:J)/1000 -> 0 | I97: =SUMIF('S1'!B:B,B97,'S1'!I:I)/BatteriespeicherWh ->  | J97: =SUMIF('S1'!B:B,B97,'S1'!I:I)/1000 -> 0 | K97: =SUMIF('S1'!B:B,B97,'S1'!L:L)/1000 -> 0
A98: 121 | B98: 2892 | D98: =SUMIF('S1'!B:B,B98,'S1'!F:F)/1000 -> 0 | E98: =SUMIF('S1'!B:B,B98,'S1'!E:E)/1000 -> 0 | F98: =SUMIF('S1'!B:B,B98,'S1'!M:M)/1000 -> 0 | G98: =SUMIF('S1'!B:B,B98,'S1'!K:K)/1000 -> 0 | H98: =SUMIF('S1'!B:B,B98,'S1'!J:J)/1000 -> 0 | I98: =SUMIF('S1'!B:B,B98,'S1'!I:I)/BatteriespeicherWh ->  | J98: =SUMIF('S1'!B:B,B98,'S1'!I:I)/1000 -> 0 | K98: =SUMIF('S1'!B:B,B98,'S1'!L:L)/1000 -> 0
A99: 121 | B99: 2893 | C99: Di. 12:00 | D99: =SUMIF('S1'!B:B,B99,'S1'!F:F)/1000 -> 0 | E99: =SUMIF('S1'!B:B,B99,'S1'!E:E)/1000 -> 0 | F99: =SUMIF('S1'!B:B,B99,'S1'!M:M)/1000 -> 0 | G99: =SUMIF('S1'!B:B,B99,'S1'!K:K)/1000 -> 0 | H99: =SUMIF('S1'!B:B,B99,'S1'!J:J)/1000 -> 0 | I99: =SUMIF('S1'!B:B,B99,'S1'!I:I)/BatteriespeicherWh ->  | J99: =SUMIF('S1'!B:B,B99,'S1'!I:I)/1000 -> 0 | K99: =SUMIF('S1'!B:B,B99,'S1'!L:L)/1000 -> 0
A100: 121 | B100: 2894 | D100: =SUMIF('S1'!B:B,B100,'S1'!F:F)/1000 -> 0 | E100: =SUMIF('S1'!B:B,B100,'S1'!E:E)/1000 -> 0 | F100: =SUMIF('S1'!B:B,B100,'S1'!M:M)/1000 -> 0 | G100: =SUMIF('S1'!B:B,B100,'S1'!K:K)/1000 -> 0 | H100: =SUMIF('S1'!B:B,B100,'S1'!J:J)/1000 -> 0 | I100: =SUMIF('S1'!B:B,B100,'S1'!I:I)/BatteriespeicherWh ->  | J100: =SUMIF('S1'!B:B,B100,'S1'!I:I)/1000 -> 0 | K100: =SUMIF('S1'!B:B,B100,'S1'!L:L)/1000 -> 0
A101: 121 | B101: 2895 | D101: =SUMIF('S1'!B:B,B101,'S1'!F:F)/1000 -> 0 | E101: =SUMIF('S1'!B:B,B101,'S1'!E:E)/1000 -> 0 | F101: =SUMIF('S1'!B:B,B101,'S1'!M:M)/1000 -> 0 | G101: =SUMIF('S1'!B:B,B101,'S1'!K:K)/1000 -> 0 | H101: =SUMIF('S1'!B:B,B101,'S1'!J:J)/1000 -> 0 | I101: =SUMIF('S1'!B:B,B101,'S1'!I:I)/BatteriespeicherWh ->  | J101: =SUMIF('S1'!B:B,B101,'S1'!I:I)/1000 -> 0 | K101: =SUMIF('S1'!B:B,B101,'S1'!L:L)/1000 -> 0
A102: 121 | B102: 2896 | D102: =SUMIF('S1'!B:B,B102,'S1'!F:F)/1000 -> 0 | E102: =SUMIF('S1'!B:B,B102,'S1'!E:E)/1000 -> 0 | F102: =SUMIF('S1'!B:B,B102,'S1'!M:M)/1000 -> 0 | G102: =SUMIF('S1'!B:B,B102,'S1'!K:K)/1000 -> 0 | H102: =SUMIF('S1'!B:B,B102,'S1'!J:J)/1000 -> 0 | I102: =SUMIF('S1'!B:B,B102,'S1'!I:I)/BatteriespeicherWh ->  | J102: =SUMIF('S1'!B:B,B102,'S1'!I:I)/1000 -> 0 | K102: =SUMIF('S1'!B:B,B102,'S1'!L:L)/1000 -> 0
A103: 121 | B103: 2897 | D103: =SUMIF('S1'!B:B,B103,'S1'!F:F)/1000 -> 0 | E103: =SUMIF('S1'!B:B,B103,'S1'!E:E)/1000 -> 0 | F103: =SUMIF('S1'!B:B,B103,'S1'!M:M)/1000 -> 0 | G103: =SUMIF('S1'!B:B,B103,'S1'!K:K)/1000 -> 0 | H103: =SUMIF('S1'!B:B,B103,'S1'!J:J)/1000 -> 0 | I103: =SUMIF('S1'!B:B,B103,'S1'!I:I)/BatteriespeicherWh ->  | J103: =SUMIF('S1'!B:B,B103,'S1'!I:I)/1000 -> 0 | K103: =SUMIF('S1'!B:B,B103,'S1'!L:L)/1000 -> 0
A104: 121 | B104: 2898 | D104: =SUMIF('S1'!B:B,B104,'S1'!F:F)/1000 -> 0 | E104: =SUMIF('S1'!B:B,B104,'S1'!E:E)/1000 -> 0 | F104: =SUMIF('S1'!B:B,B104,'S1'!M:M)/1000 -> 0 | G104: =SUMIF('S1'!B:B,B104,'S1'!K:K)/1000 -> 0 | H104: =SUMIF('S1'!B:B,B104,'S1'!J:J)/1000 -> 0 | I104: =SUMIF('S1'!B:B,B104,'S1'!I:I)/BatteriespeicherWh ->  | J104: =SUMIF('S1'!B:B,B104,'S1'!I:I)/1000 -> 0 | K104: =SUMIF('S1'!B:B,B104,'S1'!L:L)/1000 -> 0
A105: 121 | B105: 2899 | D105: =SUMIF('S1'!B:B,B105,'S1'!F:F)/1000 -> 0 | E105: =SUMIF('S1'!B:B,B105,'S1'!E:E)/1000 -> 0 | F105: =SUMIF('S1'!B:B,B105,'S1'!M:M)/1000 -> 0 | G105: =SUMIF('S1'!B:B,B105,'S1'!K:K)/1000 -> 0 | H105: =SUMIF('S1'!B:B,B105,'S1'!J:J)/1000 -> 0 | I105: =SUMIF('S1'!B:B,B105,'S1'!I:I)/BatteriespeicherWh ->  | J105: =SUMIF('S1'!B:B,B105,'S1'!I:I)/1000 -> 0 | K105: =SUMIF('S1'!B:B,B105,'S1'!L:L)/1000 -> 0
A106: 121 | B106: 2900 | D106: =SUMIF('S1'!B:B,B106,'S1'!F:F)/1000 -> 0 | E106: =SUMIF('S1'!B:B,B106,'S1'!E:E)/1000 -> 0 | F106: =SUMIF('S1'!B:B,B106,'S1'!M:M)/1000 -> 0 | G106: =SUMIF('S1'!B:B,B106,'S1'!K:K)/1000 -> 0 | H106: =SUMIF('S1'!B:B,B106,'S1'!J:J)/1000 -> 0 | I106: =SUMIF('S1'!B:B,B106,'S1'!I:I)/BatteriespeicherWh ->  | J106: =SUMIF('S1'!B:B,B106,'S1'!I:I)/1000 -> 0 | K106: =SUMIF('S1'!B:B,B106,'S1'!L:L)/1000 -> 0
A107: 121 | B107: 2901 | D107: =SUMIF('S1'!B:B,B107,'S1'!F:F)/1000 -> 0 | E107: =SUMIF('S1'!B:B,B107,'S1'!E:E)/1000 -> 0 | F107: =SUMIF('S1'!B:B,B107,'S1'!M:M)/1000 -> 0 | G107: =SUMIF('S1'!B:B,B107,'S1'!K:K)/1000 -> 0 | H107: =SUMIF('S1'!B:B,B107,'S1'!J:J)/1000 -> 0 | I107: =SUMIF('S1'!B:B,B107,'S1'!I:I)/BatteriespeicherWh ->  | J107: =SUMIF('S1'!B:B,B107,'S1'!I:I)/1000 -> 0 | K107: =SUMIF('S1'!B:B,B107,'S1'!L:L)/1000 -> 0
A108: 121 | B108: 2902 | D108: =SUMIF('S1'!B:B,B108,'S1'!F:F)/1000 -> 0 | E108: =SUMIF('S1'!B:B,B108,'S1'!E:E)/1000 -> 0 | F108: =SUMIF('S1'!B:B,B108,'S1'!M:M)/1000 -> 0 | G108: =SUMIF('S1'!B:B,B108,'S1'!K:K)/1000 -> 0 | H108: =SUMIF('S1'!B:B,B108,'S1'!J:J)/1000 -> 0 | I108: =SUMIF('S1'!B:B,B108,'S1'!I:I)/BatteriespeicherWh ->  | J108: =SUMIF('S1'!B:B,B108,'S1'!I:I)/1000 -> 0 | K108: =SUMIF('S1'!B:B,B108,'S1'!L:L)/1000 -> 0
A109: 121 | B109: 2903 | D109: =SUMIF('S1'!B:B,B109,'S1'!F:F)/1000 -> 0 | E109: =SUMIF('S1'!B:B,B109,'S1'!E:E)/1000 -> 0 | F109: =SUMIF('S1'!B:B,B109,'S1'!M:M)/1000 -> 0 | G109: =SUMIF('S1'!B:B,B109,'S1'!K:K)/1000 -> 0 | H109: =SUMIF('S1'!B:B,B109,'S1'!J:J)/1000 -> 0 | I109: =SUMIF('S1'!B:B,B109,'S1'!I:I)/BatteriespeicherWh ->  | J109: =SUMIF('S1'!B:B,B109,'S1'!I:I)/1000 -> 0 | K109: =SUMIF('S1'!B:B,B109,'S1'!L:L)/1000 -> 0
A110: 121 | B110: 2904 | D110: =SUMIF('S1'!B:B,B110,'S1'!F:F)/1000 -> 0 | E110: =SUMIF('S1'!B:B,B110,'S1'!E:E)/1000 -> 0 | F110: =SUMIF('S1'!B:B,B110,'S1'!M:M)/1000 -> 0 | G110: =SUMIF('S1'!B:B,B110,'S1'!K:K)/1000 -> 0 | H110: =SUMIF('S1'!B:B,B110,'S1'!J:J)/1000 -> 0 | I110: =SUMIF('S1'!B:B,B110,'S1'!I:I)/BatteriespeicherWh ->  | J110: =SUMIF('S1'!B:B,B110,'S1'!I:I)/1000 -> 0 | K110: =SUMIF('S1'!B:B,B110,'S1'!L:L)/1000 -> 0
A111: 122 | B111: 2905 | C111: Mi. 0:00 | D111: =SUMIF('S1'!B:B,B111,'S1'!F:F)/1000 -> 0 | E111: =SUMIF('S1'!B:B,B111,'S1'!E:E)/1000 -> 0 | F111: =SUMIF('S1'!B:B,B111,'S1'!M:M)/1000 -> 0 | G111: =SUMIF('S1'!B:B,B111,'S1'!K:K)/1000 -> 0 | H111: =SUMIF('S1'!B:B,B111,'S1'!J:J)/1000 -> 0 | I111: =SUMIF('S1'!B:B,B111,'S1'!I:I)/BatteriespeicherWh ->  | J111: =SUMIF('S1'!B:B,B111,'S1'!I:I)/1000 -> 0 | K111: =SUMIF('S1'!B:B,B111,'S1'!L:L)/1000 -> 0
A112: 122 | B112: 2906 | D112: =SUMIF('S1'!B:B,B112,'S1'!F:F)/1000 -> 0 | E112: =SUMIF('S1'!B:B,B112,'S1'!E:E)/1000 -> 0 | F112: =SUMIF('S1'!B:B,B112,'S1'!M:M)/1000 -> 0 | G112: =SUMIF('S1'!B:B,B112,'S1'!K:K)/1000 -> 0 | H112: =SUMIF('S1'!B:B,B112,'S1'!J:J)/1000 -> 0 | I112: =SUMIF('S1'!B:B,B112,'S1'!I:I)/BatteriespeicherWh ->  | J112: =SUMIF('S1'!B:B,B112,'S1'!I:I)/1000 -> 0 | K112: =SUMIF('S1'!B:B,B112,'S1'!L:L)/1000 -> 0
A113: 122 | B113: 2907 | D113: =SUMIF('S1'!B:B,B113,'S1'!F:F)/1000 -> 0 | E113: =SUMIF('S1'!B:B,B113,'S1'!E:E)/1000 -> 0 | F113: =SUMIF('S1'!B:B,B113,'S1'!M:M)/1000 -> 0 | G113: =SUMIF('S1'!B:B,B113,'S1'!K:K)/1000 -> 0 | H113: =SUMIF('S1'!B:B,B113,'S1'!J:J)/1000 -> 0 | I113: =SUMIF('S1'!B:B,B113,'S1'!I:I)/BatteriespeicherWh ->  | J113: =SUMIF('S1'!B:B,B113,'S1'!I:I)/1000 -> 0 | K113: =SUMIF('S1'!B:B,B113,'S1'!L:L)/1000 -> 0
A114: 122 | B114: 2908 | D114: =SUMIF('S1'!B:B,B114,'S1'!F:F)/1000 -> 0 | E114: =SUMIF('S1'!B:B,B114,'S1'!E:E)/1000 -> 0 | F114: =SUMIF('S1'!B:B,B114,'S1'!M:M)/1000 -> 0 | G114: =SUMIF('S1'!B:B,B114,'S1'!K:K)/1000 -> 0 | H114: =SUMIF('S1'!B:B,B114,'S1'!J:J)/1000 -> 0 | I114: =SUMIF('S1'!B:B,B114,'S1'!I:I)/BatteriespeicherWh ->  | J114: =SUMIF('S1'!B:B,B114,'S1'!I:I)/1000 -> 0 | K114: =SUMIF('S1'!B:B,B114,'S1'!L:L)/1000 -> 0
A115: 122 | B115: 2909 | D115: =SUMIF('S1'!B:B,B115,'S1'!F:F)/1000 -> 0 | E115: =SUMIF('S1'!B:B,B115,'S1'!E:E)/1000 -> 0 | F115: =SUMIF('S1'!B:B,B115,'S1'!M:M)/1000 -> 0 | G115: =SUMIF('S1'!B:B,B115,'S1'!K:K)/1000 -> 0 | H115: =SUMIF('S1'!B:B,B115,'S1'!J:J)/1000 -> 0 | I115: =SUMIF('S1'!B:B,B115,'S1'!I:I)/BatteriespeicherWh ->  | J115: =SUMIF('S1'!B:B,B115,'S1'!I:I)/1000 -> 0 | K115: =SUMIF('S1'!B:B,B115,'S1'!L:L)/1000 -> 0
A116: 122 | B116: 2910 | D116: =SUMIF('S1'!B:B,B116,'S1'!F:F)/1000 -> 0 | E116: =SUMIF('S1'!B:B,B116,'S1'!E:E)/1000 -> 0 | F116: =SUMIF('S1'!B:B,B116,'S1'!M:M)/1000 -> 0 | G116: =SUMIF('S1'!B:B,B116,'S1'!K:K)/1000 -> 0 | H116: =SUMIF('S1'!B:B,B116,'S1'!J:J)/1000 -> 0 | I116: =SUMIF('S1'!B:B,B116,'S1'!I:I)/BatteriespeicherWh ->  | J116: =SUMIF('S1'!B:B,B116,'S1'!I:I)/1000 -> 0 | K116: =SUMIF('S1'!B:B,B116,'S1'!L:L)/1000 -> 0
A117: 122 | B117: 2911 | D117: =SUMIF('S1'!B:B,B117,'S1'!F:F)/1000 -> 0 | E117: =SUMIF('S1'!B:B,B117,'S1'!E:E)/1000 -> 0 | F117: =SUMIF('S1'!B:B,B117,'S1'!M:M)/1000 -> 0 | G117: =SUMIF('S1'!B:B,B117,'S1'!K:K)/1000 -> 0 | H117: =SUMIF('S1'!B:B,B117,'S1'!J:J)/1000 -> 0 | I117: =SUMIF('S1'!B:B,B117,'S1'!I:I)/BatteriespeicherWh ->  | J117: =SUMIF('S1'!B:B,B117,'S1'!I:I)/1000 -> 0 | K117: =SUMIF('S1'!B:B,B117,'S1'!L:L)/1000 -> 0
A118: 122 | B118: 2912 | D118: =SUMIF('S1'!B:B,B118,'S1'!F:F)/1000 -> 0 | E118: =SUMIF('S1'!B:B,B118,'S1'!E:E)/1000 -> 0 | F118: =SUMIF('S1'!B:B,B118,'S1'!M:M)/1000 -> 0 | G118: =SUMIF('S1'!B:B,B118,'S1'!K:K)/1000 -> 0 | H118: =SUMIF('S1'!B:B,B118,'S1'!J:J)/1000 -> 0 | I118: =SUMIF('S1'!B:B,B118,'S1'!I:I)/BatteriespeicherWh ->  | J118: =SUMIF('S1'!B:B,B118,'S1'!I:I)/1000 -> 0 | K118: =SUMIF('S1'!B:B,B118,'S1'!L:L)/1000 -> 0
A119: 122 | B119: 2913 | D119: =SUMIF('S1'!B:B,B119,'S1'!F:F)/1000 -> 0 | E119: =SUMIF('S1'!B:B,B119,'S1'!E:E)/1000 -> 0 | F119: =SUMIF('S1'!B:B,B119,'S1'!M:M)/1000 -> 0 | G119: =SUMIF('S1'!B:B,B119,'S1'!K:K)/1000 -> 0 | H119: =SUMIF('S1'!B:B,B119,'S1'!J:J)/1000 -> 0 | I119: =SUMIF('S1'!B:B,B119,'S1'!I:I)/BatteriespeicherWh ->  | J119: =SUMIF('S1'!B:B,B119,'S1'!I:I)/1000 -> 0 | K119: =SUMIF('S1'!B:B,B119,'S1'!L:L)/1000 -> 0
A120: 122 | B120: 2914 | D120: =SUMIF('S1'!B:B,B120,'S1'!F:F)/1000 -> 0 | E120: =SUMIF('S1'!B:B,B120,'S1'!E:E)/1000 -> 0 | F120: =SUMIF('S1'!B:B,B120,'S1'!M:M)/1000 -> 0 | G120: =SUMIF('S1'!B:B,B120,'S1'!K:K)/1000 -> 0 | H120: =SUMIF('S1'!B:B,B120,'S1'!J:J)/1000 -> 0 | I120: =SUMIF('S1'!B:B,B120,'S1'!I:I)/BatteriespeicherWh ->  | J120: =SUMIF('S1'!B:B,B120,'S1'!I:I)/1000 -> 0 | K120: =SUMIF('S1'!B:B,B120,'S1'!L:L)/1000 -> 0
A121: 122 | B121: 2915 | D121: =SUMIF('S1'!B:B,B121,'S1'!F:F)/1000 -> 0 | E121: =SUMIF('S1'!B:B,B121,'S1'!E:E)/1000 -> 0 | F121: =SUMIF('S1'!B:B,B121,'S1'!M:M)/1000 -> 0 | G121: =SUMIF('S1'!B:B,B121,'S1'!K:K)/1000 -> 0 | H121: =SUMIF('S1'!B:B,B121,'S1'!J:J)/1000 -> 0 | I121: =SUMIF('S1'!B:B,B121,'S1'!I:I)/BatteriespeicherWh ->  | J121: =SUMIF('S1'!B:B,B121,'S1'!I:I)/1000 -> 0 | K121: =SUMIF('S1'!B:B,B121,'S1'!L:L)/1000 -> 0
A122: 122 | B122: 2916 | D122: =SUMIF('S1'!B:B,B122,'S1'!F:F)/1000 -> 0 | E122: =SUMIF('S1'!B:B,B122,'S1'!E:E)/1000 -> 0 | F122: =SUMIF('S1'!B:B,B122,'S1'!M:M)/1000 -> 0 | G122: =SUMIF('S1'!B:B,B122,'S1'!K:K)/1000 -> 0 | H122: =SUMIF('S1'!B:B,B122,'S1'!J:J)/1000 -> 0 | I122: =SUMIF('S1'!B:B,B122,'S1'!I:I)/BatteriespeicherWh ->  | J122: =SUMIF('S1'!B:B,B122,'S1'!I:I)/1000 -> 0 | K122: =SUMIF('S1'!B:B,B122,'S1'!L:L)/1000 -> 0
A123: 122 | B123: 2917 | C123: Mi. 12:00 | D123: =SUMIF('S1'!B:B,B123,'S1'!F:F)/1000 -> 0 | E123: =SUMIF('S1'!B:B,B123,'S1'!E:E)/1000 -> 0 | F123: =SUMIF('S1'!B:B,B123,'S1'!M:M)/1000 -> 0 | G123: =SUMIF('S1'!B:B,B123,'S1'!K:K)/1000 -> 0 | H123: =SUMIF('S1'!B:B,B123,'S1'!J:J)/1000 -> 0 | I123: =SUMIF('S1'!B:B,B123,'S1'!I:I)/BatteriespeicherWh ->  | J123: =SUMIF('S1'!B:B,B123,'S1'!I:I)/1000 -> 0 | K123: =SUMIF('S1'!B:B,B123,'S1'!L:L)/1000 -> 0
A124: 122 | B124: 2918 | D124: =SUMIF('S1'!B:B,B124,'S1'!F:F)/1000 -> 0 | E124: =SUMIF('S1'!B:B,B124,'S1'!E:E)/1000 -> 0 | F124: =SUMIF('S1'!B:B,B124,'S1'!M:M)/1000 -> 0 | G124: =SUMIF('S1'!B:B,B124,'S1'!K:K)/1000 -> 0 | H124: =SUMIF('S1'!B:B,B124,'S1'!J:J)/1000 -> 0 | I124: =SUMIF('S1'!B:B,B124,'S1'!I:I)/BatteriespeicherWh ->  | J124: =SUMIF('S1'!B:B,B124,'S1'!I:I)/1000 -> 0 | K124: =SUMIF('S1'!B:B,B124,'S1'!L:L)/1000 -> 0
A125: 122 | B125: 2919 | D125: =SUMIF('S1'!B:B,B125,'S1'!F:F)/1000 -> 0 | E125: =SUMIF('S1'!B:B,B125,'S1'!E:E)/1000 -> 0 | F125: =SUMIF('S1'!B:B,B125,'S1'!M:M)/1000 -> 0 | G125: =SUMIF('S1'!B:B,B125,'S1'!K:K)/1000 -> 0 | H125: =SUMIF('S1'!B:B,B125,'S1'!J:J)/1000 -> 0 | I125: =SUMIF('S1'!B:B,B125,'S1'!I:I)/BatteriespeicherWh ->  | J125: =SUMIF('S1'!B:B,B125,'S1'!I:I)/1000 -> 0 | K125: =SUMIF('S1'!B:B,B125,'S1'!L:L)/1000 -> 0
A126: 122 | B126: 2920 | D126: =SUMIF('S1'!B:B,B126,'S1'!F:F)/1000 -> 0 | E126: =SUMIF('S1'!B:B,B126,'S1'!E:E)/1000 -> 0 | F126: =SUMIF('S1'!B:B,B126,'S1'!M:M)/1000 -> 0 | G126: =SUMIF('S1'!B:B,B126,'S1'!K:K)/1000 -> 0 | H126: =SUMIF('S1'!B:B,B126,'S1'!J:J)/1000 -> 0 | I126: =SUMIF('S1'!B:B,B126,'S1'!I:I)/BatteriespeicherWh ->  | J126: =SUMIF('S1'!B:B,B126,'S1'!I:I)/1000 -> 0 | K126: =SUMIF('S1'!B:B,B126,'S1'!L:L)/1000 -> 0
A127: 122 | B127: 2921 | D127: =SUMIF('S1'!B:B,B127,'S1'!F:F)/1000 -> 0 | E127: =SUMIF('S1'!B:B,B127,'S1'!E:E)/1000 -> 0 | F127: =SUMIF('S1'!B:B,B127,'S1'!M:M)/1000 -> 0 | G127: =SUMIF('S1'!B:B,B127,'S1'!K:K)/1000 -> 0 | H127: =SUMIF('S1'!B:B,B127,'S1'!J:J)/1000 -> 0 | I127: =SUMIF('S1'!B:B,B127,'S1'!I:I)/BatteriespeicherWh ->  | J127: =SUMIF('S1'!B:B,B127,'S1'!I:I)/1000 -> 0 | K127: =SUMIF('S1'!B:B,B127,'S1'!L:L)/1000 -> 0
A128: 122 | B128: 2922 | D128: =SUMIF('S1'!B:B,B128,'S1'!F:F)/1000 -> 0 | E128: =SUMIF('S1'!B:B,B128,'S1'!E:E)/1000 -> 0 | F128: =SUMIF('S1'!B:B,B128,'S1'!M:M)/1000 -> 0 | G128: =SUMIF('S1'!B:B,B128,'S1'!K:K)/1000 -> 0 | H128: =SUMIF('S1'!B:B,B128,'S1'!J:J)/1000 -> 0 | I128: =SUMIF('S1'!B:B,B128,'S1'!I:I)/BatteriespeicherWh ->  | J128: =SUMIF('S1'!B:B,B128,'S1'!I:I)/1000 -> 0 | K128: =SUMIF('S1'!B:B,B128,'S1'!L:L)/1000 -> 0
A129: =CEILING(B129/24,1) -> 122 | B129: =B128+1 -> 2923 | D129: =SUMIF('S1'!B:B,B129,'S1'!F:F)/1000 -> 0 | E129: =SUMIF('S1'!B:B,B129,'S1'!E:E)/1000 -> 0 | F129: =SUMIF('S1'!B:B,B129,'S1'!M:M)/1000 -> 0 | G129: =SUMIF('S1'!B:B,B129,'S1'!K:K)/1000 -> 0 | H129: =SUMIF('S1'!B:B,B129,'S1'!J:J)/1000 -> 0 | I129: =SUMIF('S1'!B:B,B129,'S1'!I:I)/BatteriespeicherWh ->  | J129: =SUMIF('S1'!B:B,B129,'S1'!I:I)/1000 -> 0 | K129: =SUMIF('S1'!B:B,B129,'S1'!L:L)/1000 -> 0
A130: 122 | B130: 2924 | D130: =SUMIF('S1'!B:B,B130,'S1'!F:F)/1000 -> 0 | E130: =SUMIF('S1'!B:B,B130,'S1'!E:E)/1000 -> 0 | F130: =SUMIF('S1'!B:B,B130,'S1'!M:M)/1000 -> 0 | G130: =SUMIF('S1'!B:B,B130,'S1'!K:K)/1000 -> 0 | H130: =SUMIF('S1'!B:B,B130,'S1'!J:J)/1000 -> 0 | I130: =SUMIF('S1'!B:B,B130,'S1'!I:I)/BatteriespeicherWh ->  | J130: =SUMIF('S1'!B:B,B130,'S1'!I:I)/1000 -> 0 | K130: =SUMIF('S1'!B:B,B130,'S1'!L:L)/1000 -> 0
A131: 122 | B131: 2925 | D131: =SUMIF('S1'!B:B,B131,'S1'!F:F)/1000 -> 0 | E131: =SUMIF('S1'!B:B,B131,'S1'!E:E)/1000 -> 0 | F131: =SUMIF('S1'!B:B,B131,'S1'!M:M)/1000 -> 0 | G131: =SUMIF('S1'!B:B,B131,'S1'!K:K)/1000 -> 0 | H131: =SUMIF('S1'!B:B,B131,'S1'!J:J)/1000 -> 0 | I131: =SUMIF('S1'!B:B,B131,'S1'!I:I)/BatteriespeicherWh ->  | J131: =SUMIF('S1'!B:B,B131,'S1'!I:I)/1000 -> 0 | K131: =SUMIF('S1'!B:B,B131,'S1'!L:L)/1000 -> 0
A132: 122 | B132: 2926 | D132: =SUMIF('S1'!B:B,B132,'S1'!F:F)/1000 -> 0 | E132: =SUMIF('S1'!B:B,B132,'S1'!E:E)/1000 -> 0 | F132: =SUMIF('S1'!B:B,B132,'S1'!M:M)/1000 -> 0 | G132: =SUMIF('S1'!B:B,B132,'S1'!K:K)/1000 -> 0 | H132: =SUMIF('S1'!B:B,B132,'S1'!J:J)/1000 -> 0 | I132: =SUMIF('S1'!B:B,B132,'S1'!I:I)/BatteriespeicherWh ->  | J132: =SUMIF('S1'!B:B,B132,'S1'!I:I)/1000 -> 0 | K132: =SUMIF('S1'!B:B,B132,'S1'!L:L)/1000 -> 0
A133: 122 | B133: 2927 | D133: =SUMIF('S1'!B:B,B133,'S1'!F:F)/1000 -> 0 | E133: =SUMIF('S1'!B:B,B133,'S1'!E:E)/1000 -> 0 | F133: =SUMIF('S1'!B:B,B133,'S1'!M:M)/1000 -> 0 | G133: =SUMIF('S1'!B:B,B133,'S1'!K:K)/1000 -> 0 | H133: =SUMIF('S1'!B:B,B133,'S1'!J:J)/1000 -> 0 | I133: =SUMIF('S1'!B:B,B133,'S1'!I:I)/BatteriespeicherWh ->  | J133: =SUMIF('S1'!B:B,B133,'S1'!I:I)/1000 -> 0 | K133: =SUMIF('S1'!B:B,B133,'S1'!L:L)/1000 -> 0
A134: 122 | B134: 2928 | D134: =SUMIF('S1'!B:B,B134,'S1'!F:F)/1000 -> 0 | E134: =SUMIF('S1'!B:B,B134,'S1'!E:E)/1000 -> 0 | F134: =SUMIF('S1'!B:B,B134,'S1'!M:M)/1000 -> 0 | G134: =SUMIF('S1'!B:B,B134,'S1'!K:K)/1000 -> 0 | H134: =SUMIF('S1'!B:B,B134,'S1'!J:J)/1000 -> 0 | I134: =SUMIF('S1'!B:B,B134,'S1'!I:I)/BatteriespeicherWh ->  | J134: =SUMIF('S1'!B:B,B134,'S1'!I:I)/1000 -> 0 | K134: =SUMIF('S1'!B:B,B134,'S1'!L:L)/1000 -> 0
A135: 123 | B135: 2929 | C135: Do. 0:00 | D135: =SUMIF('S1'!B:B,B135,'S1'!F:F)/1000 -> 0 | E135: =SUMIF('S1'!B:B,B135,'S1'!E:E)/1000 -> 0 | F135: =SUMIF('S1'!B:B,B135,'S1'!M:M)/1000 -> 0 | G135: =SUMIF('S1'!B:B,B135,'S1'!K:K)/1000 -> 0 | H135: =SUMIF('S1'!B:B,B135,'S1'!J:J)/1000 -> 0 | I135: =SUMIF('S1'!B:B,B135,'S1'!I:I)/BatteriespeicherWh ->  | J135: =SUMIF('S1'!B:B,B135,'S1'!I:I)/1000 -> 0 | K135: =SUMIF('S1'!B:B,B135,'S1'!L:L)/1000 -> 0
A136: 123 | B136: 2930 | D136: =SUMIF('S1'!B:B,B136,'S1'!F:F)/1000 -> 0 | E136: =SUMIF('S1'!B:B,B136,'S1'!E:E)/1000 -> 0 | F136: =SUMIF('S1'!B:B,B136,'S1'!M:M)/1000 -> 0 | G136: =SUMIF('S1'!B:B,B136,'S1'!K:K)/1000 -> 0 | H136: =SUMIF('S1'!B:B,B136,'S1'!J:J)/1000 -> 0 | I136: =SUMIF('S1'!B:B,B136,'S1'!I:I)/BatteriespeicherWh ->  | J136: =SUMIF('S1'!B:B,B136,'S1'!I:I)/1000 -> 0 | K136: =SUMIF('S1'!B:B,B136,'S1'!L:L)/1000 -> 0
A137: 123 | B137: 2931 | D137: =SUMIF('S1'!B:B,B137,'S1'!F:F)/1000 -> 0 | E137: =SUMIF('S1'!B:B,B137,'S1'!E:E)/1000 -> 0 | F137: =SUMIF('S1'!B:B,B137,'S1'!M:M)/1000 -> 0 | G137: =SUMIF('S1'!B:B,B137,'S1'!K:K)/1000 -> 0 | H137: =SUMIF('S1'!B:B,B137,'S1'!J:J)/1000 -> 0 | I137: =SUMIF('S1'!B:B,B137,'S1'!I:I)/BatteriespeicherWh ->  | J137: =SUMIF('S1'!B:B,B137,'S1'!I:I)/1000 -> 0 | K137: =SUMIF('S1'!B:B,B137,'S1'!L:L)/1000 -> 0
A138: 123 | B138: 2932 | D138: =SUMIF('S1'!B:B,B138,'S1'!F:F)/1000 -> 0 | E138: =SUMIF('S1'!B:B,B138,'S1'!E:E)/1000 -> 0 | F138: =SUMIF('S1'!B:B,B138,'S1'!M:M)/1000 -> 0 | G138: =SUMIF('S1'!B:B,B138,'S1'!K:K)/1000 -> 0 | H138: =SUMIF('S1'!B:B,B138,'S1'!J:J)/1000 -> 0 | I138: =SUMIF('S1'!B:B,B138,'S1'!I:I)/BatteriespeicherWh ->  | J138: =SUMIF('S1'!B:B,B138,'S1'!I:I)/1000 -> 0 | K138: =SUMIF('S1'!B:B,B138,'S1'!L:L)/1000 -> 0
A139: 123 | B139: 2933 | D139: =SUMIF('S1'!B:B,B139,'S1'!F:F)/1000 -> 0 | E139: =SUMIF('S1'!B:B,B139,'S1'!E:E)/1000 -> 0 | F139: =SUMIF('S1'!B:B,B139,'S1'!M:M)/1000 -> 0 | G139: =SUMIF('S1'!B:B,B139,'S1'!K:K)/1000 -> 0 | H139: =SUMIF('S1'!B:B,B139,'S1'!J:J)/1000 -> 0 | I139: =SUMIF('S1'!B:B,B139,'S1'!I:I)/BatteriespeicherWh ->  | J139: =SUMIF('S1'!B:B,B139,'S1'!I:I)/1000 -> 0 | K139: =SUMIF('S1'!B:B,B139,'S1'!L:L)/1000 -> 0
A140: 123 | B140: 2934 | D140: =SUMIF('S1'!B:B,B140,'S1'!F:F)/1000 -> 0 | E140: =SUMIF('S1'!B:B,B140,'S1'!E:E)/1000 -> 0 | F140: =SUMIF('S1'!B:B,B140,'S1'!M:M)/1000 -> 0 | G140: =SUMIF('S1'!B:B,B140,'S1'!K:K)/1000 -> 0 | H140: =SUMIF('S1'!B:B,B140,'S1'!J:J)/1000 -> 0 | I140: =SUMIF('S1'!B:B,B140,'S1'!I:I)/BatteriespeicherWh ->  | J140: =SUMIF('S1'!B:B,B140,'S1'!I:I)/1000 -> 0 | K140: =SUMIF('S1'!B:B,B140,'S1'!L:L)/1000 -> 0
A141: 123 | B141: 2935 | D141: =SUMIF('S1'!B:B,B141,'S1'!F:F)/1000 -> 0 | E141: =SUMIF('S1'!B:B,B141,'S1'!E:E)/1000 -> 0 | F141: =SUMIF('S1'!B:B,B141,'S1'!M:M)/1000 -> 0 | G141: =SUMIF('S1'!B:B,B141,'S1'!K:K)/1000 -> 0 | H141: =SUMIF('S1'!B:B,B141,'S1'!J:J)/1000 -> 0 | I141: =SUMIF('S1'!B:B,B141,'S1'!I:I)/BatteriespeicherWh ->  | J141: =SUMIF('S1'!B:B,B141,'S1'!I:I)/1000 -> 0 | K141: =SUMIF('S1'!B:B,B141,'S1'!L:L)/1000 -> 0
A142: 123 | B142: 2936 | D142: =SUMIF('S1'!B:B,B142,'S1'!F:F)/1000 -> 0 | E142: =SUMIF('S1'!B:B,B142,'S1'!E:E)/1000 -> 0 | F142: =SUMIF('S1'!B:B,B142,'S1'!M:M)/1000 -> 0 | G142: =SUMIF('S1'!B:B,B142,'S1'!K:K)/1000 -> 0 | H142: =SUMIF('S1'!B:B,B142,'S1'!J:J)/1000 -> 0 | I142: =SUMIF('S1'!B:B,B142,'S1'!I:I)/BatteriespeicherWh ->  | J142: =SUMIF('S1'!B:B,B142,'S1'!I:I)/1000 -> 0 | K142: =SUMIF('S1'!B:B,B142,'S1'!L:L)/1000 -> 0
A143: 123 | B143: 2937 | D143: =SUMIF('S1'!B:B,B143,'S1'!F:F)/1000 -> 0 | E143: =SUMIF('S1'!B:B,B143,'S1'!E:E)/1000 -> 0 | F143: =SUMIF('S1'!B:B,B143,'S1'!M:M)/1000 -> 0 | G143: =SUMIF('S1'!B:B,B143,'S1'!K:K)/1000 -> 0 | H143: =SUMIF('S1'!B:B,B143,'S1'!J:J)/1000 -> 0 | I143: =SUMIF('S1'!B:B,B143,'S1'!I:I)/BatteriespeicherWh ->  | J143: =SUMIF('S1'!B:B,B143,'S1'!I:I)/1000 -> 0 | K143: =SUMIF('S1'!B:B,B143,'S1'!L:L)/1000 -> 0
A144: 123 | B144: 2938 | D144: =SUMIF('S1'!B:B,B144,'S1'!F:F)/1000 -> 0 | E144: =SUMIF('S1'!B:B,B144,'S1'!E:E)/1000 -> 0 | F144: =SUMIF('S1'!B:B,B144,'S1'!M:M)/1000 -> 0 | G144: =SUMIF('S1'!B:B,B144,'S1'!K:K)/1000 -> 0 | H144: =SUMIF('S1'!B:B,B144,'S1'!J:J)/1000 -> 0 | I144: =SUMIF('S1'!B:B,B144,'S1'!I:I)/BatteriespeicherWh ->  | J144: =SUMIF('S1'!B:B,B144,'S1'!I:I)/1000 -> 0 | K144: =SUMIF('S1'!B:B,B144,'S1'!L:L)/1000 -> 0
A145: 123 | B145: 2939 | D145: =SUMIF('S1'!B:B,B145,'S1'!F:F)/1000 -> 0 | E145: =SUMIF('S1'!B:B,B145,'S1'!E:E)/1000 -> 0 | F145: =SUMIF('S1'!B:B,B145,'S1'!M:M)/1000 -> 0 | G145: =SUMIF('S1'!B:B,B145,'S1'!K:K)/1000 -> 0 | H145: =SUMIF('S1'!B:B,B145,'S1'!J:J)/1000 -> 0 | I145: =SUMIF('S1'!B:B,B145,'S1'!I:I)/BatteriespeicherWh ->  | J145: =SUMIF('S1'!B:B,B145,'S1'!I:I)/1000 -> 0 | K145: =SUMIF('S1'!B:B,B145,'S1'!L:L)/1000 -> 0
A146: 123 | B146: 2940 | D146: =SUMIF('S1'!B:B,B146,'S1'!F:F)/1000 -> 0 | E146: =SUMIF('S1'!B:B,B146,'S1'!E:E)/1000 -> 0 | F146: =SUMIF('S1'!B:B,B146,'S1'!M:M)/1000 -> 0 | G146: =SUMIF('S1'!B:B,B146,'S1'!K:K)/1000 -> 0 | H146: =SUMIF('S1'!B:B,B146,'S1'!J:J)/1000 -> 0 | I146: =SUMIF('S1'!B:B,B146,'S1'!I:I)/BatteriespeicherWh ->  | J146: =SUMIF('S1'!B:B,B146,'S1'!I:I)/1000 -> 0 | K146: =SUMIF('S1'!B:B,B146,'S1'!L:L)/1000 -> 0
A147: 123 | B147: 2941 | C147: Do. 12:00 | D147: =SUMIF('S1'!B:B,B147,'S1'!F:F)/1000 -> 0 | E147: =SUMIF('S1'!B:B,B147,'S1'!E:E)/1000 -> 0 | F147: =SUMIF('S1'!B:B,B147,'S1'!M:M)/1000 -> 0 | G147: =SUMIF('S1'!B:B,B147,'S1'!K:K)/1000 -> 0 | H147: =SUMIF('S1'!B:B,B147,'S1'!J:J)/1000 -> 0 | I147: =SUMIF('S1'!B:B,B147,'S1'!I:I)/BatteriespeicherWh ->  | J147: =SUMIF('S1'!B:B,B147,'S1'!I:I)/1000 -> 0 | K147: =SUMIF('S1'!B:B,B147,'S1'!L:L)/1000 -> 0
A148: 123 | B148: 2942 | D148: =SUMIF('S1'!B:B,B148,'S1'!F:F)/1000 -> 0 | E148: =SUMIF('S1'!B:B,B148,'S1'!E:E)/1000 -> 0 | F148: =SUMIF('S1'!B:B,B148,'S1'!M:M)/1000 -> 0 | G148: =SUMIF('S1'!B:B,B148,'S1'!K:K)/1000 -> 0 | H148: =SUMIF('S1'!B:B,B148,'S1'!J:J)/1000 -> 0 | I148: =SUMIF('S1'!B:B,B148,'S1'!I:I)/BatteriespeicherWh ->  | J148: =SUMIF('S1'!B:B,B148,'S1'!I:I)/1000 -> 0 | K148: =SUMIF('S1'!B:B,B148,'S1'!L:L)/1000 -> 0
A149: 123 | B149: 2943 | D149: =SUMIF('S1'!B:B,B149,'S1'!F:F)/1000 -> 0 | E149: =SUMIF('S1'!B:B,B149,'S1'!E:E)/1000 -> 0 | F149: =SUMIF('S1'!B:B,B149,'S1'!M:M)/1000 -> 0 | G149: =SUMIF('S1'!B:B,B149,'S1'!K:K)/1000 -> 0 | H149: =SUMIF('S1'!B:B,B149,'S1'!J:J)/1000 -> 0 | I149: =SUMIF('S1'!B:B,B149,'S1'!I:I)/BatteriespeicherWh ->  | J149: =SUMIF('S1'!B:B,B149,'S1'!I:I)/1000 -> 0 | K149: =SUMIF('S1'!B:B,B149,'S1'!L:L)/1000 -> 0
A150: 123 | B150: 2944 | D150: =SUMIF('S1'!B:B,B150,'S1'!F:F)/1000 -> 0 | E150: =SUMIF('S1'!B:B,B150,'S1'!E:E)/1000 -> 0 | F150: =SUMIF('S1'!B:B,B150,'S1'!M:M)/1000 -> 0 | G150: =SUMIF('S1'!B:B,B150,'S1'!K:K)/1000 -> 0 | H150: =SUMIF('S1'!B:B,B150,'S1'!J:J)/1000 -> 0 | I150: =SUMIF('S1'!B:B,B150,'S1'!I:I)/BatteriespeicherWh ->  | J150: =SUMIF('S1'!B:B,B150,'S1'!I:I)/1000 -> 0 | K150: =SUMIF('S1'!B:B,B150,'S1'!L:L)/1000 -> 0
A151: 123 | B151: 2945 | D151: =SUMIF('S1'!B:B,B151,'S1'!F:F)/1000 -> 0 | E151: =SUMIF('S1'!B:B,B151,'S1'!E:E)/1000 -> 0 | F151: =SUMIF('S1'!B:B,B151,'S1'!M:M)/1000 -> 0 | G151: =SUMIF('S1'!B:B,B151,'S1'!K:K)/1000 -> 0 | H151: =SUMIF('S1'!B:B,B151,'S1'!J:J)/1000 -> 0 | I151: =SUMIF('S1'!B:B,B151,'S1'!I:I)/BatteriespeicherWh ->  | J151: =SUMIF('S1'!B:B,B151,'S1'!I:I)/1000 -> 0 | K151: =SUMIF('S1'!B:B,B151,'S1'!L:L)/1000 -> 0
A152: 123 | B152: 2946 | D152: =SUMIF('S1'!B:B,B152,'S1'!F:F)/1000 -> 0 | E152: =SUMIF('S1'!B:B,B152,'S1'!E:E)/1000 -> 0 | F152: =SUMIF('S1'!B:B,B152,'S1'!M:M)/1000 -> 0 | G152: =SUMIF('S1'!B:B,B152,'S1'!K:K)/1000 -> 0 | H152: =SUMIF('S1'!B:B,B152,'S1'!J:J)/1000 -> 0 | I152: =SUMIF('S1'!B:B,B152,'S1'!I:I)/BatteriespeicherWh ->  | J152: =SUMIF('S1'!B:B,B152,'S1'!I:I)/1000 -> 0 | K152: =SUMIF('S1'!B:B,B152,'S1'!L:L)/1000 -> 0
A153: 123 | B153: 2947 | D153: =SUMIF('S1'!B:B,B153,'S1'!F:F)/1000 -> 0 | E153: =SUMIF('S1'!B:B,B153,'S1'!E:E)/1000 -> 0 | F153: =SUMIF('S1'!B:B,B153,'S1'!M:M)/1000 -> 0 | G153: =SUMIF('S1'!B:B,B153,'S1'!K:K)/1000 -> 0 | H153: =SUMIF('S1'!B:B,B153,'S1'!J:J)/1000 -> 0 | I153: =SUMIF('S1'!B:B,B153,'S1'!I:I)/BatteriespeicherWh ->  | J153: =SUMIF('S1'!B:B,B153,'S1'!I:I)/1000 -> 0 | K153: =SUMIF('S1'!B:B,B153,'S1'!L:L)/1000 -> 0
A154: 123 | B154: 2948 | D154: =SUMIF('S1'!B:B,B154,'S1'!F:F)/1000 -> 0 | E154: =SUMIF('S1'!B:B,B154,'S1'!E:E)/1000 -> 0 | F154: =SUMIF('S1'!B:B,B154,'S1'!M:M)/1000 -> 0 | G154: =SUMIF('S1'!B:B,B154,'S1'!K:K)/1000 -> 0 | H154: =SUMIF('S1'!B:B,B154,'S1'!J:J)/1000 -> 0 | I154: =SUMIF('S1'!B:B,B154,'S1'!I:I)/BatteriespeicherWh ->  | J154: =SUMIF('S1'!B:B,B154,'S1'!I:I)/1000 -> 0 | K154: =SUMIF('S1'!B:B,B154,'S1'!L:L)/1000 -> 0
A155: 123 | B155: 2949 | D155: =SUMIF('S1'!B:B,B155,'S1'!F:F)/1000 -> 0 | E155: =SUMIF('S1'!B:B,B155,'S1'!E:E)/1000 -> 0 | F155: =SUMIF('S1'!B:B,B155,'S1'!M:M)/1000 -> 0 | G155: =SUMIF('S1'!B:B,B155,'S1'!K:K)/1000 -> 0 | H155: =SUMIF('S1'!B:B,B155,'S1'!J:J)/1000 -> 0 | I155: =SUMIF('S1'!B:B,B155,'S1'!I:I)/BatteriespeicherWh ->  | J155: =SUMIF('S1'!B:B,B155,'S1'!I:I)/1000 -> 0 | K155: =SUMIF('S1'!B:B,B155,'S1'!L:L)/1000 -> 0
A156: 123 | B156: 2950 | D156: =SUMIF('S1'!B:B,B156,'S1'!F:F)/1000 -> 0 | E156: =SUMIF('S1'!B:B,B156,'S1'!E:E)/1000 -> 0 | F156: =SUMIF('S1'!B:B,B156,'S1'!M:M)/1000 -> 0 | G156: =SUMIF('S1'!B:B,B156,'S1'!K:K)/1000 -> 0 | H156: =SUMIF('S1'!B:B,B156,'S1'!J:J)/1000 -> 0 | I156: =SUMIF('S1'!B:B,B156,'S1'!I:I)/BatteriespeicherWh ->  | J156: =SUMIF('S1'!B:B,B156,'S1'!I:I)/1000 -> 0 | K156: =SUMIF('S1'!B:B,B156,'S1'!L:L)/1000 -> 0
A157: 123 | B157: 2951 | D157: =SUMIF('S1'!B:B,B157,'S1'!F:F)/1000 -> 0 | E157: =SUMIF('S1'!B:B,B157,'S1'!E:E)/1000 -> 0 | F157: =SUMIF('S1'!B:B,B157,'S1'!M:M)/1000 -> 0 | G157: =SUMIF('S1'!B:B,B157,'S1'!K:K)/1000 -> 0 | H157: =SUMIF('S1'!B:B,B157,'S1'!J:J)/1000 -> 0 | I157: =SUMIF('S1'!B:B,B157,'S1'!I:I)/BatteriespeicherWh ->  | J157: =SUMIF('S1'!B:B,B157,'S1'!I:I)/1000 -> 0 | K157: =SUMIF('S1'!B:B,B157,'S1'!L:L)/1000 -> 0
A158: 123 | B158: 2952 | D158: =SUMIF('S1'!B:B,B158,'S1'!F:F)/1000 -> 0 | E158: =SUMIF('S1'!B:B,B158,'S1'!E:E)/1000 -> 0 | F158: =SUMIF('S1'!B:B,B158,'S1'!M:M)/1000 -> 0 | G158: =SUMIF('S1'!B:B,B158,'S1'!K:K)/1000 -> 0 | H158: =SUMIF('S1'!B:B,B158,'S1'!J:J)/1000 -> 0 | I158: =SUMIF('S1'!B:B,B158,'S1'!I:I)/BatteriespeicherWh ->  | J158: =SUMIF('S1'!B:B,B158,'S1'!I:I)/1000 -> 0 | K158: =SUMIF('S1'!B:B,B158,'S1'!L:L)/1000 -> 0
A159: 124 | B159: 2953 | C159: Fr. 0:00 | D159: =SUMIF('S1'!B:B,B159,'S1'!F:F)/1000 -> 0 | E159: =SUMIF('S1'!B:B,B159,'S1'!E:E)/1000 -> 0 | F159: =SUMIF('S1'!B:B,B159,'S1'!M:M)/1000 -> 0 | G159: =SUMIF('S1'!B:B,B159,'S1'!K:K)/1000 -> 0 | H159: =SUMIF('S1'!B:B,B159,'S1'!J:J)/1000 -> 0 | I159: =SUMIF('S1'!B:B,B159,'S1'!I:I)/BatteriespeicherWh ->  | J159: =SUMIF('S1'!B:B,B159,'S1'!I:I)/1000 -> 0 | K159: =SUMIF('S1'!B:B,B159,'S1'!L:L)/1000 -> 0
A160: 124 | B160: 2954 | D160: =SUMIF('S1'!B:B,B160,'S1'!F:F)/1000 -> 0 | E160: =SUMIF('S1'!B:B,B160,'S1'!E:E)/1000 -> 0 | F160: =SUMIF('S1'!B:B,B160,'S1'!M:M)/1000 -> 0 | G160: =SUMIF('S1'!B:B,B160,'S1'!K:K)/1000 -> 0 | H160: =SUMIF('S1'!B:B,B160,'S1'!J:J)/1000 -> 0 | I160: =SUMIF('S1'!B:B,B160,'S1'!I:I)/BatteriespeicherWh ->  | J160: =SUMIF('S1'!B:B,B160,'S1'!I:I)/1000 -> 0 | K160: =SUMIF('S1'!B:B,B160,'S1'!L:L)/1000 -> 0
A161: 124 | B161: 2955 | D161: =SUMIF('S1'!B:B,B161,'S1'!F:F)/1000 -> 0 | E161: =SUMIF('S1'!B:B,B161,'S1'!E:E)/1000 -> 0 | F161: =SUMIF('S1'!B:B,B161,'S1'!M:M)/1000 -> 0 | G161: =SUMIF('S1'!B:B,B161,'S1'!K:K)/1000 -> 0 | H161: =SUMIF('S1'!B:B,B161,'S1'!J:J)/1000 -> 0 | I161: =SUMIF('S1'!B:B,B161,'S1'!I:I)/BatteriespeicherWh ->  | J161: =SUMIF('S1'!B:B,B161,'S1'!I:I)/1000 -> 0 | K161: =SUMIF('S1'!B:B,B161,'S1'!L:L)/1000 -> 0
A162: 124 | B162: 2956 | D162: =SUMIF('S1'!B:B,B162,'S1'!F:F)/1000 -> 0 | E162: =SUMIF('S1'!B:B,B162,'S1'!E:E)/1000 -> 0 | F162: =SUMIF('S1'!B:B,B162,'S1'!M:M)/1000 -> 0 | G162: =SUMIF('S1'!B:B,B162,'S1'!K:K)/1000 -> 0 | H162: =SUMIF('S1'!B:B,B162,'S1'!J:J)/1000 -> 0 | I162: =SUMIF('S1'!B:B,B162,'S1'!I:I)/BatteriespeicherWh ->  | J162: =SUMIF('S1'!B:B,B162,'S1'!I:I)/1000 -> 0 | K162: =SUMIF('S1'!B:B,B162,'S1'!L:L)/1000 -> 0
A163: 124 | B163: 2957 | D163: =SUMIF('S1'!B:B,B163,'S1'!F:F)/1000 -> 0 | E163: =SUMIF('S1'!B:B,B163,'S1'!E:E)/1000 -> 0 | F163: =SUMIF('S1'!B:B,B163,'S1'!M:M)/1000 -> 0 | G163: =SUMIF('S1'!B:B,B163,'S1'!K:K)/1000 -> 0 | H163: =SUMIF('S1'!B:B,B163,'S1'!J:J)/1000 -> 0 | I163: =SUMIF('S1'!B:B,B163,'S1'!I:I)/BatteriespeicherWh ->  | J163: =SUMIF('S1'!B:B,B163,'S1'!I:I)/1000 -> 0 | K163: =SUMIF('S1'!B:B,B163,'S1'!L:L)/1000 -> 0
A164: 124 | B164: 2958 | D164: =SUMIF('S1'!B:B,B164,'S1'!F:F)/1000 -> 0 | E164: =SUMIF('S1'!B:B,B164,'S1'!E:E)/1000 -> 0 | F164: =SUMIF('S1'!B:B,B164,'S1'!M:M)/1000 -> 0 | G164: =SUMIF('S1'!B:B,B164,'S1'!K:K)/1000 -> 0 | H164: =SUMIF('S1'!B:B,B164,'S1'!J:J)/1000 -> 0 | I164: =SUMIF('S1'!B:B,B164,'S1'!I:I)/BatteriespeicherWh ->  | J164: =SUMIF('S1'!B:B,B164,'S1'!I:I)/1000 -> 0 | K164: =SUMIF('S1'!B:B,B164,'S1'!L:L)/1000 -> 0
A165: 124 | B165: 2959 | D165: =SUMIF('S1'!B:B,B165,'S1'!F:F)/1000 -> 0 | E165: =SUMIF('S1'!B:B,B165,'S1'!E:E)/1000 -> 0 | F165: =SUMIF('S1'!B:B,B165,'S1'!M:M)/1000 -> 0 | G165: =SUMIF('S1'!B:B,B165,'S1'!K:K)/1000 -> 0 | H165: =SUMIF('S1'!B:B,B165,'S1'!J:J)/1000 -> 0 | I165: =SUMIF('S1'!B:B,B165,'S1'!I:I)/BatteriespeicherWh ->  | J165: =SUMIF('S1'!B:B,B165,'S1'!I:I)/1000 -> 0 | K165: =SUMIF('S1'!B:B,B165,'S1'!L:L)/1000 -> 0
A166: 124 | B166: 2960 | D166: =SUMIF('S1'!B:B,B166,'S1'!F:F)/1000 -> 0 | E166: =SUMIF('S1'!B:B,B166,'S1'!E:E)/1000 -> 0 | F166: =SUMIF('S1'!B:B,B166,'S1'!M:M)/1000 -> 0 | G166: =SUMIF('S1'!B:B,B166,'S1'!K:K)/1000 -> 0 | H166: =SUMIF('S1'!B:B,B166,'S1'!J:J)/1000 -> 0 | I166: =SUMIF('S1'!B:B,B166,'S1'!I:I)/BatteriespeicherWh ->  | J166: =SUMIF('S1'!B:B,B166,'S1'!I:I)/1000 -> 0 | K166: =SUMIF('S1'!B:B,B166,'S1'!L:L)/1000 -> 0
A167: 124 | B167: 2961 | D167: =SUMIF('S1'!B:B,B167,'S1'!F:F)/1000 -> 0 | E167: =SUMIF('S1'!B:B,B167,'S1'!E:E)/1000 -> 0 | F167: =SUMIF('S1'!B:B,B167,'S1'!M:M)/1000 -> 0 | G167: =SUMIF('S1'!B:B,B167,'S1'!K:K)/1000 -> 0 | H167: =SUMIF('S1'!B:B,B167,'S1'!J:J)/1000 -> 0 | I167: =SUMIF('S1'!B:B,B167,'S1'!I:I)/BatteriespeicherWh ->  | J167: =SUMIF('S1'!B:B,B167,'S1'!I:I)/1000 -> 0 | K167: =SUMIF('S1'!B:B,B167,'S1'!L:L)/1000 -> 0
A168: 124 | B168: 2962 | D168: =SUMIF('S1'!B:B,B168,'S1'!F:F)/1000 -> 0 | E168: =SUMIF('S1'!B:B,B168,'S1'!E:E)/1000 -> 0 | F168: =SUMIF('S1'!B:B,B168,'S1'!M:M)/1000 -> 0 | G168: =SUMIF('S1'!B:B,B168,'S1'!K:K)/1000 -> 0 | H168: =SUMIF('S1'!B:B,B168,'S1'!J:J)/1000 -> 0 | I168: =SUMIF('S1'!B:B,B168,'S1'!I:I)/BatteriespeicherWh ->  | J168: =SUMIF('S1'!B:B,B168,'S1'!I:I)/1000 -> 0 | K168: =SUMIF('S1'!B:B,B168,'S1'!L:L)/1000 -> 0
A169: 124 | B169: 2963 | D169: =SUMIF('S1'!B:B,B169,'S1'!F:F)/1000 -> 0 | E169: =SUMIF('S1'!B:B,B169,'S1'!E:E)/1000 -> 0 | F169: =SUMIF('S1'!B:B,B169,'S1'!M:M)/1000 -> 0 | G169: =SUMIF('S1'!B:B,B169,'S1'!K:K)/1000 -> 0 | H169: =SUMIF('S1'!B:B,B169,'S1'!J:J)/1000 -> 0 | I169: =SUMIF('S1'!B:B,B169,'S1'!I:I)/BatteriespeicherWh ->  | J169: =SUMIF('S1'!B:B,B169,'S1'!I:I)/1000 -> 0 | K169: =SUMIF('S1'!B:B,B169,'S1'!L:L)/1000 -> 0
A170: 124 | B170: 2964 | D170: =SUMIF('S1'!B:B,B170,'S1'!F:F)/1000 -> 0 | E170: =SUMIF('S1'!B:B,B170,'S1'!E:E)/1000 -> 0 | F170: =SUMIF('S1'!B:B,B170,'S1'!M:M)/1000 -> 0 | G170: =SUMIF('S1'!B:B,B170,'S1'!K:K)/1000 -> 0 | H170: =SUMIF('S1'!B:B,B170,'S1'!J:J)/1000 -> 0 | I170: =SUMIF('S1'!B:B,B170,'S1'!I:I)/BatteriespeicherWh ->  | J170: =SUMIF('S1'!B:B,B170,'S1'!I:I)/1000 -> 0 | K170: =SUMIF('S1'!B:B,B170,'S1'!L:L)/1000 -> 0
A171: 124 | B171: 2965 | C171: Fr. 12:00 | D171: =SUMIF('S1'!B:B,B171,'S1'!F:F)/1000 -> 0 | E171: =SUMIF('S1'!B:B,B171,'S1'!E:E)/1000 -> 0 | F171: =SUMIF('S1'!B:B,B171,'S1'!M:M)/1000 -> 0 | G171: =SUMIF('S1'!B:B,B171,'S1'!K:K)/1000 -> 0 | H171: =SUMIF('S1'!B:B,B171,'S1'!J:J)/1000 -> 0 | I171: =SUMIF('S1'!B:B,B171,'S1'!I:I)/BatteriespeicherWh ->  | J171: =SUMIF('S1'!B:B,B171,'S1'!I:I)/1000 -> 0 | K171: =SUMIF('S1'!B:B,B171,'S1'!L:L)/1000 -> 0
A172: 124 | B172: 2966 | D172: =SUMIF('S1'!B:B,B172,'S1'!F:F)/1000 -> 0 | E172: =SUMIF('S1'!B:B,B172,'S1'!E:E)/1000 -> 0 | F172: =SUMIF('S1'!B:B,B172,'S1'!M:M)/1000 -> 0 | G172: =SUMIF('S1'!B:B,B172,'S1'!K:K)/1000 -> 0 | H172: =SUMIF('S1'!B:B,B172,'S1'!J:J)/1000 -> 0 | I172: =SUMIF('S1'!B:B,B172,'S1'!I:I)/BatteriespeicherWh ->  | J172: =SUMIF('S1'!B:B,B172,'S1'!I:I)/1000 -> 0 | K172: =SUMIF('S1'!B:B,B172,'S1'!L:L)/1000 -> 0
A173: 124 | B173: 2967 | D173: =SUMIF('S1'!B:B,B173,'S1'!F:F)/1000 -> 0 | E173: =SUMIF('S1'!B:B,B173,'S1'!E:E)/1000 -> 0 | F173: =SUMIF('S1'!B:B,B173,'S1'!M:M)/1000 -> 0 | G173: =SUMIF('S1'!B:B,B173,'S1'!K:K)/1000 -> 0 | H173: =SUMIF('S1'!B:B,B173,'S1'!J:J)/1000 -> 0 | I173: =SUMIF('S1'!B:B,B173,'S1'!I:I)/BatteriespeicherWh ->  | J173: =SUMIF('S1'!B:B,B173,'S1'!I:I)/1000 -> 0 | K173: =SUMIF('S1'!B:B,B173,'S1'!L:L)/1000 -> 0
A174: 124 | B174: 2968 | D174: =SUMIF('S1'!B:B,B174,'S1'!F:F)/1000 -> 0 | E174: =SUMIF('S1'!B:B,B174,'S1'!E:E)/1000 -> 0 | F174: =SUMIF('S1'!B:B,B174,'S1'!M:M)/1000 -> 0 | G174: =SUMIF('S1'!B:B,B174,'S1'!K:K)/1000 -> 0 | H174: =SUMIF('S1'!B:B,B174,'S1'!J:J)/1000 -> 0 | I174: =SUMIF('S1'!B:B,B174,'S1'!I:I)/BatteriespeicherWh ->  | J174: =SUMIF('S1'!B:B,B174,'S1'!I:I)/1000 -> 0 | K174: =SUMIF('S1'!B:B,B174,'S1'!L:L)/1000 -> 0
A175: 124 | B175: 2969 | D175: =SUMIF('S1'!B:B,B175,'S1'!F:F)/1000 -> 0 | E175: =SUMIF('S1'!B:B,B175,'S1'!E:E)/1000 -> 0 | F175: =SUMIF('S1'!B:B,B175,'S1'!M:M)/1000 -> 0 | G175: =SUMIF('S1'!B:B,B175,'S1'!K:K)/1000 -> 0 | H175: =SUMIF('S1'!B:B,B175,'S1'!J:J)/1000 -> 0 | I175: =SUMIF('S1'!B:B,B175,'S1'!I:I)/BatteriespeicherWh ->  | J175: =SUMIF('S1'!B:B,B175,'S1'!I:I)/1000 -> 0 | K175: =SUMIF('S1'!B:B,B175,'S1'!L:L)/1000 -> 0
A176: 124 | B176: 2970 | D176: =SUMIF('S1'!B:B,B176,'S1'!F:F)/1000 -> 0 | E176: =SUMIF('S1'!B:B,B176,'S1'!E:E)/1000 -> 0 | F176: =SUMIF('S1'!B:B,B176,'S1'!M:M)/1000 -> 0 | G176: =SUMIF('S1'!B:B,B176,'S1'!K:K)/1000 -> 0 | H176: =SUMIF('S1'!B:B,B176,'S1'!J:J)/1000 -> 0 | I176: =SUMIF('S1'!B:B,B176,'S1'!I:I)/BatteriespeicherWh ->  | J176: =SUMIF('S1'!B:B,B176,'S1'!I:I)/1000 -> 0 | K176: =SUMIF('S1'!B:B,B176,'S1'!L:L)/1000 -> 0
A177: 124 | B177: 2971 | D177: =SUMIF('S1'!B:B,B177,'S1'!F:F)/1000 -> 0 | E177: =SUMIF('S1'!B:B,B177,'S1'!E:E)/1000 -> 0 | F177: =SUMIF('S1'!B:B,B177,'S1'!M:M)/1000 -> 0 | G177: =SUMIF('S1'!B:B,B177,'S1'!K:K)/1000 -> 0 | H177: =SUMIF('S1'!B:B,B177,'S1'!J:J)/1000 -> 0 | I177: =SUMIF('S1'!B:B,B177,'S1'!I:I)/BatteriespeicherWh ->  | J177: =SUMIF('S1'!B:B,B177,'S1'!I:I)/1000 -> 0 | K177: =SUMIF('S1'!B:B,B177,'S1'!L:L)/1000 -> 0
A178: 124 | B178: 2972 | D178: =SUMIF('S1'!B:B,B178,'S1'!F:F)/1000 -> 0 | E178: =SUMIF('S1'!B:B,B178,'S1'!E:E)/1000 -> 0 | F178: =SUMIF('S1'!B:B,B178,'S1'!M:M)/1000 -> 0 | G178: =SUMIF('S1'!B:B,B178,'S1'!K:K)/1000 -> 0 | H178: =SUMIF('S1'!B:B,B178,'S1'!J:J)/1000 -> 0 | I178: =SUMIF('S1'!B:B,B178,'S1'!I:I)/BatteriespeicherWh ->  | J178: =SUMIF('S1'!B:B,B178,'S1'!I:I)/1000 -> 0 | K178: =SUMIF('S1'!B:B,B178,'S1'!L:L)/1000 -> 0
A179: 124 | B179: 2973 | D179: =SUMIF('S1'!B:B,B179,'S1'!F:F)/1000 -> 0 | E179: =SUMIF('S1'!B:B,B179,'S1'!E:E)/1000 -> 0 | F179: =SUMIF('S1'!B:B,B179,'S1'!M:M)/1000 -> 0 | G179: =SUMIF('S1'!B:B,B179,'S1'!K:K)/1000 -> 0 | H179: =SUMIF('S1'!B:B,B179,'S1'!J:J)/1000 -> 0 | I179: =SUMIF('S1'!B:B,B179,'S1'!I:I)/BatteriespeicherWh ->  | J179: =SUMIF('S1'!B:B,B179,'S1'!I:I)/1000 -> 0 | K179: =SUMIF('S1'!B:B,B179,'S1'!L:L)/1000 -> 0
A180: 124 | B180: 2974 | D180: =SUMIF('S1'!B:B,B180,'S1'!F:F)/1000 -> 0 | E180: =SUMIF('S1'!B:B,B180,'S1'!E:E)/1000 -> 0 | F180: =SUMIF('S1'!B:B,B180,'S1'!M:M)/1000 -> 0 | G180: =SUMIF('S1'!B:B,B180,'S1'!K:K)/1000 -> 0 | H180: =SUMIF('S1'!B:B,B180,'S1'!J:J)/1000 -> 0 | I180: =SUMIF('S1'!B:B,B180,'S1'!I:I)/BatteriespeicherWh ->  | J180: =SUMIF('S1'!B:B,B180,'S1'!I:I)/1000 -> 0 | K180: =SUMIF('S1'!B:B,B180,'S1'!L:L)/1000 -> 0
A181: 124 | B181: 2975 | D181: =SUMIF('S1'!B:B,B181,'S1'!F:F)/1000 -> 0 | E181: =SUMIF('S1'!B:B,B181,'S1'!E:E)/1000 -> 0 | F181: =SUMIF('S1'!B:B,B181,'S1'!M:M)/1000 -> 0 | G181: =SUMIF('S1'!B:B,B181,'S1'!K:K)/1000 -> 0 | H181: =SUMIF('S1'!B:B,B181,'S1'!J:J)/1000 -> 0 | I181: =SUMIF('S1'!B:B,B181,'S1'!I:I)/BatteriespeicherWh ->  | J181: =SUMIF('S1'!B:B,B181,'S1'!I:I)/1000 -> 0 | K181: =SUMIF('S1'!B:B,B181,'S1'!L:L)/1000 -> 0
A182: 124 | B182: 2976 | D182: =SUMIF('S1'!B:B,B182,'S1'!F:F)/1000 -> 0 | E182: =SUMIF('S1'!B:B,B182,'S1'!E:E)/1000 -> 0 | F182: =SUMIF('S1'!B:B,B182,'S1'!M:M)/1000 -> 0 | G182: =SUMIF('S1'!B:B,B182,'S1'!K:K)/1000 -> 0 | H182: =SUMIF('S1'!B:B,B182,'S1'!J:J)/1000 -> 0 | I182: =SUMIF('S1'!B:B,B182,'S1'!I:I)/BatteriespeicherWh ->  | J182: =SUMIF('S1'!B:B,B182,'S1'!I:I)/1000 -> 0 | K182: =SUMIF('S1'!B:B,B182,'S1'!L:L)/1000 -> 0
A183: 125 | B183: 2977 | C183: Sa. 0.00 | D183: =SUMIF('S1'!B:B,B183,'S1'!F:F)/1000 -> 0 | E183: =SUMIF('S1'!B:B,B183,'S1'!E:E)/1000 -> 0 | F183: =SUMIF('S1'!B:B,B183,'S1'!M:M)/1000 -> 0 | G183: =SUMIF('S1'!B:B,B183,'S1'!K:K)/1000 -> 0 | H183: =SUMIF('S1'!B:B,B183,'S1'!J:J)/1000 -> 0 | I183: =SUMIF('S1'!B:B,B183,'S1'!I:I)/BatteriespeicherWh ->  | J183: =SUMIF('S1'!B:B,B183,'S1'!I:I)/1000 -> 0 | K183: =SUMIF('S1'!B:B,B183,'S1'!L:L)/1000 -> 0
A184: 125 | B184: 2978 | D184: =SUMIF('S1'!B:B,B184,'S1'!F:F)/1000 -> 0 | E184: =SUMIF('S1'!B:B,B184,'S1'!E:E)/1000 -> 0 | F184: =SUMIF('S1'!B:B,B184,'S1'!M:M)/1000 -> 0 | G184: =SUMIF('S1'!B:B,B184,'S1'!K:K)/1000 -> 0 | H184: =SUMIF('S1'!B:B,B184,'S1'!J:J)/1000 -> 0 | I184: =SUMIF('S1'!B:B,B184,'S1'!I:I)/BatteriespeicherWh ->  | J184: =SUMIF('S1'!B:B,B184,'S1'!I:I)/1000 -> 0 | K184: =SUMIF('S1'!B:B,B184,'S1'!L:L)/1000 -> 0
A185: 125 | B185: 2979 | D185: =SUMIF('S1'!B:B,B185,'S1'!F:F)/1000 -> 0 | E185: =SUMIF('S1'!B:B,B185,'S1'!E:E)/1000 -> 0 | F185: =SUMIF('S1'!B:B,B185,'S1'!M:M)/1000 -> 0 | G185: =SUMIF('S1'!B:B,B185,'S1'!K:K)/1000 -> 0 | H185: =SUMIF('S1'!B:B,B185,'S1'!J:J)/1000 -> 0 | I185: =SUMIF('S1'!B:B,B185,'S1'!I:I)/BatteriespeicherWh ->  | J185: =SUMIF('S1'!B:B,B185,'S1'!I:I)/1000 -> 0 | K185: =SUMIF('S1'!B:B,B185,'S1'!L:L)/1000 -> 0
A186: 125 | B186: 2980 | D186: =SUMIF('S1'!B:B,B186,'S1'!F:F)/1000 -> 0 | E186: =SUMIF('S1'!B:B,B186,'S1'!E:E)/1000 -> 0 | F186: =SUMIF('S1'!B:B,B186,'S1'!M:M)/1000 -> 0 | G186: =SUMIF('S1'!B:B,B186,'S1'!K:K)/1000 -> 0 | H186: =SUMIF('S1'!B:B,B186,'S1'!J:J)/1000 -> 0 | I186: =SUMIF('S1'!B:B,B186,'S1'!I:I)/BatteriespeicherWh ->  | J186: =SUMIF('S1'!B:B,B186,'S1'!I:I)/1000 -> 0 | K186: =SUMIF('S1'!B:B,B186,'S1'!L:L)/1000 -> 0
A187: 125 | B187: 2981 | D187: =SUMIF('S1'!B:B,B187,'S1'!F:F)/1000 -> 0 | E187: =SUMIF('S1'!B:B,B187,'S1'!E:E)/1000 -> 0 | F187: =SUMIF('S1'!B:B,B187,'S1'!M:M)/1000 -> 0 | G187: =SUMIF('S1'!B:B,B187,'S1'!K:K)/1000 -> 0 | H187: =SUMIF('S1'!B:B,B187,'S1'!J:J)/1000 -> 0 | I187: =SUMIF('S1'!B:B,B187,'S1'!I:I)/BatteriespeicherWh ->  | J187: =SUMIF('S1'!B:B,B187,'S1'!I:I)/1000 -> 0 | K187: =SUMIF('S1'!B:B,B187,'S1'!L:L)/1000 -> 0
A188: 125 | B188: 2982 | D188: =SUMIF('S1'!B:B,B188,'S1'!F:F)/1000 -> 0 | E188: =SUMIF('S1'!B:B,B188,'S1'!E:E)/1000 -> 0 | F188: =SUMIF('S1'!B:B,B188,'S1'!M:M)/1000 -> 0 | G188: =SUMIF('S1'!B:B,B188,'S1'!K:K)/1000 -> 0 | H188: =SUMIF('S1'!B:B,B188,'S1'!J:J)/1000 -> 0 | I188: =SUMIF('S1'!B:B,B188,'S1'!I:I)/BatteriespeicherWh ->  | J188: =SUMIF('S1'!B:B,B188,'S1'!I:I)/1000 -> 0 | K188: =SUMIF('S1'!B:B,B188,'S1'!L:L)/1000 -> 0
A189: 125 | B189: 2983 | D189: =SUMIF('S1'!B:B,B189,'S1'!F:F)/1000 -> 0 | E189: =SUMIF('S1'!B:B,B189,'S1'!E:E)/1000 -> 0 | F189: =SUMIF('S1'!B:B,B189,'S1'!M:M)/1000 -> 0 | G189: =SUMIF('S1'!B:B,B189,'S1'!K:K)/1000 -> 0 | H189: =SUMIF('S1'!B:B,B189,'S1'!J:J)/1000 -> 0 | I189: =SUMIF('S1'!B:B,B189,'S1'!I:I)/BatteriespeicherWh ->  | J189: =SUMIF('S1'!B:B,B189,'S1'!I:I)/1000 -> 0 | K189: =SUMIF('S1'!B:B,B189,'S1'!L:L)/1000 -> 0
A190: 125 | B190: 2984 | D190: =SUMIF('S1'!B:B,B190,'S1'!F:F)/1000 -> 0 | E190: =SUMIF('S1'!B:B,B190,'S1'!E:E)/1000 -> 0 | F190: =SUMIF('S1'!B:B,B190,'S1'!M:M)/1000 -> 0 | G190: =SUMIF('S1'!B:B,B190,'S1'!K:K)/1000 -> 0 | H190: =SUMIF('S1'!B:B,B190,'S1'!J:J)/1000 -> 0 | I190: =SUMIF('S1'!B:B,B190,'S1'!I:I)/BatteriespeicherWh ->  | J190: =SUMIF('S1'!B:B,B190,'S1'!I:I)/1000 -> 0 | K190: =SUMIF('S1'!B:B,B190,'S1'!L:L)/1000 -> 0
A191: 125 | B191: 2985 | D191: =SUMIF('S1'!B:B,B191,'S1'!F:F)/1000 -> 0 | E191: =SUMIF('S1'!B:B,B191,'S1'!E:E)/1000 -> 0 | F191: =SUMIF('S1'!B:B,B191,'S1'!M:M)/1000 -> 0 | G191: =SUMIF('S1'!B:B,B191,'S1'!K:K)/1000 -> 0 | H191: =SUMIF('S1'!B:B,B191,'S1'!J:J)/1000 -> 0 | I191: =SUMIF('S1'!B:B,B191,'S1'!I:I)/BatteriespeicherWh ->  | J191: =SUMIF('S1'!B:B,B191,'S1'!I:I)/1000 -> 0 | K191: =SUMIF('S1'!B:B,B191,'S1'!L:L)/1000 -> 0
A192: 125 | B192: 2986 | D192: =SUMIF('S1'!B:B,B192,'S1'!F:F)/1000 -> 0 | E192: =SUMIF('S1'!B:B,B192,'S1'!E:E)/1000 -> 0 | F192: =SUMIF('S1'!B:B,B192,'S1'!M:M)/1000 -> 0 | G192: =SUMIF('S1'!B:B,B192,'S1'!K:K)/1000 -> 0 | H192: =SUMIF('S1'!B:B,B192,'S1'!J:J)/1000 -> 0 | I192: =SUMIF('S1'!B:B,B192,'S1'!I:I)/BatteriespeicherWh ->  | J192: =SUMIF('S1'!B:B,B192,'S1'!I:I)/1000 -> 0 | K192: =SUMIF('S1'!B:B,B192,'S1'!L:L)/1000 -> 0
A193: =CEILING(B193/24,1) -> 125 | B193: =B192+1 -> 2987 | D193: =SUMIF('S1'!B:B,B193,'S1'!F:F)/1000 -> 0 | E193: =SUMIF('S1'!B:B,B193,'S1'!E:E)/1000 -> 0 | F193: =SUMIF('S1'!B:B,B193,'S1'!M:M)/1000 -> 0 | G193: =SUMIF('S1'!B:B,B193,'S1'!K:K)/1000 -> 0 | H193: =SUMIF('S1'!B:B,B193,'S1'!J:J)/1000 -> 0 | I193: =SUMIF('S1'!B:B,B193,'S1'!I:I)/BatteriespeicherWh ->  | J193: =SUMIF('S1'!B:B,B193,'S1'!I:I)/1000 -> 0 | K193: =SUMIF('S1'!B:B,B193,'S1'!L:L)/1000 -> 0
A194: 125 | B194: 2988 | D194: =SUMIF('S1'!B:B,B194,'S1'!F:F)/1000 -> 0 | E194: =SUMIF('S1'!B:B,B194,'S1'!E:E)/1000 -> 0 | F194: =SUMIF('S1'!B:B,B194,'S1'!M:M)/1000 -> 0 | G194: =SUMIF('S1'!B:B,B194,'S1'!K:K)/1000 -> 0 | H194: =SUMIF('S1'!B:B,B194,'S1'!J:J)/1000 -> 0 | I194: =SUMIF('S1'!B:B,B194,'S1'!I:I)/BatteriespeicherWh ->  | J194: =SUMIF('S1'!B:B,B194,'S1'!I:I)/1000 -> 0 | K194: =SUMIF('S1'!B:B,B194,'S1'!L:L)/1000 -> 0
A195: 125 | B195: 2989 | C195: Sa. 12:00 | D195: =SUMIF('S1'!B:B,B195,'S1'!F:F)/1000 -> 0 | E195: =SUMIF('S1'!B:B,B195,'S1'!E:E)/1000 -> 0 | F195: =SUMIF('S1'!B:B,B195,'S1'!M:M)/1000 -> 0 | G195: =SUMIF('S1'!B:B,B195,'S1'!K:K)/1000 -> 0 | H195: =SUMIF('S1'!B:B,B195,'S1'!J:J)/1000 -> 0 | I195: =SUMIF('S1'!B:B,B195,'S1'!I:I)/BatteriespeicherWh ->  | J195: =SUMIF('S1'!B:B,B195,'S1'!I:I)/1000 -> 0 | K195: =SUMIF('S1'!B:B,B195,'S1'!L:L)/1000 -> 0
A196: 125 | B196: 2990 | D196: =SUMIF('S1'!B:B,B196,'S1'!F:F)/1000 -> 0 | E196: =SUMIF('S1'!B:B,B196,'S1'!E:E)/1000 -> 0 | F196: =SUMIF('S1'!B:B,B196,'S1'!M:M)/1000 -> 0 | G196: =SUMIF('S1'!B:B,B196,'S1'!K:K)/1000 -> 0 | H196: =SUMIF('S1'!B:B,B196,'S1'!J:J)/1000 -> 0 | I196: =SUMIF('S1'!B:B,B196,'S1'!I:I)/BatteriespeicherWh ->  | J196: =SUMIF('S1'!B:B,B196,'S1'!I:I)/1000 -> 0 | K196: =SUMIF('S1'!B:B,B196,'S1'!L:L)/1000 -> 0
A197: 125 | B197: 2991 | D197: =SUMIF('S1'!B:B,B197,'S1'!F:F)/1000 -> 0 | E197: =SUMIF('S1'!B:B,B197,'S1'!E:E)/1000 -> 0 | F197: =SUMIF('S1'!B:B,B197,'S1'!M:M)/1000 -> 0 | G197: =SUMIF('S1'!B:B,B197,'S1'!K:K)/1000 -> 0 | H197: =SUMIF('S1'!B:B,B197,'S1'!J:J)/1000 -> 0 | I197: =SUMIF('S1'!B:B,B197,'S1'!I:I)/BatteriespeicherWh ->  | J197: =SUMIF('S1'!B:B,B197,'S1'!I:I)/1000 -> 0 | K197: =SUMIF('S1'!B:B,B197,'S1'!L:L)/1000 -> 0
A198: 125 | B198: 2992 | D198: =SUMIF('S1'!B:B,B198,'S1'!F:F)/1000 -> 0 | E198: =SUMIF('S1'!B:B,B198,'S1'!E:E)/1000 -> 0 | F198: =SUMIF('S1'!B:B,B198,'S1'!M:M)/1000 -> 0 | G198: =SUMIF('S1'!B:B,B198,'S1'!K:K)/1000 -> 0 | H198: =SUMIF('S1'!B:B,B198,'S1'!J:J)/1000 -> 0 | I198: =SUMIF('S1'!B:B,B198,'S1'!I:I)/BatteriespeicherWh ->  | J198: =SUMIF('S1'!B:B,B198,'S1'!I:I)/1000 -> 0 | K198: =SUMIF('S1'!B:B,B198,'S1'!L:L)/1000 -> 0
A199: 125 | B199: 2993 | D199: =SUMIF('S1'!B:B,B199,'S1'!F:F)/1000 -> 0 | E199: =SUMIF('S1'!B:B,B199,'S1'!E:E)/1000 -> 0 | F199: =SUMIF('S1'!B:B,B199,'S1'!M:M)/1000 -> 0 | G199: =SUMIF('S1'!B:B,B199,'S1'!K:K)/1000 -> 0 | H199: =SUMIF('S1'!B:B,B199,'S1'!J:J)/1000 -> 0 | I199: =SUMIF('S1'!B:B,B199,'S1'!I:I)/BatteriespeicherWh ->  | J199: =SUMIF('S1'!B:B,B199,'S1'!I:I)/1000 -> 0 | K199: =SUMIF('S1'!B:B,B199,'S1'!L:L)/1000 -> 0
A200: 125 | B200: 2994 | D200: =SUMIF('S1'!B:B,B200,'S1'!F:F)/1000 -> 0 | E200: =SUMIF('S1'!B:B,B200,'S1'!E:E)/1000 -> 0 | F200: =SUMIF('S1'!B:B,B200,'S1'!M:M)/1000 -> 0 | G200: =SUMIF('S1'!B:B,B200,'S1'!K:K)/1000 -> 0 | H200: =SUMIF('S1'!B:B,B200,'S1'!J:J)/1000 -> 0 | I200: =SUMIF('S1'!B:B,B200,'S1'!I:I)/BatteriespeicherWh ->  | J200: =SUMIF('S1'!B:B,B200,'S1'!I:I)/1000 -> 0 | K200: =SUMIF('S1'!B:B,B200,'S1'!L:L)/1000 -> 0
A201: 125 | B201: 2995 | D201: =SUMIF('S1'!B:B,B201,'S1'!F:F)/1000 -> 0 | E201: =SUMIF('S1'!B:B,B201,'S1'!E:E)/1000 -> 0 | F201: =SUMIF('S1'!B:B,B201,'S1'!M:M)/1000 -> 0 | G201: =SUMIF('S1'!B:B,B201,'S1'!K:K)/1000 -> 0 | H201: =SUMIF('S1'!B:B,B201,'S1'!J:J)/1000 -> 0 | I201: =SUMIF('S1'!B:B,B201,'S1'!I:I)/BatteriespeicherWh ->  | J201: =SUMIF('S1'!B:B,B201,'S1'!I:I)/1000 -> 0 | K201: =SUMIF('S1'!B:B,B201,'S1'!L:L)/1000 -> 0
A202: 125 | B202: 2996 | D202: =SUMIF('S1'!B:B,B202,'S1'!F:F)/1000 -> 0 | E202: =SUMIF('S1'!B:B,B202,'S1'!E:E)/1000 -> 0 | F202: =SUMIF('S1'!B:B,B202,'S1'!M:M)/1000 -> 0 | G202: =SUMIF('S1'!B:B,B202,'S1'!K:K)/1000 -> 0 | H202: =SUMIF('S1'!B:B,B202,'S1'!J:J)/1000 -> 0 | I202: =SUMIF('S1'!B:B,B202,'S1'!I:I)/BatteriespeicherWh ->  | J202: =SUMIF('S1'!B:B,B202,'S1'!I:I)/1000 -> 0 | K202: =SUMIF('S1'!B:B,B202,'S1'!L:L)/1000 -> 0
A203: 125 | B203: 2997 | D203: =SUMIF('S1'!B:B,B203,'S1'!F:F)/1000 -> 0 | E203: =SUMIF('S1'!B:B,B203,'S1'!E:E)/1000 -> 0 | F203: =SUMIF('S1'!B:B,B203,'S1'!M:M)/1000 -> 0 | G203: =SUMIF('S1'!B:B,B203,'S1'!K:K)/1000 -> 0 | H203: =SUMIF('S1'!B:B,B203,'S1'!J:J)/1000 -> 0 | I203: =SUMIF('S1'!B:B,B203,'S1'!I:I)/BatteriespeicherWh ->  | J203: =SUMIF('S1'!B:B,B203,'S1'!I:I)/1000 -> 0 | K203: =SUMIF('S1'!B:B,B203,'S1'!L:L)/1000 -> 0
A204: 125 | B204: 2998 | D204: =SUMIF('S1'!B:B,B204,'S1'!F:F)/1000 -> 0 | E204: =SUMIF('S1'!B:B,B204,'S1'!E:E)/1000 -> 0 | F204: =SUMIF('S1'!B:B,B204,'S1'!M:M)/1000 -> 0 | G204: =SUMIF('S1'!B:B,B204,'S1'!K:K)/1000 -> 0 | H204: =SUMIF('S1'!B:B,B204,'S1'!J:J)/1000 -> 0 | I204: =SUMIF('S1'!B:B,B204,'S1'!I:I)/BatteriespeicherWh ->  | J204: =SUMIF('S1'!B:B,B204,'S1'!I:I)/1000 -> 0 | K204: =SUMIF('S1'!B:B,B204,'S1'!L:L)/1000 -> 0
A205: 125 | B205: 2999 | D205: =SUMIF('S1'!B:B,B205,'S1'!F:F)/1000 -> 0 | E205: =SUMIF('S1'!B:B,B205,'S1'!E:E)/1000 -> 0 | F205: =SUMIF('S1'!B:B,B205,'S1'!M:M)/1000 -> 0 | G205: =SUMIF('S1'!B:B,B205,'S1'!K:K)/1000 -> 0 | H205: =SUMIF('S1'!B:B,B205,'S1'!J:J)/1000 -> 0 | I205: =SUMIF('S1'!B:B,B205,'S1'!I:I)/BatteriespeicherWh ->  | J205: =SUMIF('S1'!B:B,B205,'S1'!I:I)/1000 -> 0 | K205: =SUMIF('S1'!B:B,B205,'S1'!L:L)/1000 -> 0
A206: 125 | B206: 3000 | D206: =SUMIF('S1'!B:B,B206,'S1'!F:F)/1000 -> 0 | E206: =SUMIF('S1'!B:B,B206,'S1'!E:E)/1000 -> 0 | F206: =SUMIF('S1'!B:B,B206,'S1'!M:M)/1000 -> 0 | G206: =SUMIF('S1'!B:B,B206,'S1'!K:K)/1000 -> 0 | H206: =SUMIF('S1'!B:B,B206,'S1'!J:J)/1000 -> 0 | I206: =SUMIF('S1'!B:B,B206,'S1'!I:I)/BatteriespeicherWh ->  | J206: =SUMIF('S1'!B:B,B206,'S1'!I:I)/1000 -> 0 | K206: =SUMIF('S1'!B:B,B206,'S1'!L:L)/1000 -> 0
A207: 126 | B207: 3001 | C207: So. 0:00 | D207: =SUMIF('S1'!B:B,B207,'S1'!F:F)/1000 -> 0 | E207: =SUMIF('S1'!B:B,B207,'S1'!E:E)/1000 -> 0 | F207: =SUMIF('S1'!B:B,B207,'S1'!M:M)/1000 -> 0 | G207: =SUMIF('S1'!B:B,B207,'S1'!K:K)/1000 -> 0 | H207: =SUMIF('S1'!B:B,B207,'S1'!J:J)/1000 -> 0 | I207: =SUMIF('S1'!B:B,B207,'S1'!I:I)/BatteriespeicherWh ->  | J207: =SUMIF('S1'!B:B,B207,'S1'!I:I)/1000 -> 0 | K207: =SUMIF('S1'!B:B,B207,'S1'!L:L)/1000 -> 0
A208: 126 | B208: 3002 | D208: =SUMIF('S1'!B:B,B208,'S1'!F:F)/1000 -> 0 | E208: =SUMIF('S1'!B:B,B208,'S1'!E:E)/1000 -> 0 | F208: =SUMIF('S1'!B:B,B208,'S1'!M:M)/1000 -> 0 | G208: =SUMIF('S1'!B:B,B208,'S1'!K:K)/1000 -> 0 | H208: =SUMIF('S1'!B:B,B208,'S1'!J:J)/1000 -> 0 | I208: =SUMIF('S1'!B:B,B208,'S1'!I:I)/BatteriespeicherWh ->  | J208: =SUMIF('S1'!B:B,B208,'S1'!I:I)/1000 -> 0 | K208: =SUMIF('S1'!B:B,B208,'S1'!L:L)/1000 -> 0
A209: 126 | B209: 3003 | D209: =SUMIF('S1'!B:B,B209,'S1'!F:F)/1000 -> 0 | E209: =SUMIF('S1'!B:B,B209,'S1'!E:E)/1000 -> 0 | F209: =SUMIF('S1'!B:B,B209,'S1'!M:M)/1000 -> 0 | G209: =SUMIF('S1'!B:B,B209,'S1'!K:K)/1000 -> 0 | H209: =SUMIF('S1'!B:B,B209,'S1'!J:J)/1000 -> 0 | I209: =SUMIF('S1'!B:B,B209,'S1'!I:I)/BatteriespeicherWh ->  | J209: =SUMIF('S1'!B:B,B209,'S1'!I:I)/1000 -> 0 | K209: =SUMIF('S1'!B:B,B209,'S1'!L:L)/1000 -> 0
A210: 126 | B210: 3004 | D210: =SUMIF('S1'!B:B,B210,'S1'!F:F)/1000 -> 0 | E210: =SUMIF('S1'!B:B,B210,'S1'!E:E)/1000 -> 0 | F210: =SUMIF('S1'!B:B,B210,'S1'!M:M)/1000 -> 0 | G210: =SUMIF('S1'!B:B,B210,'S1'!K:K)/1000 -> 0 | H210: =SUMIF('S1'!B:B,B210,'S1'!J:J)/1000 -> 0 | I210: =SUMIF('S1'!B:B,B210,'S1'!I:I)/BatteriespeicherWh ->  | J210: =SUMIF('S1'!B:B,B210,'S1'!I:I)/1000 -> 0 | K210: =SUMIF('S1'!B:B,B210,'S1'!L:L)/1000 -> 0
A211: 126 | B211: 3005 | D211: =SUMIF('S1'!B:B,B211,'S1'!F:F)/1000 -> 0 | E211: =SUMIF('S1'!B:B,B211,'S1'!E:E)/1000 -> 0 | F211: =SUMIF('S1'!B:B,B211,'S1'!M:M)/1000 -> 0 | G211: =SUMIF('S1'!B:B,B211,'S1'!K:K)/1000 -> 0 | H211: =SUMIF('S1'!B:B,B211,'S1'!J:J)/1000 -> 0 | I211: =SUMIF('S1'!B:B,B211,'S1'!I:I)/BatteriespeicherWh ->  | J211: =SUMIF('S1'!B:B,B211,'S1'!I:I)/1000 -> 0 | K211: =SUMIF('S1'!B:B,B211,'S1'!L:L)/1000 -> 0
A212: 126 | B212: 3006 | D212: =SUMIF('S1'!B:B,B212,'S1'!F:F)/1000 -> 0 | E212: =SUMIF('S1'!B:B,B212,'S1'!E:E)/1000 -> 0 | F212: =SUMIF('S1'!B:B,B212,'S1'!M:M)/1000 -> 0 | G212: =SUMIF('S1'!B:B,B212,'S1'!K:K)/1000 -> 0 | H212: =SUMIF('S1'!B:B,B212,'S1'!J:J)/1000 -> 0 | I212: =SUMIF('S1'!B:B,B212,'S1'!I:I)/BatteriespeicherWh ->  | J212: =SUMIF('S1'!B:B,B212,'S1'!I:I)/1000 -> 0 | K212: =SUMIF('S1'!B:B,B212,'S1'!L:L)/1000 -> 0
A213: 126 | B213: 3007 | D213: =SUMIF('S1'!B:B,B213,'S1'!F:F)/1000 -> 0 | E213: =SUMIF('S1'!B:B,B213,'S1'!E:E)/1000 -> 0 | F213: =SUMIF('S1'!B:B,B213,'S1'!M:M)/1000 -> 0 | G213: =SUMIF('S1'!B:B,B213,'S1'!K:K)/1000 -> 0 | H213: =SUMIF('S1'!B:B,B213,'S1'!J:J)/1000 -> 0 | I213: =SUMIF('S1'!B:B,B213,'S1'!I:I)/BatteriespeicherWh ->  | J213: =SUMIF('S1'!B:B,B213,'S1'!I:I)/1000 -> 0 | K213: =SUMIF('S1'!B:B,B213,'S1'!L:L)/1000 -> 0
A214: 126 | B214: 3008 | D214: =SUMIF('S1'!B:B,B214,'S1'!F:F)/1000 -> 0 | E214: =SUMIF('S1'!B:B,B214,'S1'!E:E)/1000 -> 0 | F214: =SUMIF('S1'!B:B,B214,'S1'!M:M)/1000 -> 0 | G214: =SUMIF('S1'!B:B,B214,'S1'!K:K)/1000 -> 0 | H214: =SUMIF('S1'!B:B,B214,'S1'!J:J)/1000 -> 0 | I214: =SUMIF('S1'!B:B,B214,'S1'!I:I)/BatteriespeicherWh ->  | J214: =SUMIF('S1'!B:B,B214,'S1'!I:I)/1000 -> 0 | K214: =SUMIF('S1'!B:B,B214,'S1'!L:L)/1000 -> 0
A215: 126 | B215: 3009 | D215: =SUMIF('S1'!B:B,B215,'S1'!F:F)/1000 -> 0 | E215: =SUMIF('S1'!B:B,B215,'S1'!E:E)/1000 -> 0 | F215: =SUMIF('S1'!B:B,B215,'S1'!M:M)/1000 -> 0 | G215: =SUMIF('S1'!B:B,B215,'S1'!K:K)/1000 -> 0 | H215: =SUMIF('S1'!B:B,B215,'S1'!J:J)/1000 -> 0 | I215: =SUMIF('S1'!B:B,B215,'S1'!I:I)/BatteriespeicherWh ->  | J215: =SUMIF('S1'!B:B,B215,'S1'!I:I)/1000 -> 0 | K215: =SUMIF('S1'!B:B,B215,'S1'!L:L)/1000 -> 0
... 15 more rows
